Workbook

Sheet SPIS TREŚCI
B1: BUDŻETY JEDNOSTEK SAMORZĄDU TERYTORIALNEGO W WOJEWÓDZTWIE DOLNOŚLĄSKIM W 2016 R.
B2: BUDGETS OF LOCAL GOVERNMENT UNITS IN DOLNOŚLĄSKIE VOIVODSHIP IN 2016
B3: I. TABLICE PRZEGLĄDOWE Review tables
B4: Tabl. 1. Dochody, wydatki i wynik finansowy budżetów jednostek samorządu terytorialnego
B5: Revenue, expenditure and financial result of local government units budgets
B6: Tabl. 2. Dochody i wydatki budżetów jednostek samorządu terytorialnego na 1 mieszkańca
B7: Revenue and expenditure of local government units budgets per capita
B8: Tabl. 3. Budżety jednostek samorządu terytorialnego województwa dolnośląskiego na tle kraju w 2015 r.
B9: Budgets of local government units of Dolnośląskie voivodship against the background of Poland in 2015
B10: II. BUDŻETY JEDNOSTEK SAMORZĄDU TERYTORIALNEGO Budgets of local government units
B11: Tabl. 4. Dochody budżetów jednostek samorządu terytorialnego według rodzajów
B12: Revenue of local government units budgets by types
B13: Tabl. 5. Dochody budżetów jednostek samorządu terytorialnego według działów
B14: Revenue of local government units budgets by divisions
B15: Tabl. 6. Wydatki budżetów jednostek samorządu terytorialnego według rodzajów
B16: Expenditure of local government units budgets by types
B17: Tabl. 7. Wydatki budżetów jednostek samorządu terytorialnego według działów
B18: Expenditure of local government units budgets by divisions
B19: III. BUDŻETY GMIN Gminas budgets
B20: Tabl. 8. Dochody budżetów gmin według rodzajów oraz podregionów i powiatów
B21: Revenue of gminas budgets by types as well as subregions and powiats
B22: Tabl. 9. Struktura dochodów budżetów gmin według rodzajów oraz podregionów i powiatów
B23: Structure of revenue of gminas budgets by types as well as subregions and powiats
B24: Tabl. 10. Dochody budżetów gmin według działów oraz podregionów i powiatów
B25: Revenue of gminas budgets by divisions as well as subregions and powiats
B26: Tabl. 11. Struktura dochodów budżetów gmin według działów oraz podregionów i powiatów
B27: Structure of revenue of gminas budgets by divisions as well as subregions and powiats
B28: Tabl. 12. Wydatki budżetów gmin według rodzajów oraz podregionów i powiatów
B29: Expenditure of gminas budgets by types as well as subregions and powiats
B30: Tabl. 13. Struktura wydatków budżetów gmin według rodzajów oraz podregionów i powiatów
B31: Structure of expenditure of gminas budgets by types as well as subregions and powiats
B32: Tabl. 14. Wydatki budżetów gmin według działów oraz podregionów i powiatów
B33: Expenditure of gminas budgets by divisions as well as subregions and powiats
B34: Tabl. 15. Struktura wydatków budżetów gmin według działów oraz podregionów i powiatów
B35: Structure of expenditure of gminas budgets by divisions as well as subregions and powiats
B36: Tabl. 16. Dochody i wydatki budżetów gmin na 1 mieszkańca
B37: Revenue and expenditure of gminas budgets per capita
B38: Tabl. 17. Dochody, wydatki i wynik finansowy budżetów gmin
B39: Revenue, expenditure and financial results of gminas budgets
B40: IV. BUDŻETY POWIATÓW Powiats budgets
B41: Tabl. 18. Dochody budżetów powiatów według rodzajów
B42: Revenue of powiats budgets by types
B43: Tabl. 19. Dochody budżetów powiatów według działów
B44: Revenue of powiats budgets by divisions
B45: Tabl. 20. Wydatki budżetów powiatów według rodzajów
B46: Expenditure of powiats budgets by types
B47: Tabl. 21. Wydatki budżetów powiatów według działów
B48: Expenditure of powiats budgets by divisions
B49: Tabl. 22. Dochody i wydatki budżetów powiatów na 1 mieszkańca
B50: Revenue and expenditure of powiats budgets per capita
B51: Tabl. 23. Dochody, wydatki i wynik finansowy budżetów powiatów
B52: Revenue, expenditure and financial results of powiats budgets
B53: V. BUDŻETY MIAST NA PRAWACH POWIATU Cities with powiat status budgets
B54: Tabl. 24. Dochody budżetów miast na prawach powiatu według rodzajów
B55: Revenue of cities with powiat status budgets by types
B56: Tabl. 25. Dochody budżetów miast na prawach powiatu według działów
B57: Revenue of cities with powiat status budgets by divisions
B58: Tabl. 26. Wydatki budżetów miast na prawach powiatu według rodzajów
B59: Expenditure of cities with powiat status budgets by types
B60: Tabl. 27. Wydatki budżetów miast na prawach powiatu według działów
B61: Expenditure of cities with powiat status budgets by divisions
B62: Tabl. 28. Dochody i wydatki budżetów miast na prawach powiatu na 1 mieszkańca
B63: Revenue and expenditure of cities with powiat status budgets per capita
B64: Tabl. 29. Dochody, wydatki i wynik finansowy budżetów miast na prawach powiatu
B65: Revenue, expenditure and financial results of cities with powiat status budgets
B66: VI. BUDŻET WOJEWÓDZTWA Voivodship budget
B67: Tabl. 30. Dochody budżetu województwa według rodzajów
B68: Revenue of voivodship by types
B69: Tabl. 31. Dochody budżetu województwa według działów
B70: Revenue of voivodship budget by divisions
B71: Tabl. 32. Wydatki budżetu województwa według rodzajów
B72: Expenditure of voivodship budget by types
B73: Tabl. 33. Wydatki budżetu województwa według działów
B74: Expenditure of voivodship budget by divisions
B75: Tabl. 34. Dochody i wydatki budżetu województwa na 1 mieszkańca
B76: Revenue and expenditure of voivodship budget per capita
B77: Tabl. 35. Dochody, wydatki i wynik finansowy budżetu województwa
B78: Revenue, expenditure and financial result of voivodship budget

Sheet Tabl. 1.
B4: Tabl. 1. Dochody, wydatki i wynik finansowy budżetów jednostek samorządu terytorialnego
B5: Revenue, expenditure and financial result of local government units budgets
B6: WYSZCZEGÓLNIENIE | C6: 2008 | D6: 2009 | E6: 2010 | F6: 2011 | G6: 2012 | H6: 2013 | I6: 2014 | J6: 2015 | K6: 2016 | L6: SPECIFICATION
B7: DOCHODY w tys. zł REVENUE in thous. zl
B8: O G Ó Ł E M | C8: 11205063.9 | D8: 11968476.9 | E8: 12782620.19 | F8: 13856723.66 | G8: 14620741.86 | H8: 14853936.04 | I8: 15405572 | J8: 15211147.13 | K8: 16379766.68 | L8: T O T A L
B9: Gminya.......................................... | C9: 5286642.1 | D9: 5409411.6 | E9: 6034815.128 | F9: 6326394.707 | G9: 6634836.572 | H9: 6477720.21 | I9: 6847946.712 | J9: 7075516.151 | K9: 7878055.419 | L9: Gminasa
B10: Powiaty | C10: 1590204.2 | D10: 1691723.5 | E10: 1905104.793 | F10: 2079721.038 | G10: 1944519.513 | H10: 1881676.178 | I10: 1976366.926 | J10: 1896967.585 | K10: 1903578.034 | L10: Powiats
B11: Miasta na prawach powiatu | C11: 3248377.4 | D11: 3363515.7 | E11: 3829407.489 | F11: 4216464.453 | G11: 4367184.177 | H11: 4868100.226 | I11: 4853637.009 | J11: 4973289.766 | K11: 5468930.409 | L11: Cities with powiat status
B12: Województwo | C12: 1079840.2 | D12: 1503826.1 | E12: 1013292.777 | F12: 1234143.461 | G12: 1674201.599 | H12: 1626439.423 | I12: 1727621.358 | J12: 1265373.626 | K12: 1129202.819 | L12: Voivodship
B14: WYDATKI w tys. zł EXPENDITURE in thous. zl
B15: O G Ó Ł E M | C15: 11917438.1 | D15: 13630155.1 | E15: 14027112.77 | F15: 14692796.67 | G15: 14695196.86 | H15: 14645089.55 | I15: 16053874.53 | J15: 15349195.79 | K15: 15965529.78 | L15: T O T A L
B16: Gminya.......................................... | C16: 5445439.3 | D16: 5890294.8 | E16: 6716508.937 | F16: 6628339.052 | G16: 6595255.268 | H16: 6419477.846 | I16: 6913856.02 | J16: 6880258.213 | K16: 7665498.505 | L16: Gminasa
B17: Powiaty | C17: 1619367.3 | D17: 1848576.4 | E17: 2008061.053 | F17: 2110504.241 | G17: 1920551.169 | H17: 1870169.706 | I17: 1969240.502 | J17: 1870324.468 | K17: 1857285.429 | L17: Powiats
B18: Miasta na prawach powiatu | C18: 3846447.4 | D18: 4300940.1 | E18: 3999167.451 | F18: 4437043.414 | G18: 4492160.165 | H18: 4767156.593 | I18: 5216527.112 | J18: 5297579.136 | K18: 5359703.044 | L18: Cities with powiat status
B19: Województwo | C19: 1006184.1 | D19: 1590343.8 | E19: 1303375.329 | F19: 1516909.961 | G19: 1687230.26 | H19: 1588285.409 | I19: 1954250.899 | J19: 1301033.972 | K19: 1083042.806 | L19: Voivodship
B21: WYNIK FINANSOWY deficyt (-) / nadwyżka (+) w tys. zł FINANCIAL RESULT deficit (-) / surplus (+) in thous. zl
B22: O G Ó Ł E M | C22: -712374.2 | D22: -1661678.2 | E22: -1244492.582 | F22: -836073.0094 | G22: -74455.00071 | H22: 208846.4822 | I22: -648302.5295 | J22: -138048.6614 | K22: 414236.8959 | L22: T O T A L
B23: Gminya.......................................... | C23: -158797.2 | D23: -480883.2 | E23: -681693.8085 | F23: -301944.3448 | G23: 39581.30413 | H23: 58242.36416 | I23: -65909.30854 | J23: 195257.9379 | K23: 212556.9137 | L23: Gminasa
B24: Powiaty | C24: -29163.1 | D24: -156852.9 | E24: -102956.2599 | F24: -30783.20284 | G24: 23968.34466 | H24: 11506.47171 | I24: 7126.42419 | J24: 26643.11713 | K24: 46292.60514 | L24: Powiats
B25: Miasta na prawach powiatub ....... | C25: -598070 | D25: -937424.4 | E25: -169759.9616 | F25: -220578.9618 | G25: -124975.9883 | H25: 100943.6328 | I25: -362890.1033 | J25: -324289.3708 | K25: 109227.3642 | L25: Cities with powiat status
B26: Województwo | C26: 73656.1 | D26: -86517.7 | E26: -290082.5522 | F26: -282766.5 | G26: -13028.66121 | H26: 38154.01353 | I26: -226629.5419 | J26: -35660.34566 | K26: 46160.01289 | L26: Voivodship
B28: DOCHODY w % REVENUE in %
B29: O G Ó Ł E M | C29: 100 | D29: 100 | E29: 100 | F29: 100 | G29: 100 | H29: 100 | I29: 100 | J29: 100 | K29: 100 | L29: T O T A L
B30: Gminya.......................................... | C30: 47.18082955 | D30: 45.19715955 | E30: 47.21109631 | F30: 45.65577595 | G30: 45.3796164 | H30: 43.6094527 | I30: 44.45110321 | J30: 46.5153357 | K30: 48.09626152 | L30: Gminasa
B31: Powiaty | C31: 14.19183518 | D31: 14.13482696 | E31: 14.90386764 | F31: 15.00875019 | G31: 13.2997322 | H31: 12.6678624 | I31: 12.82890973 | J31: 12.4709042 | K31: 11.62152106 | L31: Powiats
B32: Miasta na prawach powiatub ....... | C32: 28.99026216 | D32: 28.10312229 | E32: 29.95792281 | F32: 30.42901451 | G32: 29.86978512 | H32: 32.77313309 | I32: 31.50572408 | J32: 32.69503427 | K32: 33.38832912 | L32: Cities with powiat status
B33: Województwo | C33: 9.637073109 | D33: 12.56489119 | E33: 7.927113235 | F33: 8.90645936 | G33: 11.45086628 | H33: 10.94955181 | I33: 11.21426298 | J33: 8.318725836 | K33: 6.893888299 | L33: Voivodship
B35: WYDATKI w % EXPENDITURE in %
B36: O G Ó Ł E M | C36: 100 | D36: 100 | E36: 100 | F36: 100 | G36: 100 | H36: 100 | I36: 100 | J36: 100 | K36: 100 | L36: T O T A L
B37: Gminya.......................................... | C37: 45.69303616 | D37: 43.21517075 | E37: 47.88233364 | F37: 45.11284816 | G37: 44.88034648 | H37: 43.83365375 | I37: 43.06658811 | J37: 44.82487752 | K37: 48.01280389 | L37: Gminasa
B38: Powiaty | C38: 13.58821658 | D38: 13.5624018 | E38: 14.31556933 | F38: 14.36421049 | G38: 13.06924423 | H38: 12.7699438 | I38: 12.26645006 | J38: 12.18516262 | K38: 11.63309614 | L38: Powiats
B39: Miasta na prawach powiatub ....... | C39: 32.27579088 | D39: 31.55459398 | E39: 28.51026805 | F39: 30.19876688 | G39: 30.5689009 | H39: 32.55122869 | I39: 32.4938824 | J39: 34.51372443 | K39: 33.57046786 | L39: Cities with powiat status
B40: Województwo | C40: 8.442956377 | D40: 11.66783348 | E40: 9.291828976 | F40: 10.32417446 | G40: 11.48150839 | H40: 10.84517376 | I40: 12.17307944 | J40: 8.47623543 | K40: 6.783632115 | L40: Voivodship
B43: a Bez dochodów i wydatków gmin mających również status miasta na prawach powiatu, do 2012 r. łącznie z dochodami i wydatkami miasta Wałbrzych. b Od 2013 r. z dochodami i wydatkami miasta Wałbrzych.
B44: a Excluding revenue and expenditure of gminas which are also cities with powiat status, till 2012 with revenue and expenditure of town Wałbrzych. b since 2013 with revenue and expenditure of town Wałbrzych.

Sheet Tabl. 2.
B4: Tabl. 2. Dochody i wydatki budżetów jednostek samorządu terytorialnego na 1 mieszkańca
B5: Revenue and expenditure of local government units budgets per capita
B6: WYSZCZEGÓLNIENIE | C6: 2008 | D6: 2009 | E6: 2010 | F6: 2011 | G6: 2012 | H6: 2013 | I6: 2014 | J6: 2015 | K6: 2016 | L6: SPECIFICATION
B7: GMINYa GMINASa
B8: Dochody ogółem w zł | C8: 2573.88 | D8: 2632.43 | E8: 2934.9 | F8: 3015.04555 | G8: 3162.36 | H8: 3276.85358 | I8: 3467.87667 | J8: 3586.98769 | K8: 3998.71046 | L8: Total revenue in zl
B9: poprzedni rok = 100 | C9: 105.5374913 | D9: 102.2747758 | E9: 111.4901441 | F9: 102.7307762 | G9: 104.8859776 | H9: 103.6205106 | I9: 105.8294668 | J9: 103.434696 | K9: 111.478232 | L9: previous year = 100
B10: Wydatki ogółem w zł | C10: 2651.19 | D10: 2866.44 | E10: 3266.43 | F10: 3158.94678 | G10: 3143.5 | H10: 3247.3908 | I10: 3501.25388 | J10: 3488.00016 | K10: 3890.821712 | L10: Total expenditure in zl
B11: poprzedni rok = 100 | C11: 112.4858395 | D11: 108.1189956 | E11: 113.9542429 | F11: 96.70945895 | G11: 99.51101487 | H11: 103.3049404 | I11: 107.8174478 | J11: 99.6214579 | K11: 111.5487825 | L11: previous year = 100
B13: POWIATY POWIATS
B14: Dochody ogółem w zł | C14: 774.21 | D14: 823.26 | E14: 926.51 | F14: 991.15752 | G14: 926.82 | H14: 951.8746 | I14: 1000.85428 | J14: 961.6824 | K14: 966.21019 | L14: Total revenue in zl
B15: poprzedni rok = 100 | C15: 112.6730022 | D15: 106.3354904 | E15: 112.5416029 | F15: 106.9775307 | G15: 93.50885014 | H15: 102.7032865 | I15: 105.1456022 | J15: 96.08615552 | K15: 100.4708197 | L15: previous year = 100
B16: Wydatki ogółem w zł | C16: 788.41 | D16: 899.59 | E16: 976.58 | F16: 1005.82824 | G16: 915.39 | H16: 946.05387 | I16: 997.24538 | J16: 948.17547 | K16: 942.71318 | L16: Total expenditure in zl
B17: poprzedni rok = 100 | C17: 113.8531077 | D17: 114.1017998 | E17: 108.5583432 | F17: 102.9949661 | G17: 91.00858015 | H17: 103.3498148 | I17: 105.4110566 | J17: 95.07945477 | K17: 99.4239157 | L17: previous year = 100
B19: MIASTA NA PRAWACH POWIATUb CITIES WITH POWIAT STATUSb
B20: Dochody ogółem w zł | C20: 3947.6 | D20: 4093.22 | E20: 4664.9 | F20: 5157.56541 | G20: 5344.2 | H20: 5210.79325 | I20: 5197.85453 | J20: 5331.59422 | K20: 5857.49934 | L20: Total revenue in zl
B21: poprzedni rok = 100 | C21: 98.83800992 | D21: 103.6888236 | E21: 113.9665105 | F21: 110.5611141 | G21: 103.6186568 | H21: 97.50370963 | I21: 99.75169385 | J21: 102.5729787 | K21: 109.8639375 | L21: previous year = 100
B22: Wydatki ogółem w zł | C22: 4674.41 | D22: 5234.02 | E22: 4871.7 | F22: 5427.37687 | G22: 5497.14 | H22: 5102.74363 | I22: 5586.48062 | J22: 5679.24727 | K22: 5740.51135 | L22: Total expenditure in zl
B23: poprzedni rok = 100 | C23: 117.7721005 | D23: 111.9717783 | E23: 93.07759619 | F23: 111.406221 | G23: 112.838229 | H23: 92.82542613 | I23: 109.4799391 | J23: 101.6605562 | K23: 101.0787359 | L23: previous year = 100
B25: WOJEWÓDZTWO VOIVODSHIP
B26: Dochody ogółem w zł | C26: 375.36 | D26: 522.77 | E26: 352.19 | F26: 423.25994 | G26: 574.2919 | H26: 558.71325 | I26: 593.99928 | J26: 435.5327 | K26: 388.86912 | L26: Total revenue in zl
B27: poprzedni rok = 100 | C27: 110.3253681 | D27: 139.2716326 | E27: 67.3699715 | F27: 120.1794316 | G27: 135.6830273 | H27: 97.28732897 | I27: 106.3155885 | J27: 73.32209224 | K27: 89.28586074 | L27: previous year = 100
B28: Wydatki ogółem w zł | C28: 349.75 | D28: 552.85 | E28: 453.01 | F28: 520.23711 | G28: 578.76 | H28: 545.60662 | I28: 671.92016 | J28: 447.80674 | K28: 372.97277 | L28: Total expenditure in zl
B29: poprzedni rok = 100 | C29: 114.7775007 | D29: 158.07005 | E29: 81.94085195 | F29: 114.840094 | G29: 111.2492725 | H29: 94.27165319 | I29: 123.1510277 | J29: 66.6458259 | K29: 83.28877989 | L29: previous year = 100
B31: JEDNOSTKI SAMORZĄDU TERYTORIALNEGO OGÓŁEM LOCAL GOVERNMENT UNITS TOTAL
B32: Dochody ogółem w zł | C32: 3894.931612 | D32: 4160.573704 | E32: 4382.828521 | F32: 4752.280643 | G32: 5015.270367 | H32: 5102.612991 | I32: 5296.819586 | J32: 5235.56984 | K32: 5640.780698 | L32: Total revenue in zl
B33: poprzedni rok = 100 | C33: 104.8579666 | D33: 106.8201991 | E33: 105.3419272 | F33: 108.4295363 | G33: 105.5339687 | H33: 101.7415337 | I33: 103.8060224 | J33: 98.84365051 | K33: 107.7395751 | L33: previous year = 100
B34: Wydatki ogółem w zł | C34: 4142.556152 | D34: 4738.21902 | E34: 4809.532711 | F34: 5039.018957 | G34: 5040.810245 | H34: 5030.870204 | I34: 5519.722153 | J34: 5283.085218 | K34: 5498.127904 | L34: Total expenditure in zl
B35: poprzedni rok = 100 | C35: 114.5249215 | D35: 114.3791139 | E35: 101.5050737 | F35: 104.7714874 | G35: 100.0355484 | H35: 99.80280867 | I35: 109.7170455 | J35: 95.71288322 | K35: 104.0703997 | L35: previous year = 100
B38: a Bez dochodów i wydatków gmin mających również status miasta na prawach powiatu, do 2012 r. łącznie z dochodami i wydatkami miasta Wałbrzych. b Od 2013 r. z dochodami i wydatkami miasta Wałbrzych.
B39: a Excluding revenue and expenditure of gminas which are also cities with powiat status, till 2012 with revenue and expenditure of town Wałbrzych. b since 2013 with revenue and expenditure of town Wałbrzych.

Sheet Tabl. 3.
B4: Tabl. 3. Budżety jednostek samorządu terytorialnego województwa dolnośląskiego na tle kraju w 2016 r.
B5: Budgets of local government units of Dolnośląskie voivodship against the background of Poland in 2016
B6: WYSZCZEGÓLNIENIE | C6: Polska Poland | E6: Województwo dolnośląskie Dolnoślaskie voivodship | H6: SPECIFICATION
C7: w tys. zł in thous. zl | D7: 2015=100 | E7: w tys. zł in thous. zl | F7: Polska=100 Poland=100 | G7: 2015=100
B8: O G Ó Ł E M T O T A L
B9: Dochody | C9: 213668930.4 | D9: 107.3610987 | E9: 16379766.68 | F9: 7.665956231 | G9: 107.6826523 | H9: Revenue
B10: w tym: | H10: of which:
B11: Dochody własne | C11: 106683468.7 | D11: 103.1304297 | E11: 9288108.701 | F11: 8.70623051 | G11: 101.514885 | H11: Own revenue
B12: Dotacje celowea......................................... | C12: 53949369.5 | D12: 121.9733512 | E12: 3759529.422 | F12: 6.968625319 | G12: 132.4708927 | H12: Targeted grantsa
B13: Subwencja ogólna z budżetu państwa | C13: 53036092.17 | D13: 103.2970006 | E13: 3332128.557 | F13: 6.282756555 | G13: 103.3654454 | H13: General subvention from the state budget
B14: w tym część oświatowa | C14: 41496900.59 | D14: 102.7737749 | E14: 2754135.978 | F14: 6.636967916 | G14: 102.9940712 | H14: of which educational subvention
B16: Wydatki | C16: 206034558.1 | D16: 104.8974077 | E16: 15965529.78 | F16: 7.748957231 | G16: 104.0154156 | H16: Expenditure
B17: w tym: | H17: of which:
B18: Wydatki bieżące | C18: 180203914.1 | D18: 114.1691473 | E18: 13693830.54 | F18: 7.599074975 | G18: 110.6686937 | H18: Current expenditure
B19: Wydatki majątkowe | C19: 25830643.92 | D19: 66.96059968 | E19: 2271699.24 | F19: 8.794590053 | G19: 76.3473415 | H19: Property expenditure
B20: w tym inwestycyjneb............................. | C20: 24407526.66 | D20: 65.57644689 | E20: 2064297.858 | F20: 8.457628202 | G20: 74.3755873 | H20: of which investmentb
B22: GMINY c GMINASc
B23: Dochody | C23: 101794831.4 | D23: 116.1150243 | E23: 7878055.419 | F23: 7.739150712 | G23: 111.3424837 | H23: Revenue
B24: w tym: | H24: of which:
B25: Dochody własne | C25: 45134628.97 | D25: 103.583167 | E25: 4320668.868 | F25: 9.572846764 | G25: 102.906832 | H25: Own revenue
B26: Dotacje celowea......................................... | C26: 30298948.4 | D26: 162.2473895 | E26: 1961530.989 | F26: 6.473924321 | G26: 145.8767508 | H26: Targeted grantsa
B27: Subwencja ogólna z budżetu państwa | C27: 26361254.03 | D27: 103.7053612 | E27: 1595855.561 | F27: 6.053792278 | G27: 104.1514834 | H27: General subvention from the state budget
B28: w tym część oświatowa | C28: 19603600.84 | D28: 103.2166932 | E28: 1250563.523 | F28: 6.379254165 | G28: 104.0432305 | H28: of which educational subvention
B30: Wydatki | C30: 98175077.46 | D30: 114.2309536 | E30: 7665498.505 | F30: 7.807988243 | G30: 111.412948 | H30: Expenditure
B31: w tym: | H31: of which:
B32: Wydatki bieżące | C32: 87221538.66 | D32: 122.064753 | E32: 6702170.22 | F32: 7.684077033 | G32: 117.3729993 | H32: Current expenditure
B33: Wydatki majątkowe | C33: 10953538.8 | D33: 75.59777302 | E33: 963328.2854 | F33: 8.794676341 | G33: 82.32789074 | H33: Property expenditure
B34: w tym inwestycyjneb............................. | C34: 10648782.19 | D34: 74.94406529 | E34: 912717.5628 | F34: 8.571098049 | G34: 81.37183388 | H34: of which investmentb
B36: POWIATY POWIATS
B37: Dochody | C37: 23948338.87 | D37: 101.1268837 | E37: 1903578.034 | F37: 7.94868506 | G37: 100.3484745 | H37: Revenue
B38: w tym: | H38: of which:
B39: Dochody własne | C39: 8474296.376 | D39: 106.6868215 | E39: 709589.5695 | F39: 8.373433476 | G39: 103.5235378 | H39: Own revenue
B40: Dotacje celowea......................................... | C40: 5245106.764 | D40: 92.19482432 | E40: 438690.9364 | F40: 8.363813287 | G40: 97.55226332 | H40: Targeted grantsa
B41: Subwencja ogólna z budżetu państwa | C41: 10228935.73 | D41: 101.7888731 | E41: 755297.528 | F41: 7.383930722 | G41: 99.1423583 | H41: General subvention from the state budget
B42: w tym część oświatowa | C42: 7822795.005 | D42: 100.3761242 | E42: 606212.094 | F42: 7.749303077 | G42: 99.64622302 | H42: of which educational subvention
B44: Wydatki | C44: 23300595.62 | D44: 99.38785874 | E44: 1857285.429 | F44: 7.970978335 | G44: 99.30284613 | H44: Expenditure
B45: w tym: | H45: of which:
B46: Wydatki bieżące | C46: 20302430.16 | D46: 101.4258399 | E46: 1679997.001 | F46: 8.274856693 | G46: 100.5930307 | H46: Current expenditure
B47: Wydatki majątkowe | C47: 2998165.459 | D47: 87.48436575 | E47: 177288.4277 | F47: 5.913230276 | G47: 88.54166942 | H47: Property expenditure
B48: w tym inwestycyjneb............................. | C48: 2962645.787 | D48: 87.55169704 | E48: 175216.1169 | F48: 5.914177039 | G48: 88.26268969 | H48: of which investmentb
B50: MIASTA NA PRAWACH POWIATU CITIES WITH POWIAT STATUS
B51: Dochody | C51: 74420129.84 | D51: 105.4705503 | E51: 5468930.409 | F51: 7.348724626 | G51: 109.966052 | H51: Revenue
B52: w tym: | H52: of which:
B53: Dochody własne | C53: 45869174.71 | D53: 102.446649 | E53: 3603641.597 | F53: 7.856347145 | G53: 103.4698549 | H53: Own revenue
B54: Dotacje celowea......................................... | C54: 14069984.32 | D54: 118.1880891 | E54: 959472.2524 | F54: 6.819284447 | G54: 153.8730017 | H54: Targeted grantsa
B55: Subwencja ogólna z budżetu państwa | C55: 14480970.82 | D55: 104.3173958 | E55: 905816.559 | F55: 6.255219836 | G55: 104.4833892 | H55: General subvention from the state budget
B56: w tym część oświatowa | C56: 13423762.14 | D56: 103.9246005 | E56: 839120.69 | F56: 6.251009823 | G56: 104.6080996 | H56: of which educational subvention
B58: Wydatki | C58: 71941500.04 | D58: 103.0323767 | E58: 5359703.044 | F58: 7.450085196 | G58: 101.1726848 | H58: Expenditure
B59: w tym: | H59: of which:
B60: Wydatki bieżące | C60: 63372946.42 | D60: 111.3220177 | E60: 4568616.24 | F60: 7.209095519 | G60: 108.6371467 | H60: Current expenditure
B61: Wydatki majątkowe | C61: 8568553.627 | D61: 66.44054106 | E61: 791086.804 | F61: 9.232442703 | G61: 72.43133395 | H61: Property expenditure
B62: w tym inwestycyjneb............................. | C62: 7713096.355 | D62: 63.16167605 | E62: 652152.4547 | F62: 8.455131696 | G62: 67.1716168 | H62: of which investmentb
B64: WOJEWÓDZTWO VOIVODSHIP
B65: Dochody | C65: 13505630.25 | D65: 78.93351621 | E65: 1129202.819 | F65: 8.360978331 | G65: 89.23868772 | H65: Revenue
B66: w tym: | H66: of which:
B67: Dochody własne | C67: 7205368.649 | D67: 100.704037 | E67: 654208.6656 | F67: 9.079461405 | G67: 83.5888499 | H67: Own revenue
B68: Dotacje celowea......................................... | C68: 4335330.015 | D68: 54.4500977 | E68: 399835.244 | F68: 9.222717594 | G68: 95.17436391 | H68: Targeted grantsa
B69: Subwencja ogólna z budżetu państwa | C69: 1964931.585 | D69: 98.58597779 | E69: 75158.909 | F69: 3.82501404 | G69: 120.033669 | H69: General subvention from the state budget
B70: w tym część oświatowa | C70: 646742.602 | D70: 95.96155078 | E70: 58239.671 | F70: 9.005077263 | G70: 94.56612875 | H70: of which educational subvention
B72: Wydatki | C72: 12617384.93 | D72: 73.34558247 | E72: 1083042.806 | F72: 8.583734361 | G72: 83.24477525 | H72: Expenditure
B73: w tym: | H73: of which:
B74: Wydatki bieżące | C74: 9306998.901 | D74: 98.59461469 | E74: 743047.0823 | F74: 7.983745246 | G74: 94.28493136 | H74: Current expenditure
B75: Wydatki majątkowe | C75: 3310386.029 | D75: 42.64318873 | E75: 339995.7234 | F75: 10.27057631 | G75: 66.28279301 | H75: Property expenditure
B76: w tym inwestycyjneb............................. | C76: 3083002.321 | D76: 41.57548786 | E76: 324211.7234 | F76: 10.51610377 | G76: 66.92364477 | H76: of which investmentb
B79: a Łącznie z dotacjami z paragrafów 200 i 620 oraz 205 i 625 klasyfikacji dochodów i wydatków budżetowych. b Łącznie z dotacjami na finansowanie zadań inwestycyjnych samorządowych zakładów budżetowych. c Bez dochodów i wydatków gmin mających również status miasta na prawach powiatu.
B80: a Including grants from paragraphs 200 and 620 as well as 205 and 625 of the classification of budget revenue and expenditure. b Including grants for financing investment tasks of local government budgetary establishments. c Excluding revenue and expenditure of gminas which are also cities with powiat status.

Sheet Tabl. 4.
B4: Tabl. 4. Dochody budżetów jednostek samorządu terytorialnego według rodzajów
B5: Revenue of local government units budgets by types
B6: WYSZCZEGÓLNIENIE | D6: Ogółem Total | F6: Gminya Gminasa | H6: Powiaty Powiats | J6: Miasta na prawach powiatu Cities with powiat status | L6: Województwo Voivodship | N6: SPECIFICATION
D9: w tys. zł in thous. zl | E9: w % in % | F9: w tys. zł in thous. zl | G9: w % in % | H9: w tys. zł in thous. zl | I9: w % in % | J9: w tys. zł in thous. zl | K9: w % in % | L9: w tys. zł in thous. zl | M9: w % in %
B10: O G Ó Ł E M | C10: 2015 | D10: 15211147.13 | E10: 100 | F10: 7075516.151 | G10: 100 | H10: 1896967.585 | I10: 100 | J10: 4973289.766 | K10: 100 | L10: 1265373.626 | M10: 100 | N10: T O T A L
C11: 2016 | D11: 16379766.68 | E11: 100 | F11: 7878055.419 | G11: 100 | H11: 1903578.034 | I11: 100 | J11: 5468930.409 | K11: 100 | L11: 1129202.819 | M11: 100
B13: Dochody własne | D13: 9288108.701 | E13: 56.70476804 | F13: 4320668.868 | G13: 54.84435738 | H13: 709589.5695 | I13: 37.27662102 | J13: 3603641.597 | K13: 65.89298689 | L13: 654208.6656 | M13: 57.93544391 | N13: Own revenue
B14: Podatek od osób prawnych | D14: 673402.5297 | E14: 4.111185115 | F14: 95304.89044 | G14: 1.20975146 | H14: 19510.412 | I14: 1.024933659 | J14: 124793.0726 | K14: 2.281855194 | L14: 433794.1547 | M14: 38.41596457 | N14: Corporate income tax
B15: Podatek od osób fizycznych | D15: 3299595.901 | E15: 20.14434006 | F15: 1458441.492 | G15: 18.51270922 | H15: 395580.709 | I15: 20.78090322 | J15: 1339220.992 | K15: 24.4878046 | L15: 106352.708 | M15: 9.418388464 | N15: Personal income tax
B16: Podatek rolny | D16: 126765.9125 | E16: 0.7739176934 | F16: 125135.5189 | G16: 1.588406177 | H16: - | I16: - | J16: 1630.3936 | K16: 0.02981192808 | L16: - | M16: - | N16: Agricultural tax
B17: Podatek leśny | D17: 18888.12252 | E17: 0.1153137458 | F17: 18614.07934 | G17: 0.2362775882 | H17: - | I17: - | J17: 274.04318 | K17: 0.005010909986 | L17: - | M17: - | N17: Forest tax
B18: Podatek od nieruchomości | D18: 1898245.922 | E18: 11.58896802 | F18: 1312823.276 | G18: 16.66430618 | H18: - | I18: - | J18: 585422.6454 | K18: 10.7045181 | L18: - | M18: - | N18: Tax on real estate
B19: Podatek od środków transportowych | D19: 59768.23519 | E19: 0.3648906383 | F19: 39809.46935 | G19: 0.5053210118 | H19: - | I19: - | J19: 19958.76584 | K19: 0.3649482504 | L19: - | M19: - | N19: Tax on means of transport
B20: Podatek od działalności gospodarczej osób fizycznych, | N20: Tax on economic activity of natural persons
B21: opłacany w formie karty podatkowej | D21: 4646.21793 | E21: 0.02836559287 | F21: 2668.31127 | G21: 0.03387017644 | H21: - | I21: - | J21: 1977.90666 | K21: 0.03616624298 | L21: - | M21: - | N21: paid in the form of a tax card
B22: Podatek od spadków i darowizn | D22: 15620.30961 | E22: 0.09536344391 | F22: 6372.75666 | G22: 0.08089250864 | H22: - | I22: - | J22: 9247.55295 | K22: 0.1690925329 | L22: - | M22: - | N22: Tax on inheritances and donations
B23: Podatek od czynności cywilnoprawnych | D23: 154789.5489 | E23: 0.9450046017 | F23: 78003.80386 | G23: 0.9901403292 | H23: - | I23: - | J23: 76785.74502 | K23: 1.404035877 | L23: - | M23: - | N23: Tax on civil law transactions
B24: Wpływy z opłaty skarbowej | D24: 33543.44583 | E24: 0.2047858586 | F24: 13386.32424 | G24: 0.1699191428 | H24: - | I24: - | J24: 20157.12159 | K24: 0.3685752073 | L24: - | M24: - | N24: Stamp duty
B25: Wpływy z opłaty eksploatacyjnej | D25: 104268.6019 | E25: 0.6365695184 | F25: 104091.3039 | G25: 1.321281691 | H25: - | I25: - | J25: 177.298 | K25: 0.003241913624 | L25: - | M25: - | N25: Exploitation fee
B26: Wpływy z opłaty targowej | D26: 10805.47223 | E26: 0.0659684136 | F26: 9150.92073 | G26: 0.1161571002 | H26: - | I26: - | J26: 1654.5515 | K26: 0.03025365796 | L26: - | M26: - | N26: Market fee
B27: Dochody z majątku | D27: 890594.0226 | E27: 5.437159393 | F27: 342173.4681 | G27: 4.343374727 | H27: 15418.98891 | I27: 0.8100003591 | J27: 518177.3308 | K27: 9.474930052 | L27: 14824.23483 | M27: 1.312805334 | N27: Revenue from property
B28: w tym dochody z wynajmu i dzierżawy oraz innych umów o podobnym | N28: of which income from renting and leasing as well as agreements with a similar
B29: charakterze | D29: 371601.6684 | E29: 2.268662769 | F29: 149064.3782 | G29: 1.89214686 | H29: 8205.89522 | I29: 0.4310774275 | J29: 212033.9932 | K29: 3.877065119 | L29: 2297.40171 | M29: 0.2034534162 | N29: character
B30: Pozostałe dochody | D30: 1997174.459 | E30: 12.19293595 | F30: 714693.2535 | G30: 9.071950063 | H30: 279079.4596 | I30: 14.66078378 | J30: 904164.1781 | K30: 16.53274243 | L30: 99237.56806 | M30: 8.788285543 | N30: Other revenue
B31: w tym środki na dofinansowanie własnych | N31: of which funds for additional financing of
B32: zadań pozyskane z innych źródeł | D32: 50286.35757 | E32: 0.307002893 | F32: 15239.58215 | G32: 0.1934434494 | H32: 7185.62221 | I32: 0.3774797819 | J32: 8338.55302 | K32: 0.1524713682 | L32: 19522.60019 | M32: 1.728883409 | N32: own tasks from other sources
B33: Dotacje celoweb.................................................................... | D33: 3759529.422 | E33: 22.95227701 | F33: 1961530.989 | G33: 24.8986696 | H33: 438690.9364 | I33: 23.04559774 | J33: 959472.2524 | K33: 17.54405671 | L33: 399835.244 | M33: 35.40862965 | N33: Targeted grantsb
B34: Z budżetu państwa | D34: 3067095.611 | E34: 18.72490415 | F34: 1820646.119 | G34: 23.11034922 | H34: 329222.6235 | I34: 17.29493709 | J34: 678746.5138 | K34: 12.4109554 | L34: 238480.3549 | M34: 21.11935526 | N34: From the state budget
B35: na zadania: | N35: for tasks:
B36: z zakresu administracji rządowej | D36: 2506576.588 | E36: 15.30288335 | F36: 1484816.766 | G36: 18.84750344 | H36: 230735.0455 | I36: 12.12112356 | J36: 569057.7344 | K36: 10.40528388 | L36: 221967.0425 | M36: 19.65696851 | N36: for government administration asks
B37: w tym inwestycyjne | D37: 139210.7808 | E37: 0.849894773 | F37: 800.39593 | G37: 0.01015981594 | H37: 4477.88026 | I37: 0.2352349197 | J37: 778.02055 | K37: 0.01422619218 | L37: 133154.4841 | M37: 11.7919015 | N37: of which investment
B38: własne | D38: 555183.2018 | E38: 3.389445117 | F38: 331588.7672 | G38: 4.209017957 | H38: 98167.22947 | I38: 5.156984779 | J38: 108963.8928 | K38: 1.992416883 | L38: 16463.31236 | M38: 1.457958844 | N38: for own tasks
B39: w tym inwestycyjne | D39: 100898.5549 | E39: 0.6159950682 | F39: 61743.28724 | G39: 0.7837376606 | H39: 36226.14689 | I39: 1.903055522 | J39: 2929.1208 | K39: 0.05355929919 | L39: - | M39: - | N39: of which investment
B40: realizowane na podstawie porozumień z organami | N40: realized on the basis of agreements with
B41: administracji rządowej | D41: 5335.82088 | E41: 0.03257568306 | F41: 4240.5857 | G41: 0.05382782266 | H41: 320.34854 | I41: 0.01682875796 | J41: 724.88664 | K41: 0.01325463273 | L41: 50 | M41: 0.004427902515 | N41: government administration bodies
B42: w tym inwestycyjne | D42: 193.66533 | E42: 0.001182344864 | F42: 143.66533 | G42: 0.001823614107 | H42: 50 | I42: 0.002626632537 | J42: - | K42: - | L42: - | M42: - | N42: of which investment
B43: Na zadania realizowane na podstawie porozumień | N43: For tasks realized on the basis of agreements
B44: między jednostkami samorządu terytorialnego | D44: 143755.1738 | E44: 0.8776387148 | F44: 52452.12669 | G44: 0.6658004279 | H44: 54597.71448 | I44: 2.868162666 | J44: 29869.22621 | K44: 0.5461621191 | L44: 6836.1064 | M44: 0.6053922544 | N44: between local government units
B45: w tym inwestycyjne | D45: 30143.71745 | E45: 0.1840302004 | F45: 19277.88849 | G45: 0.2447036415 | H45: 5050.99077 | I45: 0.265341934 | J45: 2814.83819 | K45: 0.05146962897 | L45: 3000 | M45: 0.2656741509 | N45: of which investment
B46: Otrzymane z państwowych funduszy celowych | D46: 47833.88762 | E46: 0.2920303357 | F46: 23338.34261 | G46: 0.2962449662 | H46: 2773.09 | I46: 0.1456777684 | J46: 16736.74225 | K46: 0.3060331911 | L46: 4985.71276 | M46: 0.4415250013 | N46: Received from state appropriated funds
B47: w tym inwestycyjne | D47: 40542.68893 | E47: 0.2475168891 | F47: 22818.97009 | G47: 0.2896523174 | H47: 2384.73066 | I47: 0.1252762229 | J47: 15338.98818 | K47: 0.2804751027 | L47: - | M47: - | N47: of which investment
B48: Z tytułu pomocy finansowej udzielanej między | N48: For financial assistance between local
B49: jednostkami samorządu terytorialnego | N49: units for additional financing
B50: na dofinansowanie własnych zadań | D50: 74762.54355 | E50: 0.4564322863 | F50: 33215.97322 | G50: 0.4216265494 | H50: 35805.72634 | I50: 1.880969716 | J50: 2318.76735 | K50: 0.04239891856 | L50: 3422.07664 | M50: 0.3030524352 | N50: of own tasks
B51: w tym inwestycyjne | D51: 57183.93684 | E51: 0.3491132564 | F51: 29670.98008 | G51: 0.3766282224 | H51: 23283.8203 | I51: 1.2231608 | J51: 2232.869 | K51: 0.04082825769 | L51: 1996.26746 | M51: 0.1767855541 | N51: of which investment
B52: Dotacje z paragrafów 200 i 620 | D52: 350907.1417 | E52: 2.142320758 | F52: 26339.69116 | G52: 0.3343425472 | H52: 6751.46442 | I52: 0.3546723223 | J52: 224389.7684 | K52: 4.102991841 | L52: 93426.21774 | M52: 8.273643689 | N52: Grants from paragraphs 200 and 620
B53: w tym inwestycyjne | D53: 319673.7663 | E53: 1.951638095 | F53: 20484.76269 | G53: 0.2600230844 | H53: 8.1568 | I53: 0.0004284983255 | J53: 222634.8174 | K53: 4.070902366 | L53: 76546.02944 | M53: 6.778767125 | N53: of which investment
B54: Dotacje z paragrafów 205 i 625 | D54: 75175.06428 | E54: 0.4589507638 | F54: 5538.73666 | G54: 0.07030588598 | H54: 9540.31771 | I54: 0.5011781781 | J54: 7411.23431 | K54: 0.1355152426 | L54: 52684.7756 | M54: 4.665661007 | N54: Grants from paragraphs 205 and 625
B55: w tym inwestycyjne | D55: 9276.79502 | E55: 0.05663569696 | F55: 1812.41043 | G55: 0.0230058096 | H55: 3.99954 | I55: 0.0002101064379 | J55: 168.92284 | K55: 0.003088772893 | L55: 7291.46221 | M55: 0.6457176771 | N55: of which investment
B56: Subwencja ogólna z budżetu państwa | D56: 3332128.557 | E56: 20.34295495 | F56: 1595855.561 | G56: 20.25697302 | H56: 755297.528 | I56: 39.67778124 | J56: 905816.559 | K56: 16.5629564 | L56: 75158.909 | M56: 6.655926443 | N56: General subvention from the state budget
B57: Część wyrównawcza | D57: 435006.588 | E57: 2.655755705 | F57: 320289.182 | G57: 4.06558681 | H57: 98709.922 | I57: 5.185493856 | J57: 10530.019 | K57: 0.1925425671 | L57: 5477.465 | M57: 0.4850736209 | N57: Compensatory part
B58: Część oświatowa | D58: 2754135.978 | E58: 16.81425647 | F58: 1250563.523 | G58: 15.87401277 | H58: 606212.094 | I58: 31.8459282 | J58: 839120.69 | K58: 15.34341502 | L58: 58239.671 | M58: 5.157591713 | N58: Educational part
B59: Część rekompensująca | D59: 2805.146 | E59: 0.0171256774 | F59: 2311.794 | G59: 0.02934472883 | H59: - | I59: - | J59: 493.352 | K59: 0.009020996121 | L59: - | M59: - | N59: Offsetting part
B60: Część równoważąca | D60: 125859.241 | E60: 0.7683823797 | F60: 14376.618 | G60: 0.1824894246 | H60: 46883.592 | I60: 2.462919364 | J60: 53547.863 | K60: 0.9791286229 | L60: 11051.168 | M60: 0.9786698915 | N60: Balancing part
B61: Uzupełnienie subwencji ogólnej | D61: 14321.604 | E61: 0.08743472529 | F61: 8314.444 | G61: 0.1055392931 | H61: 3491.92 | I61: 0.1834398137 | J61: 2124.635 | K61: 0.03884918698 | L61: 390.605 | M61: 0.03459121723 | N61: Supplement of general subvention part
B65: a Bez dochodów gmin mających również status miasta na prawach powiatu. b Łącznie z dotacjami z paragrafów 200 i 620 oraz 205 i 625 klasyfikacji dochodów i wydatków budżetowych.
B66: a Excluding revenue of gminas which are also cities with powiat status. b Including grants from paragraphs 200 and 620 as well as 205 and 625 of the classification of budget revenue and expenditure.

Sheet Tabl. 5.
B4: Tabl. 5. Dochody budżetów jednostek samorządu terytorialnego według działów
B5: Revenue of local government units budgets by divisions
B6: WYSZCZEGÓLNIENIE | D6: Ogółem Total | F6: Gminya Gminasa | H6: Powiaty Powiats | J6: Miasta na prawach powiatu Cities with powiat status | L6: Województwo Voivodship | N6: SPECIFICATION
D9: w tys. zł in thous. zl | E9: w % in % | F9: w tys. zł in thous. zl | G9: w % in % | H9: w tys. zł in thous. zl | I9: w % in % | J9: w tys. zł in thous. zl | K9: w % in % | L9: w tys. zł in thous. zl | M9: w % in %
B10: O G Ó Ł E M | C10: 2015 | D10: 15211147.13 | E10: 100 | F10: 7075516.151 | G10: 100 | H10: 1896967.585 | I10: 100 | J10: 4973289.766 | K10: 100 | L10: 1265373.626 | M10: 100 | N10: T O T A L
C11: 2016 | D11: 16379766.68 | E11: 100 | F11: 7878055.419 | G11: 100 | H11: 1903578.034 | I11: 100 | J11: 5468930.409 | K11: 100 | L11: 1129202.819 | M11: 100
B12: w tym: | N12: of which:
B13: Rolnictwo i łowiectwo | D13: 291517.1992 | E13: 1.779739632 | F13: 79568.16533 | G13: 1.009997532 | H13: 5900.90844 | I13: 0.3099903621 | J13: 536.47712 | K13: 0.00980954373 | L13: 205511.6483 | M13: 18.19971088 | N13: Agriculture and hunting
B14: Leśnictwo | D14: 3760.63766 | E14: 0.02295904291 | F14: 1161.98504 | G14: 0.01474964288 | H14: 2264.93851 | I14: 0.1189832237 | J14: 333.71411 | K14: 0.00610199957 | L14: - | M14: - | N14: Forestry
B15: Przetwórstwo przemysłowe | D15: 884.42605 | E15: 0.005399503346 | F15: 138.0382 | G15: 0.001752186202 | H15: - | I15: - | J15: - | K15: - | L15: 746.38785 | M15: 0.06609865276 | N15: Manufacturing
B16: Wytwarzanie i zaopatrywanie
B17: w energię elektryczną, gaz, wodę | D17: 17080.65116 | E17: 0.104278965 | F17: 17001.24275 | G17: 0.2158050667 | H17: - | I17: - | J17: - | K17: - | L17: 79.40841 | M17: 0.007032253966 | N17: Electricity, gas and water supply
B18: Transport i łączność | D18: 846025.0152 | E18: 5.165061455 | F18: 132270.2239 | G18: 1.678970468 | H18: 97631.94907 | I18: 5.128865081 | J18: 444699.0656 | K18: 8.131371811 | L18: 171423.7766 | M18: 15.18095543 | N18: Transport and communication
B19: Turystyka | D19: 3205.25033 | E19: 0.01956835157 | F19: 2454.92089 | G19: 0.03116150826 | H19: 77.6687 | I19: 0.00408014269 | J19: 20.40287 | K19: 0.0003730687443 | L19: 652.25787 | M19: 0.05776268526 | N19: Tourism
B20: Gospodarka mieszkaniowa | D20: 1072008.967 | E20: 6.544714512 | F20: 376297.9906 | G20: 4.776533936 | H20: 31616.32841 | I20: 1.660889538 | J20: 645945.1738 | K20: 11.81117925 | L20: 18149.4742 | M20: 1.607282049 | N20: Dwelling economy
B21: Działalność usługowa | D21: 59705.41574 | E21: 0.3645071197 | F21: 9648.76315 | G21: 0.1224764569 | H21: 34487.05298 | I21: 1.811696309 | J21: 13284.29688 | K21: 0.242904844 | L21: 2285.30273 | M21: 0.2023819541 | N21: Service activity
B22: Administracja publiczna | D22: 152122.4707 | E22: 0.9287218415 | F22: 61477.49367 | G22: 0.7803638132 | H22: 10627.91997 | I22: 0.5583128078 | J22: 71012.68227 | K22: 1.298474783 | L22: 9004.37483 | M22: 0.7974098791 | N22: Public administration
B23: Bezpieczeństwo publiczne | N23: Public safety and
B24: i ochrona przeciwpożarowa | D24: 181294.8059 | E24: 1.106821662 | F24: 4862.45901 | G24: 0.06172156391 | H24: 105277.6673 | I24: 5.530514926 | J24: 71142.32041 | K24: 1.300845231 | L24: 12.35916 | M24: 0.001094503113 | N24: fire care
B25: Dochody od osób prawnych, od osób fizycznych i od innych jednostek nieposiadających osobowości prawnej oraz wydatki związane z ich poborem........................................................ | D25: 6640161.089 | E25: 40.53880143 | F25: 3361138.131 | G25: 42.66456571 | H25: 472760.4708 | I25: 24.83536069 | J25: 2264037.878 | K25: 41.39818408 | L25: 542224.6103 | M25: 48.01835431 | N25: Income taxes from legal persons, natural persons and other organizational units without legal personality and expenses associated with their intake
B26: Różne rozliczenia | D26: 3444631.743 | E26: 21.02979737 | F26: 1642302.999 | G26: 20.84655301 | H26: 757773.5336 | I26: 39.80785237 | J26: 909857.6412 | K26: 16.63684803 | L26: 134697.5694 | M26: 11.92855412 | N26: Miscellaneous settlements
B27: Oświata i wychowanie | D27: 313358.1813 | E27: 1.91308086 | F27: 158688.8009 | G27: 2.014314352 | H27: 38628.15298 | I27: 2.029239269 | J27: 108972.6374 | K27: 1.992576779 | L27: 7068.59 | M27: 0.6259805487 | N27: Education
B28: Ochrona zdrowia | D28: 86678.15346 | E28: 0.5291781938 | F28: 4631.67303 | G28: 0.0587920849 | H28: 67318.64325 | I28: 3.536426774 | J28: 10064.24212 | K28: 0.1840257851 | L28: 4663.59506 | M28: 0.4129988859 | N28: Health care
B29: Pomoc społeczna | D29: 2358687.052 | E29: 14.40000397 | F29: 1574988.596 | G29: 19.99209846 | H29: 215478.796 | I29: 11.31967233 | J29: 562232.6434 | K29: 10.28048634 | L29: 5987.0172 | M29: 0.5301985703 | N29: Social welfare
B30: Pozostałe zadania w zakresie | N30: Other tasks in sphere
B31: polityki społecznej | D31: 75256.41015 | E31: 0.4594473879 | F31: 15193.72826 | G31: 0.1928614036 | H31: 34317.72046 | I31: 1.802800823 | J31: 20679.0975 | K31: 0.3781195948 | L31: 5065.86393 | M31: 0.4486230327 | N31: of social policy
B32: Edukacyjna opieka wychowawcza | D32: 47800.56864 | E32: 0.2918269202 | F32: 19034.84853 | G32: 0.2416186168 | H32: 12150.97481 | I32: 0.6383229158 | J32: 6006.05508 | K32: 0.1098213843 | L32: 10608.69022 | M32: 0.939484922 | N32: Educational care
B33: Gospodarka komunalna i ochrona | N33: Municipal economy
B34: środowiska | D34: 657283.0578 | E34: 4.012774239 | F34: 364241.999 | G34: 4.623501355 | H34: 10013.8778 | I34: 0.5260555449 | J34: 281557.623 | K34: 5.148312411 | L34: 1469.55799 | M34: 0.1301411904 | N34: and environmental protection
B35: Kultura i ochrona dziedzictwa
B36: narodowego | D36: 46472.64562 | E36: 0.2837198266 | F36: 10941.411 | G36: 0.1388846666 | H36: 616.9519 | I36: 0.03241011868 | J36: 29389.11143 | K36: 0.537383167 | L36: 5525.17129 | M36: 0.489298397 | N36: Culture and national heritage
B37: Kultura fizyczna | D37: 66757.49638 | E37: 0.4075607283 | F37: 40003.82892 | G37: 0.5077881126 | H37: 557.01536 | I37: 0.02926149336 | J37: 26092.06992 | K37: 0.4770963967 | L37: 104.58218 | M37: 0.009261593956 | N37: Physical education
B40: a Bez dochodów gmin mających również status miasta na prawach powiatu.
B41: a Excluding revenue of gminas which are also cities with powiat status.

Sheet Tabl. 6.
B4: Tabl. 6. Wydatki budżetów jednostek samorządu terytorialnego według rodzajów
B5: Expenditure of local government units budgets by types
B6: WYSZCZEGÓLNIENIE | D6: Ogółem Total | F6: Gminya Gminasa | H6: Powiaty Powiats | J6: Miasta na prawach powiatu Cities with powiat status | L6: Województwo Voivodship | N6: SPECIFICATION
D9: w tys. zł in thous. zl | E9: w % in % | F9: w tys. zł in thous. zl | G9: w % in % | H9: w tys. zł in thous. zl | I9: w % in % | J9: w tys. zł in thous. zl | K9: w % in % | L9: w tys. zł in thous. zl | M9: w % in %
B10: O G Ó Ł E M | C10: 2015 | D10: 15349195.79 | E10: 100 | F10: 6880258.213 | G10: 100 | H10: 1870324.468 | I10: 100 | J10: 5297579.136 | K10: 100 | L10: 1301033.972 | M10: 100 | N10: T O T A L
C11: 2016 | D11: 15965529.78 | E11: 100 | F11: 7665498.505 | G11: 100 | H11: 1857285.429 | I11: 100 | J11: 5359703.044 | K11: 100 | L11: 1083042.806 | M11: 100
B13: Wydatki bieżące | D13: 13693830.54 | E13: 85.77122544 | F13: 6702170.22 | G13: 87.43293362 | H13: 1679997.001 | I13: 90.45443286 | J13: 4568616.24 | K13: 85.2401001 | L13: 743047.0823 | M13: 68.60736052 | N13: Current expenditure
B14: w tym: | N14: of which:
B15: Dotacje | D15: 1513308.235 | E15: 9.47859705 | F15: 562661.9086 | G15: 7.34018679 | H15: 135085.0649 | I15: 7.273252824 | J15: 512075.1956 | K15: 9.554171031 | L15: 303486.0659 | M15: 28.02161321 | N15: Grants
B16: w tym dla samorządowych zakładów | N16: of which for local government budgetary
B17: budżetowych | D17: 49601.06956 | E17: 0.3106760016 | F17: 40729.75022 | G17: 0.531338571 | H17: - | I17: - | J17: 8871.31934 | K17: 0.1655188593 | L17: - | M17: - | N17: establishments
B18: Świadczenia na rzecz osób fizycznych | D18: 2303584.424 | E18: 14.42848722 | F18: 1638025.201 | G18: 21.36880204 | H18: 88135.68178 | I18: 4.745403179 | J18: 574190.5433 | K18: 10.71310367 | L18: 3232.99789 | M18: 0.2985106288 | N18: Benefits for natural persons
B19: Wydatki bieżące jednostek budżetowych | D19: 9514476.831 | E19: 59.59386854 | F19: 4345330.685 | G19: 56.68686364 | H19: 1410540.548 | I19: 75.94635298 | J19: 3344641.801 | K19: 62.4034909 | L19: 413963.7966 | M19: 38.22229319 | N19: Current expenditure of budgetary units
B20: w tym: | N20: of which:
B21: wynagrodzenia | D21: 4531957.766 | E21: 28.38589027 | F21: 2089429.091 | G21: 27.25757613 | H21: 868645.8924 | I21: 46.76964989 | J21: 1392764.382 | K21: 25.98584978 | L21: 181118.4011 | M21: 16.72310644 | N21: wages and salaries
B22: w tym osobowe | D22: 4113255.481 | E22: 25.76335102 | F22: 1894635.521 | G22: 24.71640323 | H22: 780395.7623 | I22: 42.01808458 | J22: 1271734.446 | K22: 23.72770348 | L22: 166489.7525 | M22: 15.37240741 | N22: of which personal
B23: pochodne od wynagrodzeń b ………………….. | D23: 820567.9391 | E23: 5.139622363 | F23: 397471.0588 | G23: 5.185195177 | H23: 143234.6906 | I23: 7.71204514 | J23: 247413.8023 | K23: 4.616184895 | L23: 32448.38737 | M23: 2.996039233 | N23: derivatives from wages and salaries b
B24: zakup materiałów i usług | D24: 3559760.002 | E24: 22.29653541 | F24: 1572774.287 | G24: 20.51757346 | H24: 285432.2076 | I24: 15.36824675 | J24: 1541598.364 | K24: 28.76275702 | L24: 159955.1441 | M24: 14.76905098 | N24: purchase of materials and services
B25: Obsługa długu publicznego | D25: 185978.5669 | E25: 1.164875638 | F25: 71194.93067 | G25: 0.9287710463 | H25: 20641.54379 | I25: 1.111382422 | J25: 72356.88751 | K25: 1.350016725 | L25: 21785.20489 | M25: 2.011481428 | N25: Public debt servicing
B26: w tym wypłaty z tytułu gwarancji | N26: of which payments related to guarantees
B27: i poręczeń | D27: 10445.21902 | E27: 0.06542356665 | F27: 5040.63192 | G27: 0.06575739225 | H27: 1562.70383 | I27: 0.08413913154 | J27: - | K27: - | L27: 3841.88327 | M27: 0.3547305102 | N27: and endorsements
B28: Wydatki majątkowe | D28: 2271699.24 | E28: 14.22877456 | F28: 963328.2854 | G28: 12.56706638 | H28: 177288.4277 | I28: 9.545567144 | J28: 791086.804 | K28: 14.7598999 | L28: 339995.7234 | M28: 31.39263948 | N28: Property expenditure
B29: w tym inwestycyjne. | D29: 2064297.858 | E29: 12.92971724 | F29: 912717.5628 | G29: 11.90682592 | H29: 175216.1169 | I29: 9.433989743 | J29: 652152.4547 | K29: 12.16769752 | L29: 324211.7234 | M29: 29.93526403 | N29: of which investment expenditure c
B31: a Bez wydatków gmin mających również status miasta na prawach powiatu. b Obejmują składki na obowiązkowe ubezpieczenia społeczne i Fundusz Pracy oraz składkę na Fundusz Emerytur Pomostowych. c Łącznie z dotacjami na finansowanie zadań inwestycyjnych samorządowych zakładów budżetowych.
B32: a Excluding expenditure of gminas which are also cities with powiat status. b Include contributions to compulsory social security and the Labour Fund as well as contribution to the Bridging Pension Fund. c Including grants for financing investment tasks of local government budgetary establishments.

Sheet Tabl. 7.
B4: Tabl. 7. Wydatki budżetów jednostek samorządu terytorialnego według działów
B5: Expenditure of local government units budgets by divisions
B6: WYSZCZEGÓLNIENIE | D6: Ogółem Total | F6: Gminya Gminasa | H6: Powiaty Powiats | J6: Miasta na prawach powiatu Cities with powiat status | L6: Województwo Voivodship | N6: SPECIFICATION
D9: w tys. zł in thous. zl | E9: w % in % | F9: w tys. zł in thous. zl | G9: w % in % | H9: w tys. zł in thous. zl | I9: w % in % | J9: w tys. zł in thous. zl | K9: w % in % | L9: w tys. zł in thous. zl | M9: w % in %
B10: O G Ó Ł E M | C10: 2015 | D10: 15349195.79 | E10: 100 | F10: 6880258.213 | G10: 100 | H10: 1870324.468 | I10: 100 | J10: 5297579.136 | K10: 100 | L10: 1301033.972 | M10: 100 | N10: T O T A L
C11: 2016 | D11: 15965529.78 | E11: 100 | F11: 7665498.505 | G11: 100 | H11: 1857285.429 | I11: 100 | J11: 5359703.044 | K11: 100 | L11: 1083042.806 | M11: 100
B12: w tym: | N12: of which:
B13: Rolnictwo i łowiectwo | D13: 344207.9789 | E13: 2.15594461 | F13: 107082.6778 | G13: 1.39694343 | H13: 6257.61045 | I13: 0.3369223897 | J13: 1107.90601 | K13: 0.02067103347 | L13: 229759.7847 | M13: 21.21428474 | N13: Agriculture and hunting
B14: Leśnictwo | D14: 4450.92622 | E14: 0.02787834967 | F14: 799.89519 | G14: 0.01043500549 | H14: 2953.46945 | I14: 0.1590207625 | J14: 697.56158 | K14: 0.01301492964 | L14: - | M14: - | N14: Forestry
B15: Przetwórstwo przemysłowe | D15: 34106.91598 | E15: 0.2136284636 | F15: 1123.54031 | G15: 0.0146571069 | H15: - | I15: - | J15: - | K15: - | L15: 32983.37567 | M15: 3.045436016 | N15: Manufacturing
B16: Wytwarzanie i zaopatrywanie
B17: w energię elektryczną, gaz, wodę | D17: 45075.91879 | E17: 0.2823327469 | F17: 44866.01482 | G17: 0.5852980702 | H17: - | I17: - | J17: 21.525 | K17: 0.0004016080708 | L17: 188.37897 | M17: 0.01739349258 | N17: Electricity, gas and water supply
B18: Transport i łączność | D18: 1944642.232 | E18: 12.18025495 | F18: 550997.0755 | G18: 7.188013606 | H18: 229419.1244 | I18: 12.35238918 | J18: 767166.0784 | K18: 14.31359297 | L18: 397059.9537 | M18: 36.6615199 | N18: Transport and communication
B19: Turystyka | D19: 11402.65407 | E19: 0.07142045534 | F19: 7537.8146 | G19: 0.09833430396 | H19: 332.72116 | I19: 0.01791437949 | J19: 1169.23467 | K19: 0.02181528828 | L19: 2362.88364 | M19: 0.2181708449 | N19: Tourism
B20: Gospodarka mieszkaniowa | D20: 658853.4017 | E20: 4.126724328 | F20: 300669.0759 | G20: 3.922368202 | H20: 7797.21815 | I20: 0.4198179789 | J20: 343131.7395 | K20: 6.402066246 | L20: 7255.36814 | M20: 0.6699059448 | N20: Dwelling economy
B21: Działalność usługowa | D21: 118802.9887 | E21: 0.7441218066 | F21: 33911.2309 | G21: 0.4423878092 | H21: 39878.28662 | I21: 2.147127523 | J21: 36065.70983 | K21: 0.6729050011 | L21: 8947.76132 | M21: 0.8261687602 | N21: Service activity
B22: Administracja publiczna | D22: 1435665.845 | E22: 8.992284404 | F22: 771608.4459 | G22: 10.06599173 | H22: 199843.9427 | I22: 10.76000165 | J22: 354684.9417 | K22: 6.617623005 | L22: 109528.5144 | M22: 10.11303652 | N22: Public administration
B23: Bezpieczeństwo publiczne
B24: i ochrona przeciwpożarowa | D24: 290682.6701 | E24: 1.82068916 | F24: 76576.23511 | G24: 0.9989726703 | H24: 106891.9816 | I24: 5.755280258 | J24: 104762.65 | K24: 1.954635342 | L24: 2451.80347 | M24: 0.226381031 | N24: Public safety and fire care
B25: Różne rozliczenia | D25: 301843.8444 | E25: 1.890597108 | F25: 73952.93975 | G25: 0.9647505599 | H25: 24720.09783 | I25: 1.330980012 | J25: 203170.8068 | K25: 3.79071014 | L25: - | M25: - | N25: Miscellaneous settlements
B26: Obsługa długu publicznegob........................... | D26: 186012.0818 | E26: 1.165085558 | F26: 71213.88279 | G26: 0.9290182855 | H26: 20646.41184 | I26: 1.111644528 | J26: 72366.58225 | K26: 1.350197607 | L26: 21785.20489 | M26: 2.011481428 | N26: Public debt servicingb
B27: Oświata i wychowanie | D27: 4334656.892 | E27: 27.15009743 | F27: 2286759.586 | G27: 29.8318444 | H27: 547636.3618 | I27: 29.48584818 | J27: 1447847.109 | K27: 27.01356954 | L27: 52413.83484 | M27: 4.839497993 | N27: Education
B28: Ochrona zdrowia | D28: 240302.31 | E28: 1.505132077 | F28: 66323.39416 | G28: 0.8652195825 | H28: 77284.56623 | I28: 4.161157194 | J28: 40806.73602 | K28: 0.761361883 | L28: 55887.61358 | M28: 5.160240508 | N28: Health care
B29: Pomoc społeczna | D29: 3034205.806 | E29: 19.00472986 | F29: 1858823.023 | G29: 24.24921251 | H29: 338963.4324 | I29: 18.25047605 | J29: 828460.825 | K29: 15.45721504 | L29: 7958.52556 | M29: 0.7348301949 | N29: Social welfare
B30: Pozostałe zadania w zakresie | N30: Other tasks in sphere
B31: polityki społecznej | D31: 262632.2453 | E31: 1.644995492 | F31: 51170.51028 | G31: 0.6675431512 | H31: 83229.25849 | I31: 4.481231436 | J31: 100184.2275 | K31: 1.869212281 | L31: 28048.24896 | M31: 2.589763656 | N31: of social policy
B32: Edukacyjna opieka wychowawcza | D32: 384970.7472 | E32: 2.411261965 | F32: 82390.16718 | G32: 1.074818123 | H32: 155852.2683 | I32: 8.391401016 | J32: 129419.4491 | K32: 2.414675738 | L32: 17308.86261 | M32: 1.59816976 | N32: Educational care
B33: Gospodarka komunalna | N33: Municipal economy
B34: i ochrona środowiska | D34: 1263553.765 | E34: 7.914261426 | F34: 729419.521 | G34: 9.515617549 | H34: 1505.42221 | I34: 0.08105497338 | J34: 529774.187 | K34: 9.88439439 | L34: 2854.635 | M34: 0.2635754547 | N34: and environmental protection
B35: Kultura i ochrona dziedzictwa narodowego | D35: 658225.1645 | E35: 4.122789368 | F35: 316326.0932 | G35: 4.126621289 | H35: 4020.53933 | I35: 0.2164739607 | J35: 248773.2442 | K35: 4.641549022 | L35: 89105.2877 | M35: 8.227309875 | N35: Culture and national heritage
B36: Kultura fizyczna | D36: 375037.6478 | E36: 2.349046057 | F36: 223090.4481 | G36: 2.910318853 | H36: 3389.58217 | I36: 0.1825019524 | J36: 136460.6043 | K36: 2.546047853 | L36: 12097.01324 | M36: 1.116946918 | N36: Physical education
B39: a Bez wydatków gmin mających również status miasta na prawach powiatu. b Obejmuje wydatki na obsługę długu publicznego oraz wydatki bieżące jednostek budżetowych związane z tą obsługą.
B40: a Excluding expenditure of gminas which are also cities with powiat status. b Includes public debt servicing and current expenditure of budgetary units connected with this servicing.

Sheet Tabl. 8.
B4: Tabl. 8. Dochody budżetów gmina według rodzajów oraz podregionów i powiatów
B5: Revenue of gminas budgetsa by types as well as subregions and powiats
B6: WYSZCZEGÓLNIENIE SPECIFICATION | D6: Ogółem Grand total | E6: Dochody własne Own revenue | H6: Dotacje celoweb Targeted grantsb | K6: Subwencja ogólna z budżetu państwa General subvention from the state budget
E7: razem total | F7: w tym udział w podatku dochodowym of which share in income tax | H7: razem total | I7: w tym of which | K7: razem total | L7: w tym na zadania oświatowe of which for educational tasks
F8: od osób prawnych corporate income tax | G8: od osób fizycznych personal income tax | I8: z budżetu państwa from the state budget | J8: z państwowych funduszy celowych from state appropriated funds
D9: w tys. zł in thous. zl
B10: O G Ó Ł E M | C10: 2015 | D10: 7075516.151 | E10: 4198621.98 | F10: 120709.2272 | G10: 1351198.426 | H10: 1344649.493 | I10: 978279.5106 | J10: 14657.83492 | K10: 1532244.678 | L10: 1201965.296
B11: T O T A L | C11: 2016 | D11: 7878055.419 | E11: 4320668.868 | F11: 95304.89044 | G11: 1458441.492 | H11: 1961530.989 | I11: 1820646.119 | J11: 23338.34261 | K11: 1595855.561 | L11: 1250563.523
B13: Gminy miejskie | D13: 2535907.802 | E13: 1494642.996 | F13: 38709.0724 | G13: 560264.377 | H13: 584581.5473 | I13: 522849.6202 | J13: 12451.27564 | K13: 456683.258 | L13: 394351.978
B14: Urban gminas
B15: Gminy miejsko-wiejskie | D15: 2936746.773 | E15: 1553935.813 | F15: 42268.33166 | G15: 489495.167 | H15: 757864.5596 | I15: 716581.0449 | J15: 4846.04393 | K15: 624946.401 | L15: 457683.094
B16: Urban-rural gminas
B17: Gminy wiejskie | D17: 2405400.844 | E17: 1272090.059 | F17: 14327.48638 | G17: 408681.948 | H17: 619084.8823 | I17: 581215.4538 | J17: 6041.02304 | K17: 514225.902 | L17: 398528.451
B18: Rural gminas
B19: PODREGION JELENIOGÓRSKI | D19: 1896452.643 | E19: 1006751.655 | F19: 13950.68124 | G19: 310820.248 | H19: 487398.6033 | I19: 457985.5248 | J19: 4468.84911 | K19: 402302.385 | L19: 300089.095
B20: SUBREGION
B21: POWIAT BOLESŁAWIECKI | D21: 356102.7573 | E21: 201534.6852 | F21: 4268.43403 | G21: 59615.214 | H21: 84911.95602 | I21: 79928.18604 | J21: 580.3321 | K21: 69656.116 | L21: 61646.653
B22: Gminy miejskie:
B23: Urban gminas:
B24: Bolesławiec | D24: 153495.3549 | E24: 96585.94826 | F24: 3726.45074 | G24: 31878.605 | H24: 31982.16067 | I24: 29348.08705 | J24: - | K24: 24927.246 | L24: 24668.757
B25: Gminy miejsko-wiejskie:
B26: Urban-rural gminas:
B27: Nowogrodziec | D27: 58681.12507 | E27: 29417.46757 | F27: 244.41184 | G27: 6550.911 | H27: 15136.9735 | I27: 14520.88315 | J27: 399.0663 | K27: 14126.684 | L27: 12279.615
B28: Gminy wiejskie:
B29: Rural gminas:
B30: Bolesławiec | D30: 50523.74317 | E30: 29138.15104 | F30: 98.85718 | G30: 10039.334 | H30: 13214.78713 | I30: 12556.27499 | J30: 181.2658 | K30: 8170.805 | L30: 5983.073
B31: Gromadka | D31: 25115.54087 | E31: 13139.74396 | F31: 16.36034 | G31: 2653.154 | H31: 6938.89691 | I31: 6908.89691 | J31: - | K31: 5036.9 | L31: 3860.353
B32: Osiecznica | D32: 35031.5785 | E32: 17098.02283 | F32: 149.58479 | G32: 4197.716 | H32: 8247.74867 | I32: 7414.57708 | J32: - | K32: 9685.807 | L32: 7965.881
B33: Warta Bolesławiecka | D33: 33255.41472 | E33: 16155.35158 | F33: 32.76914 | G33: 4295.494 | H33: 9391.38914 | I33: 9179.46686 | J33: - | K33: 7708.674 | L33: 6888.974
B34: POWIAT JAWORSKI | D34: 184151.5706 | E34: 90007.19376 | F34: 469.30147 | G34: 28736.343 | H34: 51212.55984 | I34: 48913.7927 | J34: 151.866 | K34: 42931.817 | L34: 28969.667
B35: Gminy miejskie:
B36: Urban gminas:
B37: Jawor | D37: 80793.83937 | E37: 47707.54723 | F37: 382.07911 | G37: 16506.85 | H37: 17623.05214 | I37: 17432.50264 | J37: 151.866 | K37: 15463.24 | L37: 12330.483
B38: Gminy miejsko-wiejskie:
B39: Urban-rural gminas:
B40: Bolków | D40: 35974.6826 | E40: 12071.67946 | F40: 31.56961 | G40: 4613.279 | H40: 12009.09414 | I40: 11810.63138 | J40: - | K40: 11893.909 | L40: 5676.943
B41: Gminy wiejskie:
B42: Rural gminas:
B43: Męcinka | D43: 18762.32602 | E43: 8841.20281 | F43: 23.15585 | G43: 2198.994 | H43: 5378.33021 | I43: 5264.21466 | J43: - | K43: 4542.793 | L43: 3571.997
B44: Mściwojów | D44: 16597.26196 | E44: 7302.933 | F44: 3.37794 | G44: 1717.567 | H44: 6230.47696 | I44: 4832.14829 | J44: - | K44: 3063.852 | L44: 2086.26
B45: Paszowice | D45: 15080.25837 | E45: 6923.43823 | F45: 14.24097 | G45: 1703.166 | H45: 4447.38114 | I45: 4163.44684 | J45: - | K45: 3709.439 | L45: 2248.527
B46: Wądroże Wielkie | D46: 16943.20228 | E46: 7160.39303 | F46: 14.87799 | G46: 1996.487 | H46: 5524.22525 | I46: 5410.84889 | J46: - | K46: 4258.584 | L46: 3055.457
B47: POWIAT JELENIOGÓRSKI | D47: 262144.4061 | E47: 152394.7405 | F47: 850.94001 | G47: 40391.296 | H47: 64885.12959 | I47: 62851.18337 | J47: 5.1 | K47: 44864.536 | L47: 34591.568
B48: Gminy miejskie:
B49: Urban gminas:
B50: Karpacz | D50: 33535.33363 | E50: 25473.28489 | F50: 238.25049 | G50: 3610.337 | H50: 3590.86274 | I50: 3319.00465 | J50: - | K50: 4471.186 | L50: 4305.805
B51: Kowary | D51: 39800.98095 | E51: 21015.05301 | F51: 198.19042 | G51: 6246.074 | H51: 11617.84894 | I51: 11482.4247 | J51: - | K51: 7168.079 | L51: 5100.027
B52: Piechowice | D52: 23462.74571 | E52: 14932.63707 | F52: 31.85562 | G52: 4250.892 | H52: 6298.61764 | I52: 6171.3761 | J52: 5.1 | K52: 2231.491 | L52: 2231.491
B53: Szklarska Poręba | D53: 35781.01829 | E53: 26356.44699 | F53: 79.56227 | G53: 4028.481 | H53: 6316.8043 | I53: 6063.53113 | J53: - | K53: 3107.767 | L53: 2642.937
B54: Gminy wiejskie:
B55: Rural gminas:
B56: Janowice Wielkie | D56: 14907.54698 | E56: 6531.20035 | F56: 33.59771 | G56: 2146.319 | H56: 4258.32163 | I56: 3967.41461 | J56: - | K56: 4118.025 | L56: 2262.354
B57: Jeżów Sudecki | D57: 26659.29025 | E57: 13575.79312 | F57: 24.63451 | G57: 5922.566 | H57: 7334.10313 | I57: 6932.92082 | J57: - | K57: 5749.394 | L57: 3485.713
B58: Mysłakowice | D58: 38387.1846 | E58: 20220.3148 | F58: 87.39518 | G58: 6667.061 | H58: 10232.5888 | I58: 10173.06747 | J58: - | K58: 7934.281 | L58: 7233.897
B59: Podgórzyn | D59: 28679.50406 | E59: 15431.40761 | F59: 122.74282 | G59: 5083.376 | H59: 8786.63445 | I59: 8729.75091 | J59: - | K59: 4461.462 | L59: 3505.736
B60: Stara Kamienica | D60: 20930.80164 | E60: 8858.60268 | F60: 34.71099 | G60: 2436.19 | H60: 6449.34796 | I60: 6011.69298 | J60: - | K60: 5622.851 | L60: 3823.608
B61: POWIAT KAMIENNOGÓRSKI | D61: 156300.2192 | E61: 66114.36543 | F61: 682.65026 | G61: 24022.36 | H61: 43110.65475 | I61: 40660.77051 | J61: 775.503 | K61: 47075.199 | L61: 27611.137
B62: Gminy miejskie:
B63: Urban gminas:
B64: Kamienna Góra | D64: 66867.84339 | E64: 32639.21096 | F64: 513.79327 | G64: 11899.759 | H64: 16469.56943 | I64: 16461.36643 | J64: 8.203 | K64: 17759.063 | L64: 11313.8
B65: Gminy miejsko-wiejskie:
B66: Urban-rural gminas:
B67: Lubawka | D67: 35858.32225 | E67: 12850.56469 | F67: 64.80164 | G67: 5396.433 | H67: 10404.53856 | I67: 9251.76656 | J67: 767.3 | K67: 12603.219 | L67: 6633.275
B68: Gminy wiejskie:
B69: Rural gminas:
B70: Kamienna Góra | D70: 36017.67634 | E70: 14879.21928 | F70: 101.17985 | G70: 4761.156 | H70: 10386.68306 | I70: 9807.87198 | J70: - | K70: 10751.774 | L70: 6407.928
B71: Marciszów | D71: 17556.3772 | E71: 5745.3705 | F71: 2.8755 | G71: 1965.012 | H71: 5849.8637 | I71: 5139.76554 | J71: - | K71: 5961.143 | L71: 3256.134
B72: POWIAT LUBAŃSKI | D72: 211722.7226 | E72: 104155.1258 | F72: 610.80664 | G72: 33052.83 | H72: 60751.27484 | I72: 56398.7573 | J72: 485.6 | K72: 46816.322 | L72: 35177.669
B73: Gminy miejskie:
B74: Urban gminas:
B75: Lubań | D75: 71663.34653 | E75: 41163.57906 | F75: 444.0869 | G75: 16174.759 | H75: 16624.98047 | I75: 15364.03473 | J75: 155.6 | K75: 13874.787 | L75: 11331.031
B76: Świeradów-Zdrój | D76: 31947.94477 | E76: 20426.90642 | F76: 72.67923 | G76: 2631.528 | H76: 7613.63635 | I76: 6357.53557 | J76: - | K76: 3907.402 | L76: 3834.683
B77: Gminy miejsko-wiejskie:
B78: Urban-rural gminas:
B79: Leśna | D79: 37382.74299 | E79: 12469.10067 | F79: 88.43831 | G79: 3956.032 | H79: 14002.92032 | I79: 13259.49106 | J79: 230 | K79: 10910.722 | L79: 6700.146
B80: Olszyna | D80: 23674.53551 | E80: 8888.33289 | F80: -11.95012 | G80: 3189.165 | H80: 8785.68262 | I80: 8431.11806 | J80: 100 | K80: 6000.52 | L80: 4532.561
B81: Gminy wiejskie:
B82: Rural gminas:
B83: Lubań | D83: 24766.05887 | E83: 10094.66593 | F83: 13.49171 | G83: 3209.31 | H83: 7812.87794 | I83: 7339.97185 | J83: - | K83: 6858.515 | L83: 4586.685
B84: Platerówka | D84: 6326.53705 | E84: 3184.75069 | F84: 0.23374 | G84: 845.143 | H84: 1754.87536 | I84: 1754.87536 | J84: - | K84: 1386.911 | L84: 1080.258
B85: Siekierczyn | D85: 15961.55687 | E85: 7927.79009 | F85: 3.82687 | G85: 3046.893 | H85: 4156.30178 | I85: 3891.73067 | J85: - | K85: 3877.465 | L85: 3112.305
B86: POWIAT LWÓWECKI | D86: 159694.1401 | E86: 63726.21621 | F86: 621.13661 | G86: 21692.811 | H86: 48190.5299 | I86: 46513.3647 | J86: 303.56601 | K86: 47777.394 | L86: 29489.807
B87: Gminy miejsko-wiejskie:
B88: Urban-rural gminas:
B89: Gryfów Śląski | D89: 31465.71008 | E89: 13387.04783 | F89: 88.55906 | G89: 5130.013 | H89: 9852.52625 | I89: 9483.79896 | J89: - | K89: 8226.136 | L89: 4465.869
B90: Lubomierz | D90: 24530.63523 | E90: 6798.37772 | F90: 4.4682 | G90: 1871.302 | H90: 7015.82351 | I90: 6887.51431 | J90: - | K90: 10716.434 | L90: 6042.198
B91: Lwówek Śląski | D91: 56786.72854 | E91: 27034.69216 | F91: 465.83874 | G91: 9055.999 | H91: 16142.07638 | I91: 15948.69216 | J91: 108.5 | K91: 13609.96 | L91: 9740.332
B92: Mirsk | D92: 32089.04981 | E92: 10670.49258 | F92: 46.29728 | G92: 3738.879 | H92: 10414.61523 | I92: 9996.45155 | J92: 158 | K92: 11003.942 | L92: 6883.503
B93: Wleń | D93: 14822.01645 | E93: 5835.60592 | F93: 15.97333 | G93: 1896.618 | H93: 4765.48853 | I93: 4196.90772 | J93: 37.06601 | K93: 4220.922 | L93: 2357.905
B94: POWIAT ZGORZELECKI | D94: 397198.8726 | E94: 247497.7471 | F94: 5976.49924 | G94: 77912.454 | H94: 82211.70345 | I94: 73218.48439 | J94: 1851.256 | K94: 67489.422 | L94: 56897.865
B95: Gminy miejskie:
B96: Urban gminas:
B97: Zawidów | D97: 15499.80654 | E97: 7515.64922 | F97: 23.06352 | G97: 4018.487 | H97: 3638.75232 | I97: 3504.1088 | J97: - | K97: 4345.405 | L97: 3489.901
B98: Zgorzelec | D98: 101108.7048 | E98: 58912.19728 | F98: 1740.23504 | G98: 30830.392 | H98: 23827.21253 | I98: 19538.25848 | J98: - | K98: 18369.295 | L98: 18369.295
B99: Gminy miejsko-wiejskie:
B100: Urban-rural gminas:
B101: Bogatynia | D101: 152723.7455 | E101: 115587.9487 | F101: 3610.60212 | G101: 24895.612 | H101: 19988.39976 | I101: 19982.14376 | J101: 6.256 | K101: 17147.397 | L101: 15709.585
B102: Pieńsk | D102: 30864.12464 | E102: 13557.35515 | F102: 175.70387 | G102: 4550.939 | H102: 9532.83749 | I102: 9182.15749 | J102: - | K102: 7773.932 | L102: 4635.523
B103: Węgliniec | D103: 32710.30346 | E103: 13174.163 | F103: 112.53537 | G103: 4425.182 | H103: 9553.06946 | I103: 7714.15212 | J103: - | K103: 9983.071 | L103: 6655.978
B104: Gminy wiejskie:
B105: Rural gminas:
B106: Sulików | D106: 24372.47012 | E106: 13892.47361 | F106: 219.51836 | G106: 3859.892 | H106: 6197.72651 | I106: 6147.72168 | J106: - | K106: 4282.27 | L106: 3535.737
B107: Zgorzelec | D107: 39919.71752 | E107: 24857.96014 | F107: 94.84096 | G107: 5331.95 | H107: 9473.70538 | I107: 7149.94206 | J107: 1845 | K107: 5588.052 | L107: 4501.846
B108: POWIAT ZŁOTORYJSKI | D108: 169137.9547 | E108: 81321.58071 | F108: 470.91298 | G108: 25396.94 | H108: 52124.79495 | I108: 49500.98581 | J108: 315.626 | K108: 35691.579 | L108: 25704.729
B109: Gminy miejskie:
B110: Urban gminas:
B111: Wojcieszów | D111: 15158.08482 | E111: 6743.58158 | F111: 131.7171 | G111: 1614.579 | H111: 5076.32224 | I111: 4898.10768 | J111: 105.04 | K111: 3338.181 | L111: 2332.797
B112: Złotoryja | D112: 54462.73056 | E112: 32474.90596 | F112: 190.31306 | G112: 12162.575 | H112: 13321.2556 | I112: 13257.84603 | J112: - | K112: 8666.569 | L112: 6001.194
B113: Gminy miejsko-wiejskie:
B114: Urban-rural gminas:
B115: Świerzawa | D115: 28331.62467 | E115: 10078.96735 | F115: 37.53196 | G115: 3013.127 | H115: 10185.06332 | I115: 9544.53852 | J115: - | K115: 8067.594 | L115: 5073.044
B116: Gminy wiejskie:
B117: Rural gminas:
B118: Pielgrzymka | D118: 19419.91637 | E118: 6920.16456 | F118: 9.60767 | G118: 2028.984 | H118: 7158.56281 | I118: 6463.61326 | J118: - | K118: 5341.189 | L118: 4063.356
B119: Zagrodno | D119: 20936.66394 | E119: 10468.43402 | F119: 5.23396 | G119: 2451.427 | H119: 6433.92192 | I119: 6229.16992 | J119: - | K119: 4034.308 | L119: 3139.127
B120: Złotoryja | D120: 30828.9343 | E120: 14635.52724 | F120: 96.50923 | G120: 4126.248 | H120: 9949.66906 | I120: 9107.7104 | J120: 210.586 | K120: 6243.738 | L120: 5095.211
B121: PODREGION LEGNICKO-GŁOGOWSKI | D121: 1627080.253 | E121: 975782.9454 | F121: 38693.64748 | G121: 327706.518 | H121: 363558.8939 | I121: 325507.8662 | J121: 1938.82426 | K121: 287738.414 | L121: 244405.65
B122: SUBREGION
B123: POWIAT GŁOGOWSKI | D123: 392279.8727 | E123: 250177.1775 | F123: 6262.9047 | G123: 89164.304 | H123: 83356.14819 | I123: 75291.71127 | J123: 805.38087 | K123: 58746.547 | L123: 55248.115
B124: Gminy miejskie:
B125: Urban gminas:
B126: Głogów | D126: 279662.4086 | E126: 184604.5085 | F126: 6058.2678 | G126: 70780.153 | H126: 56012.64011 | I126: 49368.52468 | J126: 590.43087 | K126: 39045.26 | L126: 38883.495
B127: Gminy wiejskie:
B128: Rural gminas:
B129: Głogów | D129: 27966.86297 | E129: 16959.49137 | F129: 163.47122 | G129: 6757.745 | H129: 6540.5056 | I129: 6182.10419 | J129: 6.45 | K129: 4466.866 | L129: 3832.111
B130: Jerzmanowa | D130: 39173.45063 | E130: 29008.04999 | F130: 1.72351 | G130: 5901.996 | H130: 5500.24464 | I130: 5381.71425 | J130: 9.5 | K130: 4665.156 | L130: 4265.632
B131: Kotla | D131: 18849.99035 | E131: 8220.20411 | F131: 45.79246 | G131: 2928.704 | H131: 5817.87824 | I131: 5320.6107 | J131: 9 | K131: 4811.908 | L131: 3774.24
B132: Pęcław | D132: 8992.33099 | E132: 2701.18162 | F132: 0.59409 | G132: 956.784 | H132: 3754.47537 | I132: 3731.47537 | J132: - | K132: 2536.674 | L132: 1798.765
B133: Żukowice | D133: 17634.82913 | E133: 8683.7419 | F133: -6.94438 | G133: 1838.922 | H133: 5730.40423 | I133: 5307.28208 | J133: 190 | K133: 3220.683 | L133: 2693.872
B134: POWIAT GÓROWSKI | D134: 145291.5277 | E134: 53815.3003 | F134: 781.36386 | G134: 15651.925 | H134: 52360.65038 | I134: 50081.92819 | J134: 192.2 | K134: 39115.577 | L134: 25681.852
B135: Gminy miejsko-wiejskie:
B136: Urban-rural gminas:
B137: Góra | D137: 82130.22057 | E137: 32555.95266 | F137: 534.21977 | G137: 9726.841 | H137: 29409.25991 | I137: 29045.93123 | J137: 192.2 | K137: 20165.008 | L137: 13725.854
B138: Wąsosz | D138: 30064.68543 | E138: 10681.06586 | F138: 114.36711 | G138: 2959.701 | H138: 10503.64457 | I138: 9103.97512 | J138: - | K138: 8879.975 | L138: 6268.338
B139: Gminy wiejskie:
B140: Rural gminas:
B141: Jemielno | D141: 12448.43439 | E141: 3568.44207 | F141: 25.42106 | G141: 969.621 | H141: 5153.82832 | I141: 5001.30632 | J141: - | K141: 3726.164 | L141: 2029.524
B142: Niechlów | D142: 20648.18729 | E142: 7009.83971 | F142: 107.35592 | G142: 1995.762 | H142: 7293.91758 | I142: 6930.71552 | J142: - | K142: 6344.43 | L142: 3658.136
B143: POWIAT LEGNICKI | D143: 222594.417 | E143: 117924.3174 | F143: 1386.56068 | G143: 35613.414 | H143: 59649.61165 | I143: 56067.10099 | J143: 798.40867 | K143: 45020.488 | L143: 34449.035
B144: Gminy miejskie:
B145: Urban gminas:
B146: Chojnów | D146: 53087.44088 | E146: 27536.65532 | F146: 331.10838 | G146: 9082.262 | H146: 13281.52256 | I146: 11513.45546 | J146: 124.4145 | K146: 12269.263 | L146: 8559.736
B147: Gminy miejsko-wiejskie:
B148: Urban-rural gminas:
B149: Prochowice | D149: 28889.98349 | E149: 15085.02562 | F149: 194.18463 | G149: 4333.644 | H149: 7457.12487 | I149: 7384.16062 | J149: - | K149: 6347.833 | L149: 5554.064
B150: Gminy wiejskie:
B151: Rural gminas:
B152: Chojnów | D152: 37057.14971 | E152: 18209.89673 | F152: 52.20312 | G152: 4957.718 | H152: 12328.56998 | I152: 11639.48498 | J152: 666.9 | K152: 6518.683 | L152: 4215.168
B153: Krotoszyce | D153: 13967.35896 | E153: 7619.01071 | F153: 82.43681 | G153: 1744.386 | H153: 3662.06725 | I153: 3652.62725 | J153: - | K153: 2686.281 | L153: 2175.054
B154: Kunice | D154: 27355.59807 | E154: 16542.28038 | F154: 135.7687 | G154: 7267.251 | H154: 5781.63169 | I154: 5748.18589 | J154: - | K154: 5031.686 | L154: 4308.816
B155: Legnickie Pole | D155: 24968.98759 | E155: 16055.85206 | F155: 459.07832 | G155: 2982.54 | H155: 5503.24853 | I155: 5146.46383 | J155: 7.09417 | K155: 3409.887 | L155: 3376.317
B156: Miłkowice | D156: 25188.82674 | E156: 11833.83991 | F156: 130.20455 | G156: 4193.119 | H156: 7567.61583 | I156: 6936.01773 | J156: - | K156: 5787.371 | L156: 4204.563
B157: Ruja | D157: 12079.07158 | E157: 5041.75664 | F157: 1.57617 | G157: 1052.494 | H157: 4067.83094 | I157: 4046.70523 | J157: - | K157: 2969.484 | L157: 2055.317
B158: POWIAT LUBIŃSKI | D158: 490576.6521 | E158: 303122.2518 | F158: 13129.29119 | G158: 126321.453 | H158: 97818.12033 | I158: 83115.61 | J158: - | K158: 89636.28 | L158: 86085.239
B159: Gminy miejskie:
B160: Urban gminas:
B161: Lubin | D161: 323685.0771 | E161: 193357.8031 | F161: 12190.4449 | G161: 91985.896 | H161: 63287.65307 | I161: 51498.33426 | J161: - | K161: 67039.621 | L161: 67039.621
B162: Gminy miejsko-wiejskie:
B163: Urban-rural gminas:
B164: Ścinawa | D164: 39096.59977 | E164: 16372.71424 | F164: 67.90042 | G164: 6887.062 | H164: 13939.74553 | I164: 12033.42642 | J164: - | K164: 8784.14 | L164: 5772.047
B165: Gminy wiejskie:
B166: Rural gminas:
B167: Lubin | D167: 73731.37866 | E167: 54057.04563 | F167: 152.86025 | G167: 20888.287 | H167: 12868.94103 | I167: 11878.13434 | J167: - | K167: 6805.392 | L167: 6516.295
B168: Rudna | D168: 54063.59655 | E168: 39334.68885 | F168: 718.08562 | G168: 6560.208 | H168: 7721.7807 | I168: 7705.71498 | J168: - | K168: 7007.127 | L168: 6757.276
B169: POWIAT POLKOWICKI | D169: 376337.7838 | E169: 250743.8984 | F169: 17133.52705 | G169: 60955.422 | H169: 70374.36339 | I169: 60951.51573 | J169: 142.83472 | K169: 55219.522 | L169: 42941.409
B170: Gminy miejsko-wiejskie:
B171: Urban-rural gminas:
B172: Chocianów | D172: 44839.9526 | E172: 21354.52533 | F172: 96.4363 | G172: 11664.975 | H172: 14223.27527 | I172: 11361.57737 | J172: - | K172: 9262.152 | L172: 7211.359
B173: Polkowice | D173: 217217.0443 | E173: 168262.9882 | F173: 16900.31431 | G173: 33165.44 | H173: 26553.97507 | I173: 23949.70368 | J173: 54.23472 | K173: 22400.081 | L173: 17242.29
B174: Przemków | D174: 31488.30007 | E174: 10891.24734 | F174: 91.46537 | G174: 6298.705 | H174: 10678.02473 | I174: 8577.24397 | J174: - | K174: 9919.028 | L174: 6280.477
B175: Gminy wiejskie:
B176: Rural gminas:
B177: Gaworzyce | D177: 16393.23903 | E177: 5569.62329 | F177: 6.61786 | G177: 2539.069 | H177: 6318.42674 | I177: 4978.77562 | J177: - | K177: 4505.189 | L177: 3266.901
B178: Grębocice | D178: 40157.86351 | E178: 28573.0028 | F178: 16.73615 | G178: 3255.802 | H178: 6722.38471 | I178: 6457.68831 | J178: 88.6 | K178: 4862.476 | L178: 4752.257
B179: Radwanice | D179: 26241.38433 | E179: 16092.51146 | F179: 21.95706 | G179: 4031.431 | H179: 5878.27687 | I179: 5626.52678 | J179: - | K179: 4270.596 | L179: 4188.125
B180: PODREGION WAŁBRZYSKI | D180: 1990339.045 | E180: 1016253.946 | F180: 13529.53305 | G180: 342420.563 | H180: 542631.4207 | I180: 497066.8843 | J180: 14125.9274 | K180: 431453.678 | L180: 311878.443
B181: SUBREGION
B182: POWIAT DZIERŻONIOWSKI | D182: 353861.8471 | E182: 170904.5175 | F182: 2874.50959 | G182: 59847.934 | H182: 102923.5056 | I182: 92373.21453 | J182: 524.9 | K182: 80033.824 | L182: 52849.833
B183: Gminy miejskie:
B184: Urban gminas:
B185: Bielawa | D185: 116962.5068 | E185: 58726.76535 | F185: 704.20763 | G185: 17705.73 | H185: 29881.43141 | I185: 23827.82752 | J185: - | K185: 28354.31 | L185: 16026.456
B186: Dzierżoniów | D186: 113848.0183 | E186: 61744.19073 | F186: 1871.66002 | G186: 22919.058 | H186: 32230.35253 | I186: 30119.28926 | J186: 1.1 | K186: 19873.475 | L186: 17569.417
B187: Piława Górna | D187: 21320.52556 | E187: 9197.86828 | F187: 21.82447 | G187: 3021.206 | H187: 6839.09128 | I187: 6289.21026 | J187: 500 | K187: 5283.566 | L187: 2815.999
B188: Gminy miejsko-wiejskie:
B189: Urban-rural gminas:
B190: Niemcza | D190: 17260.12105 | E190: 6966.44189 | F190: 30.25193 | G190: 2308.173 | H190: 5799.10916 | I190: 5668.63816 | J190: - | K190: 4494.57 | L190: 2945.201
B191: Pieszyce | D191: 28790.37365 | E191: 12676.39925 | F191: 189.83731 | G191: 5359.889 | H191: 9885.5214 | I191: 9440.3773 | J191: 23.8 | K191: 6228.453 | L191: 3069.509
B192: Gminy wiejskie:
B193: Rural gminas:
B194: Dzierżoniów | D194: 30301.79948 | E194: 12177.77569 | F194: 9.55012 | G194: 4844.039 | H194: 10866.54079 | I194: 9845.47643 | J194: - | K194: 7257.483 | L194: 4375.084
B195: Łagiewniki | D195: 25378.50234 | E195: 9415.07627 | F195: 47.17811 | G195: 3689.839 | H195: 7421.45907 | I195: 7182.3956 | J195: - | K195: 8541.967 | L195: 6048.167
B196: POWIAT KŁODZKI | D196: 605590.4377 | E196: 299653.8236 | F196: 2779.34717 | G196: 90696.844 | H196: 165859.5041 | I196: 150732.1515 | J196: 9264.55019 | K196: 140077.11 | L196: 89811.683
B197: Gminy miejskie:
B198: Urban gminas:
B199: Duszniki-Zdrój | D199: 30059.83582 | E199: 12309.17437 | F199: 63.5203 | G199: 2650.491 | H199: 13712.18845 | I199: 6154.73285 | J199: 7500 | K199: 4038.473 | L199: 3856.844
B200: Kłodzko | D200: 95291.02709 | E200: 52616.45605 | F200: 1039.31745 | G200: 19209.442 | H200: 24222.67804 | I200: 23081.44055 | J200: 285.63687 | K200: 18451.893 | L200: 15173.456
B201: Kudowa-Zdrój | D201: 38375.8032 | E201: 21028.15317 | F201: 200.53444 | G201: 5171.923 | H201: 8821.53303 | I201: 8424.48395 | J201: - | K201: 8526.117 | L201: 6148.948
B202: Nowa Ruda | D202: 72837.78369 | E202: 39321.90579 | F202: 429.25631 | G202: 15172.044 | H202: 18139.3159 | I202: 17448.38755 | J202: - | K202: 15376.562 | L202: 9055.929
B203: Polanica-Zdrój | D203: 27212.80696 | E203: 18317.74616 | F203: 156.64534 | G203: 5347.419 | H203: 5432.7788 | I203: 5432.7788 | J203: - | K203: 3462.282 | L203: 3462.282
B204: Gminy miejsko-wiejskie:
... 145 more rows

Sheet Tabl. 9.
B4: Tabl. 9. Struktura dochodów budżetów gmina według rodzajów oraz podregionów i powiatów
B5: Structure of revenue of gminas budgetsa by types as well as subregions and powiats
B6: WYSZCZEGÓLNIENIE SPECIFICATION | D6: Ogółem Grand total | E6: Dochody własne Own revenue | H6: Dotacje celoweb Targeted grantsb | K6: Subwencja ogólna z budżetu państwa General subvention from the state budget
E7: razem total | F7: w tym udział w podatku dochodowym of which share in income tax | H7: razem total | I7: w tym of which | K7: razem total | L7: w tym na zadania oświatowe of which for educational tasks
F8: od osób prawnych corporate income tax | G8: od osób fizycznych personal income tax | I8: z budżetu państwa from the state budget | J8: z państwowych funduszy celowych from state appropriated funds
D9: w % in %
B10: O G Ó Ł E M | C10: 2015 | D10: 100 | E10: 59.34015117 | F10: 1.706013026 | G10: 19.09681778 | H10: 19.0042601 | I10: 13.82626355 | J10: 0.2071627653 | K10: 21.65558873 | L10: 16.98766946
B11: T O T A L | C11: 2016 | D11: 100 | E11: 54.84436 | F11: 1.20975 | G11: 18.51271 | H11: 24.89867 | I11: 23.1 | J11: 0.29624 | K11: 20.25697 | L11: 15.87401
B13: Gminy miejskie | D13: 100 | E13: 58.93917 | F13: 1.52644 | G13: 22.09325 | H13: 23.05216 | I13: 20.61784 | J13: 0.491 | K13: 18.00867 | L13: 15.55072
B14: Urban gminas
B15: Gminy miejsko-wiejskie | D15: 100 | E15: 52.91351 | F15: 1.43929 | G15: 16.66794 | H15: 25.80626 | I15: 24.4005 | J15: 0.16501 | K15: 21.28023 | L15: 15.5847
B16: Urban-rural gminas
B17: Gminy wiejskie | D17: 100 | E17: 52.88474 | F17: 0.59564 | G17: 16.99018 | H17: 25.73729 | I17: 24.16294 | J17: 0.25114 | K17: 21.37797 | L17: 16.56807
B18: Rural gminas
B19: PODREGION JELENIOGÓRSKI | D19: 100 | E19: 53.08604 | F19: 0.73562 | G19: 16.38956 | H19: 25.70054 | I19: 24.14959 | J19: 0.23564 | K19: 21.21342 | L19: 15.82371
B20: SUBREGION
B21: POWIAT BOLESŁAWIECKI | D21: 100 | E21: 56.59453 | F21: 1.19865 | G21: 16.74101 | H21: 23.84479 | I21: 22.44526 | J21: 0.16297 | K21: 19.56068 | L21: 17.31148
B22: Gminy miejskie:
B23: Urban gminas:
B24: Bolesławiec | D24: 100 | E24: 62.92435 | F24: 2.42773 | G24: 20.76845 | H24: 20.83591 | I24: 19.11985 | J24: - | K24: 16.23974 | L24: 16.07134
B25: Gminy miejsko-wiejskie:
B26: Urban-rural gminas:
B27: Nowogrodziec | D27: 100 | E27: 50.13106 | F27: 0.41651 | G27: 11.16357 | H27: 25.7953 | I27: 24.74541 | J27: 0.68006 | K27: 24.07364 | L27: 20.926
B28: Gminy wiejskie:
B29: Rural gminas:
B30: Bolesławiec | D30: 100 | E30: 57.67219 | F30: 0.19566 | G30: 19.87053 | H30: 26.1556 | I30: 24.85223 | J30: 0.35877 | K30: 16.17221 | L30: 11.8421
B31: Gromadka | D31: 100 | E31: 52.31718 | F31: 0.06514 | G31: 10.56379 | H31: 27.6279 | I31: 27.50846 | J31: - | K31: 20.05491 | L31: 15.37038
B32: Osiecznica | D32: 100 | E32: 48.80746 | F32: 0.427 | G32: 11.98266 | H32: 23.54375 | I32: 21.16541 | J32: - | K32: 27.64879 | L32: 22.73914
B33: Warta Bolesławiecka | D33: 100 | E33: 48.57961 | F33: 0.09854 | G33: 12.91668 | H33: 28.24018 | I33: 27.60292 | J33: - | K33: 23.18021 | L33: 20.71535
B34: POWIAT JAWORSKI | D34: 100 | E34: 48.87669 | F34: 0.25485 | G34: 15.60472 | H34: 27.81 | I34: 26.56171 | J34: 0.08247 | K34: 23.3133 | L34: 15.73143
B35: Gminy miejskie:
B36: Urban gminas:
B37: Jawor | D37: 100 | E37: 59.0485 | F37: 0.47291 | G37: 20.43083 | H37: 21.81237 | I37: 21.57652 | J37: 0.18797 | K37: 19.13913 | L37: 15.26166
B38: Gminy miejsko-wiejskie:
B39: Urban-rural gminas:
B40: Bolków | D40: 100 | E40: 33.55604 | F40: 0.08776 | G40: 12.82368 | H40: 33.38207 | I40: 32.8304 | J40: - | K40: 33.06189 | L40: 15.78038
B41: Gminy wiejskie:
B42: Rural gminas:
B43: Męcinka | D43: 100 | E43: 47.1221 | F43: 0.12342 | G43: 11.72026 | H43: 28.66558 | I43: 28.05737 | J43: - | K43: 24.21231 | L43: 19.03814
B44: Mściwojów | D44: 100 | E44: 44.00083 | F44: 0.02035 | G44: 10.3485 | H44: 37.53919 | I44: 29.11413 | J44: - | K44: 18.45998 | L44: 12.5699
B45: Paszowice | D45: 100 | E45: 45.91061 | F45: 0.09443 | G45: 11.29401 | H45: 29.49141 | I45: 27.60859 | J45: - | K45: 24.59798 | L45: 14.9104
B46: Wądroże Wielkie | D46: 100 | E46: 42.26116 | F46: 0.08781 | G46: 11.78341 | H46: 32.60438 | I46: 31.93522 | J46: - | K46: 25.13447 | L46: 18.03353
B47: POWIAT JELENIOGÓRSKI | D47: 100 | E47: 58.13389 | F47: 0.32461 | G47: 15.40803 | H47: 24.75167 | I47: 23.97578 | J47: - | K47: 17.11444 | L47: 13.19562
B48: Gminy miejskie:
B49: Urban gminas:
B50: Karpacz | D50: 100 | E50: 75.95954 | F50: 0.71045 | G50: 10.76577 | H50: 10.7077 | I50: 9.89703 | J50: - | K50: 13.33276 | L50: 12.83961
B51: Kowary | D51: 100 | E51: 52.80034 | F51: 0.49795 | G51: 15.69327 | H51: 29.18986 | I51: 28.8496 | J51: - | K51: 18.0098 | L51: 12.81382
B52: Piechowice | D52: 100 | E52: 63.64403 | F52: 0.13577 | G52: 18.11762 | H52: 26.84519 | I52: 26.30287 | J52: - | K52: 9.51078 | L52: 9.51078
B53: Szklarska Poręba | D53: 100 | E53: 73.66042 | F53: 0.22236 | G53: 11.25871 | H53: 17.65407 | I53: 16.94622 | J53: - | K53: 8.68552 | L53: 7.38642
B54: Gminy wiejskie:
B55: Rural gminas:
B56: Janowice Wielkie | D56: 100 | E56: 43.81137 | F56: 0.22537 | G56: 14.39753 | H56: 28.56487 | I56: 26.61346 | J56: - | K56: 27.62376 | L56: 15.1759
B57: Jeżów Sudecki | D57: 100 | E57: 50.92331 | F57: 0.0924 | G57: 22.21577 | H57: 27.5105 | I57: 26.00565 | J57: - | K57: 21.56619 | L57: 13.07504
B58: Mysłakowice | D58: 100 | E58: 52.67465 | F58: 0.22767 | G58: 17.36793 | H58: 26.65626 | I58: 26.50121 | J58: - | K58: 20.66909 | L58: 18.84456
B59: Podgórzyn | D59: 100 | E59: 53.8064 | F59: 0.42798 | G59: 17.72477 | H59: 30.63733 | I59: 30.43899 | J59: - | K59: 15.55627 | L59: 12.22384
B60: Stara Kamienica | D60: 100 | E60: 42.32328 | F60: 0.16584 | G60: 11.63926 | H60: 30.81271 | I60: 28.72175 | J60: - | K60: 26.864 | L60: 18.26785
B61: POWIAT KAMIENNOGÓRSKI | D61: 100 | E61: 42.2996 | F61: 0.43676 | G61: 15.36937 | H61: 27.58195 | I61: 26.01454 | J61: 0.49616 | K61: 30.11845 | L61: 17.66545
B62: Gminy miejskie:
B63: Urban gminas:
B64: Kamienna Góra | D64: 100 | E64: 48.81152 | F64: 0.76837 | G64: 17.79594 | H64: 24.63003 | I64: 24.61776 | J64: - | K64: 26.55845 | L64: 16.91964
B65: Gminy miejsko-wiejskie:
B66: Urban-rural gminas:
B67: Lubawka | D67: 100 | E67: 35.83705 | F67: 0.18072 | G67: 15.04932 | H67: 29.01569 | I67: 25.80089 | J67: 2.13981 | K67: 35.14726 | L67: 18.49856
B68: Gminy wiejskie:
B69: Rural gminas:
B70: Kamienna Góra | D70: 100 | E70: 41.31088 | F70: 0.28092 | G70: 13.21894 | H70: 28.83774 | I70: 27.23072 | J70: - | K70: 29.85138 | L70: 17.79106
B71: Marciszów | D71: 100 | E71: 32.72526 | F71: 0.01638 | G71: 11.19258 | H71: 33.32045 | I71: 29.27577 | J71: - | K71: 33.95429 | L71: 18.54673
B72: POWIAT LUBAŃSKI | D72: 100 | E72: 49.19412 | F72: 0.28849 | G72: 15.61138 | H72: 28.69379 | I72: 26.63803 | J72: 0.22936 | K72: 22.11209 | L72: 16.61497
B73: Gminy miejskie:
B74: Urban gminas:
B75: Lubań | D75: 100 | E75: 57.44021 | F75: 0.61968 | G75: 22.57048 | H75: 23.19872 | I75: 21.43918 | J75: 0.21713 | K75: 19.36106 | L75: 15.81147
B76: Świeradów-Zdrój | D76: 100 | E76: 63.93809 | F76: 0.22749 | G76: 8.23692 | H76: 23.83138 | I76: 19.89967 | J76: - | K76: 12.23053 | L76: 12.00291
B77: Gminy miejsko-wiejskie:
B78: Urban-rural gminas:
B79: Leśna | D79: 100 | E79: 33.35523 | F79: 0.23658 | G79: 10.58251 | H79: 37.45825 | I79: 35.46955 | J79: 0.61526 | K79: 29.18652 | L79: 17.9231
B80: Olszyna | D80: 100 | E80: 37.54385 | F80: 0.05048 | G80: 13.47087 | H80: 37.11026 | I80: 35.6126 | J80: 0.42239 | K80: 25.34588 | L80: 19.1453
B81: Gminy wiejskie:
B82: Rural gminas:
B83: Lubań | D83: 100 | E83: 40.76008 | F83: 0.05448 | G83: 12.9585 | H83: 31.54671 | I83: 29.63722 | J83: - | K83: 27.6932 | L83: 18.52004
B84: Platerówka | D84: 100 | E84: 50.33956 | F84: 0.00369 | G84: 13.3587 | H84: 27.73832 | I84: 27.73832 | J84: - | K84: 21.92212 | L84: 17.07503
B85: Siekierczyn | D85: 100 | E85: 49.66803 | F85: 0.02398 | G85: 19.08895 | H85: 26.03945 | I85: 24.3819 | J85: - | K85: 24.29252 | L85: 19.49876
B86: POWIAT LWÓWECKI | D86: 100 | E86: 39.90517 | F86: 0.38895 | G86: 13.58397 | H86: 30.17677 | I86: 29.12653 | J86: 0.19009 | K86: 29.91806 | L86: 18.46643
B87: Gminy miejsko-wiejskie:
B88: Urban-rural gminas:
B89: Gryfów Śląski | D89: 100 | E89: 42.54488 | F89: 0.28145 | G89: 16.3035 | H89: 31.31195 | I89: 30.14011 | J89: - | K89: 26.14318 | L89: 14.19281
B90: Lubomierz | D90: 100 | E90: 27.71383 | F90: 0.01821 | G90: 7.62843 | H90: 28.60025 | I90: 28.07719 | J90: - | K90: 43.68592 | L90: 24.63123
B91: Lwówek Śląski | D91: 100 | E91: 47.60741 | F91: 0.82033 | G91: 15.94739 | H91: 28.42579 | I91: 28.08524 | J91: 0.19107 | K91: 23.9668 | L91: 17.15248
B92: Mirsk | D92: 100 | E92: 33.25275 | F92: 0.14428 | G92: 11.65157 | H92: 32.45536 | I92: 31.15222 | J92: 0.49238 | K92: 34.29189 | L92: 21.45125
B93: Wleń | D93: 100 | E93: 39.3712 | F93: 0.10777 | G93: 12.79595 | H93: 32.15142 | I93: 28.31536 | J93: 0.25007 | K93: 28.47738 | L93: 15.90813
B94: POWIAT ZGORZELECKI | D94: 100 | E94: 62.31079 | F94: 1.50466 | G94: 19.61548 | H94: 20.69787 | I94: 18.43371 | J94: 0.46608 | K94: 16.99134 | L94: 14.32478
B95: Gminy miejskie:
B96: Urban gminas:
B97: Zawidów | D97: 100 | E97: 48.48866 | F97: 0.1488 | G97: 25.92605 | H97: 23.47611 | I97: 22.60744 | J97: - | K97: 28.03522 | L97: 22.51577
B98: Zgorzelec | D98: 100 | E98: 58.2662 | F98: 1.72115 | G98: 30.49232 | H98: 23.56594 | I98: 19.32401 | J98: - | K98: 18.16787 | L98: 18.16787
B99: Gminy miejsko-wiejskie:
B100: Urban-rural gminas:
B101: Bogatynia | D101: 100 | E101: 75.68433 | F101: 2.36414 | G101: 16.30107 | H101: 13.08794 | I101: 13.08385 | J101: - | K101: 11.22772 | L101: 10.28628
B102: Pieńsk | D102: 100 | E102: 43.92593 | F102: 0.56928 | G102: 14.74508 | H102: 30.88647 | I102: 29.75026 | J102: - | K102: 25.1876 | L102: 15.01913
B103: Węgliniec | D103: 100 | E103: 40.27527 | F103: 0.34404 | G103: 13.5284 | H103: 29.20508 | I103: 23.58325 | J103: - | K103: 30.51965 | L103: 20.34826
B104: Gminy wiejskie:
B105: Rural gminas:
B106: Sulików | D106: 100 | E106: 57.00068 | F106: 0.90068 | G106: 15.8371 | H106: 25.42921 | I106: 25.22404 | J106: - | K106: 17.57011 | L106: 14.50709
B107: Zgorzelec | D107: 100 | E107: 62.26988 | F107: 0.23758 | G107: 13.35668 | H107: 23.73189 | I107: 17.9108 | J107: 4.62178 | K107: 13.99823 | L107: 11.27725
B108: POWIAT ZŁOTORYJSKI | D108: 100 | E108: 48.08003 | F108: 0.27842 | G108: 15.01552 | H108: 30.81792 | I108: 29.26662 | J108: 0.18661 | K108: 21.10205 | L108: 15.19749
B109: Gminy miejskie:
B110: Urban gminas:
B111: Wojcieszów | D111: 100 | E111: 44.48835 | F111: 0.86896 | G111: 10.6516 | H111: 33.48921 | I111: 32.3135 | J111: 0.69296 | K111: 22.02245 | L111: 15.38979
B112: Złotoryja | D112: 100 | E112: 59.62776 | F112: 0.34944 | G112: 22.33192 | H112: 24.4594 | I112: 24.34297 | J112: - | K112: 15.91284 | L112: 11.0189
B113: Gminy miejsko-wiejskie:
B114: Urban-rural gminas:
B115: Świerzawa | D115: 100 | E115: 35.57497 | F115: 0.13247 | G115: 10.63521 | H115: 35.94945 | I115: 33.68864 | J115: - | K115: 28.47558 | L115: 17.90594
B116: Gminy wiejskie:
B117: Rural gminas:
B118: Pielgrzymka | D118: 100 | E118: 35.63437 | F118: 0.04947 | G118: 10.44795 | H118: 36.86197 | I118: 33.28342 | J118: - | K118: 27.50367 | L118: 20.92365
B119: Zagrodno | D119: 100 | E119: 50.00049 | F119: 0.025 | G119: 11.70878 | H119: 30.73041 | I119: 29.75245 | J119: - | K119: 19.26911 | L119: 14.99344
B120: Złotoryja | E120: 47.47335 | F120: 0.31305 | G120: 13.38434 | H120: 32.2738 | I120: 29.54273 | J120: 0.68308 | K120: 20.25285 | L120: 16.52737
B121: PODREGION LEGNICKO-GŁOGOWSKI | D121: 100 | E121: 59.97141 | F121: 2.3781 | G121: 20.14077 | H121: 22.34425 | I121: 20.00565 | J121: 0.11916 | K121: 17.68434 | L121: 15.02112
B122: SUBREGION
B123: POWIAT GŁOGOWSKI | D123: 100 | E123: 63.77518 | F123: 1.59654 | G123: 22.72977 | H123: 21.24915 | I123: 19.19336 | J123: 0.20531 | K123: 14.97567 | L123: 14.08385
B124: Gminy miejskie:
B125: Urban gminas:
B126: Głogów | D126: 100 | E126: 66.00977 | F126: 2.16628 | G126: 25.30914 | H126: 20.02866 | I126: 17.65289 | J126: 0.21112 | K126: 13.96157 | L126: 13.90373
B127: Gminy wiejskie:
B128: Rural gminas:
B129: Głogów | D129: 100 | E129: 60.64138 | F129: 0.58452 | G129: 24.1634 | H129: 23.38663 | I129: 22.1051 | J129: - | K129: 15.972 | L129: 13.70233
B130: Jerzmanowa | D130: 100 | E130: 74.05028 | F130: 0.0044 | G130: 15.06632 | H130: 14.04075 | I130: 13.73817 | J130: - | K130: 11.90897 | L130: 10.88909
B131: Kotla | D131: 100 | E131: 43.60853 | F131: 0.24293 | G131: 15.5369 | H131: 30.86409 | I131: 28.22607 | J131: - | K131: 25.52738 | L131: 20.0225
B132: Pęcław | D132: 100 | E132: 30.03873 | F132: 0.00661 | G132: 10.64 | H132: 41.75197 | I132: 41.4962 | J132: - | K132: 28.2093 | L132: 20.00332
B133: Żukowice | D133: 100 | E133: 49.242 | F133: 0.03938 | G133: 10.42778 | H133: 32.49481 | I133: 30.09546 | J133: 1.07741 | K133: 18.26319 | L133: 15.27586
B134: POWIAT GÓROWSKI | D134: 100 | E134: 37.03953 | F134: 0.53779 | G134: 10.77277 | H134: 36.03834 | I134: 34.46996 | J134: 0.13229 | K134: 26.92213 | L134: 17.67608
B135: Gminy miejsko-wiejskie:
B136: Urban-rural gminas:
B137: Góra | D137: 100 | E137: 39.63943 | F137: 0.65045 | G137: 11.84319 | H137: 35.80809 | I137: 35.3657 | J137: 0.23402 | K137: 24.55248 | L137: 16.71231
B138: Wąsosz | D138: 100 | E138: 35.52695 | F138: 0.3804 | G138: 9.84444 | H138: 34.93682 | I138: 30.28129 | J138: - | K138: 29.53623 | L138: 20.8495
B139: Gminy wiejskie:
B140: Rural gminas:
B141: Jemielno | D141: 100 | E141: 28.66579 | F141: 0.20421 | G141: 7.7891 | H141: 41.40142 | I141: 40.17618 | J141: - | K141: 29.93279 | L141: 16.30345
B142: Niechlów | D142: 100 | E142: 33.94894 | F142: 0.51993 | G142: 9.66556 | H142: 35.32474 | I142: 33.56574 | J142: - | K142: 30.72633 | L142: 17.7165
B143: POWIAT LEGNICKI | D143: 100 | E143: 52.97721 | F143: 0.62291 | G143: 15.99924 | H143: 26.79744 | I143: 25.18801 | J143: 0.35868 | K143: 20.22534 | L143: 15.47615
B144: Gminy miejskie:
B145: Urban gminas:
B146: Chojnów | D146: 100 | E146: 51.87038 | F146: 0.6237 | G146: 17.10812 | H146: 25.0182 | I146: 21.68772 | J146: 0.23436 | K146: 23.11142 | L146: 16.12384
B147: Gminy miejsko-wiejskie:
B148: Urban-rural gminas:
B149: Prochowice | D149: 100 | E149: 52.21542 | F149: 0.67215 | G149: 15.00051 | H149: 25.81215 | I149: 25.55959 | J149: - | K149: 21.97244 | L149: 19.22488
B150: Gminy wiejskie:
B151: Rural gminas:
B152: Chojnów | D152: 100 | E152: 49.14004 | F152: 0.14087 | G152: 13.37857 | H152: 33.26907 | I152: 31.40955 | J152: 1.79965 | K152: 17.59089 | L152: 11.37478
B153: Krotoszyce | D153: 100 | E153: 54.54869 | F153: 0.59021 | G153: 12.48902 | H153: 26.21875 | I153: 26.15116 | J153: - | K153: 19.23256 | L153: 15.57241
B154: Kunice | D154: 100 | E154: 60.47128 | F154: 0.49631 | G154: 26.56586 | H154: 21.1351 | I154: 21.01283 | J154: - | K154: 18.39362 | L154: 15.75113
B155: Legnickie Pole | D155: 100 | E155: 64.30318 | F155: 1.83859 | G155: 11.94498 | H155: 22.04034 | I155: 20.61142 | J155: - | K155: 13.65649 | L155: 13.52204
B156: Miłkowice | D156: 100 | E156: 46.98051 | F156: 0.51691 | G156: 16.64674 | H156: 30.04354 | I156: 27.53609 | J156: - | K156: 22.97595 | L156: 16.69217
B157: Ruja | D157: 100 | E157: 41.7396 | F157: 0.01305 | G157: 8.71337 | H157: 33.67669 | I157: 33.50179 | J157: - | K157: 24.58371 | L157: 17.01552
B158: POWIAT LUBIŃSKI | D158: 100 | E158: 61.78897 | F158: 2.6763 | G158: 25.74959 | H158: 19.93942 | I158: 16.94243 | J158: - | K158: 18.27162 | L158: 17.54777
B159: Gminy miejskie:
B160: Urban gminas:
B161: Lubin | D161: 100 | E161: 59.7364 | F161: 3.76614 | G161: 28.41833 | H161: 19.55223 | I161: 15.91002 | J161: - | K161: 20.71137 | L161: 20.71137
B162: Gminy miejsko-wiejskie:
B163: Urban-rural gminas:
B164: Ścinawa | D164: 100 | E164: 41.87759 | F164: 0.17367 | G164: 17.6155 | H164: 35.65462 | I164: 30.7787 | J164: - | K164: 22.46779 | L164: 14.76355
B165: Gminy wiejskie:
B166: Rural gminas:
B167: Lubin | D167: 100 | E167: 73.3162 | F167: 0.20732 | G167: 28.33025 | H167: 17.45382 | I167: 16.11001 | J167: - | K167: 9.22998 | L167: 8.83789
B168: Rudna | D168: 100 | E168: 72.75633 | F168: 1.32822 | G168: 12.13424 | H168: 14.28277 | I168: 14.25306 | J168: - | K168: 12.9609 | L168: 12.49875
B169: POWIAT POLKOWICKI | D169: 100 | E169: 66.62735 | F169: 4.5527 | G169: 16.197 | H169: 18.69979 | I169: 16.19596 | J169: - | K169: 14.67286 | L169: 11.41034
B170: Gminy miejsko-wiejskie:
B171: Urban-rural gminas:
B172: Chocianów | D172: 100 | E172: 47.62388 | F172: 0.21507 | G172: 26.01469 | H172: 31.72009 | I172: 25.33806 | J172: - | K172: 20.65603 | L172: 16.08244
B173: Polkowice | D173: 100 | E173: 77.46307 | F173: 7.78038 | G173: 15.26834 | H173: 12.22463 | I173: 11.0257 | J173: - | K173: 10.3123 | L173: 7.93782
B174: Przemków | D174: 100 | E174: 34.58824 | F174: 0.29047 | G174: 20.00332 | H174: 33.91109 | I174: 27.23947 | J174: - | K174: 31.50068 | L174: 19.94543
B175: Gminy wiejskie:
B176: Rural gminas:
B177: Gaworzyce | D177: 100 | E177: 33.97512 | F177: 0.04037 | G177: 15.48851 | H177: 38.54288 | I177: 30.37091 | J177: - | K177: 27.48199 | L177: 19.92834
B178: Grębocice | D178: 100 | E178: 71.1517 | F178: 0.04168 | G178: 8.10751 | H178: 16.7399 | I178: 16.08076 | J178: 0.22063 | K178: 12.1084 | L178: 11.83394
B179: Radwanice | D179: 100 | E179: 61.32493 | F179: 0.08367 | G179: 15.36287 | H179: 22.40079 | I179: 21.44143 | J179: - | K179: 16.27428 | L179: 15.96
B180: PODREGION WAŁBRZYSKI | D180: 100 | E180: 51.05934 | F180: 0.67976 | G180: 17.20413 | H180: 27.26327 | I180: 24.97398 | J180: 0.70972 | K180: 21.6774 | L180: 15.66961
B181: SUBREGION
B182: POWIAT DZIERŻONIOWSKI | D182: 100 | E182: 48.29696 | F182: 0.81233 | G182: 16.9128 | H182: 29.08579 | I182: 26.10432 | J182: 0.14833 | K182: 22.61725 | L182: 14.93516
B183: Gminy miejskie:
B184: Urban gminas:
B185: Bielawa | D185: 100 | E185: 50.20991 | F185: 0.60208 | G185: 15.13795 | H185: 25.54787 | I185: 20.37219 | J185: - | K185: 24.24222 | L185: 13.70222
B186: Dzierżoniów | D186: 100 | E186: 54.23387 | F186: 1.644 | G186: 20.13128 | H186: 28.30998 | I186: 26.4557 | J186: - | K186: 17.45614 | L186: 15.43234
B187: Piława Górna | D187: 100 | E187: 43.14091 | F187: 0.10236 | G187: 14.17041 | H187: 32.0775 | I187: 29.49838 | J187: 2.34516 | K187: 24.78159 | L187: 13.20792
B188: Gminy miejsko-wiejskie:
B189: Urban-rural gminas:
B190: Niemcza | D190: 100 | E190: 40.36149 | F190: 0.17527 | G190: 13.37287 | H190: 33.59831 | I190: 32.84241 | J190: - | K190: 26.0402 | L190: 17.06362
B191: Pieszyce | D191: 100 | E191: 44.02999 | F191: 0.65938 | G191: 18.61695 | H191: 34.3362 | I191: 32.79005 | J191: 0.08267 | K191: 21.6338 | L191: 10.66158
B192: Gminy wiejskie:
B193: Rural gminas:
B194: Dzierżoniów | D194: 100 | E194: 40.18829 | F194: 0.03152 | G194: 15.98598 | H194: 35.86104 | I194: 32.49139 | J194: - | K194: 23.95067 | L194: 14.43836
B195: Łagiewniki | D195: 100 | E195: 37.09863 | F195: 0.1859 | G195: 14.53923 | H195: 29.24309 | I195: 28.3011 | J195: - | K195: 33.65828 | L195: 23.83185
B196: POWIAT KŁODZKI | D196: 100 | E196: 49.48127 | F196: 0.45895 | G196: 14.9766 | H196: 27.38807 | I196: 24.89011 | J196: 1.52984 | K196: 23.13067 | L196: 14.83043
B197: Gminy miejskie:
B198: Urban gminas:
B199: Duszniki-Zdrój | D199: 100 | E199: 40.94891 | F199: 0.21131 | G199: 8.81738 | H199: 45.61631 | I199: 20.47493 | J199: 24.95024 | K199: 13.43478 | L199: 12.83056
B200: Kłodzko | D200: 100 | E200: 55.21659 | F200: 1.09068 | G200: 20.15871 | H200: 25.41968 | I200: 24.22205 | J200: 0.29975 | K200: 19.36373 | L200: 15.92328
B201: Kudowa-Zdrój | D201: 100 | E201: 54.79534 | F201: 0.52255 | G201: 13.47704 | H201: 22.98723 | I201: 21.95259 | J201: - | K201: 22.21743 | L201: 16.02298
B202: Nowa Ruda | D202: 100 | E202: 53.98559 | F202: 0.58933 | G202: 20.82991 | H202: 24.90372 | I202: 23.95513 | J202: - | K202: 21.11069 | L202: 12.43301
B203: Polanica-Zdrój | D203: 100 | E203: 67.31296 | F203: 0.57563 | G203: 19.65038 | H203: 19.96405 | I203: 19.96405 | J203: - | K203: 12.72299 | L203: 12.72299
B204: Gminy miejsko-wiejskie:
... 145 more rows

Sheet Tabl. 10.
B4: Tabl. 10. Dochody budżetów gmina według działów oraz podregionów i powiatów
B5: Revenue of gminas budgetsa by divisions as well as subregions and powiats
B6: WYSZCZEGÓLNIENIE SPECIFICATION | D6: Ogółem Total | E6: W tym Of which
E7: transport i łączność transport and communication | F7: gospodarka mieszkaniowa dwelling economy | G7: działalność usługowa service activity | H7: administracja publiczna public administration | I7: oświata i wychowanie education | J7: ochrona zdrowia health care | K7: pomoc społeczna social welfare | L7: gospodarka komunalna i ochrona środowiska municipal economy and environmental protection | M7: kultura i ochrona dziedzictwa narodowego culture and national heritage | N7: kultura fizyczna physical education
D9: w tys. zł in thous. zl
B10: O G Ó Ł E M | C10: 2015 | D10: 7075516.151 | E10: 224818.5719 | F10: 358061.3016 | G10: 8901.76737 | H10: 52133.25122 | I10: 190500.1968 | J10: 2459.56382 | K10: 683798.5121 | L10: 423657.3526 | M10: 49946.36401 | N10: 46121.18306
B11: T O T A L | C11: 2016 | D11: 7878055.419 | E11: 132270.2239 | F11: 376297.9906 | G11: 9648.76315 | H11: 61477.49367 | I11: 158688.8009 | J11: 4631.67303 | K11: 1574988.596 | L11: 364241.999 | M11: 10941.411 | N11: 40003.82892
B13: Gminy miejskie | D13: 2535907.802 | E13: 51383.47176 | F13: 202354.2425 | G13: 5661.49545 | H13: 19975.79979 | I13: 58316.40485 | J13: 802.01259 | K13: 464476.1574 | L13: 133668.5193 | M13: 1151.70941 | N13: 21983.64312
B14: Urban gminas
B15: Gminy miejsko-wiejskie | D15: 2936746.773 | E15: 40310.08763 | F15: 120469.7187 | G15: 2797.58472 | H15: 17977.7483 | I15: 58102.37003 | J15: 3334.37105 | K15: 620062.098 | L15: 125205.1354 | M15: 4514.94994 | N15: 10111.97586
B16: Urban-rural gminas
B17: Gminy wiejskie | D17: 2405400.844 | E17: 40576.66452 | F17: 53474.02943 | G17: 1189.68298 | H17: 23523.94558 | I17: 42270.02607 | J17: 495.28939 | K17: 490450.3404 | L17: 105368.3443 | M17: 5274.75165 | N17: 7908.20994
B18: Rural gminas
B19: PODREGION JELENIOGÓRSKI | D19: 1896452.643 | E19: 29027.24011 | F19: 90722.49126 | G19: 2899.09432 | H19: 11008.96492 | I19: 34105.84157 | J19: 212.80632 | K19: 399053.7557 | L19: 107444.9617 | M19: 2947.82437 | N19: 8812.05772
B20: SUBREGION
B21: POWIAT BOLESŁAWIECKI | D21: 356102.7573 | E21: 3134.36033 | F21: 21511.45277 | G21: 274.56507 | H21: 2134.99481 | I21: 6790.09724 | J21: 45.37181 | K21: 73859.91048 | L21: 18464.15937 | M21: 1060.02774 | N21: 2888.49392
B22: Gminy miejskie:
B23: Urban gminas:
B24: Bolesławiec | D24: 153495.3549 | E24: 395.77482 | F24: 18494.08867 | G24: 207.18471 | H24: 875.78671 | I24: 3673.87097 | J24: 5.92214 | K24: 28575.5933 | L24: 10645.999 | M24: - | N24: 1997.22606
B25: Gminy miejsko-wiejskie:
B26: Urban-rural gminas:
B27: Nowogrodziec | D27: 58681.12507 | E27: 11.62 | F27: 299.61447 | G27: 17.482 | H27: 275.85058 | I27: 955.95074 | J27: 1.01913 | K27: 13245.19331 | L27: 2093.28912 | M27: 26.10401 | N27: 83.48255
B28: Gminy wiejskie:
B29: Rural gminas:
B30: Bolesławiec | D30: 50523.74317 | E30: 160.02 | F30: 854.06615 | G30: 6.2436 | H30: 260.65998 | I30: 892.3637 | J30: 4.628 | K30: 11352.37944 | L30: 2694.88342 | M30: 996.34016 | N30: 170.27849
B31: Gromadka | D31: 25115.54087 | E31: 1650.70196 | F31: 1578.64278 | G31: 2.96296 | H31: 56.58706 | I31: 262.41832 | J31: 31.3919 | K31: 5495.84215 | L31: 728.4195 | M31: - | N31: 1.5
B32: Osiecznica | D32: 35031.5785 | E32: 705.65627 | F32: 155.15417 | G32: 24.3998 | H32: 481.35901 | I32: 420.99425 | J32: - | K32: 6911.22142 | L32: 869.66165 | M32: 11.06357 | N32: 635.99545
B33: Warta Bolesławiecka | D33: 33255.41472 | E33: 210.58728 | F33: 129.88653 | G33: 16.292 | H33: 184.75147 | I33: 584.49926 | J33: 2.41064 | K33: 8279.68086 | L33: 1431.90668 | M33: 26.52 | N33: 0.01137
B34: POWIAT JAWORSKI | D34: 184151.5706 | E34: 3499.67057 | F34: 6298.78074 | G34: 236.15655 | H34: 936.83498 | I34: 3142.38653 | J34: 8.80945 | K34: 41631.0838 | L34: 13374.09075 | M34: 112.40056 | N34: 66.36621
B35: Gminy miejskie:
B36: Urban gminas:
B37: Jawor | D37: 80793.83937 | E37: 15.35429 | F37: 3580.73673 | G37: 213.66396 | H37: 236.22001 | I37: 1924.16716 | J37: 5.73831 | K37: 16442.68709 | L37: 9004.11152 | M37: 0.41969 | N37: 1.98699
B38: Gminy miejsko-wiejskie:
B39: Urban-rural gminas:
B40: Bolków | D40: 35974.6826 | E40: 485.905 | F40: 817.93237 | G40: 1.2 | H40: 103.62669 | I40: 425.00552 | J40: 0.30471 | K40: 10267.96615 | L40: 1371.32437 | M40: - | N40: 30
B41: Gminy wiejskie:
B42: Rural gminas:
B43: Męcinka | D43: 18762.32602 | E43: 173.349 | F43: 378.97555 | G43: - | H43: 60.84374 | I43: 197.83882 | J43: 0.38798 | K43: 4376.60548 | L43: 520.97959 | M43: 37.79061 | N43: 3.23872
B44: Mściwojów | D44: 16597.26196 | E44: 1593.04153 | F44: 768.6801 | G44: - | H44: 46.10341 | I44: 112.1633 | J44: - | K44: 3469.92177 | L44: 595.63142 | M44: 13.68174 | N44: 1.1405
B45: Paszowice | D45: 15080.25837 | E45: 545.11323 | F45: 622.7871 | G45: 4.15 | H45: 36.92677 | I45: 172.39641 | J45: 0.19532 | K45: 3334.76976 | L45: 1310.94155 | M45: 49.626 | N45: -
B46: Wądroże Wielkie | D46: 16943.20228 | E46: 686.90752 | F46: 129.66889 | G46: 17.14259 | H46: 453.11436 | I46: 310.81532 | J46: 2.18313 | K46: 3739.13355 | L46: 571.1023 | M46: 10.88252 | N46: 30
B47: POWIAT JELENIOGÓRSKI | D47: 262144.4061 | E47: 6391.01037 | F47: 19806.69608 | G47: 562.9293 | H47: 1674.64452 | I47: 4100.34106 | J47: 65.65825 | K47: 53811.30791 | L47: 14214.76405 | M47: 138.23502 | N47: 99.22057
B48: Gminy miejskie:
B49: Urban gminas:
B50: Karpacz | D50: 33535.33363 | E50: 205.575 | F50: 3427.60443 | G50: 41.9038 | H50: 129.72925 | I50: 520.61356 | J50: - | K50: 2883.37953 | L50: 1731.34713 | M50: 20.07927 | N50: -
B51: Kowary | D51: 39800.98095 | E51: 369.563 | F51: 5502.13671 | G51: 154.96575 | H51: 248.56016 | I51: 599.65974 | J51: 7.14548 | K51: 10322.95062 | L51: 1662.62521 | M51: 4.00017 | N51: 23.6373
B52: Piechowice | D52: 23462.74571 | E52: 755.4664 | F52: 1172.97809 | G52: 135.624 | H52: 110.99293 | I52: 597.05236 | J52: - | K52: 5126.20238 | L52: 1281.73485 | M52: - | N52: 5.1
B53: Szklarska Poręba | D53: 35781.01829 | E53: 1738.7132 | F53: 5593.43687 | G53: 85.4467 | H53: 424.84355 | I53: 380.66028 | J53: 52.90069 | K53: 4438.72182 | L53: 1867.56829 | M53: 2.63991 | N53: -
B54: Gminy wiejskie:
B55: Rural gminas:
B56: Janowice Wielkie | D56: 14907.54698 | E56: 656.3521 | F56: 835.35405 | G56: 6.664 | H56: 76.15382 | I56: 145.00431 | J56: - | K56: 3167.3406 | L56: 664.05476 | M56: 1.67926 | N56: 8
B57: Jeżów Sudecki | D57: 26659.29025 | E57: 1024.6738 | F57: 189.70446 | G57: 0.5 | H57: 62.2275 | I57: 180.4305 | J57: 0.5 | K57: 6133.82977 | L57: 1985.26182 | M57: 6.22562 | N57: 44.324
B58: Mysłakowice | D58: 38387.1846 | E58: 331.7749 | F58: 1456.7024 | G58: 66.1888 | H58: 444.0727 | I58: 455.4722 | J58: 5.11208 | K58: 9158.10867 | L58: 2398.03383 | M58: - | N58: 18.11827
B59: Podgórzyn | D59: 28679.50406 | E59: 784.90594 | F59: 594.60563 | G59: 68.8584 | H59: 116.09252 | I59: 506.19103 | J59: - | K59: 7468.26437 | L59: 1879.09104 | M59: 2.00062 | N59: 0.041
B60: Stara Kamienica | D60: 20930.80164 | E60: 523.98603 | F60: 1034.17344 | G60: 2.77785 | H60: 61.97209 | I60: 715.25708 | J60: - | K60: 5112.51015 | L60: 745.04712 | M60: 101.61017 | N60: -
B61: POWIAT KAMIENNOGÓRSKI | D61: 156300.2192 | E61: 1516.01 | F61: 8093.72958 | G61: 262.05045 | H61: 1273.27653 | I61: 2391.97137 | J61: 12.588 | K61: 36745.87171 | L61: 7368.83514 | M61: 385.43385 | N61: 1329.18291
B62: Gminy miejskie:
B63: Urban gminas:
B64: Kamienna Góra | D64: 66867.84339 | E64: - | F64: 5689.44011 | G64: 227.76748 | H64: 438.42582 | I64: 1096.5582 | J64: 4.413 | K64: 15363.8094 | L64: 3336.78986 | M64: - | N64: 321.88291
B65: Gminy miejsko-wiejskie:
B66: Urban-rural gminas:
B67: Lubawka | D67: 35858.32225 | E67: 376.18272 | F67: 716.06898 | G67: 4.5 | H67: 198.02096 | I67: 519.12707 | J67: 7.62 | K67: 8311.38194 | L67: 1388.72822 | M67: 28.50966 | N67: 907.3
B68: Gminy wiejskie:
B69: Rural gminas:
B70: Kamienna Góra | D70: 36017.67634 | E70: 513.369 | F70: 1295.56243 | G70: 15.6644 | H70: 450.9201 | I70: 594.69755 | J70: 0.35 | K70: 8542.94909 | L70: 1911.43781 | M70: 349.26419 | N70: -
B71: Marciszów | D71: 17556.3772 | E71: 626.45828 | F71: 392.65806 | G71: 14.11857 | H71: 185.90965 | I71: 181.58855 | J71: 0.205 | K71: 4527.73128 | L71: 731.87925 | M71: 7.66 | N71: 100
B72: POWIAT LUBAŃSKI | D72: 211722.7226 | E72: 5579.02867 | F72: 13699.8552 | G72: 179.70311 | H72: 1210.44863 | I72: 4592.9684 | J72: 6.28278 | K72: 46241.31474 | L72: 12444.7838 | M72: 179.71584 | N72: 794.96224
B73: Gminy miejskie:
B74: Urban gminas:
B75: Lubań | D75: 71663.34653 | E75: 21.07772 | F75: 4535.72514 | G75: 12.72 | H75: 578.97611 | I75: 2234.41517 | J75: 3.1236 | K75: 14049.12114 | L75: 4697.62092 | M75: 47.834 | N75: 432.67458
B76: Świeradów-Zdrój | D76: 31947.94477 | E76: 1691.33345 | F76: 7130.59546 | G76: 19.69752 | H76: 136.4435 | I76: 652.49741 | J76: 0.39105 | K76: 3845.23652 | L76: 2373.61694 | M76: 5.9 | N76: -
B77: Gminy miejsko-wiejskie:
B78: Urban-rural gminas:
B79: Leśna | D79: 37382.74299 | E79: 1329.55985 | F79: 1064.49661 | G79: - | H79: 176.71452 | I79: 670.8542 | J79: 1.7677 | K79: 11237.22845 | L79: 1465.01839 | M79: 36.67948 | N79: 230.68144
B80: Olszyna | D80: 23674.53551 | E80: 1683.84425 | F80: 635.39988 | G80: - | H80: 162.61023 | I80: 340.18014 | J80: - | K80: 6375.42663 | L80: 1090.02184 | M80: 25.411 | N80: 100
B81: Gminy wiejskie:
B82: Rural gminas:
B83: Lubań | D83: 24766.05887 | E83: 697.0104 | F83: 78.8947 | G83: 74.26606 | H83: 66.80094 | I83: 330.06655 | J83: 0.82995 | K83: 5880.09589 | L83: 1058.49268 | M83: 59.41952 | N83: 0.91712
B84: Platerówka | D84: 6326.53705 | E84: 156.203 | F84: 30.06346 | G84: 3.65 | H84: 50.22809 | I84: 43.71306 | J84: - | K84: 1374.19246 | L84: 226.93425 | M84: 4.47184 | N84: -
B85: Siekierczyn | D85: 15961.55687 | E85: - | F85: 224.67995 | G85: 69.36953 | H85: 38.67524 | I85: 321.24187 | J85: 0.17048 | K85: 3480.01365 | L85: 1533.07878 | M85: - | N85: 30.6891
B86: POWIAT LWÓWECKI | D86: 159694.1401 | E86: 2341.9851 | F86: 4125.67386 | G86: 332.71106 | H86: 864.12209 | I86: 2856.11609 | J86: 50.72671 | K86: 40298.81052 | L86: 7257.85341 | M86: 571.45763 | N86: 95.25096
B87: Gminy miejsko-wiejskie:
B88: Urban-rural gminas:
B89: Gryfów Śląski | D89: 31465.71008 | E89: 961.47807 | F89: 674.14732 | G89: 0.8 | H89: 145.47447 | I89: 433.47586 | J89: 48.22964 | K89: 7931.90756 | L89: 2345.91662 | M89: 135.1144 | N89: 65.32874
B90: Lubomierz | D90: 24530.63523 | E90: 480.04068 | F90: 1231.73165 | G90: 1.5 | H90: 93.9898 | I90: 252.57739 | J90: - | K90: 5734.53837 | L90: 827.45139 | M90: 30.90558 | N90: 29.49769
B91: Lwówek Śląski | D91: 56786.72854 | E91: 526.45 | F91: 1134.18472 | G91: 148.76977 | H91: 400.91634 | I91: 1222.27297 | J91: 1.4814 | K91: 13852.64946 | L91: 2122.81029 | M91: 144.10615 | N91: -
B92: Mirsk | D92: 32089.04981 | E92: 334.373 | F92: 578.12426 | G92: 44.94562 | H92: 140.02062 | I92: 637.90469 | J92: - | K92: 9063.02164 | L92: 1463.89077 | M92: 20.13824 | N92: 0.42453
B93: Wleń | D93: 14822.01645 | E93: 39.64335 | F93: 507.48591 | G93: 136.69567 | H93: 83.72086 | I93: 309.88518 | J93: 1.01567 | K93: 3716.69349 | L93: 497.78434 | M93: 241.19326 | N93: -
B94: POWIAT ZGORZELECKI | D94: 397198.8726 | E94: 3654.66429 | F94: 8469.37505 | G94: 951.65246 | H94: 1703.89277 | I94: 6557.93624 | J94: 17.80081 | K94: 64201.59244 | L94: 26123.51756 | M94: 69.51172 | N94: 2961.05296
B95: Gminy miejskie:
B96: Urban gminas:
B97: Zawidów | D97: 15499.80654 | E97: 878.95 | F97: 332.77515 | G97: - | H97: 51.30956 | I97: 578.08688 | J97: 0.62096 | K97: 2352.90364 | L97: 815.19297 | M97: 4.89934 | N97: -
B98: Zgorzelec | D98: 101108.7048 | E98: 257.42751 | F98: 2104.38326 | G98: 776.15676 | H98: 812.47127 | I98: 2757.60599 | J98: 3.62 | K98: 17555.88449 | L98: 8517.92652 | M98: 30 | N98: 376.54304
B99: Gminy miejsko-wiejskie:
B100: Urban-rural gminas:
B101: Bogatynia | D101: 152723.7455 | E101: 1000.17835 | F101: 3896.4534 | G101: 1.47602 | H101: 433.43565 | I101: 1163.67231 | J101: 9.1 | K101: 17592.35058 | L101: 9167.46078 | M101: - | N101: 128.83869
B102: Pieńsk | D102: 30864.12464 | E102: 285.18 | F102: 1352.3716 | G102: 4 | H102: 140.11489 | I102: 391.75579 | J102: 2.28 | K102: 8294.30406 | L102: 1612.14911 | M102: 3.38535 | N102: 30
B103: Węgliniec | D103: 32710.30346 | E103: 355.54978 | F103: 171.63193 | G103: 91.20354 | H103: 122.51101 | I103: 469.45936 | J103: - | K103: 7087.09063 | L103: 2826.35566 | M103: 29.658 | N103: 19.40286
B104: Gminy wiejskie:
B105: Rural gminas:
B106: Sulików | D106: 24372.47012 | E106: 280.56 | F106: 187.23161 | G106: 78.81614 | H106: 62.54362 | I106: 472.06964 | J106: 0.91985 | K106: 5082.00681 | L106: 1040.53963 | M106: 1.56903 | N106: 203.56975
B107: Zgorzelec | D107: 39919.71752 | E107: 596.81865 | F107: 424.5281 | G107: - | H107: 81.50677 | I107: 725.28627 | J107: 1.26 | K107: 6237.05223 | L107: 2143.89289 | M107: - | N107: 2202.69862
B108: POWIAT ZŁOTORYJSKI | D108: 169137.9547 | E108: 2910.51078 | F108: 8716.92798 | G108: 99.32632 | H108: 1210.75059 | I108: 3674.02464 | J108: 5.56851 | K108: 42263.86409 | L108: 8196.95765 | M108: 431.04201 | N108: 577.52795
B109: Gminy miejskie:
B110: Urban gminas:
B111: Wojcieszów | D111: 15158.08482 | E111: 533.95715 | F111: 683.30218 | G111: 21.65545 | H111: 36.91707 | I111: 302.96536 | J111: 0.04901 | K111: 4145.34649 | L111: 1237.24292 | M111: - | N111: 109.26813
B112: Złotoryja | D112: 54462.73056 | E112: 140.26377 | F112: 6113.46841 | G112: 77.45487 | H112: 575.99999 | I112: 1373.88424 | J112: 1.79824 | K112: 11942.86932 | L112: 3188.25023 | M112: 10 | N112: 467.58332
B113: Gminy miejsko-wiejskie:
B114: Urban-rural gminas:
B115: Świerzawa | D115: 28331.62467 | E115: 610.50985 | F115: 232.13536 | G115: - | H115: 157.21396 | I115: 721.73128 | J115: - | K115: 8012.10507 | L115: 1094.78274 | M115: 207.29571 | N115: -
B116: Gminy wiejskie:
B117: Rural gminas:
B118: Pielgrzymka | D118: 19419.91637 | E118: 671.86557 | F118: 397.43652 | G118: 0.216 | H118: 136.4209 | I118: 777.51357 | J118: 0.69693 | K118: 5496.92251 | L118: 873.04368 | M118: 96.75516 | N118: -
B119: Zagrodno | D119: 20936.66394 | E119: 2.59043 | F119: 229.87754 | G119: - | H119: 117.4925 | I119: 145.24721 | J119: - | K119: 5244.93215 | L119: 719.78879 | M119: 64.60071 | N119: -
B120: Złotoryja | D120: 30828.9343 | E120: 951.32401 | F120: 1060.70797 | G120: - | H120: 186.70617 | I120: 352.68298 | J120: 3.02433 | K120: 7421.68855 | L120: 1083.84929 | M120: 52.39043 | N120: 0.6765
B121: PODREGION LEGNICKO-GŁOGOWSKI | D121: 1627080.253 | E121: 30779.58056 | F121: 49277.42747 | G121: 1671.61632 | H121: 21928.36775 | I121: 33984.16815 | J121: 3172.83869 | K121: 285253.4131 | L121: 64691.80077 | M121: 2092.15754 | N121: 2620.74861
B122: SUBREGION
B123: POWIAT GŁOGOWSKI | D123: 392279.8727 | E123: 8454.00081 | F123: 14621.60308 | G123: 84.82424 | H123: 1311.32209 | I123: 6212.73866 | J123: 591.95116 | K123: 66844.26208 | L123: 21633.30967 | M123: 564.53482 | N123: 129.34045
B124: Gminy miejskie:
B125: Urban gminas:
B126: Głogów | D126: 279662.4086 | E126: 4322.5356 | F126: 13800.4187 | G126: 64.88293 | H126: 953.86474 | I126: 4807.7217 | J126: 591.33023 | K126: 45891.49962 | L126: 16749.2838 | M126: 88.02613 | N126: 0.01169
B127: Gminy wiejskie:
B128: Rural gminas:
B129: Głogów | D129: 27966.86297 | E129: 151.2 | F129: 192.22138 | G129: 5.9337 | H129: 68.51212 | I129: 306.26348 | J129: 0.36148 | K129: 5584.25996 | L129: 2313.42296 | M129: - | N129: 61.16893
B130: Jerzmanowa | D130: 39173.45063 | E130: 1433.69774 | F130: 88.5645 | G130: 3.02799 | H130: 83.59624 | I130: 362.11188 | J130: - | K130: 4016.92939 | L130: 56.36216 | M130: 314.88716 | N130: 34.48289
B131: Kotla | D131: 18849.99035 | E131: 962.56098 | F131: 181.28775 | G131: 10.12962 | H131: 35.2165 | I131: 245.4108 | J131: 0.05878 | K131: 4471.70756 | L131: 1116.42562 | M131: 111.08227 | N131: 33
B132: Pęcław | D132: 8992.33099 | E132: 0.2259 | F132: 119.67809 | G132: - | H132: 120.62843 | I132: 103.70841 | J132: - | K132: 3232.83308 | L132: 15.50015 | M132: 6.50777 | N132: -
B133: Żukowice | D133: 17634.82913 | E133: 1583.78059 | F133: 239.43266 | G133: 0.85 | H133: 49.50406 | I133: 387.52239 | J133: 0.20067 | K133: 3647.03247 | L133: 1382.31498 | M133: 44.03149 | N133: 0.67694
B134: POWIAT GÓROWSKI | D134: 145291.5277 | E134: 724.20494 | F134: 3883.54181 | G134: 13.78862 | H134: 476.05974 | I134: 2102.59231 | J134: 6.66206 | K134: 44233.51084 | L134: 6302.71818 | M134: 199.88422 | N134: 607.1885
B135: Gminy miejsko-wiejskie:
B136: Urban-rural gminas:
B137: Góra | D137: 82130.22057 | E137: 482.72642 | F137: 2766.06917 | G137: 13.78862 | H137: 338.64447 | I137: 1168.34607 | J137: 2.66206 | K137: 25950.22047 | L137: 3794.19166 | M137: 42.9715 | N137: 577.96911
B138: Wąsosz | D138: 30064.68543 | E138: 88 | F138: 451.05103 | G138: - | H138: 68.38769 | I138: 392.93293 | J138: - | K138: 7874.50274 | L138: 1422.22671 | M138: 14.726 | N138: -
B139: Gminy wiejskie:
B140: Rural gminas:
B141: Jemielno | D141: 12448.43439 | E141: 7 | F141: 283.17428 | G141: - | H141: 30.16478 | I141: 152.0463 | J141: - | K141: 4445.37376 | L141: 399.45544 | M141: 28.792 | N141: -
B142: Niechlów | D142: 20648.18729 | E142: 146.47852 | F142: 383.24733 | G142: - | H142: 38.8628 | I142: 389.26701 | J142: 4 | K142: 5963.41387 | L142: 686.84437 | M142: 113.39472 | N142: 29.21939
B143: POWIAT LEGNICKI | D143: 222594.417 | E143: 1285.43995 | F143: 5367.69997 | G143: 216.88033 | H143: 9589.01977 | I143: 5589.94328 | J143: 5.12354 | K143: 48879.98026 | L143: 8759.19324 | M143: 105.9494 | N143: 60.87774
B144: Gminy miejskie:
B145: Urban gminas:
B146: Chojnów | D146: 53087.44088 | E146: - | F146: 1148.67804 | G146: 116.26782 | H146: 6154.40915 | I146: 3677.30842 | J146: - | K146: 10518.41001 | L146: 2186.12405 | M146: - | N146: -
B147: Gminy miejsko-wiejskie:
B148: Urban-rural gminas:
B149: Prochowice | D149: 28889.98349 | E149: 53.07031 | F149: 1200.21887 | G149: 58.89027 | H149: 57.24902 | I149: 385.87836 | J149: 2.23985 | K149: 6618.43939 | L149: 1100.14919 | M149: 47.75165 | N149: 23.635
B150: Gminy wiejskie:
B151: Rural gminas:
B152: Chojnów | D152: 37057.14971 | E152: 143.98916 | F152: 565.89042 | G152: - | H152: 2449.35032 | I152: 469.16341 | J152: 0.426 | K152: 10040.06911 | L152: 1296.1633 | M152: 57.4061 | N152: 4.61622
B153: Krotoszyce | D153: 13967.35896 | E153: 352.6635 | F153: 249.03448 | G153: - | H153: 46.10192 | I153: 177.05365 | J153: - | K153: 2764.33389 | L153: 591.65336 | M153: - | N153: 9.44
B154: Kunice | D154: 27355.59807 | E154: - | F154: 773.79695 | G154: 2.405 | H154: 43.76517 | I154: 319.76716 | J154: 0.95549 | K154: 5075.04356 | L154: 912.84565 | M154: - | N154: 23.18652
B155: Legnickie Pole | D155: 24968.98759 | E155: 450.52046 | F155: 198.07174 | G155: 39.31724 | H155: 37.91557 | I155: 246.53512 | J155: 0.28763 | K155: 4323.04397 | L155: 884.83321 | M155: - | N155: -
B156: Miłkowice | D156: 25188.82674 | E156: 112.6681 | F156: 992.08832 | G156: - | H156: 76.96942 | I156: 215.28427 | J156: 1.21457 | K156: 6219.54132 | L156: 938.38237 | M156: 0.79165 | N156: -
B157: Ruja | D157: 12079.07158 | E157: 172.52842 | F157: 239.92115 | G157: - | H157: 723.2592 | I157: 98.95289 | J157: - | K157: 3321.09901 | L157: 849.04211 | M157: - | N157: -
B158: POWIAT LUBIŃSKI | D158: 490576.6521 | E158: 12392.93822 | F158: 14476.73614 | G158: 1261.02702 | H158: 7544.67857 | I158: 11392.95745 | J158: 254.55274 | K158: 73492.76148 | L158: 23379.69795 | M158: 912.47013 | N158: 826.87627
B159: Gminy miejskie:
B160: Urban gminas:
B161: Lubin | D161: 323685.0771 | E161: 9512.1356 | F161: 11589.70551 | G161: 1108.56602 | H161: 1375.62913 | I161: 9177.71308 | J161: 33.65389 | K161: 46742.98281 | L161: 16204.37173 | M161: 529.57522 | N161: 0.03214
B162: Gminy miejsko-wiejskie:
B163: Urban-rural gminas:
B164: Ścinawa | D164: 39096.59977 | E164: 1667.91177 | F164: 489.63193 | G164: 7 | H164: 218.88691 | I164: 927.26268 | J164: 2.50069 | K164: 9773.7894 | L164: 1482.16044 | M164: 375.8848 | N164: 757.362
B165: Gminy wiejskie:
B166: Rural gminas:
B167: Lubin | D167: 73731.37866 | E167: 1212.89085 | F167: 937.91446 | G167: 145.461 | H167: 77.63765 | I167: 744.04692 | J167: 17.61944 | K167: 10242.74871 | L167: 2907.02515 | M167: 7.01011 | N167: 69.48213
B168: Rudna | D168: 54063.59655 | E168: - | F168: 1459.48424 | G168: - | H168: 5872.52488 | I168: 543.93477 | J168: 200.77872 | K168: 6733.24056 | L168: 2786.14063 | M168: - | N168: -
B169: POWIAT POLKOWICKI | D169: 376337.7838 | E169: 7922.99664 | F169: 10927.84647 | G169: 95.09611 | H169: 3007.28758 | I169: 8685.93645 | J169: 2314.54919 | K169: 51802.89848 | L169: 4616.88173 | M169: 309.31897 | N169: 996.46565
B170: Gminy miejsko-wiejskie:
B171: Urban-rural gminas:
B172: Chocianów | D172: 44839.9526 | E172: 8.4239 | F172: 667.28732 | G172: 7.616 | H172: 150.65648 | I172: 3177.84762 | J172: 1.11468 | K172: 10366.51125 | L172: 49.00282 | M172: 0.8 | N172: 307.88342
B173: Polkowice | D173: 217217.0443 | E173: 2828.8022 | F173: 5846.73667 | G173: 40.06436 | H173: 821.74377 | I173: 4017.90023 | J173: 2311.40294 | K173: 20065.56381 | L173: 1714.15582 | M173: 223.83147 | N173: 353.64735
B174: Przemków | D174: 31488.30007 | E174: 177.68142 | F174: 478.19043 | G174: 19.6 | H174: 88.9304 | I174: 378.91977 | J174: 0.68894 | K174: 7966.8514 | L174: 1789.20643 | M174: 8.98097 | N174: -
B175: Gminy wiejskie:
B176: Rural gminas:
B177: Gaworzyce | D177: 16393.23903 | E177: 1450.36311 | F177: 295.19637 | G177: - | H177: 39.95765 | I177: 144.72977 | J177: 0.42668 | K177: 4116.92126 | L177: 539.4844 | M177: 30.39003 | N177: 220.22998
B178: Grębocice | D178: 40157.86351 | E178: 2542.50219 | F178: 3454.38025 | G178: 5.81575 | H178: 41.20618 | I178: 684.46402 | J178: 0.43691 | K178: 5019.71255 | L178: 63.37355 | M178: 3.49612 | N178: 110.7049
B179: Radwanice | D179: 26241.38433 | E179: 915.22382 | F179: 186.05543 | G179: 22 | H179: 1864.7931 | I179: 282.07504 | J179: 0.47904 | K179: 4267.33821 | L179: 461.65871 | M179: 41.82038 | N179: 4
B180: PODREGION WAŁBRZYSKI | D180: 1990339.045 | E180: 48762.87459 | F180: 137955.7689 | G180: 3582.64072 | H180: 15650.11763 | I180: 40542.08412 | J180: 294.70803 | K180: 423313.5533 | L180: 90690.62084 | M180: 3715.79329 | N180: 20576.93033
B181: SUBREGION
B182: POWIAT DZIERŻONIOWSKI | D182: 353861.8471 | E182: 17754.31439 | F182: 28129.93948 | G182: 205.33382 | H182: 1324.54926 | I182: 5935.73526 | J182: 34.33552 | K182: 80518.63701 | L182: 13789.98688 | M182: 437.4505 | N182: 627.99675
B183: Gminy miejskie:
B184: Urban gminas:
B185: Bielawa | D185: 116962.5068 | E185: 11107.45516 | F185: 13788.52902 | G185: 89.8242 | H185: 272.74546 | I185: 1553.69929 | J185: 6.413 | K185: 22203.24842 | L185: 7926.30546 | M185: - | N185: 2.8102
B186: Dzierżoniów | D186: 113848.0183 | E186: 3742.25539 | F186: 10116.81546 | G186: 69.39244 | H186: 502.74792 | I186: 2293.22734 | J186: 16.751 | K186: 25600.18087 | L186: 1950.48151 | M186: 120.49 | N186: 73.81753
B187: Piława Górna | D187: 21320.52556 | E187: 260.65434 | F187: 1417.38877 | G187: 11.6275 | H187: 54.83357 | I187: 273.77358 | J187: - | K187: 5582.42886 | L187: 1195.04629 | M187: - | N187: 505.74159
B188: Gminy miejsko-wiejskie:
B189: Urban-rural gminas:
B190: Niemcza | D190: 17260.12105 | E190: 524.03577 | F190: 565.75818 | G190: 17.20373 | H190: 100.58907 | I190: 250.35584 | J190: 0.69314 | K190: 4625.38782 | L190: 10.49769 | M190: 10 | N190: 21.096
B191: Pieszyce | D191: 28790.37365 | E191: 239.107 | F191: 1003.55746 | G191: 1 | H191: 205.06655 | I191: 467.4788 | J191: 5.907 | K191: 8528.76665 | L191: 1361.93754 | M191: 270.0096 | N191: 9.531
B192: Gminy wiejskie:
B193: Rural gminas:
B194: Dzierżoniów | D194: 30301.79948 | E194: 1705.27699 | F194: 914.63127 | G194: 1.9 | H194: 122.36706 | I194: 584.23375 | J194: 2.26502 | K194: 7873.80875 | L194: 511.92926 | M194: 36.9509 | N194: 15.00043
B195: Łagiewniki | D195: 25378.50234 | E195: 175.52974 | F195: 323.25932 | G195: 14.38595 | H195: 66.19963 | I195: 512.96666 | J195: 2.30636 | K195: 6104.81564 | L195: 833.78913 | M195: - | N195: -
B196: POWIAT KŁODZKI | D196: 605590.4377 | E196: 8649.8559 | F196: 54420.04571 | G196: 1001.26893 | H196: 4610.37452 | I196: 13215.94146 | J196: 26.22934 | K196: 123948.1953 | L196: 28727.929 | M196: 941.40645 | N196: 11875.49696
B197: Gminy miejskie:
B198: Urban gminas:
B199: Duszniki-Zdrój | D199: 30059.83582 | E199: 4.84102 | F199: 2156.96133 | G199: 41.85 | H199: 154.4951 | I199: 553.68792 | J199: - | K199: 3083.50819 | L199: 589.84696 | M199: - | N199: 9500
B200: Kłodzko | D200: 95291.02709 | E200: 165 | F200: 7749.97529 | G200: 265.75048 | H200: 927.97397 | I200: 3266.1646 | J200: 5.67042 | K200: 20836.53028 | L200: 4978.78736 | M200: 110 | N200: 0.2
B201: Kudowa-Zdrój | D201: 38375.8032 | E201: 435.88784 | F201: 4065.61924 | G201: 111.17146 | H201: 94.70026 | I201: 675.87085 | J201: 1.96214 | K201: 6055.54587 | L201: 2498.8087 | M201: 31.37252 | N201: 4.4642
B202: Nowa Ruda | D202: 72837.78369 | E202: 670.21199 | F202: 8127.39421 | G202: 296.35434 | H202: 586.79284 | I202: 995.69069 | J202: 4.0465 | K202: 16138.7858 | L202: 3504.52463 | M202: - | N202: 566.54657
B203: Polanica-Zdrój | D203: 27212.80696 | E203: - | F203: 3102.13936 | G203: 40.64634 | H203: 138.93225 | I203: 848.76255 | J203: 7.86222 | K203: 4061.21535 | L203: 1336.05806 | M203: 2.23315 | N203: 38.2927
B204: Gminy miejsko-wiejskie:
B205: Urban-rural gminas:
... 144 more rows

Sheet Tabl. 11.
B4: Tabl. 11. Struktura dochodów budżetów gmina według działów oraz podregionów i powiatów
B5: Structure of revenue of gminas budgetsa by divisions as well as subregions and powiats
B6: WYSZCZEGÓLNIENIE SPECIFICATION | D6: Ogółem Total | E6: W tym Of which
E7: transport i łączność transport and communication | F7: gospodarka mieszkaniowa dwelling economy | G7: działalność usługowa service activity | H7: administracja publiczna public administration | I7: oświata i wychowanie education | J7: ochrona zdrowia health care | K7: pomoc społeczna social welfare | L7: gospodarka komunalna i ochrona środowiska municipal economy and environmental protection | M7: kultura i ochrona dziedzictwa narodowego culture and national heritage | N7: kultura fizyczna physical education
D9: w % in %
B10: O G Ó Ł E M | C10: 2015 | D10: 100 | E10: 3.177415853 | F10: 5.060567935 | G10: 0.1258108551 | H10: 0.7368119881 | I10: 2.692385866 | J10: 0.03476161693 | K10: 9.664291587 | L10: 5.987652966 | M10: 0.7059041764 | N10: 0.6518419586
B11: T O T A L | C11: 2016 | D11: 100 | E11: 1.67897 | F11: 4.776533 | G11: 0.122476 | H11: 0.780363 | I11: 2.014314 | J11: 0.058792 | K11: 19.992098 | L11: 4.623501 | M11: 0.138884 | N11: 0.507788
B13: Gminy miejskie | D13: 100 | E13: 2.026235 | F13: 7.979558 | G13: 0.223253 | H13: 0.787717 | I13: 2.299626 | J13: 0.031626 | K13: 18.315971 | L13: 5.271032 | M13: 0.045416 | N13: 0.866894
B14: Urban gminas
B15: Gminy miejsko-wiejskie | D15: 100 | E15: 1.37261 | F15: 4.102148 | G15: 0.095261 | H15: 0.612165 | I15: 1.97846 | J15: 0.113539 | K15: 21.11391 | L15: 4.263395 | M15: 0.153739 | N15: 0.344325
B16: Urban-rural gminas
B17: Gminy wiejskie | D17: 100 | E17: 1.686898 | F17: 2.223081 | G17: 0.049458 | H17: 0.977963 | I17: 1.757296 | J17: 0.02059 | K17: 20.389547 | L17: 4.38049 | M17: 0.219287 | N17: 0.328768
B18: Rural gminas
B19: PODREGION JELENIOGÓRSKI | D19: 100 | E19: 1.530607 | F19: 4.783799 | G19: 0.152869 | H19: 0.580503 | I19: 1.798401 | J19: 0.011221 | K19: 21.042115 | L19: 5.665575 | M19: 0.155438 | N19: 0.46466
B20: SUBREGION
B21: POWIAT BOLESŁAWIECKI | D21: 100 | E21: 0.880184 | F21: 6.040799 | G21: 0.077102 | H21: 0.599544 | I21: 1.90678 | J21: 0.012741 | K21: 20.741179 | L21: 5.185064 | M21: 0.297674 | N21: 0.81114
B22: Gminy miejskie:
B23: Urban gminas:
B24: Bolesławiec | D24: 100 | E24: 0.257841 | F24: 12.04863 | G24: 0.134977 | H24: 0.570562 | I24: 2.393473 | J24: 0.003858 | K24: 18.616585 | L24: 6.935714 | M24: - | N24: 1.301163
B25: Gminy miejsko-wiejskie:
B26: Urban-rural gminas:
B27: Nowogrodziec | D27: 100 | E27: 0.019801 | F27: 0.51058 | G27: 0.029791 | H27: 0.470084 | I27: 1.62906 | J27: 0.001736 | K27: 22.571471 | L27: 3.567227 | M27: 0.044484 | N27: 0.142264
B28: Gminy wiejskie:
B29: Rural gminas:
B30: Bolesławiec | D30: 100 | E30: 0.316722 | F30: 1.690425 | G30: 0.012357 | H30: 0.515915 | I30: 1.766226 | J30: 0.00916 | K30: 22.469395 | L30: 5.333895 | M30: 1.972023 | N30: 0.337026
B31: Gromadka | D31: 100 | E31: 6.572432 | F31: 6.285521 | G31: 0.011797 | H31: 0.225306 | I31: 1.044844 | J31: 0.124989 | K31: 21.882236 | L31: 2.900273 | M31: - | N31: 0.005972
B32: Osiecznica | D32: 100 | E32: 2.014343 | F32: 0.442898 | G32: 0.06965 | H32: 1.374071 | I32: 1.201756 | J32: - | K32: 19.728546 | L32: 2.482507 | M32: 0.031581 | N32: 1.815491
B33: Warta Bolesławiecka | D33: 100 | E33: 0.633242 | F33: 0.390572 | G33: 0.04899 | H33: 0.555553 | I33: 1.757606 | J33: 0.007248 | K33: 24.897241 | L33: 4.305785 | M33: 0.079746 | N33: 3.4e-05
B34: POWIAT JAWORSKI | D34: 100 | E34: 1.900429 | F34: 3.420432 | G34: 0.12824 | H34: 0.50873 | I34: 1.706413 | J34: 0.004783 | K34: 22.606966 | L34: 7.262545 | M34: 0.061036 | N34: 0.036038
B35: Gminy miejskie:
B36: Urban gminas:
B37: Jawor | D37: 100 | E37: 0.019004 | F37: 4.431942 | G37: 0.264455 | H37: 0.292373 | I37: 2.381576 | J37: 0.007102 | K37: 20.351411 | L37: 11.144552 | M37: 0.000519 | N37: 0.002459
B38: Gminy miejsko-wiejskie:
B39: Urban-rural gminas:
B40: Bolków | D40: 100 | E40: 1.350685 | F40: 2.273633 | G40: 0.003335 | H40: 0.288054 | I40: 1.181401 | J40: 0.000847 | K40: 28.5422 | L40: 3.811915 | M40: - | N40: 0.083391
B41: Gminy wiejskie:
B42: Rural gminas:
B43: Męcinka | D43: 100 | E43: 0.92392 | F43: 2.019875 | G43: - | H43: 0.324286 | I43: 1.054447 | J43: 0.002067 | K43: 23.326561 | L43: 2.776732 | M43: 0.201417 | N43: 0.017261
B44: Mściwojów | D44: 100 | E44: 9.598218 | F44: 4.631366 | G44: - | H44: 0.277777 | I44: 0.675793 | J44: - | K44: 20.906591 | L44: 3.588733 | M44: 0.082433 | N44: 0.006871
B45: Paszowice | D45: 100 | E45: 3.614747 | F45: 4.129817 | G45: 0.027519 | H45: 0.244868 | I45: 1.143192 | J45: 0.001295 | K45: 22.113478 | L45: 8.693097 | M45: 0.329079 | N45: -
B46: Wądroże Wielkie | D46: 100 | E46: 4.054177 | F46: 0.765315 | G46: 0.101176 | H46: 2.674313 | I46: 1.834454 | J46: 0.012884 | K46: 22.068635 | L46: 3.370686 | M46: 0.064229 | N46: 0.177062
B47: POWIAT JELENIOGÓRSKI | D47: 100 | E47: 2.437973 | F47: 7.555643 | G47: 0.21474 | H47: 0.638825 | I47: 1.564153 | J47: 0.025046 | K47: 20.527353 | L47: 5.422493 | M47: 0.052732 | N47: 0.037849
B48: Gminy miejskie:
B49: Urban gminas:
B50: Karpacz | D50: 100 | E50: 0.61301 | F50: 10.220874 | G50: 0.124954 | H50: 0.386843 | I50: 1.552432 | J50: - | K50: 8.598034 | L50: 5.162755 | M50: 0.059874 | N50: -
B51: Kowary | D51: 100 | E51: 0.928527 | F51: 13.824123 | G51: 0.389351 | H51: 0.624507 | I51: 1.506645 | J51: 0.017953 | K51: 25.936422 | L51: 4.177347 | M51: 0.01005 | N51: 0.059388
B52: Piechowice | D52: 100 | E52: 3.219855 | F52: 4.999321 | G52: 0.578039 | H52: 0.47306 | I52: 2.544682 | J52: - | K52: 21.848262 | L52: 5.462851 | M52: - | N52: 0.021736
B53: Szklarska Poręba | D53: 100 | E53: 4.859317 | F53: 15.632413 | G53: 0.238804 | H53: 1.187343 | I53: 1.06386 | J53: 0.147845 | K53: 12.405241 | L53: 5.219438 | M53: 0.007377 | N53: -
B54: Gminy wiejskie:
B55: Rural gminas:
B56: Janowice Wielkie | D56: 100 | E56: 4.402817 | F56: 5.603564 | G56: 0.044702 | H56: 0.51084 | I56: 0.97269 | J56: - | K56: 21.246557 | L56: 4.454487 | M56: 0.011264 | N56: 0.053664
B57: Jeżów Sudecki | D57: 100 | E57: 3.843589 | F57: 0.711588 | G57: 0.001875 | H57: 0.233417 | I57: 0.676801 | J57: 0.001875 | K57: 23.008226 | L57: 7.446791 | M57: 0.023352 | N57: 0.16626
B58: Mysłakowice | D58: 100 | E58: 0.864285 | F58: 3.794762 | G58: 0.172424 | H58: 1.156825 | I58: 1.186521 | J58: 0.013317 | K58: 23.857203 | L58: 6.246964 | M58: - | N58: 0.047198
B59: Podgórzyn | D59: 100 | E59: 2.736818 | F59: 2.073277 | G59: 0.240096 | H59: 0.404792 | I59: 1.764992 | J59: - | K59: 26.040423 | L59: 6.552034 | M59: 0.006975 | N59: 0.000142
B60: Stara Kamienica | D60: 100 | E60: 2.50342 | F60: 4.940916 | G60: 0.013271 | H60: 0.29608 | I60: 3.417246 | J60: - | K60: 24.425773 | L60: 3.559572 | M60: 0.485457 | N60: -
B61: POWIAT KAMIENNOGÓRSKI | D61: 100 | E61: 0.969934 | F61: 5.178322 | G61: 0.167658 | H61: 0.814635 | I61: 1.530369 | J61: 0.008053 | K61: 23.509801 | L61: 4.714539 | M61: 0.246598 | N61: 0.850403
B62: Gminy miejskie:
B63: Urban gminas:
B64: Kamienna Góra | D64: 100 | E64: - | F64: 8.508484 | G64: 0.340623 | H64: 0.65566 | I64: 1.639888 | J64: 0.006599 | K64: 22.976379 | L64: 4.990126 | M64: - | N64: 0.481371
B65: Gminy miejsko-wiejskie:
B66: Urban-rural gminas:
B67: Lubawka | D67: 100 | E67: 1.04908 | F67: 1.996939 | G67: 0.012549 | H67: 0.552231 | I67: 1.447717 | J67: 0.02125 | K67: 23.17839 | L67: 3.872819 | M67: 0.079506 | N67: 2.530235
B68: Gminy wiejskie:
B69: Rural gminas:
B70: Kamienna Góra | D70: 100 | E70: 1.425325 | F70: 3.597018 | G70: 0.04349 | H70: 1.251941 | I70: 1.651126 | J70: 0.000971 | K70: 23.718767 | L70: 5.306943 | M70: 0.969702 | N70: -
B71: Marciszów | D71: 100 | E71: 3.568266 | F71: 2.236555 | G71: 0.080418 | H71: 1.058929 | I71: 1.034316 | J71: 0.001167 | K71: 25.789667 | L71: 4.168737 | M71: 0.04363 | N71: 0.569593
B72: POWIAT LUBAŃSKI | D72: 100 | E72: 2.635063 | F72: 6.470658 | G72: 0.084876 | H72: 0.571714 | I72: 2.169331 | J72: 0.002967 | K72: 21.840506 | L72: 5.877868 | M72: 0.084882 | N72: 0.375473
B73: Gminy miejskie:
B74: Urban gminas:
B75: Lubań | D75: 100 | E75: 0.029412 | F75: 6.329212 | G75: 0.017749 | H75: 0.807911 | I75: 3.117933 | J75: 0.004358 | K75: 19.604333 | L75: 6.555123 | M75: 0.066748 | N75: 0.603759
B76: Świeradów-Zdrój | D76: 100 | E76: 5.294028 | F76: 22.319418 | G76: 0.061655 | H76: 0.42708 | I76: 2.042376 | J76: 0.001224 | K76: 12.035943 | L76: 7.429638 | M76: 0.018467 | N76: -
B77: Gminy miejsko-wiejskie:
B78: Urban-rural gminas:
B79: Leśna | D79: 100 | E79: 3.556613 | F79: 2.847561 | G79: - | H79: 0.472716 | I79: 1.794555 | J79: 0.004728 | K79: 30.059935 | L79: 3.918969 | M79: 0.098118 | N79: 0.61708
B80: Olszyna | D80: 100 | E80: 7.11247 | F80: 2.683895 | G80: - | H80: 0.686857 | I80: 1.436903 | J80: - | K80: 26.929468 | L80: 4.604195 | M80: 0.107334 | N80: 0.422394
B81: Gminy wiejskie:
B82: Rural gminas:
B83: Lubań | D83: 100 | E83: 2.814377 | F83: 0.318559 | G83: 0.29987 | H83: 0.269727 | I83: 1.332737 | J83: 0.003351 | K83: 23.742557 | L83: 4.273964 | M83: 0.239923 | N83: 0.003703
B84: Platerówka | D84: 100 | E84: 2.469012 | F84: 0.475196 | G84: 0.057693 | H84: 0.793927 | I84: 0.690947 | J84: - | K84: 21.721084 | L84: 3.587021 | M84: 0.070683 | N84: -
B85: Siekierczyn | D85: 100 | E85: - | F85: 1.407631 | G85: 0.434603 | H85: 0.242302 | I85: 2.012597 | J85: 0.001068 | K85: 21.80247 | L85: 9.604819 | M85: - | N85: 0.192268
B86: POWIAT LWÓWECKI | D86: 100 | E86: 1.466544 | F86: 2.583484 | G86: 0.208342 | H86: 0.54111 | I86: 1.788491 | J86: 0.031764 | K86: 25.234996 | L86: 4.544846 | M86: 0.357845 | N86: 0.059645
B87: Gminy miejsko-wiejskie:
B88: Urban-rural gminas:
B89: Gryfów Śląski | D89: 100 | E89: 3.055637 | F89: 2.142482 | G89: 0.002542 | H89: 0.462326 | I89: 1.377613 | J89: 0.153276 | K89: 25.208099 | L89: 7.45547 | M89: 0.429402 | N89: 0.207618
B90: Lubomierz | D90: 100 | E90: 1.956902 | F90: 5.021197 | G90: 0.006114 | H90: 0.383152 | I90: 1.02964 | J90: - | K90: 23.377047 | L90: 3.373134 | M90: 0.125987 | N90: 0.120248
B91: Lwówek Śląski | D91: 100 | E91: 0.927065 | F91: 1.99727 | G91: 0.261979 | H91: 0.706003 | I91: 2.152391 | J91: 0.002608 | K91: 24.394167 | L91: 3.738215 | M91: 0.253767 | N91: -
B92: Mirsk | D92: 100 | E92: 1.042015 | F92: 1.801624 | G92: 0.140065 | H92: 0.43635 | I92: 1.98792 | J92: - | K92: 28.243346 | L92: 4.561963 | M92: 0.062757 | N92: 0.001322
B93: Wleń | D93: 100 | E93: 0.267462 | F93: 3.423865 | G93: 0.922247 | H93: 0.564841 | I93: 2.090708 | J93: 0.006852 | K93: 25.075491 | L93: 3.358411 | M93: 1.627263 | N93: -
B94: POWIAT ZGORZELECKI | D94: 100 | E94: 0.920109 | F94: 2.132275 | G94: 0.23959 | H94: 0.428977 | I94: 1.651046 | J94: 0.004481 | K94: 16.163588 | L94: 6.576936 | M94: 0.0175 | N94: 0.745483
B95: Gminy miejskie:
B96: Urban gminas:
B97: Zawidów | D97: 100 | E97: 5.670715 | F97: 2.146963 | G97: - | H97: 0.331033 | I97: 3.729639 | J97: 0.004006 | K97: 15.180212 | L97: 5.259375 | M97: 0.031609 | N97: -
B98: Zgorzelec | D98: 100 | E98: 0.254604 | F98: 2.081307 | G98: 0.767645 | H98: 0.803562 | I98: 2.727367 | J98: 0.00358 | K98: 17.363375 | L98: 8.424523 | M98: 0.029671 | N98: 0.372414
B99: Gminy miejsko-wiejskie:
B100: Urban-rural gminas:
B101: Bogatynia | D101: 100 | E101: 0.654893 | F101: 2.551308 | G101: 0.000966 | H101: 0.283803 | I101: 0.761945 | J101: 0.005958 | K101: 11.519067 | L101: 6.002642 | M101: - | N101: 0.08436
B102: Pieńsk | D102: 100 | E102: 0.923985 | F102: 4.381694 | G102: 0.01296 | H102: 0.453973 | I102: 1.269291 | J102: 0.007387 | K102: 26.873608 | L102: 5.223375 | M102: 0.010968 | N102: 0.0972
B103: Węgliniec | D103: 100 | E103: 1.086965 | F103: 0.524702 | G103: 0.278822 | H103: 0.374533 | I103: 1.435203 | J103: - | K103: 21.666233 | L103: 8.640566 | M103: 0.090668 | N103: 0.059317
B104: Gminy wiejskie:
B105: Rural gminas:
B106: Sulików | D106: 100 | E106: 1.151134 | F106: 0.768209 | G106: 0.323381 | H106: 0.256615 | I106: 1.936896 | J106: 0.003774 | K106: 20.851422 | L106: 4.269323 | M106: 0.006437 | N106: 0.835244
B107: Zgorzelec | D107: 100 | E107: 1.495047 | F107: 1.063454 | G107: - | H107: 0.204176 | I107: 1.816862 | J107: 0.003156 | K107: 15.623988 | L107: 5.370511 | M107: - | N107: 5.517821
B108: POWIAT ZŁOTORYJSKI | D108: 100 | E108: 1.720791 | F108: 5.153738 | G108: 0.058725 | H108: 0.715836 | I108: 2.172205 | J108: 0.003292 | K108: 24.987806 | L108: 4.846314 | M108: 0.254846 | N108: 0.341453
B109: Gminy miejskie:
B110: Urban gminas:
B111: Wojcieszów | D111: 100 | E111: 3.522589 | F111: 4.507839 | G111: 0.142864 | H111: 0.243547 | I111: 1.998704 | J111: 0.000323 | K111: 27.347429 | L111: 8.162264 | M111: - | N111: 0.720857
B112: Złotoryja | D112: 100 | E112: 0.25754 | F112: 11.225049 | G112: 0.142216 | H112: 1.057603 | I112: 2.522613 | J112: 0.003301 | K112: 21.928517 | L112: 5.854003 | M112: 0.018361 | N112: 0.858538
B113: Gminy miejsko-wiejskie:
B114: Urban-rural gminas:
B115: Świerzawa | D115: 100 | E115: 2.15487 | F115: 0.81935 | G115: - | H115: 0.554906 | I115: 2.54744 | J115: - | K115: 28.279723 | L115: 3.864172 | M115: 0.731676 | N115: -
B116: Gminy wiejskie:
B117: Rural gminas:
B118: Pielgrzymka | D118: 100 | E118: 3.459672 | F118: 2.04654 | G118: 0.001112 | H118: 0.702479 | I118: 4.003691 | J118: 0.003588 | K118: 28.305593 | L118: 4.495609 | M118: 0.498226 | N118: -
B119: Zagrodno | D119: 100 | E119: 0.012372 | F119: 1.097966 | G119: - | H119: 0.56118 | I119: 0.693745 | J119: - | K119: 25.051422 | L119: 3.437934 | M119: 0.308553 | N119: -
B120: Złotoryja | D120: 100 | E120: 3.085815 | F120: 3.440624 | G120: - | H120: 0.605619 | I120: 1.143999 | J120: 0.00981 | K120: 24.073775 | L120: 3.515688 | M120: 0.169939 | N120: 0.002194
B121: PODREGION LEGNICKO-GŁOGOWSKI | D121: 100 | E121: 1.891706 | F121: 3.02858 | G121: 0.102737 | H121: 1.347712 | I121: 2.088659 | J121: 0.195001 | K121: 17.531612 | L121: 3.975944 | M121: 0.128583 | N121: 0.16107
B122: SUBREGION
B123: POWIAT GŁOGOWSKI | D123: 100 | E123: 2.155094 | F123: 3.727339 | G123: 0.021623 | H123: 0.334282 | I123: 1.583751 | J123: 0.1509 | K123: 17.039941 | L123: 5.514764 | M123: 0.143911 | N123: 0.032971
B124: Gminy miejskie:
B125: Urban gminas:
B126: Głogów | D126: 100 | E126: 1.545626 | F126: 4.93467 | G126: 0.0232 | H126: 0.341077 | I126: 1.719116 | J126: 0.211444 | K126: 16.409606 | L126: 5.989108 | M126: 0.031475 | N126: 4e-06
B127: Gminy wiejskie:
B128: Rural gminas:
B129: Głogów | D129: 100 | E129: 0.540639 | F129: 0.687318 | G129: 0.021216 | H129: 0.244976 | I129: 1.095094 | J129: 0.001292 | K129: 19.967416 | L129: 8.272014 | M129: - | N129: 0.218719
B130: Jerzmanowa | D130: 100 | E130: 3.65987 | F130: 0.226082 | G130: 0.007729 | H130: 0.2134 | I130: 0.92438 | J130: - | K130: 10.254213 | L130: 0.143878 | M130: 0.803827 | N130: 0.088026
B131: Kotla | D131: 100 | E131: 5.106426 | F131: 0.961739 | G131: 0.053738 | H131: 0.186825 | I131: 1.301914 | J131: 0.000311 | K131: 23.722598 | L131: 5.922685 | M131: 0.589296 | N131: 0.175066
B132: Pęcław | D132: 100 | E132: 0.002512 | F132: 1.33089 | G132: - | H132: 1.341458 | I132: 1.153298 | J132: - | K132: 35.951001 | L132: 0.17237 | M132: 0.07237 | N132: -
B133: Żukowice | D133: 100 | E133: 8.98098 | F133: 1.357725 | G133: 0.00482 | H133: 0.280717 | I133: 2.197483 | J133: 0.001137 | K133: 20.680849 | L133: 7.83855 | M133: 0.249684 | N133: 0.003838
B134: POWIAT GÓROWSKI | D134: 100 | E134: 0.498449 | F134: 2.67293 | G134: 0.00949 | H134: 0.327658 | I134: 1.447154 | J134: 0.004585 | K134: 30.444659 | L134: 4.33798 | M134: 0.137574 | N134: 0.41791
B135: Gminy miejsko-wiejskie:
B136: Urban-rural gminas:
B137: Góra | D137: 100 | E137: 0.587757 | F137: 3.367906 | G137: 0.016788 | H137: 0.412326 | I137: 1.422553 | J137: 0.003241 | K137: 31.596433 | L137: 4.619726 | M137: 0.052321 | N137: 0.703722
B138: Wąsosz | D138: 100 | E138: 0.292702 | F138: 1.500268 | G138: - | H138: 0.227468 | I138: 1.306958 | J138: - | K138: 26.191868 | L138: 4.730555 | M138: 0.048981 | N138: -
B139: Gminy wiejskie:
B140: Rural gminas:
B141: Jemielno | D141: 100 | E141: 0.056231 | F141: 2.274778 | G141: - | H141: 0.242317 | I141: 1.221409 | J141: - | K141: 35.710303 | L141: 3.20888 | M141: 0.23129 | N141: -
B142: Niechlów | D142: 100 | E142: 0.709401 | F142: 1.856082 | G142: - | H142: 0.188214 | I142: 1.885235 | J142: 0.019372 | K142: 28.881052 | L142: 3.326414 | M142: 0.549175 | N142: 0.14151
B143: POWIAT LEGNICKI | D143: 100 | E143: 0.57748 | F143: 2.411426 | G143: 0.097432 | H143: 4.307843 | I143: 2.511268 | J143: 0.002301 | K143: 21.959212 | L143: 3.935046 | M143: 0.047597 | N143: 0.027349
B144: Gminy miejskie:
B145: Urban gminas:
B146: Chojnów | D146: 100 | E146: - | F146: 2.163747 | G146: 0.219011 | H146: 11.592966 | I146: 6.926889 | J146: - | K146: 19.813367 | L146: 4.117968 | M146: - | N146: -
B147: Gminy miejsko-wiejskie:
B148: Urban-rural gminas:
B149: Prochowice | D149: 100 | E149: 0.183697 | F149: 4.154446 | G149: 0.203843 | H149: 0.198162 | I149: 1.335682 | J149: 0.007753 | K149: 22.909114 | L149: 3.808064 | M149: 0.165287 | N149: 0.08181
B150: Gminy wiejskie:
B151: Rural gminas:
B152: Chojnów | D152: 100 | E152: 0.388559 | F152: 1.527074 | G152: - | H152: 6.609656 | I152: 1.266053 | J152: 0.001149 | K152: 27.093473 | L152: 3.497741 | M152: 0.154912 | N152: 0.012457
B153: Krotoszyce | D153: 100 | E153: 2.524911 | F153: 1.782974 | G153: - | H153: 0.330068 | I153: 1.267624 | J153: - | K153: 19.791385 | L153: 4.235971 | M153: - | N153: 0.067586
B154: Kunice | D154: 100 | E154: - | F154: 2.82866 | G154: 0.008791 | H154: 0.159986 | I154: 1.168927 | J154: 0.003492 | K154: 18.55212 | L154: 3.336961 | M154: - | N154: 0.084759
B155: Legnickie Pole | D155: 100 | E155: 1.80432 | F155: 0.793271 | G155: 0.157464 | H155: 0.15185 | I155: 0.987365 | J155: 0.001151 | K155: 17.313653 | L155: 3.543728 | M155: - | N155: -
B156: Miłkowice | D156: 100 | E156: 0.447293 | F156: 3.938604 | G156: - | H156: 0.305569 | I156: 0.854681 | J156: 0.004821 | K156: 24.691667 | L156: 3.725391 | M156: 0.003142 | N156: -
B157: Ruja | D157: 100 | E157: 1.428325 | F157: 1.986254 | G157: - | H157: 5.987705 | I157: 0.819209 | J157: - | K157: 27.494654 | L157: 7.029034 | M157: - | N157: -
B158: POWIAT LUBIŃSKI | D158: 100 | E158: 2.526198 | F158: 2.950963 | G158: 0.257049 | H158: 1.53792 | I158: 2.32236 | J158: 0.051888 | K158: 14.980892 | L158: 4.765758 | M158: 0.185999 | N158: 0.168551
B159: Gminy miejskie:
B160: Urban gminas:
B161: Lubin | D161: 100 | E161: 2.9387 | F161: 3.580549 | G161: 0.342482 | H161: 0.424989 | I161: 2.835383 | J161: 0.010397 | K161: 14.440882 | L161: 5.006215 | M161: 0.163608 | N161: 9e-06
B162: Gminy miejsko-wiejskie:
B163: Urban-rural gminas:
B164: Ścinawa | D164: 100 | E164: 4.266129 | F164: 1.252364 | G164: 0.017904 | H164: 0.559861 | I164: 2.371722 | J164: 0.006396 | K164: 24.999077 | L164: 3.791021 | M164: 0.961425 | N164: 1.937155
B165: Gminy wiejskie:
B166: Rural gminas:
B167: Lubin | D167: 100 | E167: 1.645013 | F167: 1.272069 | G167: 0.197285 | H167: 0.105297 | I167: 1.009131 | J167: 0.023896 | K167: 13.89198 | L167: 3.942724 | M167: 0.009507 | N167: 0.094236
B168: Rudna | D168: 100 | E168: - | F168: 2.699569 | G168: - | H168: 10.862253 | I168: 1.006101 | J168: 0.371375 | K168: 12.454296 | L168: 5.15345 | M168: - | N168: -
B169: POWIAT POLKOWICKI | D169: 100 | E169: 2.105288 | F169: 2.903733 | G169: 0.025268 | H169: 0.799092 | I169: 2.308016 | J169: 0.615019 | K169: 13.765 | L169: 1.226791 | M169: 0.082191 | N169: 0.264779
B170: Gminy miejsko-wiejskie:
B171: Urban-rural gminas:
B172: Chocianów | D172: 100 | E172: 0.018786 | F172: 1.488153 | G172: 0.016984 | H172: 0.335987 | I172: 7.087089 | J172: 0.002485 | K172: 23.118916 | L172: 0.109283 | M172: 0.001784 | N172: 0.686627
B173: Polkowice | D173: 100 | E173: 1.302292 | F173: 2.691656 | G173: 0.018444 | H173: 0.378305 | I173: 1.849716 | J173: 1.064098 | K173: 9.237564 | L173: 0.789144 | M173: 0.103045 | N173: 0.162808
B174: Przemków | D174: 100 | E174: 0.564277 | F174: 1.518628 | G174: 0.062245 | H174: 0.282423 | I174: 1.203366 | J174: 0.002187 | K174: 25.300989 | L174: 5.68213 | M174: 0.028521 | N174: -
B175: Gminy wiejskie:
B176: Rural gminas:
B177: Gaworzyce | D177: 100 | E177: 8.847324 | F177: 1.80072 | G177: - | H177: 0.243744 | I177: 0.882862 | J177: 0.002602 | K177: 25.113531 | L177: 3.290895 | M177: 0.185381 | N177: 1.343419
B178: Grębocice | D178: 100 | E178: 6.331268 | F178: 8.602002 | G178: 0.014482 | H178: 0.10261 | I178: 1.704433 | J178: 0.001087 | K178: 12.499949 | L178: 0.157811 | M178: 0.008705 | N178: 0.275674
B179: Radwanice | D179: 100 | E179: 3.487711 | F179: 0.709015 | G179: 0.083837 | H179: 7.106306 | I179: 1.074924 | J179: 0.001825 | K179: 16.261863 | L179: 1.759277 | M179: 0.159368 | N179: 0.015243
B180: PODREGION WAŁBRZYSKI | D180: 100 | E180: 2.449978 | F180: 6.931269 | G180: 0.180001 | H180: 0.786304 | I180: 2.036943 | J180: 0.014806 | K180: 21.268414 | L180: 4.556541 | M180: 0.186691 | N180: 1.03384
B181: SUBREGION
B182: POWIAT DZIERŻONIOWSKI | D182: 100 | E182: 5.017301 | F182: 7.949412 | G182: 0.058026 | H182: 0.374312 | I182: 1.677416 | J182: 0.009703 | K182: 22.754257 | L182: 3.896997 | M182: 0.123621 | N182: 0.177469
B183: Gminy miejskie:
B184: Urban gminas:
B185: Bielawa | D185: 100 | E185: 9.496594 | F185: 11.788845 | G185: 0.076797 | H185: 0.23319 | I185: 1.328373 | J185: 0.005482 | K185: 18.983218 | L185: 6.776791 | M185: - | N185: 0.002402
B186: Dzierżoniów | D186: 100 | E186: 3.287062 | F186: 8.886246 | G186: 0.060951 | H186: 0.441595 | I186: 2.014288 | J186: 0.014713 | K186: 22.486277 | L186: 1.713232 | M186: 0.105834 | N186: 0.064838
B187: Piława Górna | D187: 100 | E187: 1.222551 | F187: 6.648001 | G187: 0.054536 | H187: 0.257186 | I187: 1.284084 | J187: - | K187: 26.183354 | L187: 5.605144 | M187: - | N187: 2.372087
B188: Gminy miejsko-wiejskie:
B189: Urban-rural gminas:
B190: Niemcza | D190: 100 | E190: 3.036107 | F190: 3.277834 | G190: 0.099673 | H190: 0.582783 | I190: 1.450487 | J190: 0.004015 | K190: 26.798119 | L190: 0.06082 | M190: 0.057937 | N190: 0.122223
B191: Pieszyce | D191: 100 | E191: 0.83051 | F191: 3.485739 | G191: 0.003473 | H191: 0.712274 | I191: 1.623733 | J191: 0.020517 | K191: 29.623674 | L191: 4.73053 | M191: 0.937846 | N191: 0.033104
B192: Gminy wiejskie:
B193: Rural gminas:
B194: Dzierżoniów | D194: 100 | E194: 5.627642 | F194: 3.018405 | G194: 0.00627 | H194: 0.403827 | I194: 1.928049 | J194: 0.007474 | K194: 25.984624 | L194: 1.689435 | M194: 0.121942 | N194: 0.049503
B195: Łagiewniki | D195: 100 | E195: 0.691647 | F195: 1.273752 | G195: 0.056685 | H195: 0.260849 | I195: 2.021264 | J195: 0.009087 | K195: 24.055066 | L195: 3.285415 | M195: - | N195: -
B196: POWIAT KŁODZKI | D196: 100 | E196: 1.428334 | F196: 8.986278 | G196: 0.165337 | H196: 0.761302 | I196: 2.182323 | J196: 0.004331 | K196: 20.46733 | L196: 4.743788 | M196: 0.155452 | N196: 1.960978
B197: Gminy miejskie:
B198: Urban gminas:
B199: Duszniki-Zdrój | D199: 100 | E199: 0.016104 | F199: 7.175559 | G199: 0.139222 | H199: 0.513958 | I199: 1.841952 | J199: - | K199: 10.2579 | L199: 1.962242 | M199: - | N199: 31.603632
B200: Kłodzko | D200: 100 | E200: 0.173153 | F200: 8.132953 | G200: 0.278883 | H200: 0.973831 | I200: 3.427567 | J200: 0.00595 | K200: 21.866203 | L200: 5.224822 | M200: 0.115435 | N200: 0.000209
B201: Kudowa-Zdrój | D201: 100 | E201: 1.13584 | F201: 10.594225 | G201: 0.289691 | H201: 0.24677 | I201: 1.76119 | J201: 0.005112 | K201: 15.779593 | L201: 6.511417 | M201: 0.08175 | N201: 0.011632
B202: Nowa Ruda | D202: 100 | E202: 0.920143 | F202: 11.158211 | G202: 0.406868 | H202: 0.805616 | I202: 1.366997 | J202: 0.005555 | K202: 22.157162 | L202: 4.81141 | M202: - | N202: 0.777819
B203: Polanica-Zdrój | D203: 100 | E203: - | F203: 11.399556 | G203: 0.149364 | H203: 0.510539 | I203: 3.118981 | J203: 0.028891 | K203: 14.923911 | L203: 4.909666 | M203: 0.008206 | N203: 0.140715
B204: Gminy miejsko-wiejskie:
B205: Urban-rural gminas:
... 144 more rows

Sheet Tabl. 12.
B4: Tabl. 12. Wydatki budżetów gmina według rodzajów oraz podregionów i powiatów
B5: Expenditure of gminas budgetsa by types as well as subregions and powiats
B6: WYSZCZEGÓLNIENIE SPECIFICATION | D6: Ogółem Total | E6: Wydatki majątkowe Property expenditure | G6: Wydatki bieżące Current expenditure
E7: razem total | F7: w tym inwestycyjneb of which investment expenditureb | G7: razem total | H7: w tym of which
H8: dotacje grants | J8: świadczenia na rzecz osób fizycznych benefits for natural persons | K8: wydatki bieżące jednostek budżetowych current expenditures of budgetary units | O8: na obsługę długu publicznego on public dept servicing
H9: razem total | I9: w tym dla samorządowych zakładów budżetowych of which for local government budgetary establishments | K9: razem total | L9: w tym of which
L10: wynagrodzenia wages and salaries | M10: pochodne od wynagrodzeńc derivatives from wages and salariesc | N10: zakup materiałów i usług purchase of materials and services
D11: w tys. zł in thous. zl
B12: O G Ó Ł E M | C12: 2015 | D12: 6880258.213 | E12: 1170111.704 | F12: 1121662.766 | G12: 5710146.509 | H12: 519975.5876 | I12: 41289.06664 | J12: 783369.8963 | K12: 4242312.632 | L12: 2029330.061 | M12: 381498.4819 | N12: 1529950.243 | O12: 77469.99919
B13: T O T A L | C13: 2016 | D13: 7665498.505 | E13: 963328.2854 | F13: 912717.5628 | G13: 6702170.22 | H13: 562661.9086 | I13: 40729.75022 | J13: 1638025.201 | K13: 4345330.685 | L13: 2089429.091 | M13: 397471.0588 | N13: 1572774.287 | O13: 71194.93067
B15: Gminy miejskie | D15: 2479142.391 | E15: 278201.1034 | F15: 257976.1744 | G15: 2200941.288 | H15: 215499.3015 | I15: 10146.95676 | J15: 475093.7805 | K15: 1481524.899 | L15: 691853.2038 | M15: 128643.8321 | N15: 576876.1472 | O15: 24436.45045
B16: Urban gminas
B17: Gminy miejsko-wiejskie | D17: 2876862.748 | E17: 333915.9966 | F17: 314411.556 | G17: 2542946.751 | H17: 200848.1892 | I17: 18595.46837 | J17: 643172.6956 | K17: 1616723.972 | L17: 789573.2057 | M17: 150586.5813 | N17: 570284.8148 | O17: 29217.10658
B18: Urban-rural gminas
B19: Gminy wiejskie | D19: 2309493.366 | E19: 351211.1854 | F19: 340329.8324 | G19: 1958282.181 | H19: 146314.4179 | I19: 11987.32509 | J19: 519758.7246 | K19: 1247081.814 | L19: 608002.681 | M19: 118240.6454 | N19: 425613.3247 | O19: 17541.37364
B20: Rural gminas
B21: PODREGION JELENIOGÓRSKI | D21: 1800500.039 | E21: 159701.6761 | F21: 149602.8921 | G21: 1640798.363 | H21: 117673.1422 | I21: 8103.30554 | J21: 412622.8626 | K21: 1074299.627 | L21: 519768.0422 | M21: 97835.81307 | N21: 388313.6286 | O21: 14424.41759
B22: SUBREGION
B23: POWIAT BOLESŁAWIECKI | D23: 325546.5777 | E23: 38981.70197 | F23: 36786.70197 | G23: 286564.8757 | H23: 26468.94904 | I23: 170.84 | J23: 73570.49411 | K23: 184106.7378 | L23: 87594.53817 | M23: 17117.69588 | N23: 68620.98858 | O23: 1853.10673
B24: Gminy miejskie:
B25: Urban gminas:
B26: Bolesławiec | D26: 142551.4683 | E26: 11484.4855 | F26: 11364.4855 | G26: 131066.9828 | H26: 15568.5077 | I26: - | J26: 26275.33645 | K26: 87783.72872 | L26: 39296.23042 | M26: 7440.11203 | N26: 36671.87957 | O26: 1205.8252
B27: Gminy miejsko-wiejskie:
B28: Urban-rural gminas:
B29: Nowogrodziec | D29: 51517.38046 | E29: 6354.10612 | F29: 4279.10612 | G29: 45163.27434 | H29: 1940.84141 | I29: - | J29: 13998.51799 | K29: 28717.17494 | L29: 14976.99111 | M29: 3057.9693 | N29: 8013.9474 | O29: 404.406
B30: Gminy wiejskie:
B31: Rural gminas:
B32: Bolesławiec | D32: 46501.37713 | E32: 8799.55008 | F32: 8799.55008 | G32: 37701.82705 | H32: 4519.21109 | I32: - | J32: 11574.63128 | K32: 21503.35504 | L32: 10280.35807 | M32: 2018.73273 | N32: 7921.16291 | O32: 5.68684
B33: Gromadka | D33: 24405.72618 | E33: 5432.20026 | F33: 5432.20026 | G33: 18973.52592 | H33: 974.75493 | I33: 62.28 | J33: 5926.8542 | K33: 11912.26618 | L33: 6246.97376 | M33: 1172.64639 | N33: 3972.36349 | O33: 154.32748
B34: Osiecznica | D34: 30435.17271 | E34: 4479.12243 | F34: 4479.12243 | G34: 25956.05028 | H34: 1179.08055 | I34: 108.56 | J34: 7295.56417 | K34: 17353.40134 | L34: 9106.26896 | M34: 1866.17276 | N34: 5463.74756 | O34: 82.86121
B35: Warta Bolesławiecka | D35: 30135.45297 | E35: 2432.23758 | F35: 2432.23758 | G35: 27703.21539 | H35: 2286.55336 | I35: - | J35: 8499.59002 | K35: 16836.81159 | L35: 7687.71585 | M35: 1562.06267 | N35: 6577.88765 | O35: -
B36: POWIAT JAWORSKI | D36: 176105.1937 | E36: 13737.84557 | F36: 13737.84557 | G36: 162367.3481 | H36: 9722.91904 | I36: 1553.69578 | J36: 43120.15727 | K36: 107982.854 | L36: 56759.29772 | M36: 10500.48511 | N36: 33413.37732 | O36: 1382.18716
B37: Gminy miejskie:
B38: Urban gminas:
B39: Jawor | D39: 75517.00093 | E39: 3323.68511 | F39: 3323.68511 | G39: 72193.31582 | H39: 6323.18812 | I39: 1081.768 | J39: 16658.45738 | K39: 48671.81739 | L39: 26174.37778 | M39: 4658.05315 | N39: 15761.27907 | O39: 534.68883
B40: Gminy miejsko-wiejskie:
B41: Urban-rural gminas:
B42: Bolków | D42: 34023.57586 | E42: 1809.02647 | F42: 1809.02647 | G42: 32214.54939 | H42: 1785.93321 | I42: 390 | J42: 10676.03558 | K42: 19469.83562 | L42: 10514.10396 | M42: 2050.88972 | N42: 5483.10486 | O42: 261.52498
B43: Gminy wiejskie:
B44: Rural gminas:
B45: Męcinka | D45: 18615.65519 | E45: 1165.29891 | F45: 1165.29891 | G45: 17450.35628 | H45: 461.41641 | I45: - | J45: 4744.69704 | K45: 12065.09724 | L45: 5810.66302 | M45: 1072.6707 | N45: 4158.24778 | O45: 139.38456
B46: Mściwojów | D46: 15622.47303 | E46: 3419.94967 | F46: 3419.94967 | G46: 12202.52336 | H46: 251.67567 | I46: 76.92778 | J46: 3617.63812 | K46: 8123.79229 | L46: 4238.0042 | M46: 787.73844 | N46: 2101.37018 | O46: 172.41788
B47: Paszowice | D47: 14521.90079 | E47: 985.47872 | F47: 985.47872 | G47: 13536.42207 | H47: 553.36697 | I47: - | J47: 3519.68532 | K47: 9350.12213 | L47: 4726.18687 | M47: 883.99749 | N47: 2892.57627 | O47: 91.8892
B48: Wądroże Wielkie | D48: 17804.58789 | E48: 3034.40669 | F48: 3034.40669 | G48: 14770.1812 | H48: 347.33866 | I48: 5 | J48: 3903.64383 | K48: 10302.1893 | L48: 5295.96189 | M48: 1047.13561 | N48: 3016.79916 | O48: 182.28171
B49: POWIAT JELENIOGÓRSKI | D49: 243795.598 | E49: 19957.56165 | F49: 19747.36165 | G49: 223838.0363 | H49: 18058.94054 | I49: 100 | J49: 56690.15177 | K49: 144638.2589 | L49: 62229.46474 | M49: 11557.95715 | N49: 61524.04613 | O49: 2572.76452
B50: Gminy miejskie:
B51: Urban gminas:
B52: Karpacz | D52: 30616.03468 | E52: 3917.50817 | F52: 3917.50817 | G52: 26698.52651 | H52: 1985.60356 | I52: - | J52: 3412.32817 | K52: 20235.84553 | L52: 7779.50346 | M52: 1397.8153 | N52: 9544.37846 | O52: 98.25915
B53: Kowary | D53: 36068.06755 | E53: 1520.57923 | F53: 1510.37923 | G53: 34547.48832 | H53: 3738.79505 | I53: - | J53: 10768.85024 | K53: 19767.94279 | L53: 8648.40143 | M53: 1560.77541 | N53: 8562.78761 | O53: 231.31
B54: Piechowice | D54: 21952.39844 | E54: 1987.82898 | F54: 1987.82898 | G54: 19964.56946 | H54: 1129.09765 | I54: - | J54: 5236.81984 | K54: 13447.12942 | L54: 5642.84075 | M54: 990.60539 | N54: 6056.78606 | O54: 111.77954
B55: Szklarska Poręba | D55: 33408.46939 | E55: 3718.34128 | F55: 3518.34128 | G55: 29690.12811 | H55: 4921.42618 | I55: 100 | J55: 4654.18869 | K55: 19741.95184 | L55: 7220.2452 | M55: 1292.56734 | N55: 10067.29009 | O55: 340.26349
B56: Gminy wiejskie:
B57: Rural gminas:
B58: Janowice Wielkie | D58: 14161.27854 | E58: 1245.24503 | F58: 1245.24503 | G58: 12916.03351 | H58: 552.42248 | I58: - | J58: 3290.58189 | K58: 8079.24025 | L58: 3901.09997 | M58: 747.98833 | N58: 2977.71459 | O58: 271.87983
B59: Jeżów Sudecki | D59: 23578.19182 | E59: 3608.33066 | F59: 3608.33066 | G59: 19969.86116 | H59: 1373.15337 | I59: - | J59: 6378.09895 | K59: 11996.34424 | L59: 5388.79864 | M59: 1026.86964 | N59: 4608.22502 | O59: 181.95099
B60: Mysłakowice | D60: 36565.61898 | E60: 691.36961 | F60: 691.36961 | G60: 35874.24937 | H60: 2304.90626 | I60: - | J60: 9869.97509 | K60: 23296.12725 | L60: 10153.73787 | M60: 1894.87876 | N60: 9240.52144 | O60: 400.34144
B61: Podgórzyn | D61: 27669.73613 | E61: 2245.57819 | F61: 2245.57819 | G61: 25424.15794 | H61: 1645.66695 | I61: - | J61: 7774.44793 | K61: 15616.52339 | L61: 7542.92782 | M61: 1432.15539 | N61: 5852.64461 | O61: 360.35591
B62: Stara Kamienica | D62: 19775.80246 | E62: 1022.7805 | F62: 1022.7805 | G62: 18753.02196 | H62: 407.86904 | I62: - | J62: 5304.86097 | K62: 12457.15421 | L62: 5951.9096 | M62: 1214.30159 | N62: 4613.69825 | O62: 576.62417
B63: POWIAT KAMIENNOGÓRSKI | D63: 151735.4346 | E63: 12139.02145 | F63: 12139.02145 | G63: 139596.4132 | H63: 6829.82057 | I63: 538 | J63: 37998.16878 | K63: 93244.03759 | L63: 47105.58217 | M63: 9395.55884 | N63: 32052.33464 | O63: 950.47381
B64: Gminy miejskie:
B65: Urban gminas:
B66: Kamienna Góra | D66: 64313.72012 | E66: 1190.63063 | F66: 1190.63063 | G66: 63123.08949 | H66: 3264.5862 | I66: - | J66: 15493.59061 | K66: 43551.95786 | L66: 21230.23787 | M66: 4205.94391 | N66: 16377.241 | O66: 528.17679
B67: Gminy miejsko-wiejskie:
B68: Urban-rural gminas:
B69: Lubawka | D69: 35636.5688 | E69: 5067.83993 | F69: 5067.83993 | G69: 30568.72887 | H69: 2145.80934 | I69: 538 | J69: 8705.10695 | K69: 19512.8814 | L69: 10651.29587 | M69: 2143.23568 | N69: 5555.36211 | O69: 201.34902
B70: Gminy wiejskie:
B71: Rural gminas:
B72: Kamienna Góra | D72: 34754.84254 | E72: 3716.16885 | F72: 3716.16885 | G72: 31038.67369 | H72: 1321.79796 | I72: - | J72: 8960.36088 | K72: 20588.28421 | L72: 10080.55428 | M72: 2121.72616 | N72: 7208.68388 | O72: 124.94148
B73: Marciszów | D73: 17030.30315 | E73: 2164.38204 | F73: 2164.38204 | G73: 14865.92111 | H73: 97.62707 | I73: - | J73: 4839.11034 | K73: 9590.91412 | L73: 5143.49415 | M73: 924.65309 | N73: 2911.04765 | O73: 96.00652
B74: POWIAT LUBAŃSKI | D74: 204330.2516 | E74: 18103.09856 | F74: 17590.09856 | G74: 186227.153 | H74: 10823.52185 | I74: 40 | J74: 48726.15204 | K74: 124600.5648 | L74: 61997.25949 | M74: 11296.81177 | N74: 42388.47429 | O74: 1690.97255
B75: Gminy miejskie:
B76: Urban gminas:
B77: Lubań | D77: 69892.73692 | E77: 4175.96115 | F77: 3770.96115 | G77: 65716.77577 | H77: 4825.17693 | I77: - | J77: 14346.33713 | K77: 45789.12782 | L77: 23114.21863 | M77: 3966.75713 | N77: 16230.51356 | O77: 624.22893
B78: Świeradów-Zdrój | D78: 28325.54594 | E78: 4400.02443 | F78: 4400.02443 | G78: 23925.52151 | H78: 620.90544 | I78: 40 | J78: 4331.46879 | K78: 18453.09882 | L78: 6997.17336 | M78: 1298.76921 | N78: 7856.71735 | O78: 513.47156
B79: Gminy miejsko-wiejskie:
B80: Urban-rural gminas:
B81: Leśna | D81: 35922.24699 | E81: 2992.46146 | F81: 2992.46146 | G81: 32929.78553 | H81: 2238.503 | I81: - | J81: 12085.04891 | K81: 18363.70128 | L81: 9298.30855 | M81: 1835.6226 | N81: 6046.46586 | O81: 174.03436
B82: Olszyna | D82: 23950.30534 | E82: 2797.35953 | F82: 2797.35953 | G82: 21152.94581 | H82: 739.41455 | I82: - | J82: 6789.37811 | K82: 13364.57398 | L82: 7080.39378 | M82: 1296.39808 | N82: 4211.99376 | O82: 213.742
B83: Gminy wiejskie:
B84: Rural gminas:
B85: Lubań | D85: 23972.89208 | E85: 2401.80237 | F85: 2401.80237 | G85: 21571.08971 | H85: 1393.23025 | I85: - | J85: 6097.89263 | K85: 13919.86684 | L85: 7492.47703 | M85: 1414.97352 | N85: 3839.23862 | O85: 88.79437
B86: Platerówka | D86: 6424.47617 | E86: 552.25764 | F86: 444.25764 | G86: 5872.21853 | H86: 196.73674 | I86: - | J86: 1407.12594 | K86: 4242.14668 | L86: 2266.77852 | M86: 425.88494 | N86: 1221.17201 | O86: 7.53967
B87: Siekierczyn | D87: 15842.04814 | E87: 783.23198 | F87: 783.23198 | G87: 15058.81616 | H87: 809.55494 | I87: - | J87: 3668.90053 | K87: 10468.04943 | L87: 5747.90962 | M87: 1058.40629 | N87: 2982.37313 | O87: 69.16166
B88: POWIAT LWÓWECKI | D88: 151365.1721 | E88: 11358.33596 | F88: 11277.75196 | G88: 140006.8362 | H88: 7183.34031 | I88: - | J88: 41953.15112 | K88: 89530.25933 | L88: 44779.52772 | M88: 8188.13354 | N88: 30810.05484 | O88: 983.78712
B89: Gminy miejsko-wiejskie:
B90: Urban-rural gminas:
B91: Gryfów Śląski | D91: 28445.20608 | E91: 2907.56558 | F91: 2907.56558 | G91: 25537.6405 | H91: 1481.46599 | I91: - | J91: 8180.79368 | K91: 15678.74902 | L91: 8266.17464 | M91: 1452.45885 | N91: 5050.49542 | O91: 112.88761
B92: Lubomierz | D92: 24007.32365 | E92: 1401.17588 | F92: 1398.62588 | G92: 22606.14777 | H92: 856.71667 | I92: - | J92: 6207.40399 | K92: 15297.49913 | L92: 7853.64733 | M92: 1428.53434 | N92: 4934.67936 | O92: 192.06798
B93: Lwówek Śląski | D93: 53777.49002 | E93: 3403.45051 | F93: 3403.45051 | G93: 50374.03951 | H93: 3566.47346 | I93: - | J93: 13863.65173 | K93: 32438.07593 | L93: 15323.88269 | M93: 2731.6254 | N93: 12426.31707 | O93: 360.04386
B94: Mirsk | D94: 30560.45206 | E94: 2041.0451 | F94: 1965.5611 | G94: 28519.40696 | H94: 736.42767 | I94: - | J94: 9761.44514 | K94: 17789.84045 | L94: 9041.89571 | M94: 1754.49787 | N94: 5937.81457 | O94: 164.40564
B95: Wleń | D95: 14574.7003 | E95: 1605.09889 | F95: 1602.54889 | G95: 12969.60141 | H95: 542.25652 | I95: - | J95: 3939.85658 | K95: 8326.0948 | L95: 4293.92735 | M95: 821.01708 | N95: 2460.74842 | O95: 154.38203
B96: POWIAT ZGORZELECKI | D96: 386931.5606 | E96: 34795.30258 | F96: 27695.30258 | G96: 352136.258 | H96: 28753.39932 | I96: 4709.86876 | J96: 66965.89419 | K96: 236134.0705 | L96: 112838.6152 | M96: 21001.49624 | N96: 88770.32705 | O96: 3527.69127
B97: Gminy miejskie:
B98: Urban gminas:
B99: Zawidów | D99: 14697.20736 | E99: 2278.79807 | F99: 2278.79807 | G99: 12418.40929 | H99: 623.06461 | I99: - | J99: 2620.35264 | K99: 9041.25507 | L99: 5212.11707 | M99: 933.11351 | N99: 2512.22416 | O99: 87.37448
B100: Zgorzelec | D100: 100703.1707 | E100: 6589.34039 | F100: 4339.34039 | G100: 94113.83029 | H100: 12150.7167 | I100: 400 | J100: 17520.96711 | K100: 62718.28906 | L100: 28979.12704 | M100: 5742.11221 | N100: 24568.22127 | O100: 1387.0281
B101: Gminy miejsko-wiejskie:
B102: Urban-rural gminas:
B103: Bogatynia | D103: 148869.3733 | E103: 9924.93007 | F103: 6074.93007 | G103: 138944.4432 | H103: 8204.42706 | I103: 3745.73196 | J103: 18409.38295 | K103: 95299.85204 | L103: 44016.58737 | M103: 7852.48833 | N103: 38170.2023 | O103: 1097.81021
B104: Pieńsk | D104: 29561.61881 | E104: 2653.80429 | F104: 2653.80429 | G104: 26907.81452 | H104: 1313.6735 | I104: - | J104: 8505.84209 | K104: 16709.76043 | L104: 8543.98451 | M104: 1662.36697 | N104: 5338.82381 | O104: 174.47715
B105: Węgliniec | D105: 31845.71861 | E105: 4944.10625 | F105: 4944.10625 | G105: 26901.61236 | H105: 2160.04333 | I105: 564.1368 | J105: 7679.56693 | K105: 16732.23505 | L105: 8442.20236 | M105: 1597.31003 | N105: 5808.75176 | O105: 257.5681
B106: Gminy wiejskie:
B107: Rural gminas:
B108: Sulików | D108: 22515.85124 | E108: 2191.15333 | F108: 1191.15333 | G108: 20324.69791 | H108: 1263.42187 | I108: - | J108: 5467.78746 | K108: 13329.14421 | L108: 6432.16353 | M108: 1186.86056 | N108: 4610.64114 | O108: 194.1191
B109: Zgorzelec | D109: 38738.62059 | E109: 6213.17018 | F109: 6213.17018 | G109: 32525.45041 | H109: 3038.05225 | I109: - | J109: 6761.99501 | K109: 22303.53464 | L109: 11212.43333 | M109: 2027.24463 | N109: 7761.46261 | O109: 329.31413
B110: POWIAT ZŁOTORYJSKI | D110: 160690.2511 | E110: 10628.80835 | F110: 10628.80835 | G110: 150061.4427 | H110: 9832.25149 | I110: 990.901 | J110: 43598.69335 | K110: 94062.84415 | L110: 46463.75703 | M110: 8777.67454 | N110: 30734.0257 | O110: 1463.43443
B111: Gminy miejskie:
B112: Urban gminas:
B113: Wojcieszów | D113: 14693.49265 | E113: 1540.29047 | F113: 1540.29047 | G113: 13153.20218 | H113: 311.49383 | I113: - | J113: 4428.96609 | K113: 8277.73164 | L113: 4476.77683 | M113: 756.57697 | N113: 2504.84819 | O113: 91.4983
B114: Złotoryja | D114: 51915.99227 | E114: 1938.57186 | F114: 1938.57186 | G114: 49977.42041 | H114: 3738.68733 | I114: - | J114: 11467.48144 | K114: 33807.17015 | L114: 15284.52511 | M114: 2830.92089 | N114: 13423.35356 | O114: 778.97092
B115: Gminy miejsko-wiejskie:
B116: Urban-rural gminas:
B117: Świerzawa | D117: 26261.98976 | E117: 1222.1074 | F117: 1222.1074 | G117: 25039.88236 | H117: 1617.99961 | I117: - | J117: 8476.3146 | K117: 14022.24694 | L117: 7320.96876 | M117: 1508.75657 | N117: 4100.66583 | O117: 159.79718
B118: Gminy wiejskie:
B119: Rural gminas:
B120: Pielgrzymka | D120: 19187.12293 | E120: 1457.00325 | F120: 1457.00325 | G120: 17730.11968 | H120: 944.32746 | I120: - | J120: 5817.56949 | K120: 10753.60012 | L120: 5832.7395 | M120: 1074.52159 | N120: 2999.46772 | O120: 188.34076
B121: Zagrodno | D121: 19515.47917 | E121: 1839.83582 | F121: 1839.83582 | G121: 17675.64335 | H121: 835.16431 | I121: 299.938 | J121: 5534.26644 | K121: 11232.66267 | L121: 5678.61726 | M121: 1017.04075 | N121: 3115.38833 | O121: 33.9546
B122: Złotoryja | D122: 29116.17427 | E122: 2630.99955 | F122: 2630.99955 | G122: 26485.17472 | H122: 2384.57895 | I122: 690.963 | J122: 7874.09529 | K122: 15969.43263 | L122: 7870.12957 | M122: 1589.85777 | N122: 4590.30207 | O122: 210.87267
B123: PODREGION LEGNICKO-GŁOGOWSKI | D123: 1615801.345 | E123: 206069.2446 | F123: 193310.8271 | G123: 1409732.1 | H123: 133036.799 | I123: 14432.2788 | J123: 302696.7449 | K123: 911882.8147 | L123: 453601.1646 | M123: 84199.42651 | N123: 320248.4201 | O123: 15705.92857
B124: SUBREGION
B125: POWIAT GŁOGOWSKI | D125: 399157.5207 | E125: 63689.58493 | F125: 59249.58493 | G125: 335467.9357 | H125: 33882.47069 | I125: 5028.05621 | J125: 72475.06679 | K125: 217300.9687 | L125: 104583.2278 | M125: 19161.44493 | N125: 81864.21227 | O125: 7766.21584
B126: Gminy miejskie:
B127: Urban gminas:
B128: Głogów | D128: 286538.4164 | E128: 45908.6289 | F128: 41468.6289 | G128: 240629.7876 | H128: 26908.65822 | I128: 3614.05621 | J128: 50112.66799 | K128: 156460.0801 | L128: 75675.24556 | M128: 13756.89303 | N128: 60421.5255 | O128: 6981.28841
B129: Gminy wiejskie:
B130: Rural gminas:
B131: Głogów | D131: 25704.66998 | E131: 2404.84576 | F131: 2404.84576 | G131: 23299.82422 | H131: 1510.34125 | I131: - | J131: 5858.41501 | K131: 15730.86256 | L131: 6797.9373 | M131: 1309.04107 | N131: 6655.80681 | O131: 187.29646
B132: Jerzmanowa | D132: 40925.94462 | E132: 9654.26662 | F132: 9654.26662 | G132: 31271.678 | H132: 3770.28583 | I132: 1414 | J132: 4732.39781 | K132: 18739.6747 | L132: 8919.61341 | M132: 1659.77511 | N132: 6545.00489 | O132: 207.12383
B133: Kotla | D133: 19117.77519 | E133: 1951.74188 | F133: 1951.74188 | G133: 17166.03331 | H133: 658.51549 | I133: - | J133: 4601.52355 | K133: 11755.21466 | L133: 5888.10633 | M133: 1114.8174 | N133: 3706.37519 | O133: 138.62845
B134: Pęcław | D134: 8770.18899 | E134: 99.831 | F134: 99.831 | G134: 8670.35799 | H134: 460.1412 | I134: - | J134: 3336.03531 | K134: 4667.46768 | L134: 2553.38269 | M134: 422.46694 | N134: 1170.084 | O134: 193.69981
B135: Żukowice | D135: 18100.52543 | E135: 3670.27077 | F135: 3670.27077 | G135: 14430.25466 | H135: 574.5287 | I135: - | J135: 3834.02712 | K135: 9947.66904 | L135: 4748.94255 | M135: 898.45138 | N135: 3365.41588 | O135: 58.17888
B136: POWIAT GÓROWSKI | D136: 146358.1066 | E136: 15450.05304 | F136: 15450.05304 | G136: 130908.0536 | H136: 3998.30995 | I136: 172.35298 | J136: 46105.87388 | K136: 79131.10223 | L136: 42680.64268 | M136: 8415.37114 | N136: 21228.05219 | O136: 1483.15037
B137: Gminy miejsko-wiejskie:
B138: Urban-rural gminas:
B139: Góra | D139: 85224.78598 | E139: 10356.46523 | F139: 10356.46523 | G139: 74868.32075 | H139: 2259.53528 | I139: - | J139: 26347.94232 | K139: 45362.32309 | L139: 24374.0439 | M139: 4841.9768 | N139: 12535.83272 | O139: 860.14283
B140: Wąsosz | D140: 29056.98753 | E140: 3480.92087 | F140: 3480.92087 | G140: 25576.06666 | H140: 752.254 | I140: 122.29 | J140: 8665.2035 | K140: 15778.03675 | L140: 8931.58324 | M140: 1702.1029 | N140: 3788.57163 | O140: 359.5756
B141: Gminy wiejskie:
B142: Rural gminas:
B143: Jemielno | D143: 12399.35816 | E143: 404.57541 | F143: 404.57541 | G143: 11994.78275 | H143: 351.25769 | I143: - | J143: 4715.33298 | K143: 6758.99324 | L143: 3606.13053 | M143: 784.68756 | N143: 1655.48543 | O143: 159.75909
B144: Niechlów | D144: 19676.97494 | E144: 1208.09153 | F144: 1208.09153 | G144: 18468.88341 | H144: 635.26298 | I144: 50.06298 | J144: 6377.39508 | K144: 11231.74915 | L144: 5768.88501 | M144: 1086.60388 | N144: 3248.16241 | O144: 103.67285
B145: POWIAT LEGNICKI | D145: 215750.9416 | E145: 25701.1615 | F145: 25201.1615 | G145: 190049.7801 | H145: 13222.99928 | I145: 1933.26669 | J145: 51779.39849 | K145: 122579.8496 | L145: 60470.56688 | M145: 11210.29015 | N145: 42228.5761 | O145: 1446.24665
B146: Gminy miejskie:
B147: Urban gminas:
B148: Chojnów | D148: 47251.57212 | E148: 3091.37899 | F148: 3091.37899 | G148: 44160.19313 | H148: 2609.20166 | I148: - | J148: 10698.1016 | K148: 30596.8189 | L148: 17319.41292 | M148: 3219.16743 | N148: 8833.6657 | O148: 130.33779
B149: Gminy miejsko-wiejskie:
B150: Urban-rural gminas:
B151: Prochowice | D151: 29501.34009 | E151: 3896.95048 | F151: 3896.95048 | G151: 25604.38961 | H151: 1590.33125 | I151: - | J151: 7036.62166 | K151: 16753.42377 | L151: 8611.95215 | M151: 1644.20077 | N151: 5351.3349 | O151: 151.45493
B152: Gminy wiejskie:
B153: Rural gminas:
B154: Chojnów | D154: 38587.05249 | E154: 6657.2194 | F154: 6657.2194 | G154: 31929.83309 | H154: 2501.09745 | I154: 448.748 | J154: 10745.49605 | K154: 18324.56858 | L154: 8957.0169 | M154: 1539.96172 | N154: 6121.33352 | O154: 326.71385
B155: Krotoszyce | D155: 13504.77366 | E155: 774.89354 | F155: 774.89354 | G155: 12729.88012 | H155: 428.81484 | I155: - | J155: 2914.48615 | K155: 9319.02681 | L155: 4269.20544 | M155: 823.34547 | N155: 3140.96836 | O155: 39.23006
B156: Kunice | D156: 27038.09471 | E156: 3792.7605 | F156: 3792.7605 | G156: 23245.33421 | H156: 1869.325 | I156: - | J156: 5611.61414 | K156: 15141.62796 | L156: 6742.43447 | M156: 1294.7627 | N156: 6184.04137 | O156: 272.80695
B157: Legnickie Pole | D157: 24273.16652 | E157: 3400.3435 | F157: 2900.3435 | G157: 20872.82302 | H157: 1650.11758 | I157: - | J157: 4726.88161 | K157: 13998.8093 | L157: 5782.74093 | M157: 1057.09855 | N157: 6181.89609 | O157: 122.51153
B158: Miłkowice | D158: 23340.11286 | E158: 2320.53146 | F158: 2320.53146 | G158: 21019.5814 | H158: 2553.7115 | I158: 1484.51869 | J158: 6575.77024 | K158: 11565.26152 | L158: 5745.14964 | M158: 1063.47553 | N158: 3870.35117 | O158: 307.08462
B159: Ruja | D159: 12254.82917 | E159: 1767.08363 | F159: 1767.08363 | G159: 10487.74554 | H159: 20.4 | I159: - | J159: 3470.42704 | K159: 6880.31274 | L159: 3042.65443 | M159: 568.27798 | N159: 2544.98499 | O159: 96.10692
B160: POWIAT LUBIŃSKI | D160: 477418.3463 | E160: 49955.08408 | F160: 44754.66658 | G160: 427463.2623 | H160: 54159.85245 | I160: 5455.30052 | J160: 76871.64765 | K160: 287902.1621 | L160: 145216.7216 | M160: 26161.34739 | N160: 102765.0033 | O160: 2606.75988
B161: Gminy miejskie:
B162: Urban gminas:
B163: Lubin | D163: 314264.1412 | E163: 23095.65789 | F163: 18095.24039 | G163: 291168.4834 | H163: 31324.17983 | I163: - | J163: 48392.63125 | K163: 209001.1205 | L163: 107630.5598 | M163: 19231.22821 | N163: 72999.76897 | O163: 1820.55015
B164: Gminy miejsko-wiejskie:
B165: Urban-rural gminas:
B166: Ścinawa | D166: 41547.82293 | E166: 9237.07364 | F166: 9237.07364 | G166: 32310.74929 | H166: 2064.02036 | I166: 485 | J166: 10161.01049 | K166: 19254.90918 | L166: 10076.84706 | M166: 1790.17397 | N166: 5822.51337 | O166: 552.24784
B167: Gminy wiejskie:
B168: Rural gminas:
B169: Lubin | D169: 74529.85024 | E169: 12434.98558 | F169: 12234.98558 | G169: 62094.86466 | H169: 14589.64998 | I169: 3636.27331 | J169: 10800.66737 | K169: 33640.88677 | L169: 15913.77769 | M169: 2864.27593 | N169: 13237.74708 | O169: 233.96189
B170: Rudna | D170: 47076.53192 | E170: 5187.36697 | F170: 5187.36697 | G170: 41889.16495 | H170: 6182.00228 | I170: 1334.02721 | J170: 7517.33854 | K170: 26005.24566 | L170: 11595.53702 | M170: 2275.66928 | N170: 10704.97388 | O170: -
B171: POWIAT POLKOWICKI | D171: 377116.4298 | E171: 51273.36107 | F171: 48655.36107 | G171: 325843.0687 | H171: 27773.16659 | I171: 1843.3024 | J171: 55464.75807 | K171: 204968.7321 | L171: 100650.0056 | M171: 19250.9729 | N171: 72162.57626 | O171: 2403.55583
B172: Gminy miejsko-wiejskie:
B173: Urban-rural gminas:
B174: Chocianów | D174: 46202.63748 | E174: 8341.97382 | F174: 8048.97382 | G174: 37860.66366 | H174: 2886.67075 | I174: 1331.1874 | J174: 10661.89812 | K174: 23537.4052 | L174: 14165.60885 | M174: 2748.2774 | N174: 4886.83512 | O174: 638.15637
B175: Polkowice | D175: 226618.9793 | E175: 23826.06556 | F175: 21501.06556 | G175: 202792.9137 | H175: 20605.89769 | I175: - | J175: 21888.22088 | K175: 127241.8316 | L175: 57524.83827 | M175: 10872.28008 | N175: 52326.37726 | O175: -
B176: Przemków | D176: 27365.48451 | E176: 557.15262 | F176: 557.15262 | G176: 26808.33189 | H176: 719.81 | I176: - | J176: 8324.06336 | K176: 16078.79378 | L176: 9140.79432 | M176: 1756.35354 | N176: 3380.56951 | O176: 1614.89586
B177: Gminy wiejskie:
B178: Rural gminas:
B179: Gaworzyce | D179: 17014.63953 | E179: 4391.91312 | F179: 4391.91312 | G179: 12622.72641 | H179: 659.63946 | I179: - | J179: 4359.61565 | K179: 7478.914 | L179: 4197.87698 | M179: 787.84039 | N179: 1878.58407 | O179: 112.64256
B180: Grębocice | D180: 37231.22664 | E180: 9603.08011 | F180: 9603.08011 | G180: 27628.14653 | H180: 2192.51542 | I180: 512.115 | J180: 5658.23984 | K180: 18664.68701 | L180: 9127.82464 | M180: 1785.51112 | N180: 6303.11116 | O180: 1.40848
B181: Radwanice | D181: 22683.46234 | E181: 4553.17584 | F181: 4553.17584 | G181: 18130.2865 | H181: 708.63327 | I181: - | J181: 4572.72022 | K181: 11967.10045 | L181: 6493.06258 | M181: 1300.71037 | N181: 3387.09914 | O181: 36.45256
B182: PODREGION WAŁBRZYSKI | D182: 1954430.14 | E182: 243570.1337 | F182: 233137.9965 | G182: 1710860.006 | H182: 142994.7189 | I182: 6903.00255 | J182: 436648.6592 | K182: 1110034.708 | L182: 507903.1056 | M182: 98372.93663 | N182: 426746.2505 | O182: 18742.35635
B183: SUBREGION
B184: POWIAT DZIERŻONIOWSKI | D184: 346966.6176 | E184: 38592.84215 | F184: 36964.77815 | G184: 308373.7755 | H184: 35884.55644 | I184: 3941.13255 | J184: 80519.46271 | K184: 188194.9445 | L184: 81247.57029 | M184: 16140.01735 | N184: 77184.51036 | O184: 3236.80838
B185: Gminy miejskie:
B186: Urban gminas:
B187: Bielawa | D187: 113692.9351 | E187: 11933.93772 | F187: 10553.87372 | G187: 101758.9974 | H187: 11083.74409 | I187: 2139.079 | J187: 21232.03625 | K187: 68098.01959 | L187: 21711.39406 | M187: 4347.21356 | N187: 37632.16931 | O187: 1261.70288
B188: Dzierżoniów | D188: 112568.8233 | E188: 16114.16656 | F188: 15974.16656 | G188: 96454.65676 | H188: 14479.62355 | I188: 1672.05355 | J188: 25868.59968 | K188: 54976.64518 | L188: 26638.18173 | M188: 5333.80056 | N188: 18953.36105 | O188: 971.26332
B189: Piława Górna | D189: 19576.86059 | E189: 1822.87419 | F189: 1822.87419 | G189: 17753.9864 | H189: 968.10728 | I189: - | J189: 5622.26389 | K189: 11033.19615 | L189: 5346.29008 | M189: 1033.10459 | N189: 4028.49601 | O189: 123.91499
B190: Gminy miejsko-wiejskie:
B191: Urban-rural gminas:
B192: Niemcza | D192: 17187.70539 | E192: 1316.91129 | F192: 1316.91129 | G192: 15870.7941 | H192: 2020.2778 | I192: - | J192: 4615.30694 | K192: 8896.50569 | L192: 4325.81396 | M192: 891.84234 | N192: 2951.26108 | O192: 178.85203
B193: Pieszyce | D193: 28348.45418 | E193: 2519.50129 | F193: 2417.50129 | G193: 25828.95289 | H193: 3783.48114 | I193: 130 | J193: 8719.43472 | K193: 13059.27281 | L193: 6353.92213 | M193: 1163.89714 | N193: 4656.10328 | O193: 260.22062
B194: Gminy wiejskie:
B195: Rural gminas:
B196: Dzierżoniów | D196: 30970.83419 | E196: 3651.6375 | F196: 3645.6375 | G196: 27319.19669 | H196: 2199.51895 | I196: - | J196: 8080.62028 | K196: 16701.23464 | L196: 8644.6991 | M196: 1755.99027 | N196: 4637.08851 | O196: 261.1472
B197: Łagiewniki | D197: 24621.00484 | E197: 1233.8136 | F197: 1233.8136 | G197: 23387.19124 | H197: 1349.80363 | I197: - | J197: 6381.20095 | K197: 15430.07043 | L197: 8227.26923 | M197: 1614.16889 | N197: 4326.03112 | O197: 179.70734
B198: POWIAT KŁODZKI | D198: 574603.9346 | E198: 70621.39637 | F198: 69373.39137 | G198: 503982.5382 | H198: 42748.29827 | I198: 838.358 | J198: 130424.9912 | K198: 324220.6689 | L198: 148011.8726 | M198: 28315.6647 | N198: 126150.7037 | O198: 5806.70834
B199: Gminy miejskie:
B200: Urban gminas:
B201: Duszniki-Zdrój | D201: 33594.44339 | E201: 14572.78195 | F201: 14572.78195 | G201: 19021.66144 | H201: 1484.938 | I201: - | J201: 3866.87889 | K201: 13337.16456 | L201: 6298.89488 | M201: 1135.51367 | N201: 5250.01794 | O201: 201.423
B202: Kłodzko | D202: 90251.90283 | E202: 7226.83802 | F202: 6171.83802 | G202: 83025.06481 | H202: 9474.72537 | I202: - | J202: 21788.17364 | K202: 50930.56297 | L202: 25470.69156 | M202: 4912.63006 | N202: 18205.32359 | O202: 826.89926
B203: Kudowa-Zdrój | D203: 37450.35419 | E203: 2770.14865 | F203: 2770.14865 | G203: 34680.20554 | H203: 2352.42806 | I203: - | J203: 6483.27049 | K203: 25330.05124 | L203: 11464.76858 | M203: 2065.82492 | N203: 10411.27993 | O203: 510.47852
B204: Nowa Ruda | D204: 72267.01138 | E204: 3996.58441 | F204: 3996.58441 | G204: 68270.42697 | H204: 4838.33513 | I204: - | J204: 16636.60869 | K204: 45999.05244 | L204: 17223.4887 | M204: 3337.64926 | N204: 21372.77667 | O204: 739.96277
... 147 more rows

Sheet Tabl. 13.
B4: Tabl. 13. Struktura wydatków budżetów gmina według rodzajów oraz podregionów i powiatów
B5: Structure of expenditure of gminas budgetsa by types as well as subregions and powiats
B6: WYSZCZEGÓLNIENIE SPECIFICATION | D6: Ogółem Grand total | E6: Wydatki majątkowe Property expenditure | G6: Wydatki bieżące Current expenditure
E7: razem total | F7: w tym inwestycyjneb of which investment expenditureb | G7: razem total | H7: w tym of which
H8: dotacje grants | J8: świadczenia na rzecz osób fizycznych benefits for natural persons | K8: wydatki bieżące jednostek budżetowych current expenditures of budgetary units | O8: na obsługę długu publicznego on public dept servicing
H9: razem total | I9: w tym dla samorządowych zakładów budżetowych of which for local government budgetary establishments | K9: razem total | L9: w tym of which
L10: wynagrodzenia wages and salaries | M10: pochodne od wynagrodzeńc derivatives from wages and salariesc | N10: zakup materiałów i usług for purchases materials and services
D11: w % in %
B12: O G Ó Ł E M | C12: 2015 | D12: 100 | E12: ='Tabl. 12.'!E12/'Tabl. 12.'!$D12*100 -> 17.00679928 | F12: ='Tabl. 12.'!F12/'Tabl. 12.'!$D12*100 -> 16.30262603 | G12: ='Tabl. 12.'!G12/'Tabl. 12.'!$D12*100 -> 82.99320072 | H12: ='Tabl. 12.'!H12/'Tabl. 12.'!$D12*100 -> 7.557501063 | I12: ='Tabl. 12.'!I12/'Tabl. 12.'!$D12*100 -> 0.6001092599 | J12: ='Tabl. 12.'!J12/'Tabl. 12.'!$D12*100 -> 11.38576303 | K12: ='Tabl. 12.'!K12/'Tabl. 12.'!$D12*100 -> 61.65920668 | L12: ='Tabl. 12.'!L12/'Tabl. 12.'!$D12*100 -> 29.49496949 | M12: ='Tabl. 12.'!M12/'Tabl. 12.'!$D12*100 -> 5.544827971 | N12: ='Tabl. 12.'!N12/'Tabl. 12.'!$D12*100 -> 22.23681431 | O12: ='Tabl. 12.'!O12/'Tabl. 12.'!$D12*100 -> 1.125975171
B13: T O T A L | C13: 2016 | D13: 100 | E13: 12.56707 | F13: 11.90683 | G13: 87.43293 | H13: 7.34019 | I13: 0.53134 | J13: 21.3688 | K13: 56.68686 | L13: 27.25758 | M13: 5.1852 | N13: 20.51757 | O13: 0.92877
B15: Gminy miejskie | D15: 100 | E15: 11.22167 | F15: 10.40586 | G15: 88.77833 | H15: 8.69249 | I15: 0.40929 | J15: 19.16363 | K15: 59.75957 | L15: 27.90696 | M15: 5.18905 | N15: 23.26918 | O15: 0.98568
B16: Urban gminas
B17: Gminy miejsko-wiejskie | D17: 100 | E17: 11.60695 | F17: 10.92897 | G17: 88.39305 | H17: 6.9815 | I17: 0.64638 | J17: 22.35674 | K17: 56.19747 | L17: 27.44563 | M17: 5.2344 | N17: 19.82315 | O17: 1.01559
B18: Urban-rural gminas
B19: Gminy wiejskie | D19: 100 | E19: 15.20728 | F19: 14.73613 | G19: 84.79272 | H19: 6.33535 | I19: 0.51905 | J19: 22.50531 | K19: 53.99807 | L19: 26.32624 | M19: 5.11977 | N19: 18.42886 | O19: 0.75953
B20: Rural gminas
B21: PODREGION JELENIOGÓRSKI | D21: 100 | E21: 8.86985 | F21: 8.30896 | G21: 91.13015 | H21: 6.53558 | I21: 0.45006 | J21: 22.91713 | K21: 59.66674 | L21: 28.86798 | M21: 5.43381 | N21: 21.56699 | O21: 0.80113
B22: SUBREGION
B23: POWIAT BOLESŁAWIECKI | D23: 100 | E23: 11.97423 | F23: 11.29998 | G23: 88.02577 | H23: 8.13062 | I23: 0.05248 | J23: 22.59907 | K23: 56.55312 | L23: 26.90691 | M23: 5.25814 | N23: 21.0787 | O23: 0.56923
B24: Gminy miejskie:
B25: Urban gminas:
B26: Bolesławiec | D26: 100 | E26: 8.05638 | F26: 7.9722 | G26: 91.94362 | H26: 10.92132 | I26: 0 | J26: 18.43218 | K26: 61.58037 | L26: 27.56635 | M26: 5.21925 | N26: 25.72536 | O26: 0.84589
B27: Gminy miejsko-wiejskie:
B28: Urban-rural gminas:
B29: Nowogrodziec | D29: 100 | E29: 12.33391 | F29: 8.30614 | G29: 87.66609 | H29: 3.76735 | I29: 0 | J29: 27.17242 | K29: 55.74269 | L29: 29.07172 | M29: 5.9358 | N29: 15.55581 | O29: 0.78499
B30: Gminy wiejskie:
B31: Rural gminas:
B32: Bolesławiec | D32: 100 | E32: 18.9232 | F32: 18.9232 | G32: 81.0768 | H32: 9.71845 | I32: 0 | J32: 24.89094 | K32: 46.2424 | L32: 22.10764 | M32: 4.34123 | N32: 17.03425 | O32: 0.01223
B33: Gromadka | D33: 100 | E33: 22.25789 | F33: 22.25789 | G33: 77.74211 | H33: 3.99396 | I33: 0.25519 | J33: 24.28469 | K33: 48.80931 | L33: 25.59634 | M33: 4.8048 | N33: 16.27636 | O33: 0.63234
B34: Osiecznica | D34: 100 | E34: 14.71693 | F34: 14.71693 | G34: 85.28307 | H34: 3.87407 | I34: 0.35669 | J34: 23.97083 | K34: 57.01759 | L34: 29.92021 | M34: 6.13163 | N34: 17.95208 | O34: 0.27225
B35: Warta Bolesławiecka | D35: 100 | E35: 8.07102 | F35: 8.07102 | G35: 91.92898 | H35: 7.58759 | I35: 0 | J35: 28.20462 | K35: 55.87044 | L35: 25.51054 | M35: 5.18347 | N35: 21.82774 | O35: 0
B36: POWIAT JAWORSKI | D36: 100 | E36: 7.80093 | F36: 7.80093 | G36: 92.19907 | H36: 5.52109 | I36: 0.88225 | J36: 24.48545 | K36: 61.31725 | L36: 32.23034 | M36: 5.96262 | N36: 18.97353 | O36: 0.78486
B37: Gminy miejskie:
B38: Urban gminas:
B39: Jawor | D39: 100 | E39: 4.40124 | F39: 4.40124 | G39: 95.59876 | H39: 8.3732 | I39: 1.43248 | J39: 22.05921 | K39: 64.45147 | L39: 34.66025 | M39: 6.16822 | N39: 20.87117 | O39: 0.70804
B40: Gminy miejsko-wiejskie:
B41: Urban-rural gminas:
B42: Bolków | D42: 100 | E42: 5.31698 | F42: 5.31698 | G42: 94.68302 | H42: 5.2491 | I42: 1.14626 | J42: 31.37835 | K42: 57.22454 | L42: 30.90241 | M42: 6.02785 | N42: 16.1156 | O42: 0.76866
B43: Gminy wiejskie:
B44: Rural gminas:
B45: Męcinka | D45: 100 | E45: 6.25978 | F45: 6.25978 | G45: 93.74022 | H45: 2.47865 | I45: 0 | J45: 25.48767 | K45: 64.81156 | L45: 31.21385 | M45: 5.7622 | N45: 22.33737 | O45: 0.74875
B46: Mściwojów | D46: 100 | E46: 21.89122 | F46: 21.89122 | G46: 78.10878 | H46: 1.61098 | I46: 0.49242 | J46: 23.15663 | K46: 52.00068 | L46: 27.12761 | M46: 5.04234 | N46: 13.45094 | O46: 1.10365
B47: Paszowice | D47: 100 | E47: 6.78616 | F47: 6.78616 | G47: 93.21384 | H47: 3.81057 | I47: 0 | J47: 24.23708 | K47: 64.38635 | L47: 32.54524 | M47: 6.08734 | N47: 19.91872 | O47: 0.63276
B48: Wądroże Wielkie | D48: 100 | E48: 17.04284 | F48: 17.04284 | G48: 82.95716 | H48: 1.95084 | I48: 0.02808 | J48: 21.92493 | K48: 57.86255 | L48: 29.74493 | M48: 5.88127 | N48: 16.94394 | O48: 1.02379
B49: POWIAT JELENIOGÓRSKI | D49: 100 | E49: 8.18619 | F49: 8.09997 | G49: 91.81381 | H49: 7.40741 | I49: 0.04102 | J49: 23.25315 | K49: 59.32767 | L49: 25.52526 | M49: 4.74084 | N49: 25.23591 | O49: 1.0553
B50: Gminy miejskie:
B51: Urban gminas:
B52: Karpacz | D52: 100 | E52: 12.79561 | F52: 12.79561 | G52: 87.20439 | H52: 6.4855 | I52: 0 | J52: 11.14556 | K52: 66.09558 | L52: 25.4099 | M52: 4.56563 | N52: 31.17444 | O52: 0.32094
B53: Kowary | D53: 100 | E53: 4.21586 | F53: 4.18758 | G53: 95.78414 | H53: 10.36594 | I53: 0 | J53: 29.85702 | K53: 54.80732 | L53: 23.978 | M53: 4.32731 | N53: 23.74063 | O53: 0.64132
B54: Piechowice | D54: 100 | E54: 9.05518 | F54: 9.05518 | G54: 90.94482 | H54: 5.14339 | I54: 0 | J54: 23.85534 | K54: 61.25586 | L54: 25.70489 | M54: 4.51252 | N54: 27.59054 | O54: 0.50919
B55: Szklarska Poręba | D55: 100 | E55: 11.12994 | F55: 10.53129 | G55: 88.87006 | H55: 14.73107 | I55: 0.29933 | J55: 13.93116 | K55: 59.09266 | L55: 21.61202 | M55: 3.86898 | N55: 30.13395 | O55: 1.01849
B56: Gminy wiejskie:
B57: Rural gminas:
B58: Janowice Wielkie | D58: 100 | E58: 8.79331 | F58: 8.79331 | G58: 91.20669 | H58: 3.90094 | I58: 0 | J58: 23.23647 | K58: 57.05163 | L58: 27.54765 | M58: 5.28193 | N58: 21.02716 | O58: 1.91988
B59: Jeżów Sudecki | D59: 100 | E59: 15.30368 | F59: 15.30368 | G59: 84.69632 | H59: 5.82383 | I59: 0 | J59: 27.05084 | K59: 50.87898 | L59: 22.85501 | M59: 4.35517 | N59: 19.54444 | O59: 0.77169
B60: Mysłakowice | D60: 100 | E60: 1.89076 | F60: 1.89076 | G60: 98.10924 | H60: 6.30348 | I60: 0 | J60: 26.9925 | K60: 63.71047 | L60: 27.76854 | M60: 5.18213 | N60: 25.27107 | O60: 1.09486
B61: Podgórzyn | D61: 100 | E61: 8.11565 | F61: 8.11565 | G61: 91.88435 | H61: 5.94753 | I61: 0 | J61: 28.0973 | K61: 56.439 | L61: 27.26057 | M61: 5.17589 | N61: 21.15179 | O61: 1.30235
B62: Stara Kamienica | D62: 100 | E62: 5.17188 | F62: 5.17188 | G62: 94.82812 | H62: 2.06247 | I62: 0 | J62: 26.82501 | K62: 62.9919 | L62: 30.09693 | M62: 6.14034 | N62: 23.33002 | O62: 2.91581
B63: POWIAT KAMIENNOGÓRSKI | D63: 100 | E63: 8.00012 | F63: 8.00012 | G63: 91.99988 | H63: 4.50114 | I63: 0.35456 | J63: 25.04238 | K63: 61.45172 | L63: 31.04455 | M63: 6.19207 | N63: 21.12383 | O63: 0.6264
B64: Gminy miejskie:
B65: Urban gminas:
B66: Kamienna Góra | D66: 100 | E66: 1.85129 | F66: 1.85129 | G66: 98.14871 | H66: 5.07603 | I66: 0 | J66: 24.09065 | K66: 67.71799 | L66: 33.01043 | M66: 6.53973 | N66: 25.46461 | O66: 0.82125
B67: Gminy miejsko-wiejskie:
B68: Urban-rural gminas:
B69: Lubawka | D69: 100 | E69: 14.2209 | F69: 14.2209 | G69: 85.7791 | H69: 6.02137 | I69: 1.50969 | J69: 24.42746 | K69: 54.75522 | L69: 29.88867 | M69: 6.01415 | N69: 15.58894 | O69: 0.56501
B70: Gminy wiejskie:
B71: Rural gminas:
B72: Kamienna Góra | D72: 100 | E72: 10.69252 | F72: 10.69252 | G72: 89.30748 | H72: 3.80321 | I72: 0 | J72: 25.78162 | K72: 59.23861 | L72: 29.00475 | M72: 6.10484 | N72: 20.74152 | O72: 0.35949
B73: Marciszów | D73: 100 | E73: 12.709 | F73: 12.709 | G73: 87.291 | H73: 0.57326 | I73: 0 | J73: 28.4147 | K73: 56.31676 | L73: 30.20201 | M73: 5.42946 | N73: 17.09334 | O73: 0.56374
B74: POWIAT LUBAŃSKI | D74: 100 | E74: 8.85973 | F74: 8.60866 | G74: 91.14027 | H74: 5.29707 | I74: 0.01958 | J74: 23.84676 | K74: 60.97999 | L74: 30.34169 | M74: 5.5287 | N74: 20.74508 | O74: 0.82757
B75: Gminy miejskie:
B76: Urban gminas:
B77: Lubań | D77: 100 | E77: 5.97481 | F77: 5.39535 | G77: 94.02519 | H77: 6.90369 | I77: 0 | J77: 20.52622 | K77: 65.51343 | L77: 33.07099 | M77: 5.67549 | N77: 23.22203 | O77: 0.89312
B78: Świeradów-Zdrój | D78: 100 | E78: 15.53377 | F78: 15.53377 | G78: 84.46623 | H78: 2.19203 | I78: 0.14122 | J78: 15.29174 | K78: 65.14649 | L78: 24.7027 | M78: 4.58515 | N78: 27.73721 | O78: 1.81275
B79: Gminy miejsko-wiejskie:
B80: Urban-rural gminas:
B81: Leśna | D81: 100 | E81: 8.33038 | F81: 8.33038 | G81: 91.66962 | H81: 6.23152 | I81: 0 | J81: 33.64224 | K81: 51.12069 | L81: 25.88454 | M81: 5.10999 | N81: 16.83209 | O81: 0.48448
B82: Olszyna | D82: 100 | E82: 11.67985 | F82: 11.67985 | G82: 88.32015 | H82: 3.08729 | I82: 0 | J82: 28.34777 | K82: 55.80127 | L82: 29.56285 | M82: 5.41287 | N82: 17.58639 | O82: 0.89244
B83: Gminy wiejskie:
B84: Rural gminas:
B85: Lubań | D85: 100 | E85: 10.01883 | F85: 10.01883 | G85: 89.98117 | H85: 5.81169 | I85: 0 | J85: 25.43662 | K85: 58.06503 | L85: 31.25396 | M85: 5.90239 | N85: 16.01492 | O85: 0.37039
B86: Platerówka | D86: 100 | E86: 8.59615 | F86: 6.91508 | G86: 91.40385 | H86: 3.0623 | I86: 0 | J86: 21.90258 | K86: 66.03101 | L86: 35.28348 | M86: 6.6291 | N86: 19.00812 | O86: 0.11736
B87: Siekierczyn | D87: 100 | E87: 4.94401 | F87: 4.94401 | G87: 95.05599 | H87: 5.11017 | I87: 0 | J87: 23.15926 | K87: 66.07763 | L87: 36.28262 | M87: 6.68099 | N87: 18.82568 | O87: 0.43657
B88: POWIAT LWÓWECKI | D88: 100 | E88: 7.50393 | F88: 7.45069 | G88: 92.49607 | H88: 4.7457 | I88: 0 | J88: 27.71652 | K88: 59.14852 | L88: 29.58377 | M88: 5.40952 | N88: 20.35478 | O88: 0.64994
B89: Gminy miejsko-wiejskie:
B90: Urban-rural gminas:
B91: Gryfów Śląski | D91: 100 | E91: 10.22164 | F91: 10.22164 | G91: 89.77836 | H91: 5.20814 | I91: 0 | J91: 28.75983 | K91: 55.11913 | L91: 29.05999 | M91: 5.10616 | N91: 17.75517 | O91: 0.39686
B92: Lubomierz | D92: 100 | E92: 5.83645 | F92: 5.82583 | G92: 94.16355 | H92: 3.56856 | I92: 0 | J92: 25.85629 | K92: 63.72014 | L92: 32.71355 | M92: 5.95041 | N92: 20.55489 | O92: 0.80004
B93: Lwówek Śląski | D93: 100 | E93: 6.32876 | F93: 6.32876 | G93: 93.67124 | H93: 6.63191 | I93: 0 | J93: 25.77966 | K93: 60.31906 | L93: 28.49498 | M93: 5.0795 | N93: 23.10691 | O93: 0.66951
B94: Mirsk | D94: 100 | E94: 6.67871 | F94: 6.43171 | G94: 93.32129 | H94: 2.40974 | I94: 0 | J94: 31.94143 | K94: 58.21197 | L94: 29.58692 | M94: 5.74107 | N94: 19.42973 | O94: 0.53797
B95: Wleń | D95: 100 | E95: 11.01291 | F95: 10.99542 | G95: 88.98709 | H95: 3.72053 | I95: 0 | J95: 27.03216 | K95: 57.12704 | L95: 29.46151 | M95: 5.63317 | N95: 16.8837 | O95: 1.05925
B96: POWIAT ZGORZELECKI | D96: 100 | E96: 8.99262 | F96: 7.15767 | G96: 91.00738 | H96: 7.43113 | I96: 1.21724 | J96: 17.30691 | K96: 61.02735 | L96: 29.16242 | M96: 5.4277 | N96: 22.94213 | O96: 0.91171
B97: Gminy miejskie:
B98: Urban gminas:
B99: Zawidów | D99: 100 | E99: 15.50497 | F99: 15.50497 | G99: 84.49503 | H99: 4.23934 | I99: 0 | J99: 17.82892 | K99: 61.51682 | L99: 35.46332 | M99: 6.34892 | N99: 17.09321 | O99: 0.5945
B100: Zgorzelec | D100: 100 | E100: 6.54333 | F100: 4.30904 | G100: 93.45667 | H100: 12.06587 | I100: 0.39721 | J100: 17.39863 | K100: 62.28035 | L100: 28.77678 | M100: 5.70202 | N100: 24.39667 | O100: 1.37734
B101: Gminy miejsko-wiejskie:
B102: Urban-rural gminas:
B103: Bogatynia | D103: 100 | E103: 6.66687 | F103: 4.08071 | G103: 93.33313 | H103: 5.51116 | I103: 2.51612 | J103: 12.36613 | K103: 64.01575 | L103: 29.56726 | M103: 5.27475 | N103: 25.64006 | O103: 0.73743
B104: Pieńsk | D104: 100 | E104: 8.9772 | F104: 8.9772 | G104: 91.0228 | H104: 4.44385 | I104: 0 | J104: 28.77326 | K104: 56.52519 | L104: 28.90229 | M104: 5.6234 | N104: 18.05998 | O104: 0.59022
B105: Węgliniec | D105: 100 | E105: 15.52518 | F105: 15.52518 | G105: 84.47482 | H105: 6.78284 | I105: 1.77147 | J105: 24.11491 | K105: 52.54155 | L105: 26.50969 | M105: 5.01578 | N105: 18.24029 | O105: 0.8088
B106: Gminy wiejskie:
B107: Rural gminas:
B108: Sulików | D108: 100 | E108: 9.7316 | F108: 5.29029 | G108: 90.2684 | H108: 5.61126 | I108: 0 | J108: 24.28417 | K108: 59.19894 | L108: 28.56727 | M108: 5.27122 | N108: 20.47731 | O108: 0.86214
B109: Zgorzelec | D109: 100 | E109: 16.0387 | F109: 16.0387 | G109: 83.9613 | H109: 7.84244 | I109: 0 | J109: 17.45544 | K109: 57.57442 | L109: 28.94381 | M109: 5.23314 | N109: 20.03546 | O109: 0.85009
B110: POWIAT ZŁOTORYJSKI | D110: 100 | E110: 6.61447 | F110: 6.61447 | G110: 93.38553 | H110: 6.11876 | I110: 0.61665 | J110: 27.13213 | K110: 58.53675 | L110: 28.91511 | M110: 5.46248 | N110: 19.12625 | O110: 0.91072
B111: Gminy miejskie:
B112: Urban gminas:
B113: Wojcieszów | D113: 100 | E113: 10.48281 | F113: 10.48281 | G113: 89.51719 | H113: 2.11994 | I113: 0 | J113: 30.14236 | K113: 56.33604 | L113: 30.46775 | M113: 5.14906 | N113: 17.04733 | O113: 0.62271
B114: Złotoryja | D114: 100 | E114: 3.73406 | F114: 3.73406 | G114: 96.26594 | H114: 7.20142 | I114: 0 | J114: 22.08853 | K114: 65.11899 | L114: 29.44088 | M114: 5.45289 | N114: 25.85591 | O114: 1.50045
B115: Gminy miejsko-wiejskie:
B116: Urban-rural gminas:
B117: Świerzawa | D117: 100 | E117: 4.65352 | F117: 4.65352 | G117: 95.34648 | H117: 6.16099 | I117: 0 | J117: 32.27598 | K117: 53.3937 | L117: 27.87667 | M117: 5.74502 | N117: 15.61445 | O117: 0.60847
B118: Gminy wiejskie:
B119: Rural gminas:
B120: Pielgrzymka | D120: 100 | E120: 7.59365 | F120: 7.59365 | G120: 92.40635 | H120: 4.92167 | I120: 0 | J120: 30.32018 | K120: 56.04592 | L120: 30.39924 | M120: 5.60022 | N120: 15.63271 | O120: 0.9816
B121: Zagrodno | D121: 100 | E121: 9.42757 | F121: 9.42757 | G121: 90.57243 | H121: 4.2795 | I121: 1.53692 | J121: 28.35834 | K121: 57.55771 | L121: 29.09802 | M121: 5.21146 | N121: 15.96368 | O121: 0.17399
B122: Złotoryja | D122: 100 | E122: 9.03621 | F122: 9.03621 | G122: 90.96379 | H122: 8.18988 | I122: 2.37312 | J122: 27.04372 | K122: 54.84729 | L122: 27.0301 | M122: 5.46039 | N122: 15.76547 | O122: 0.72425
B123: PODREGION LEGNICKO-GŁOGOWSKI | D123: 100 | E123: 12.75338 | F123: 11.96377 | G123: 87.24662 | H123: 8.23349 | I123: 0.8932 | J123: 18.73354 | K123: 56.43533 | L123: 28.07283 | M123: 5.211 | N123: 19.81979 | O123: 0.97202
B124: SUBREGION
B125: POWIAT GŁOGOWSKI | D125: 100 | E125: 15.956 | F125: 14.84366 | G125: 84.044 | H125: 8.4885 | I125: 1.25967 | J125: 18.15701 | K125: 54.4399 | L125: 26.20099 | M125: 4.80047 | N125: 20.50925 | O125: 1.94565
B126: Gminy miejskie:
B127: Urban gminas:
B128: Głogów | D128: 100 | E128: 16.02181 | F128: 14.47228 | G128: 83.97819 | H128: 9.39094 | I128: 1.26128 | J128: 17.48899 | K128: 54.60353 | L128: 26.41016 | M128: 4.80106 | N128: 21.08671 | O128: 2.43642
B129: Gminy wiejskie:
B130: Rural gminas:
B131: Głogów | D131: 100 | E131: 9.35568 | F131: 9.35568 | G131: 90.64432 | H131: 5.87575 | I131: 0 | J131: 22.79125 | K131: 61.19846 | L131: 26.44631 | M131: 5.09262 | N131: 25.89338 | O131: 0.72865
B132: Jerzmanowa | D132: 100 | E132: 23.5896 | F132: 23.5896 | G132: 76.4104 | H132: 9.21246 | I132: 3.45502 | J132: 11.56332 | K132: 45.78923 | L132: 21.79452 | M132: 4.05556 | N132: 15.99231 | O132: 0.50609
B133: Kotla | D133: 100 | E133: 10.20904 | F133: 10.20904 | G133: 89.79096 | H133: 3.44452 | I133: 0 | J133: 24.06935 | K133: 61.4884 | L133: 30.79912 | M133: 5.83131 | N133: 19.38706 | O133: 0.72513
B134: Pęcław | D134: 100 | E134: 1.1383 | F134: 1.1383 | G134: 98.8617 | H134: 5.24665 | I134: 0 | J134: 38.03835 | K134: 53.21969 | L134: 29.11434 | M134: 4.81708 | N134: 13.34161 | O134: 2.20862
B135: Żukowice | D135: 100 | E135: 20.27715 | F135: 20.27715 | G135: 79.72285 | H135: 3.1741 | I135: 0 | J135: 21.18186 | K135: 54.9579 | L135: 26.23649 | M135: 4.96368 | N135: 18.59292 | O135: 0.32142
B136: POWIAT GÓROWSKI | D136: 100 | E136: 10.55634 | F136: 10.55634 | G136: 89.44366 | H136: 2.73187 | I136: 0.11776 | J136: 31.5021 | K136: 54.06677 | L136: 29.16179 | M136: 5.74985 | N136: 14.50419 | O136: 1.01337
B137: Gminy miejsko-wiejskie:
B138: Urban-rural gminas:
B139: Góra | D139: 100 | E139: 12.15194 | F139: 12.15194 | G139: 87.84806 | H139: 2.65127 | I139: 0 | J139: 30.91582 | K139: 53.22668 | L139: 28.59971 | M139: 5.68142 | N139: 14.70914 | O139: 1.00926
B140: Wąsosz | D140: 100 | E140: 11.97963 | F140: 11.97963 | G140: 88.02037 | H140: 2.58889 | I140: 0.42086 | J140: 29.82141 | K140: 54.30032 | L140: 30.73816 | M140: 5.85781 | N140: 13.03842 | O140: 1.23748
B141: Gminy wiejskie:
B142: Rural gminas:
B143: Jemielno | D143: 100 | E143: 3.26287 | F143: 3.26287 | G143: 96.73713 | H143: 2.83287 | I143: 0 | J143: 38.02885 | K143: 54.51083 | L143: 29.0832 | M143: 6.32845 | N143: 13.35138 | O143: 1.28845
B144: Niechlów | D144: 100 | E144: 6.13962 | F144: 6.13962 | G144: 93.86038 | H144: 3.22846 | I144: 0.25442 | J144: 32.41044 | K144: 57.08067 | L144: 29.31795 | M144: 5.52221 | N144: 16.50743 | O144: 0.52687
B145: POWIAT LEGNICKI | D145: 100 | E145: 11.91242 | F145: 11.68067 | G145: 88.08758 | H145: 6.12883 | I145: 0.89606 | J145: 23.99962 | K145: 56.81544 | L145: 28.02795 | M145: 5.19594 | N145: 19.57284 | O145: 0.67033
B146: Gminy miejskie:
B147: Urban gminas:
B148: Chojnów | D148: 100 | E148: 6.54238 | F148: 6.54238 | G148: 93.45762 | H148: 5.52194 | I148: 0 | J148: 22.64073 | K148: 64.75302 | L148: 36.65362 | M148: 6.81283 | N148: 18.69497 | O148: 0.27584
B149: Gminy miejsko-wiejskie:
B150: Urban-rural gminas:
B151: Prochowice | D151: 100 | E151: 13.2094 | F151: 13.2094 | G151: 86.7906 | H151: 5.39071 | I151: 0 | J151: 23.85187 | K151: 56.78869 | L151: 29.19173 | M151: 5.57331 | N151: 18.13929 | O151: 0.51338
B152: Gminy wiejskie:
B153: Rural gminas:
B154: Chojnów | D154: 100 | E154: 17.25247 | F154: 17.25247 | G154: 82.74753 | H154: 6.4817 | I154: 1.16295 | J154: 27.84741 | K154: 47.4889 | L154: 23.21249 | M154: 3.99088 | N154: 15.8637 | O154: 0.84669
B155: Krotoszyce | D155: 100 | E155: 5.73792 | F155: 5.73792 | G155: 94.26208 | H155: 3.17528 | I155: 0 | J155: 21.58116 | K155: 69.00543 | L155: 31.61257 | M155: 6.0967 | N155: 23.25821 | O155: 0.29049
B156: Kunice | D156: 100 | E156: 14.02747 | F156: 14.02747 | G156: 85.97253 | H156: 6.91367 | I156: 0 | J156: 20.75447 | K156: 56.00109 | L156: 24.9368 | M156: 4.78866 | N156: 22.87159 | O156: 1.00897
B157: Legnickie Pole | D157: 100 | E157: 14.00865 | F157: 11.94876 | G157: 85.99135 | H157: 6.79811 | I157: 0 | J157: 19.47369 | K157: 57.67195 | L157: 23.8236 | M157: 4.35501 | N157: 25.46802 | O157: 0.50472
B158: Miłkowice | D158: 100 | E158: 9.94225 | F158: 9.94225 | G158: 90.05775 | H158: 10.9413 | I158: 6.36037 | J158: 28.17369 | K158: 49.55101 | L158: 24.61492 | M158: 4.55643 | N158: 16.5824 | O158: 1.31569
B159: Ruja | D159: 100 | E159: 14.41949 | F159: 14.41949 | G159: 85.58051 | H159: 0.16646 | I159: 0 | J159: 28.31885 | K159: 56.14369 | L159: 24.82821 | M159: 4.63718 | N159: 20.7672 | O159: 0.78424
B160: POWIAT LUBIŃSKI | D160: 100 | E160: 10.46359 | F160: 9.37431 | G160: 89.53641 | H160: 11.34432 | I160: 1.14267 | J160: 16.10153 | K160: 60.30396 | L160: 30.41708 | M160: 5.47975 | N160: 21.52515 | O160: 0.54601
B161: Gminy miejskie:
B162: Urban gminas:
B163: Lubin | D163: 100 | E163: 7.34912 | F163: 5.75797 | G163: 92.65088 | H163: 9.96747 | I163: 0 | J163: 15.39871 | K163: 66.50492 | L163: 34.24844 | M163: 6.11945 | N163: 23.22879 | O163: 0.57931
B164: Gminy miejsko-wiejskie:
B165: Urban-rural gminas:
B166: Ścinawa | D166: 100 | E166: 22.23239 | F166: 22.23239 | G166: 77.76761 | H166: 4.96782 | I166: 1.16733 | J166: 24.45618 | K166: 46.34397 | L166: 24.25361 | M166: 4.30871 | N166: 14.014 | O166: 1.32919
B167: Gminy wiejskie:
B168: Rural gminas:
B169: Lubin | D169: 100 | E169: 16.68457 | F169: 16.41622 | G169: 83.31543 | H169: 19.57558 | I169: 4.87895 | J169: 14.49173 | K169: 45.13747 | L169: 21.35222 | M169: 3.84313 | N169: 17.76167 | O169: 0.31392
B170: Rudna | D170: 100 | E170: 11.01901 | F170: 11.01901 | G170: 88.98099 | H170: 13.13181 | I170: 2.83374 | J170: 15.96834 | K170: 55.24036 | L170: 24.63125 | M170: 4.83398 | N170: 22.73951 | O170: 0
B171: POWIAT POLKOWICKI | D171: 100 | E171: 13.59616 | F171: 12.90195 | G171: 86.40384 | H171: 7.36461 | I171: 0.48879 | J171: 14.7076 | K171: 54.35158 | L171: 26.68937 | M171: 5.10478 | N171: 19.13536 | O171: 0.63735
B172: Gminy miejsko-wiejskie:
B173: Urban-rural gminas:
B174: Chocianów | D174: 100 | E174: 18.05519 | F174: 17.42103 | G174: 81.94481 | H174: 6.24785 | I174: 2.88119 | J174: 23.07638 | K174: 50.94386 | L174: 30.65974 | M174: 5.94831 | N174: 10.57696 | O174: 1.38121
B175: Polkowice | D175: 100 | E175: 10.51371 | F175: 9.48776 | G175: 89.48629 | H175: 9.09275 | I175: 0 | J175: 9.6586 | K175: 56.14791 | L175: 25.38395 | M175: 4.7976 | N175: 23.09002 | O175: 0
B176: Przemków | D176: 100 | E176: 2.03597 | F176: 2.03597 | G176: 97.96403 | H176: 2.63036 | I176: 0 | J176: 30.41811 | K176: 58.75574 | L176: 33.40264 | M176: 6.41813 | N176: 12.35341 | O176: 5.90121
B177: Gminy wiejskie:
B178: Rural gminas:
B179: Gaworzyce | D179: 100 | E179: 25.81255 | F179: 25.81255 | G179: 74.18745 | H179: 3.87689 | I179: 0 | J179: 25.62273 | K179: 43.95576 | L179: 24.67215 | M179: 4.63037 | N179: 11.04099 | O179: 0.66203
B180: Grębocice | D180: 100 | E180: 25.79308 | F180: 25.79308 | G180: 74.20692 | H180: 5.88892 | I180: 1.3755 | J180: 15.19756 | K180: 50.13181 | L180: 24.51658 | M180: 4.79574 | N180: 16.92964 | O180: 0.00378
B181: Radwanice | D181: 100 | E181: 20.07267 | F181: 20.07267 | G181: 79.92733 | H181: 3.12401 | I181: 0 | J181: 20.15883 | K181: 52.75694 | L181: 28.62465 | M181: 5.73418 | N181: 14.93202 | O181: 0.1607
B182: PODREGION WAŁBRZYSKI | D182: 100 | E182: 12.46246 | F182: 11.92869 | G182: 87.53754 | H182: 7.31644 | I182: 0.3532 | J182: 22.34148 | K182: 56.79582 | L182: 25.98727 | M182: 5.03333 | N182: 21.83482 | O182: 0.95897
B183: SUBREGION
B184: POWIAT DZIERŻONIOWSKI | D184: 100 | E184: 11.12293 | F184: 10.6537 | G184: 88.87707 | H184: 10.34237 | I184: 1.13588 | J184: 23.20669 | K184: 54.24007 | L184: 23.41654 | M184: 4.65175 | N184: 22.24551 | O184: 0.93289
B185: Gminy miejskie:
B186: Urban gminas:
B187: Bielawa | D187: 100 | E187: 10.49664 | F187: 9.28279 | G187: 89.50336 | H187: 9.74884 | I187: 1.88145 | J187: 18.67489 | K187: 59.89644 | L187: 19.09652 | M187: 3.82364 | N187: 33.09983 | O187: 1.10975
B188: Dzierżoniów | D188: 100 | E188: 14.31495 | F188: 14.19058 | G188: 85.68505 | H188: 12.86291 | I188: 1.48536 | J188: 22.98025 | K188: 48.83825 | L188: 23.66391 | M188: 4.73826 | N188: 16.83713 | O188: 0.86282
B189: Piława Górna | D189: 100 | E189: 9.31137 | F189: 9.31137 | G189: 90.68863 | H189: 4.94516 | I189: 0 | J189: 28.71892 | K189: 56.35835 | L189: 27.30923 | M189: 5.27717 | N189: 20.57784 | O189: 0.63297
B190: Gminy miejsko-wiejskie:
B191: Urban-rural gminas:
B192: Niemcza | D192: 100 | E192: 7.66194 | F192: 7.66194 | G192: 92.33806 | H192: 11.7542 | I192: 0 | J192: 26.85237 | K192: 51.76087 | L192: 25.16807 | M192: 5.18884 | N192: 17.17077 | O192: 1.04058
B193: Pieszyce | D193: 100 | E193: 8.88761 | F193: 8.52781 | G193: 91.11239 | H193: 13.34634 | I193: 0.45858 | J193: 30.75806 | K193: 46.06697 | L193: 22.41365 | M193: 4.10568 | N193: 16.42454 | O193: 0.91794
B194: Gminy wiejskie:
B195: Rural gminas:
B196: Dzierżoniów | D196: 100 | E196: 11.79057 | F196: 11.7712 | G196: 88.20943 | H196: 7.1019 | I196: 0 | J196: 26.09106 | K196: 53.92569 | L196: 27.91239 | M196: 5.66982 | N196: 14.97244 | O196: 0.8432
B197: Łagiewniki | D197: 100 | E197: 5.01122 | F197: 5.01122 | G197: 94.98878 | H197: 5.48233 | I197: 0 | J197: 25.91771 | K197: 62.67035 | L197: 33.41565 | M197: 6.55606 | N197: 17.57049 | O197: 0.72989
B198: POWIAT KŁODZKI | D198: 100 | E198: 12.29045 | F198: 12.07325 | G198: 87.70955 | H198: 7.43961 | I198: 0.1459 | J198: 22.69824 | K198: 56.42507 | L198: 25.75894 | M198: 4.92786 | N198: 21.95438 | O198: 1.01056
B199: Gminy miejskie:
B200: Urban gminas:
B201: Duszniki-Zdrój | D201: 100 | E201: 43.37855 | F201: 43.37855 | G201: 56.62145 | H201: 4.42019 | I201: 0 | J201: 11.51047 | K201: 39.70051 | L201: 18.74981 | M201: 3.38006 | N201: 15.62764 | O201: 0.59957
B202: Kłodzko | D202: 100 | E202: 8.00741 | F202: 6.83846 | G202: 91.99259 | H202: 10.49809 | I202: 0 | J202: 24.14151 | K202: 56.43157 | L202: 28.22178 | M202: 5.44324 | N202: 20.17168 | O202: 0.91621
B203: Kudowa-Zdrój | D203: 100 | E203: 7.39686 | F203: 7.39686 | G203: 92.60314 | H203: 6.28146 | I203: 0 | J203: 17.31164 | K203: 67.63635 | L203: 30.61324 | M203: 5.51617 | N203: 27.80022 | O203: 1.36308
B204: Nowa Ruda | D204: 100 | E204: 5.5303 | F204: 5.5303 | G204: 94.4697 | H204: 6.69508 | I204: 0 | J204: 23.02103 | K204: 63.65152 | L204: 23.83313 | M204: 4.6185 | N204: 29.57473 | O204: 1.02393
... 147 more rows

Sheet Tabl.14.
B4: Tabl. 14. Wydatki budżetów gmina według działów oraz podregionów i powiatów
B5: Expenditure of gminas budgetsa by divisions as well as subregions and powiats
B6: WYSZCZEGÓLNIENIE SPECIFICATION | D6: Ogółem Total | E6: W tym Of which
E7: transport i łączność transport and communication | F7: gospodarka mieszkaniowa dwelling economy | G7: działalność usługowa service activity | H7: administracja publiczna public administration | I7: oświata i wychowanie education | J7: ochrona zdrowia health care | K7: pomoc społeczna social welfare | L7: gospodarka komunalna i ochrona środowiska municipal economy and environmental protection | M7: kultura i ochrona dziedzictwa narodowego culture and national heritage | N7: kultura fizyczna physical education
D9: w tys. zł in thous. zl
B10: O G Ó Ł E M | C10: 2015 | D10: 6880258.213 | E10: 610749.6822 | F10: 319449.3419 | G10: 28436.59611 | H10: 752176.7695 | I10: 2234397.509 | J10: 67428.92109 | K10: 954614.7434 | L10: 783750.1869 | M10: 334487.5336 | N10: 218409.0262
B11: T O T A L | C11: 2016 | D11: 7665498.505 | E11: 550997.0755 | F11: 300669.0759 | G11: 33911.2309 | H11: 771608.4459 | I11: 2286759.586 | J11: 66323.39416 | K11: 1858823.023 | L11: 729419.521 | M11: 316326.0932 | N11: 223090.4481
B13: Gminy miejskie | D13: 2479142.391 | E13: 196006.3628 | F13: 157434.8796 | G13: 11546.62449 | H13: 223587.3665 | I13: 726253.242 | J13: 22229.26807 | K13: 578370.0561 | L13: 244890.2157 | M13: 101637.04 | N13: 87648.99364
B14: Urban gminas
B15: Gminy miejsko-wiejskie | D15: 2876862.748 | E15: 171673.8178 | F15: 100716.3158 | G15: 15274.66638 | H15: 296938.9568 | I15: 849176.9059 | J15: 28146.01826 | K15: 721668.0496 | L15: 275133.1759 | M15: 116256.6314 | N15: 80759.18324
B16: Urban-rural gminas
B17: Gminy wiejskie | D17: 2309493.366 | E17: 183316.8949 | F17: 42517.88047 | G17: 7089.94003 | H17: 251082.1227 | I17: 711329.4384 | J17: 15948.10783 | K17: 558784.9172 | L17: 209396.1293 | M17: 98432.42187 | N17: 54682.27126
B18: Rural gminas
B19: PODREGION JELENIOGÓRSKI | D19: 1800500.039 | E19: 96419.31971 | F19: 68207.42139 | G19: 6954.82336 | H19: 193688.0526 | I19: 526551.4364 | J19: 15108.46667 | K19: 471756.4784 | L19: 185455.284 | M19: 70717.81354 | N19: 42994.4073
B20: SUBREGION
B21: POWIAT BOLESŁAWIECKI | D21: 325546.5777 | E21: 20771.17293 | F21: 15352.67988 | G21: 851.28196 | H21: 29573.86744 | I21: 99037.36303 | J21: 2850.56552 | K21: 85226.1493 | L21: 30083.84497 | M21: 17967.16297 | N21: 11390.15583
B22: Gminy miejskie:
B23: Urban gminas:
B24: Bolesławiec | D24: 142551.4683 | E24: 9530.6963 | F24: 13178.83538 | G24: 362.78388 | H24: 12703.56293 | I24: 38454.74733 | J24: 1371.55893 | K24: 34559.82612 | L24: 14405.30425 | M24: 8786.97997 | N24: 5840.19593
B25: Gminy miejsko-wiejskie:
B26: Urban-rural gminas:
B27: Nowogrodziec | D27: 51517.38046 | E27: 1460.53262 | F27: 1232.39978 | G27: 59.0893 | H27: 4346.86991 | I27: 18677.86885 | J27: 792.71326 | K27: 15039.5114 | L27: 3288.73706 | M27: 1575.08326 | N27: 730.64961
B28: Gminy wiejskie:
B29: Rural gminas:
B30: Bolesławiec | D30: 46501.37713 | E30: 1635.59111 | F30: 384.83705 | G30: 153.36961 | H30: 4278.98913 | I30: 15124.41904 | J30: 183.44605 | K30: 12195.28417 | L30: 4096.59701 | M30: 4099.77551 | N30: 2456.602
B31: Gromadka | D31: 24405.72618 | E31: 4255.24816 | F31: 440.85276 | G31: 90.46508 | H31: 2733.79784 | I31: 6239.12277 | J31: 257.72931 | K31: 6530.17718 | L31: 1742.07264 | M31: 896.64503 | N31: 313.97133
B32: Osiecznica | D32: 30435.17271 | E32: 2525.53219 | F32: 36.3927 | G32: 78.52016 | H32: 2458.32746 | I32: 10699.68007 | J32: 136.28659 | K32: 7778.68612 | L32: 2616.19335 | M32: 1339.767 | N32: 1688.94442
B33: Warta Bolesławiecka | D33: 30135.45297 | E33: 1363.57255 | F33: 79.36221 | G33: 107.05393 | H33: 3052.32017 | I33: 9841.52497 | J33: 108.83138 | K33: 9122.66431 | L33: 3934.94066 | M33: 1268.9122 | N33: 359.79254
B34: POWIAT JAWORSKI | D34: 176105.1937 | E34: 7343.78764 | F34: 2376.46376 | G34: 489.57098 | H34: 18758.64872 | I34: 52098.03707 | J34: 998.59104 | K34: 50456.76073 | L34: 17711.76459 | M34: 6500.85878 | N34: 3090.53966
B35: Gminy miejskie:
B36: Urban gminas:
B37: Jawor | D37: 75517.00093 | E37: 1046.28956 | F37: 803.44865 | G37: 353.96954 | H37: 7371.35165 | I37: 22519.77993 | J37: 508.52841 | K37: 21031.54287 | L37: 10556.22863 | M37: 3540.79082 | N37: 1943.48979
B38: Gminy miejsko-wiejskie:
B39: Urban-rural gminas:
B40: Bolków | D40: 34023.57586 | E40: 1306.27056 | F40: 614.06136 | G40: 33.06098 | H40: 3104.34338 | I40: 10596.91663 | J40: 187.93681 | K40: 11972.20904 | L40: 2853.49676 | M40: 1175.6374 | N40: 311.77114
B41: Gminy wiejskie:
B42: Rural gminas:
B43: Męcinka | D43: 18615.65519 | E43: 534.93888 | F43: 529.62718 | G43: 50.36601 | H43: 2203.53853 | I43: 5702.04514 | J43: 87.24829 | K43: 5151.94581 | L43: 935.99099 | M43: 713.7831 | N43: 380.20901
B44: Mściwojów | D44: 15622.47303 | E44: 1827.1706 | F44: 43.79185 | G44: 12.14292 | H44: 2119.70952 | I44: 3909.48841 | J44: 66.95076 | K44: 4142.26816 | L44: 1033.81847 | M44: 202.05922 | N44: 53.60181
B45: Paszowice | D45: 14521.90079 | E45: 1038.30919 | F45: 308.33983 | G45: 3 | H45: 2091.96494 | I45: 4462.5101 | J45: 46.16492 | K45: 3736.68472 | L45: 1481.68796 | M45: 541.20945 | N45: 116.12623
B46: Wądroże Wielkie | D46: 17804.58789 | E46: 1590.80885 | F46: 77.19489 | G46: 37.03153 | H46: 1867.7407 | I46: 4907.29686 | J46: 101.76185 | K46: 4422.11013 | L46: 850.54178 | M46: 327.37879 | N46: 285.34168
B47: POWIAT JELENIOGÓRSKI | D47: 243795.598 | E47: 21329.93617 | F47: 8121.79162 | G47: 1307.7226 | H47: 29251.75407 | I47: 61434.04963 | J47: 2637.62859 | K47: 63719.42322 | L47: 28444.39387 | M47: 6042.98421 | N47: 2105.9084
B48: Gminy miejskie:
B49: Urban gminas:
B50: Karpacz | D50: 30616.03468 | E50: 3517.13436 | F50: 2060.68286 | G50: 97.25098 | H50: 5287.7932 | I50: 6220.79017 | J50: 651.30609 | K50: 4044.23945 | L50: 4757.99969 | M50: 614.98024 | N50: 564.99969
B51: Kowary | D51: 36068.06755 | E51: 1336.37553 | F51: 1168.66786 | G51: 208.51895 | H51: 3736.32196 | I51: 9094.40585 | J51: 168.3985 | K51: 13044.98154 | L51: 4475.16206 | M51: 650.3626 | N51: 338.82731
B52: Piechowice | D52: 21952.39844 | E52: 2831.03407 | F52: 1167.99647 | G52: 126.4175 | H52: 2606.44951 | I52: 5430.94443 | J52: 110.77411 | K52: 6006.06503 | L52: 1701.70114 | M52: 399 | N52: 117.49303
B53: Szklarska Poręba | D53: 33408.46939 | E53: 2608.09707 | F53: 1894.1186 | G53: 264.68722 | H53: 4718.59912 | I53: 6525.2537 | J53: 1078.49662 | K53: 5762.43006 | L53: 4312.99182 | M53: 1981.90934 | N53: 177.36687
B54: Gminy wiejskie:
B55: Rural gminas:
B56: Janowice Wielkie | D56: 14161.27854 | E56: 1034.89861 | F56: 339.30947 | G56: 21.16002 | H56: 2105.9097 | I56: 3306.76759 | J56: 73.26948 | K56: 3718.36636 | L56: 1470.67982 | M56: 285.78426 | N56: 63.37328
B57: Jeżów Sudecki | D57: 23578.19182 | E57: 4592.36082 | F57: 268.76258 | G57: 93.99343 | H57: 2324.10861 | I57: 5333.06456 | J57: 76.42708 | K57: 6493.16725 | L57: 2168.54487 | M57: 322.20773 | N57: 355.8771
B58: Mysłakowice | D58: 36565.61898 | E58: 2235.78154 | F58: 760.20679 | G58: 72.73094 | H58: 3238.80324 | I58: 11632.28688 | J58: 230.53971 | K58: 10371.36579 | L58: 5787.27709 | M58: 618.65334 | N58: 250.02997
B59: Podgórzyn | D59: 27669.73613 | E59: 2069.46679 | F59: 275.26713 | G59: 194.0785 | H59: 3173.9267 | I59: 7799.8267 | J59: 173.56043 | K59: 8667.29262 | L59: 2763.81279 | M59: 638.70936 | N59: 157.17126
B60: Stara Kamienica | D60: 19775.80246 | E60: 1104.78738 | F60: 186.77986 | G60: 228.88506 | H60: 2059.84203 | I60: 6090.70975 | J60: 74.85657 | K60: 5611.51512 | L60: 1006.22459 | M60: 531.37734 | N60: 80.76989
B61: POWIAT KAMIENNOGÓRSKI | D61: 151735.4346 | E61: 5623.4874 | F61: 7883.847 | G61: 923.91669 | H61: 16164.85516 | I61: 47458.2155 | J61: 687.28485 | K61: 43507.42324 | L61: 11663.7939 | M61: 5139.96888 | N61: 4896.19465
B62: Gminy miejskie:
B63: Urban gminas:
B64: Kamienna Góra | D64: 64313.72012 | E64: 737.89733 | F64: 5703.99493 | G64: 574.39597 | H64: 6486.29874 | I64: 19762.26898 | J64: 374.68856 | K64: 18895.31514 | L64: 5448.50709 | M64: 2271.6425 | N64: 2025.03768
B65: Gminy miejsko-wiejskie:
B66: Urban-rural gminas:
B67: Lubawka | D67: 35636.5688 | E67: 1343.55904 | F67: 953.85614 | G67: 148.12469 | H67: 3036.47224 | I67: 13027.28417 | J67: 175.41536 | K67: 10040.21353 | L67: 2787.23388 | M67: 890.70568 | N67: 2203.64641
B68: Gminy wiejskie:
B69: Rural gminas:
B70: Kamienna Góra | D70: 34754.84254 | E70: 2268.34026 | F70: 1078.21352 | G70: 94.86357 | H70: 4311.22148 | I70: 10598.7404 | J70: 99.64355 | K70: 9477.00016 | L70: 2363.06341 | M70: 1577.53453 | N70: 445.70759
B71: Marciszów | D71: 17030.30315 | E71: 1273.69077 | F71: 147.78241 | G71: 106.53246 | H71: 2330.8627 | I71: 4069.92195 | J71: 37.53738 | K71: 5094.89441 | L71: 1064.98952 | M71: 400.08617 | N71: 221.80297
B72: POWIAT LUBAŃSKI | D72: 204330.2516 | E72: 10393.10325 | F72: 8822.27856 | G72: 753.94669 | H72: 23407.88009 | I72: 63633.07696 | J72: 1287.50994 | K72: 54623.52176 | L72: 19830.7781 | M72: 6154.47881 | N72: 3987.96333
B73: Gminy miejskie:
B74: Urban gminas:
B75: Lubań | D75: 69892.73692 | E75: 1287.1919 | F75: 4984.68036 | G75: 379.0656 | H75: 8037.92818 | I75: 23354.09009 | J75: 554.99979 | K75: 17777.67536 | L75: 6511.66265 | M75: 1957.7177 | N75: 1814.53717
B76: Świeradów-Zdrój | D76: 28325.54594 | E76: 2680.68427 | F76: 2476.12569 | G76: 52.5827 | H76: 3339.38101 | I76: 6834.60131 | J76: 305.31599 | K76: 4973.86537 | L76: 4487.57918 | M76: 605.09612 | N76: 214.08152
B77: Gminy miejsko-wiejskie:
B78: Urban-rural gminas:
B79: Leśna | D79: 35922.24699 | E79: 2318.64235 | F79: 373.60796 | G79: 37.3159 | H79: 3529.45674 | I79: 10623.63198 | J79: 161.55429 | K79: 12613.98913 | L79: 3076.62385 | M79: 1053.45901 | N79: 642.62114
B80: Olszyna | D80: 23950.30534 | E80: 2063.31913 | F80: 398.56649 | G80: 111.28118 | H80: 2281.27888 | I80: 7027.19362 | J80: 123.21578 | K80: 7408.04624 | L80: 1915.28289 | M80: 722.64485 | N80: 708.13935
B81: Gminy wiejskie:
B82: Rural gminas:
B83: Lubań | D83: 23972.89208 | E83: 1301.29977 | F83: 381.07277 | G83: 96.00735 | H83: 2589.96772 | I83: 8336.29065 | J83: 58.57419 | K83: 6384.31273 | L83: 1586.21973 | M83: 979.28653 | N83: 312.21415
B84: Platerówka | D84: 6424.47617 | E84: 258.56047 | F84: 19.64463 | G84: 2.54432 | H84: 974.14952 | I84: 2419.25601 | J84: 14.6179 | K84: 1524.91658 | L84: 583.84612 | M84: 174.86218 | N84: 43.26923
B85: Siekierczyn | D85: 15842.04814 | E85: 483.40536 | F85: 188.58066 | G85: 75.14964 | H85: 2655.71804 | I85: 5038.0133 | J85: 69.232 | K85: 3940.71635 | L85: 1669.56368 | M85: 661.41242 | N85: 253.10077
B86: POWIAT LWÓWECKI | D86: 151365.1721 | E86: 6328.9096 | F86: 3207.32032 | G86: 723.98752 | H86: 14452.48613 | I86: 48917.33256 | J86: 791.84565 | K86: 45876.6931 | L86: 12953.63619 | M86: 6313.07811 | N86: 1314.72499
B87: Gminy miejsko-wiejskie:
B88: Urban-rural gminas:
B89: Gryfów Śląski | D89: 28445.20608 | E89: 1665.76224 | F89: 431.41992 | G89: 83.69787 | H89: 2715.78299 | I89: 8223.34941 | J89: 134.99598 | K89: 9259.16649 | L89: 3642.32431 | M89: 1037.56314 | N89: 216.34037
B90: Lubomierz | D90: 24007.32365 | E90: 1210.05993 | F90: 563.98619 | G90: 48.42996 | H90: 2289.36452 | I90: 7656.24897 | J90: 84.70665 | K90: 6439.87817 | L90: 1515.29938 | M90: 1087.91921 | N90: 299.57088
B91: Lwówek Śląski | D91: 53777.49002 | E91: 2079.4684 | F91: 1396.2302 | G91: 338.8105 | H91: 4894.28801 | I91: 18187.89099 | J91: 331.45719 | K91: 15611.5622 | L91: 4253.74975 | M91: 2432.72533 | N91: 313.2163
B92: Mirsk | D92: 30560.45206 | E92: 910.90824 | F92: 331.39144 | G92: 113.04552 | H92: 2451.78917 | I92: 10897.10552 | J92: 169.75611 | K92: 10274.8883 | L92: 2729.01021 | M92: 942.03186 | N92: 331.10554
B93: Wleń | D93: 14574.7003 | E93: 462.71079 | F93: 484.29257 | G93: 140.00367 | H93: 2101.26144 | I93: 3952.73767 | J93: 70.92972 | K93: 4291.19794 | L93: 813.25254 | M93: 812.83857 | N93: 154.4919
B94: POWIAT ZGORZELECKI | D94: 386931.5606 | E94: 17946.77773 | F94: 13232.09558 | G94: 1576.94735 | H94: 44296.82434 | I94: 110654.3483 | J94: 5063.62069 | K94: 79256.34329 | L94: 50710.06027 | M94: 16455.24866 | N94: 13733.11971
B95: Gminy miejskie:
B96: Urban gminas:
B97: Zawidów | D97: 14697.20736 | E97: 2184.87621 | F97: 94.66021 | G97: 21.685 | H97: 1695.5371 | I97: 5489.47191 | J97: 121.1022 | K97: 3022.08889 | L97: 1246.12294 | M97: 484.39934 | N97: 99.5
B98: Zgorzelec | D98: 100703.1707 | E98: 5612.81011 | F98: 820.06309 | G98: 876.28834 | H98: 10760.84068 | I98: 34148.22513 | J98: 1093.26681 | K98: 21264.65617 | L98: 13344.37594 | M98: 4456.95657 | N98: 3500.49684
B99: Gminy miejsko-wiejskie:
B100: Urban-rural gminas:
B101: Bogatynia | D101: 148869.3733 | E101: 5086.21359 | F101: 9844.47718 | G101: 97.00094 | H101: 17207.15737 | I101: 36068.26625 | J101: 3014.12851 | K101: 23946.4775 | L101: 19518.99283 | M101: 6827.53414 | N101: 4387.36513
B102: Pieńsk | D102: 29561.61881 | E102: 1349.91557 | F102: 1710.37303 | G102: 105.82718 | H102: 2883.05914 | I102: 8509.5219 | J102: 178.98668 | K102: 9203.77236 | L102: 2991.36788 | M102: 923.00721 | N102: 373.21318
B103: Węgliniec | D103: 31845.71861 | E103: 1075.7202 | F103: 84.32683 | G103: 307.28625 | H103: 3578.28722 | I103: 9434.50321 | J103: 125.15703 | K103: 8392.58376 | L103: 6566.02862 | M103: 946.60521 | N103: 181.36841
B104: Gminy wiejskie:
B105: Rural gminas:
B106: Sulików | D106: 22515.85124 | E106: 737.40864 | F106: 260.04911 | G106: 82.96219 | H106: 2996.12003 | I106: 6661.65693 | J106: 42.93456 | K106: 5978.05681 | L106: 3783.21742 | M106: 630.61804 | N106: 125.90999
B107: Zgorzelec | D107: 38738.62059 | E107: 1899.83341 | F107: 418.14613 | G107: 85.89745 | H107: 5175.8228 | I107: 10342.70295 | J107: 488.0449 | K107: 7448.7078 | L107: 3259.95464 | M107: 2186.12815 | N107: 5065.26616
B108: POWIAT ZŁOTORYJSKI | D108: 160690.2511 | E108: 6682.14499 | F108: 9210.94467 | G108: 327.44957 | H108: 17781.73662 | I108: 43319.01335 | J108: 791.42039 | K108: 49090.16372 | L108: 14057.01209 | M108: 6144.03312 | N108: 2475.80073
B109: Gminy miejskie:
B110: Urban gminas:
B111: Wojcieszów | D111: 14693.49265 | E111: 695.25492 | F111: 926.09068 | G111: 64.25858 | H111: 1521.96015 | I111: 3451.93363 | J111: 42.652 | K111: 4700.62612 | L111: 1756.61337 | M111: 237.85993 | N111: 298.73026
B112: Złotoryja | D112: 51915.99227 | E112: 1062.91426 | F112: 5907.26383 | G112: 78.62303 | H112: 5523.56907 | I112: 12528.46741 | J112: 325.64714 | K112: 14357.50773 | L112: 6306.11401 | M112: 2074.12843 | N112: 1489.54682
B113: Gminy miejsko-wiejskie:
B114: Urban-rural gminas:
B115: Świerzawa | D115: 26261.98976 | E115: 1424.56024 | F115: 161.18942 | G115: 17.2 | H115: 2722.61677 | I115: 7056.33288 | J115: 135.05802 | K115: 9240.36026 | L115: 1609.57702 | M115: 1442.78099 | N115: 112.26802
B116: Gminy wiejskie:
B117: Rural gminas:
B118: Pielgrzymka | D118: 19187.12293 | E118: 512.49908 | F118: 252.87444 | G118: 28.6217 | H118: 1976.96315 | I118: 6302.71735 | J118: 56.39593 | K118: 6277.49629 | L118: 977.90131 | M118: 640.68385 | N118: 145.98263
B119: Zagrodno | D119: 19515.47917 | E119: 1486.5724 | F119: 89.52477 | G119: 67.17354 | H119: 2818.48513 | I119: 5206.6183 | J119: 141.60354 | K119: 6039.86938 | L119: 1650.74051 | M119: 668.80121 | N119: 188.92526
B120: Złotoryja | D120: 29116.17427 | E120: 1500.34409 | F120: 1874.00153 | G120: 71.57272 | H120: 3218.14235 | I120: 8772.94378 | J120: 90.06376 | K120: 8474.30394 | L120: 1756.06587 | M120: 1079.77871 | N120: 240.34774
B121: PODREGION LEGNICKO-GŁOGOWSKI | D121: 1615801.345 | E121: 139922.2113 | F121: 44453.24145 | G121: 7579.21692 | H121: 148607.0928 | I121: 494971.6394 | J121: 19340.2731 | K121: 345004.0979 | L121: 140901.4672 | M121: 76388.03209 | N121: 43101.00048
B122: SUBREGION
B123: POWIAT GŁOGOWSKI | D123: 399157.5207 | E123: 45954.39094 | F123: 15904.76083 | G123: 2490.99749 | H123: 32003.8181 | I123: 116163.9292 | J123: 5685.30649 | K123: 82813.1768 | L123: 31632.04956 | M123: 20410.36899 | N123: 12631.34998
B124: Gminy miejskie:
B125: Urban gminas:
B126: Głogów | D126: 286538.4164 | E126: 35158.46397 | F126: 14578.47543 | G126: 2011.94021 | H126: 18677.34771 | I126: 87100.05291 | J126: 4884.41274 | K126: 58355.04421 | L126: 22355.70875 | M126: 12741.6399 | N126: 10836.17698
B127: Gminy wiejskie:
B128: Rural gminas:
B129: Głogów | D129: 25704.66998 | E129: 655.1362 | F129: 218.8428 | G129: 141.46903 | H129: 2936.6943 | I129: 7010.207 | J129: 368.75559 | K129: 6189.78004 | L129: 4387.7254 | M129: 713.07841 | N129: 753.21718
B130: Jerzmanowa | D130: 40925.94462 | E130: 5823.61628 | F130: 617.8782 | G130: 225.62597 | H130: 4423.02172 | I130: 8948.74164 | J130: 243.45289 | K130: 5146.75084 | L130: 1696.62554 | M130: 5182.26305 | N130: 877.84227
B131: Kotla | D131: 19117.77519 | E131: 1652.10463 | F131: 114.54368 | G131: 67.29 | H131: 2762.90989 | I131: 5440.73621 | J131: 98.06289 | K131: 4982.12368 | L131: 1786.43156 | M131: 847.29898 | N131: 33.31453
B132: Pęcław | D132: 8770.18899 | E132: 19.51074 | F132: 44.54029 | G132: 0 | H132: 1263.89007 | I132: 2244.98057 | J132: 29.76709 | K132: 3685.8001 | L132: 175.42257 | M132: 273.22539 | N132: 49.25147
B133: Żukowice | D133: 18100.52543 | E133: 2645.55912 | F133: 330.48043 | G133: 44.67228 | H133: 1939.95441 | I133: 5419.2109 | J133: 60.85529 | K133: 4453.67793 | L133: 1230.13574 | M133: 652.86326 | N133: 81.54755
B134: POWIAT GÓROWSKI | D134: 146358.1066 | E134: 3602.60886 | F134: 3179.23596 | G134: 209.27751 | H134: 11928.02185 | I134: 43375.99777 | J134: 448.46343 | K134: 50472.1006 | L134: 13643.70869 | M134: 4063.9567 | N134: 2635.59906
B135: Gminy miejsko-wiejskie:
B136: Urban-rural gminas:
B137: Góra | D137: 85224.78598 | E137: 2953.72165 | F137: 2322.52287 | G137: 107.05897 | H137: 5480.98126 | I137: 23521.45774 | J137: 225.35302 | K137: 29768.17425 | L137: 9568.81703 | M137: 2297.80608 | N137: 2100.03483
B138: Wąsosz | D138: 29056.98753 | E138: 331.26537 | F138: 199.64232 | G138: 55.6696 | H138: 2851.85088 | I138: 10072.42323 | J138: 129.32461 | K138: 9116.40913 | L138: 1907.86013 | M138: 599.70634 | N138: 354.8884
B139: Gminy wiejskie:
B140: Rural gminas:
B141: Jemielno | D141: 12399.35816 | E141: 62.12891 | F141: 234.42946 | G141: 3.6 | H141: 1558.45214 | I141: 3617.21346 | J141: 31.9048 | K141: 4884.60204 | L141: 639.50142 | M141: 398.10984 | N141: 33.62518
B142: Niechlów | D142: 19676.97494 | E142: 255.49293 | F142: 422.64131 | G142: 42.94894 | H142: 2036.73757 | I142: 6164.90334 | J142: 61.881 | K142: 6702.91518 | L142: 1527.53011 | M142: 768.33444 | N142: 147.05065
B143: POWIAT LEGNICKI | D143: 215750.9416 | E143: 9091.16526 | F143: 3246.16813 | G143: 886.36402 | H143: 24450.011 | I143: 62569.89434 | J143: 1007.85353 | K143: 57069.63665 | L143: 24495.87737 | M143: 9058.84793 | N143: 2941.71575
B144: Gminy miejskie:
B145: Urban gminas:
B146: Chojnów | D146: 47251.57212 | E146: 578.15852 | F146: 186.32321 | G146: 217.50651 | H146: 4370.95665 | I146: 17761.17817 | J146: 335.36079 | K146: 12936.01722 | L146: 7278.95606 | M146: 1850.23 | N146: 247.77242
B147: Gminy miejsko-wiejskie:
B148: Urban-rural gminas:
B149: Prochowice | D149: 29501.34009 | E149: 1262.34762 | F149: 917.47111 | G149: 66.40215 | H149: 2800.49281 | I149: 8603.51314 | J149: 121.96904 | K149: 7761.80293 | L149: 4508.26668 | M149: 1531.35426 | N149: 470.69437
B150: Gminy wiejskie:
B151: Rural gminas:
B152: Chojnów | D152: 38587.05249 | E152: 665.59756 | F152: 597.28725 | G152: 87.23076 | H152: 4639.08481 | I152: 9365.08722 | J152: 179.96926 | K152: 11514.55036 | L152: 2083.67056 | M152: 1084.55572 | N152: 586.31861
B153: Krotoszyce | D153: 13504.77366 | E153: 720.14136 | F153: 549.82109 | G153: 55.965 | H153: 2074.87566 | I153: 4055.3315 | J153: 53.04164 | K153: 3224.4508 | L153: 856.08503 | M153: 310.43778 | N153: 82.17076
B154: Kunice | D154: 27038.09471 | E154: 2167.16179 | F154: 112.06046 | G154: 44.71581 | H154: 3184.92579 | I154: 8513.97714 | J154: 72.29669 | K154: 5760.66663 | L154: 2999.20478 | M154: 1467.45 | N154: 683.29087
B155: Legnickie Pole | D155: 24273.16652 | E155: 2344.75019 | F155: 463.56854 | G155: 221.12172 | H155: 3302.40852 | I155: 5553.36158 | J155: 116.70836 | K155: 5208.80447 | L155: 2567.15764 | M155: 1646.03649 | N155: 640.54976
B156: Miłkowice | D156: 23340.11286 | E156: 1046.59303 | F156: 280.61454 | G156: 174.41407 | H156: 2762.43144 | I156: 5817.47895 | J156: 87.61057 | K156: 6890.57118 | L156: 1483.66635 | M156: 942.19487 | N156: 159.22417
B157: Ruja | D157: 12254.82917 | E157: 306.41519 | F157: 139.02193 | G157: 19.008 | H157: 1314.83532 | I157: 2899.96664 | J157: 40.89718 | K157: 3772.77306 | L157: 2718.87027 | M157: 226.58881 | N157: 71.69479
B158: POWIAT LUBIŃSKI | D158: 477418.3463 | E158: 51435.74273 | F158: 7083.50667 | G158: 1462.05056 | H158: 38470.74844 | I158: 166486.3347 | J158: 3182.18554 | K158: 91510.20054 | L158: 47847.80822 | M158: 27910.952 | N158: 11651.42403
B159: Gminy miejskie:
B160: Urban gminas:
B161: Lubin | D161: 314264.1412 | E161: 31364.88934 | F161: 6044.05622 | G161: 1206.5413 | H161: 19641.71011 | I161: 124647.2204 | J161: 1822.93416 | K161: 60339.22846 | L161: 26325.09091 | M161: 17446.79251 | N161: 6264.61947
B162: Gminy miejsko-wiejskie:
B163: Urban-rural gminas:
B164: Ścinawa | D164: 41547.82293 | E164: 2794.64529 | F164: 384.24646 | G164: 100.81816 | H164: 6206.89848 | I164: 10388.23316 | J164: 210.01782 | K164: 11036.06058 | L164: 2715.74114 | M164: 3372.56272 | N164: 2121.41816
B165: Gminy wiejskie:
B166: Rural gminas:
B167: Lubin | D167: 74529.85024 | E167: 12243.58567 | F167: 341.12983 | G167: 112.16415 | H167: 7831.41749 | I167: 17768.01851 | J167: 179.5817 | K167: 12240.81395 | L167: 13214.53254 | M167: 3305.90924 | N167: 2577.50952
B168: Rudna | D168: 47076.53192 | E168: 5032.62243 | F168: 314.07416 | G168: 42.52695 | H168: 4790.72236 | I168: 13682.86267 | J168: 969.65186 | K168: 7894.09755 | L168: 5592.44363 | M168: 3785.68753 | N168: 687.87688
B169: POWIAT POLKOWICKI | D169: 377116.4298 | E169: 29838.30347 | F169: 15039.56986 | G169: 2530.52734 | H169: 41754.49343 | I169: 106375.4833 | J169: 9016.46411 | K169: 63138.9833 | L169: 23282.0234 | M169: 14943.90647 | N169: 13240.91166
B170: Gminy miejsko-wiejskie:
B171: Urban-rural gminas:
B172: Chocianów | D172: 46202.63748 | E172: 1270.18099 | F172: 2348.54238 | G172: 69.90109 | H172: 3844.64704 | I172: 20307.72183 | J172: 256.51453 | K172: 12224.82712 | L172: 1819.52343 | M172: 1297.75399 | N172: 889.99597
B173: Polkowice | D173: 226618.9793 | E173: 17960.82391 | F173: 11192.66455 | G173: 1587.06838 | H173: 26677.96171 | I173: 53790.31086 | J173: 8229.44033 | K173: 26700.63849 | L173: 15530.10833 | M173: 9154.54779 | N173: 8340.86135
B174: Przemków | D174: 27365.48451 | E174: 335.5673 | F174: 608.18387 | G174: 74.84866 | H174: 3019.4111 | I174: 9261.88258 | J174: 117.38846 | K174: 9017.94556 | L174: 1591.76445 | M174: 683.89577 | N174: 130.54865
B175: Gminy wiejskie:
B176: Rural gminas:
B177: Gaworzyce | D177: 17014.63953 | E177: 1727.75075 | F177: 183.67665 | G177: 42.41 | H177: 2050.88845 | I177: 4183.19902 | J177: 53.29961 | K177: 4367.34683 | L177: 2005.43259 | M177: 1138.88981 | N177: 605.60752
B178: Grębocice | D178: 37231.22664 | E178: 5837.99181 | F178: 546.1956 | G178: 181.74056 | H178: 3500.94673 | I178: 11537.55924 | J178: 279.46714 | K178: 5781.95349 | L178: 1215.41662 | M178: 1931.44039 | N178: 3126.06927
B179: Radwanice | D179: 22683.46234 | E179: 2705.98871 | F179: 160.30681 | G179: 574.55865 | H179: 2660.6384 | I179: 7294.80976 | J179: 80.35404 | K179: 5046.27181 | L179: 1119.77798 | M179: 737.37872 | N179: 147.8289
B180: PODREGION WAŁBRZYSKI | D180: 1954430.14 | E180: 141396.2997 | F180: 113972.0998 | G180: 8770.9391 | H180: 205135.3819 | I180: 525605.8862 | J180: 13280.10957 | K180: 504194.5953 | L180: 183544.3323 | M180: 79777.35096 | N180: 73538.96887
B181: SUBREGION
B182: POWIAT DZIERŻONIOWSKI | D182: 346966.6176 | E182: 40209.09178 | F182: 26031.54753 | G182: 677.83453 | H182: 33619.53297 | I182: 81112.28472 | J182: 1844.8775 | K182: 96311.62189 | L182: 28002.8415 | M182: 13424.06323 | N182: 10344.44756
B183: Gminy miejskie:
B184: Urban gminas:
B185: Bielawa | D185: 113692.9351 | E185: 16466.38482 | F185: 12770.87261 | G185: 293.6412 | H185: 7717.12967 | I185: 23582.60737 | J185: 496.02301 | K185: 27003.34489 | L185: 12475.88885 | M185: 2745.25 | N185: 5174.02539
B186: Dzierżoniów | D186: 112568.8233 | E186: 14487.64172 | F186: 8946.96011 | G186: 99.8428 | H186: 10574.56536 | I186: 26179.52207 | J186: 811.85623 | K186: 31800.1927 | L186: 6349.33987 | M186: 5230.64018 | N186: 3363.04577
B187: Piława Górna | D187: 19576.86059 | E187: 828.04618 | F187: 1288.91858 | G187: 12.3175 | H187: 2472.58047 | I187: 4608.54986 | J187: 106.2142 | K187: 6334.86615 | L187: 2308.77247 | M187: 421.5 | N187: 658.22305
B188: Gminy miejsko-wiejskie:
B189: Urban-rural gminas:
B190: Niemcza | D190: 17187.70539 | E190: 1903.93786 | F190: 909.47845 | G190: 65.17088 | H190: 2435.61173 | I190: 4158.79785 | J190: 86.40061 | K190: 5466.40216 | L190: 650.99296 | M190: 550.72285 | N190: 117.62905
B191: Pieszyce | D191: 28348.45418 | E191: 2311.39082 | F191: 955.51933 | G191: 109.2909 | H191: 3581.19053 | I191: 5792.41193 | J191: 99.81779 | K191: 9962.89365 | L191: 2392.7005 | M191: 1636.16081 | N191: 502.8848
B192: Gminy wiejskie:
B193: Rural gminas:
B194: Dzierżoniów | D194: 30970.83419 | E194: 3152.28171 | F194: 871.03265 | G194: 59.75904 | H194: 3498.03042 | I194: 8382.58353 | J194: 112.86637 | K194: 8998.96936 | L194: 1893.5834 | M194: 1611.97388 | N194: 349.42833
B195: Łagiewniki | D195: 24621.00484 | E195: 1059.40867 | F195: 288.7658 | G195: 37.81221 | H195: 3340.42479 | I195: 8407.81211 | J195: 131.69929 | K195: 6744.95298 | L195: 1931.56345 | M195: 1227.81551 | N195: 179.21117
B196: POWIAT KŁODZKI | D196: 574603.9346 | E196: 28163.39643 | F196: 33481.96963 | G196: 2437.82145 | H196: 61786.41311 | I196: 157756.3854 | J196: 4515.77945 | K196: 149019.1191 | L196: 55649.35106 | M196: 25986.14372 | N196: 24840.43359
B197: Gminy miejskie:
B198: Urban gminas:
B199: Duszniki-Zdrój | D199: 33594.44339 | E199: 200.78565 | F199: 1954.96765 | G199: 88.06033 | H199: 2646.90861 | I199: 6518.45434 | J199: 280.77831 | K199: 4077.96299 | L199: 2029.84736 | M199: 1369.693 | N199: 12723.76099
B200: Kłodzko | D200: 90251.90283 | E200: 2809.63664 | F200: 5788.94888 | G200: 269.52958 | H200: 7914.54601 | I200: 27914.51902 | J200: 648.79155 | K200: 24876.6757 | L200: 8587.11492 | M200: 5260.82407 | N200: 1595.48057
B201: Kudowa-Zdrój | D201: 37450.35419 | E201: 2561.81825 | F201: 2985.66292 | G201: 246.28222 | H201: 4204.07098 | I201: 10917.28898 | J201: 390.36583 | K201: 7832.2376 | L201: 4811.35309 | M201: 1377.67522 | N201: 347.41209
B202: Nowa Ruda | D202: 72267.01138 | E202: 2810.64461 | F202: 7849.73923 | G202: 568.7958 | H202: 6092.37434 | I202: 17310.73169 | J202: 576.78391 | K202: 20596.70352 | L202: 7234.09279 | M202: 2480.419 | N202: 3614.58727
B203: Polanica-Zdrój | D203: 24787.65981 | E203: 785.31929 | F203: 929.8911 | G203: 142.85229 | H203: 3051.62077 | I203: 6975.34326 | J203: 300.21494 | K203: 5138.36911 | L203: 4824.27435 | M203: 1607.53144 | N203: 271.99816
B204: Gminy miejsko-wiejskie:
B205: Urban-rural gminas:
... 144 more rows

Sheet Tabl. 15.
B4: Tabl. 15. Struktura wydatków budżetów gmina według działów oraz podregionów i powiatów
B5: Structure of expenditure of gminas budgetsa by divisions as well as subregions and powiats
B6: WYSZCZEGÓLNIENIE SPECIFICATION | D6: Ogółem Total | E6: W tym Of which
E7: transport i łączność transport and communication | F7: gospodarka mieszkaniowa dwelling economy | G7: działalność usługowa service activity | H7: administracja publiczna public administration | I7: oświata i wychowanie education | J7: ochrona zdrowia health care | K7: pomoc społeczna social welfare | L7: gospodarka komunalna i ochrona środowiska municipal economy and environmental protection | M7: kultura i ochrona dziedzictwa narodowego culture and national heritage | N7: kultura fizyczna physical education
D9: w % in %
B10: O G Ó Ł E M | C10: 2015 | D10: 100 | E10: 8.876842456 | F10: 4.642984784 | G10: 0.4133071061 | H10: 10.93239158 | I10: 32.47548914 | J10: 0.9800347458 | K10: 13.87469356 | L10: 11.39129031 | M10: 4.861554948 | N10: 3.17443066
B11: T O T A L | C11: 2016 | D11: 100 | E11: 7.188013 | F11: 3.922368 | G11: 0.442387 | H11: 10.065991 | I11: 29.831844 | J11: 0.865219 | K11: 24.249212 | L11: 9.515617 | M11: 4.126621 | N11: 2.910318
B13: Gminy miejskie | D13: 100 | E13: 7.906216 | F13: 6.350376 | G13: 0.46575 | H13: 9.018738 | I13: 29.294535 | J13: 0.896651 | K13: 23.32944 | L13: 9.878021 | M13: 4.099685 | N13: 3.535456
B14: Urban gminas
B15: Gminy miejsko-wiejskie | D15: 100 | E15: 5.967396 | F15: 3.500907 | G15: 0.530948 | H15: 10.321624 | I15: 29.517463 | J15: 0.978358 | K15: 25.085244 | L15: 9.563653 | M15: 4.04109 | N15: 2.807196
B16: Urban-rural gminas
B17: Gminy wiejskie | D17: 100 | E17: 7.937537 | F17: 1.841004 | G17: 0.306991 | H17: 10.87174 | I17: 30.800237 | J17: 0.690545 | K17: 24.195129 | L17: 9.066756 | M17: 4.262078 | N17: 2.367717
B18: Rural gminas
B19: PODREGION JELENIOGÓRSKI | D19: 100 | E19: 5.355141 | F19: 3.788248 | G19: 0.386271 | H19: 10.757458 | I19: 29.244733 | J19: 0.839126 | K19: 26.201414 | L19: 10.300209 | M19: 3.927676 | N19: 2.387914
B20: SUBREGION
B21: POWIAT BOLESŁAWIECKI | D21: 100 | E21: 6.380399 | F21: 4.71597 | G21: 0.261493 | H21: 9.084373 | I21: 30.421871 | J21: 0.875624 | K21: 26.179402 | L21: 9.241026 | M21: 5.519075 | N21: 3.498779
B22: Gminy miejskie:
B23: Urban gminas:
B24: Bolesławiec | D24: 100 | E24: 6.685793 | F24: 9.244966 | G24: 0.254493 | H24: 8.911562 | I24: 26.976044 | J24: 0.962149 | K24: 24.243753 | L24: 10.105335 | M24: 6.164075 | N24: 4.096903
B25: Gminy miejsko-wiejskie:
B26: Urban-rural gminas:
B27: Nowogrodziec | D27: 100 | E27: 2.835028 | F27: 2.392201 | G27: 0.114697 | H27: 8.437676 | I27: 36.25547 | J27: 1.538729 | K27: 29.193082 | L27: 6.383742 | M27: 3.057382 | N27: 1.418258
B28: Gminy wiejskie:
B29: Rural gminas:
B30: Bolesławiec | D30: 100 | E30: 3.517296 | F30: 0.827582 | G30: 0.329817 | H30: 9.201854 | I30: 32.524669 | J30: 0.394495 | K30: 26.22564 | L30: 8.809625 | M30: 8.81646 | N30: 5.282858
B31: Gromadka | D31: 100 | E31: 17.435449 | F31: 1.806349 | G31: 0.370671 | H31: 11.20146 | I31: 25.564175 | J31: 1.056019 | K31: 26.756741 | L31: 7.137966 | M31: 3.673912 | N31: 1.286465
B32: Osiecznica | D32: 100 | E32: 8.29807 | F32: 0.119574 | G32: 0.257991 | H32: 8.077258 | I32: 35.155641 | J32: 0.447793 | K32: 25.558212 | L32: 8.595953 | M32: 4.402035 | N32: 5.549317
B33: Warta Bolesławiecka | D33: 100 | E33: 4.524811 | F33: 0.263351 | G33: 0.355242 | H33: 10.128668 | I33: 32.65763 | J33: 0.36114 | K33: 30.272199 | L33: 13.057512 | M33: 4.210695 | N33: 1.193917
B34: POWIAT JAWORSKI | D34: 100 | E34: 4.170114 | F34: 1.349456 | G34: 0.277999 | H34: 10.651956 | I34: 29.583475 | J34: 0.567042 | K34: 28.651489 | L34: 10.057491 | M34: 3.691463 | N34: 1.754939
B35: Gminy miejskie:
B36: Urban gminas:
B37: Jawor | D37: 100 | E37: 1.385502 | F37: 1.06393 | G37: 0.468728 | H37: 9.761181 | I37: 29.820808 | J37: 0.673395 | K37: 27.850076 | L37: 13.978612 | M37: 4.688733 | N37: 2.573579
B38: Gminy miejsko-wiejskie:
B39: Urban-rural gminas:
B40: Bolków | D40: 100 | E40: 3.83931 | F40: 1.804811 | G40: 0.09717 | H40: 9.124094 | I40: 31.145805 | J40: 0.552372 | K40: 35.187979 | L40: 8.386822 | M40: 3.455361 | N40: 0.916338
B41: Gminy wiejskie:
B42: Rural gminas:
B43: Męcinka | D43: 100 | E43: 2.873596 | F43: 2.845063 | G43: 0.270557 | H43: 11.837018 | I43: 30.630375 | J43: 0.468682 | K43: 27.675339 | L43: 5.027977 | M43: 3.834316 | N43: 2.042415
B44: Mściwojów | D44: 100 | E44: 11.695783 | F44: 0.280313 | G44: 0.077727 | H44: 13.568335 | I44: 25.024772 | J44: 0.428554 | K44: 26.514804 | L44: 6.617508 | M44: 1.293388 | N44: 0.343107
B45: Paszowice | D45: 100 | E45: 7.149953 | F45: 2.123274 | G45: 0.020658 | H45: 14.405586 | I45: 30.729517 | J45: 0.317898 | K45: 25.731374 | L45: 10.203126 | M45: 3.726849 | N45: 0.799662
B46: Wądroże Wielkie | D46: 100 | E46: 8.934825 | F46: 0.433567 | G46: 0.207988 | H46: 10.490221 | I46: 27.561979 | J46: 0.571548 | K46: 24.836913 | L46: 4.777093 | M46: 1.838732 | N46: 1.60263
B47: POWIAT JELENIOGÓRSKI | D47: 100 | E47: 8.749106 | F47: 3.331393 | G47: 0.536401 | H47: 11.998475 | I47: 25.198998 | J47: 1.081901 | K47: 26.136412 | L47: 11.667312 | M47: 2.478709 | N47: 0.8638
B48: Gminy miejskie:
B49: Urban gminas:
B50: Karpacz | D50: 100 | E50: 11.487883 | F50: 6.73073 | G50: 0.317647 | H50: 17.271319 | I50: 20.318732 | J50: 2.127336 | K50: 13.209546 | L50: 15.540875 | M50: 2.008686 | N50: 1.845437
B51: Kowary | D51: 100 | E51: 3.705148 | F51: 3.240173 | G51: 0.578126 | H51: 10.359085 | I51: 25.214563 | J51: 0.46689 | K51: 36.167675 | L51: 12.407545 | M51: 1.803153 | N51: 0.93941
B52: Piechowice | D52: 100 | E52: 12.89624 | F52: 5.320587 | G52: 0.575871 | H52: 11.873187 | I52: 24.73964 | J52: 0.50461 | K52: 27.359493 | L52: 7.751777 | M52: 1.817569 | N52: 0.535217
B53: Szklarska Poręba | D53: 100 | E53: 7.806694 | F53: 5.669576 | G53: 0.792275 | H53: 14.12396 | I53: 19.531734 | J53: 3.228213 | K53: 17.24841 | L53: 12.909875 | M53: 5.932356 | N53: 0.530903
B54: Gminy wiejskie:
B55: Rural gminas:
B56: Janowice Wielkie | D56: 100 | E56: 7.307946 | F56: 2.396036 | G56: 0.149421 | H56: 14.8709 | I56: 23.35077 | J56: 0.517393 | K56: 26.257278 | L56: 10.385219 | M56: 2.018068 | N56: 0.447511
B57: Jeżów Sudecki | D57: 100 | E57: 19.477154 | F57: 1.139877 | G57: 0.398645 | H57: 9.857026 | I57: 22.618632 | J57: 0.324143 | K57: 27.538868 | L57: 9.197248 | M57: 1.366549 | N57: 1.509348
B58: Mysłakowice | D58: 100 | E58: 6.114436 | F58: 2.07902 | G58: 0.198905 | H58: 8.857509 | I58: 31.812087 | J58: 0.630482 | K58: 28.363709 | L58: 15.8271 | M58: 1.691898 | N58: 0.683784
B59: Podgórzyn | D59: 100 | E59: 7.47917 | F59: 0.994831 | G59: 0.70141 | H59: 11.470751 | I59: 28.189017 | J59: 0.627257 | K59: 31.324088 | L59: 9.988576 | M59: 2.308331 | N59: 0.568025
B60: Stara Kamienica | D60: 100 | E60: 5.586561 | F60: 0.944486 | G60: 1.157399 | H60: 10.415971 | I60: 30.798799 | J60: 0.378526 | K60: 28.375663 | L60: 5.08816 | M60: 2.687007 | N60: 0.408427
B61: POWIAT KAMIENNOGÓRSKI | D61: 100 | E61: 3.706113 | F61: 5.195785 | G61: 0.608899 | H61: 10.653315 | I61: 31.276949 | J61: 0.452949 | K61: 28.673212 | L61: 7.686928 | M61: 3.387454 | N61: 3.226797
B62: Gminy miejskie:
B63: Urban gminas:
B64: Kamienna Góra | D64: 100 | E64: 1.14734 | F64: 8.869017 | G64: 0.893115 | H64: 10.085404 | I64: 30.72792 | J64: 0.582595 | K64: 29.379913 | L64: 8.471764 | M64: 3.532127 | N64: 3.148686
B65: Gminy miejsko-wiejskie:
B66: Urban-rural gminas:
B67: Lubawka | D67: 100 | E67: 3.770169 | F67: 2.676621 | G67: 0.415653 | H67: 8.520663 | I67: 36.555944 | J67: 0.492234 | K67: 28.173906 | L67: 7.821274 | M67: 2.499414 | N67: 6.183666
B68: Gminy wiejskie:
B69: Rural gminas:
B70: Kamienna Góra | D70: 100 | E70: 6.526688 | F70: 3.10234 | G70: 0.27295 | H70: 12.404664 | I70: 30.495722 | J70: 0.286704 | K70: 27.268142 | L70: 6.799234 | M70: 4.539035 | N70: 1.282433
B71: Marciszów | D71: 100 | E71: 7.478967 | F71: 0.867761 | G71: 0.625546 | H71: 13.68656 | I71: 23.898118 | J71: 0.220415 | K71: 29.916639 | L71: 6.253497 | M71: 2.34926 | N71: 1.302401
B72: POWIAT LUBAŃSKI | D72: 100 | E72: 5.086424 | F72: 4.317656 | G72: 0.368984 | H72: 11.455905 | I72: 31.142269 | J72: 0.630112 | K72: 26.732958 | L72: 9.705258 | M72: 3.012025 | N72: 1.951724
B73: Gminy miejskie:
B74: Urban gminas:
B75: Lubań | D75: 100 | E75: 1.841667 | F75: 7.1319 | G75: 0.542353 | H75: 11.500376 | I75: 33.414187 | J75: 0.794073 | K75: 25.435654 | L75: 9.316651 | M75: 2.801031 | N75: 2.596174
B76: Świeradów-Zdrój | D76: 100 | E76: 9.463839 | F76: 8.741669 | G76: 0.185637 | H76: 11.78929 | I76: 24.128754 | J76: 1.077882 | K76: 17.559645 | L76: 15.842869 | M76: 2.13622 | N76: 0.755789
B77: Gminy miejsko-wiejskie:
B78: Urban-rural gminas:
B79: Leśna | D79: 100 | E79: 6.454613 | F79: 1.040046 | G79: 0.103879 | H79: 9.825267 | I79: 29.573962 | J79: 0.449733 | K79: 35.114699 | L79: 8.564675 | M79: 2.932608 | N79: 1.788922
B80: Olszyna | D80: 100 | E80: 8.615001 | F80: 1.664139 | G80: 0.464633 | H80: 9.525051 | I80: 29.340726 | J80: 0.514464 | K80: 30.930905 | L80: 7.996903 | M80: 3.017267 | N80: 2.956702
B81: Gminy wiejskie:
B82: Rural gminas:
B83: Lubań | D83: 100 | E83: 5.428213 | F83: 1.589598 | G83: 0.400482 | H83: 10.803734 | I83: 34.773821 | J83: 0.244335 | K83: 26.631383 | L83: 6.616722 | M83: 4.084974 | N83: 1.302363
B84: Platerówka | D84: 100 | E84: 4.024615 | F84: 0.305777 | G84: 0.039603 | H84: 15.163096 | I84: 37.65686 | J84: 0.227534 | K84: 23.736045 | L84: 9.08784 | M84: 2.721812 | N84: 0.673505
B85: Siekierczyn | D85: 100 | E85: 3.051406 | F85: 1.19038 | G85: 0.474368 | H85: 16.763729 | I85: 31.801527 | J85: 0.437014 | K85: 24.875043 | L85: 10.538812 | M85: 4.175043 | N85: 1.597651
B86: POWIAT LWÓWECKI | D86: 100 | E86: 4.181219 | F86: 2.118928 | G86: 0.478305 | H86: 9.548092 | I86: 32.317429 | J86: 0.523135 | K86: 30.308618 | L86: 8.557871 | M86: 4.17076 | N86: 0.868578
B87: Gminy miejsko-wiejskie:
B88: Urban-rural gminas:
B89: Gryfów Śląski | D89: 100 | E89: 5.856038 | F89: 1.51667 | G89: 0.294242 | H89: 9.547418 | I89: 28.909438 | J89: 0.474582 | K89: 32.550885 | L89: 12.804703 | M89: 3.647585 | N89: 0.760551
B90: Lubomierz | D90: 100 | E90: 5.040378 | F90: 2.349225 | G90: 0.201729 | H90: 9.536108 | I90: 31.891305 | J90: 0.352836 | K90: 26.82464 | L90: 6.311821 | M90: 4.531613 | N90: 1.247831
B91: Lwówek Śląski | D91: 100 | E91: 3.8668 | F91: 2.596309 | G91: 0.630022 | H91: 9.100997 | I91: 33.820639 | J91: 0.616349 | K91: 29.029919 | L91: 7.909907 | M91: 4.523687 | N91: 0.58243
B92: Mirsk | D92: 100 | E92: 2.980676 | F92: 1.08438 | G92: 0.369907 | H92: 8.022751 | I92: 35.65754 | J92: 0.555476 | K92: 33.621519 | L92: 8.929875 | M92: 3.082519 | N92: 1.083444
B93: Wleń | D93: 100 | E93: 3.174753 | F93: 3.32283 | G93: 0.960593 | H93: 14.417184 | I93: 27.120541 | J93: 0.486663 | K93: 29.442786 | L93: 5.579892 | M93: 5.577051 | N93: 1.06
B94: POWIAT ZGORZELECKI | D94: 100 | E94: 4.63823 | F94: 3.41975 | G94: 0.407552 | H94: 11.448232 | I94: 28.597912 | J94: 1.30866 | K94: 20.483297 | L94: 13.105692 | M94: 4.252754 | N94: 3.549237
B95: Gminy miejskie:
B96: Urban gminas:
B97: Zawidów | D97: 100 | E97: 14.865927 | F97: 0.644069 | G97: 0.147545 | H97: 11.536457 | I97: 37.350441 | J97: 0.823981 | K97: 20.562334 | L97: 8.478637 | M97: 3.295859 | N97: 0.676999
B98: Zgorzelec | D98: 100 | E98: 5.573618 | F98: 0.814336 | G98: 0.870169 | H98: 10.685701 | I98: 33.909781 | J98: 1.085632 | K98: 21.116173 | L98: 13.251197 | M98: 4.425835 | N98: 3.476054
B99: Gminy miejsko-wiejskie:
B100: Urban-rural gminas:
B101: Bogatynia | D101: 100 | E101: 3.416561 | F101: 6.612829 | G101: 0.065158 | H101: 11.558561 | I101: 24.22813 | J101: 2.02468 | K101: 16.085563 | L101: 13.111489 | M101: 4.586258 | N101: 2.947124
B102: Pieńsk | D102: 100 | E102: 4.566446 | F102: 5.785789 | G102: 0.357988 | H102: 9.75271 | I102: 28.78571 | J102: 0.605469 | K102: 31.134196 | L102: 10.119093 | M102: 3.122316 | N102: 1.262492
B103: Węgliniec | D103: 100 | E103: 3.377911 | F103: 0.264798 | G103: 0.964921 | H103: 11.236321 | I103: 29.625656 | J103: 0.39301 | K103: 26.353884 | L103: 20.618246 | M103: 2.972472 | N103: 0.569522
B104: Gminy wiejskie:
B105: Rural gminas:
B106: Sulików | D106: 100 | E106: 3.275064 | F106: 1.15496 | G106: 0.368461 | H106: 13.306714 | I106: 29.58652 | J106: 0.190685 | K106: 26.550436 | L106: 16.802462 | M106: 2.800773 | N106: 0.559205
B107: Zgorzelec | D107: 100 | E107: 4.904236 | F107: 1.079403 | G107: 0.221735 | H107: 13.360885 | I107: 26.698686 | J107: 1.25984 | K107: 19.228118 | L107: 8.415257 | M107: 5.643278 | N107: 13.075494
B108: POWIAT ZŁOTORYJSKI | D108: 100 | E108: 4.1584 | F108: 5.732111 | G108: 0.203776 | H108: 11.065846 | I108: 26.958084 | J108: 0.492513 | K108: 30.549559 | L108: 8.747893 | M108: 3.823525 | N108: 1.540728
B109: Gminy miejskie:
B110: Urban gminas:
B111: Wojcieszów | D111: 100 | E111: 4.731719 | F111: 6.302726 | G111: 0.437326 | H111: 10.358055 | I111: 23.492941 | J111: 0.290278 | K111: 31.99121 | L111: 11.955043 | M111: 1.618811 | N111: 2.033078
B112: Złotoryja | D112: 100 | E112: 2.047373 | F112: 11.378505 | G112: 0.151442 | H112: 10.639436 | I112: 24.132192 | J112: 0.627257 | K112: 27.655269 | L112: 12.146765 | M112: 3.995162 | N112: 2.869148
B113: Gminy miejsko-wiejskie:
B114: Urban-rural gminas:
B115: Świerzawa | D115: 100 | E115: 5.424418 | F115: 0.613774 | G115: 0.065493 | H115: 10.367138 | I115: 26.868995 | J115: 0.514271 | K115: 35.185301 | L115: 6.128922 | M115: 5.493799 | N115: 0.427492
B116: Gminy wiejskie:
B117: Rural gminas:
B118: Pielgrzymka | D118: 100 | E118: 2.671057 | F118: 1.317938 | G118: 0.149171 | H118: 10.303593 | I118: 32.848683 | J118: 0.293925 | K118: 32.717235 | L118: 5.096654 | M118: 3.339134 | N118: 0.760836
B119: Zagrodno | D119: 100 | E119: 7.617401 | F119: 0.458737 | G119: 0.344206 | H119: 14.442305 | I119: 26.679428 | J119: 0.725596 | K119: 30.949121 | L119: 8.458621 | M119: 3.427029 | N119: 0.968079
B120: Złotoryja | D120: 100 | E120: 5.152957 | F120: 6.43629 | G120: 0.245817 | H120: 11.052765 | I120: 30.130825 | J120: 0.309325 | K120: 29.105142 | L120: 6.031238 | M120: 3.708518 | N120: 0.825478
B121: PODREGION LEGNICKO-GŁOGOWSKI | D121: 100 | E121: 8.659617 | F121: 2.751157 | G121: 0.469068 | H121: 9.197114 | I121: 30.633198 | J121: 1.196946 | K121: 21.351888 | L121: 8.720222 | M121: 4.727563 | N121: 2.667469
B122: SUBREGION
B123: POWIAT GŁOGOWSKI | D123: 100 | E123: 11.512846 | F123: 3.984582 | G123: 0.624063 | H123: 8.017841 | I123: 29.102277 | J123: 1.424326 | K123: 20.746991 | L123: 7.924703 | M123: 5.113362 | N123: 3.164502
B124: Gminy miejskie:
B125: Urban gminas:
B126: Głogów | D126: 100 | E126: 12.270069 | F126: 5.08779 | G126: 0.702153 | H126: 6.51827 | I126: 30.397338 | J126: 1.704627 | K126: 20.365521 | L126: 7.801993 | M126: 4.446747 | N126: 3.781753
B127: Gminy wiejskie:
B128: Rural gminas:
B129: Głogów | D129: 100 | E129: 2.548704 | F129: 0.851373 | G129: 0.550363 | H129: 11.42475 | I129: 27.272114 | J129: 1.434585 | K129: 24.080371 | L129: 17.069759 | M129: 2.77412 | N129: 2.930273
B130: Jerzmanowa | D130: 100 | E130: 14.229644 | F130: 1.509746 | G130: 0.551303 | H130: 10.807378 | I130: 21.865693 | J130: 0.594861 | K130: 12.575765 | L130: 4.145598 | M130: 12.662537 | N130: 2.144952
B131: Kotla | D131: 100 | E131: 8.64172 | F131: 0.599147 | G131: 0.351976 | H131: 14.452047 | I131: 28.459044 | J131: 0.51294 | K131: 26.060164 | L131: 9.344348 | M131: 4.431995 | N131: 0.174259
B132: Pęcław | D132: 100 | E132: 0.222466 | F132: 0.50786 | G132: 0 | H132: 14.411206 | I132: 25.597858 | J132: 0.339412 | K132: 42.026461 | L132: 2.000214 | M132: 3.115387 | N132: 0.561578
B133: Żukowice | D133: 100 | E133: 14.615924 | F133: 1.825805 | G133: 0.246801 | H133: 10.717669 | I133: 29.939522 | J133: 0.336207 | K133: 24.605241 | L133: 6.796132 | M133: 3.606874 | N133: 0.450525
B134: POWIAT GÓROWSKI | D134: 100 | E134: 2.461502 | F134: 2.17223 | G134: 0.14299 | H134: 8.149888 | I134: 29.636894 | J134: 0.306415 | K134: 34.485346 | L134: 9.32214 | M134: 2.776721 | N134: 1.800787
B135: Gminy miejsko-wiejskie:
B136: Urban-rural gminas:
B137: Góra | D137: 100 | E137: 3.465801 | F137: 2.725173 | G137: 0.125619 | H137: 6.431205 | I137: 27.599315 | J137: 0.264421 | K137: 34.92901 | L137: 11.227739 | M137: 2.696171 | N137: 2.464112
B138: Wąsosz | D138: 100 | E138: 1.140054 | F138: 0.687071 | G138: 0.191587 | H138: 9.814681 | I138: 34.664375 | J138: 0.445072 | K138: 31.37424 | L138: 6.565925 | M138: 2.063897 | N138: 1.221353
B139: Gminy wiejskie:
B140: Rural gminas:
B141: Jemielno | D141: 100 | E141: 0.501065 | F141: 1.890658 | G141: 0.029033 | H141: 12.568812 | I141: 29.172586 | J141: 0.25731 | K141: 39.393991 | L141: 5.157536 | M141: 3.210729 | N141: 0.271184
B142: Niechlów | D142: 100 | E142: 1.298436 | F142: 2.147897 | G142: 0.21827 | H142: 10.350867 | I142: 31.330544 | J142: 0.314484 | K142: 34.064764 | L142: 7.763033 | M142: 3.904738 | N142: 0.747323
B143: POWIAT LEGNICKI | D143: 100 | E143: 4.213731 | F143: 1.50459 | G143: 0.410827 | H143: 11.332516 | I143: 29.000983 | J143: 0.467137 | K143: 26.451628 | L143: 11.353775 | M143: 4.198752 | N143: 1.363477
B144: Gminy miejskie:
B145: Urban gminas:
B146: Chojnów | D146: 100 | E146: 1.223575 | F146: 0.394321 | G146: 0.460315 | H146: 9.250394 | I146: 37.588544 | J146: 0.709734 | K146: 27.376903 | L146: 15.404685 | M146: 3.9157 | N146: 0.524368
B147: Gminy miejsko-wiejskie:
B148: Urban-rural gminas:
B149: Prochowice | D149: 100 | E149: 4.27895 | F149: 3.10993 | G149: 0.225081 | H149: 9.492764 | I149: 29.163126 | J149: 0.413435 | K149: 26.310001 | L149: 15.281565 | M149: 5.190795 | N149: 1.595501
B150: Gminy wiejskie:
B151: Rural gminas:
B152: Chojnów | D152: 100 | E152: 1.724924 | F152: 1.547895 | G152: 0.226062 | H152: 12.022387 | I152: 24.270024 | J152: 0.466398 | K152: 29.84045 | L152: 5.399921 | M152: 2.810672 | N152: 1.519469
B153: Krotoszyce | D153: 100 | E153: 5.332494 | F153: 4.071309 | G153: 0.414409 | H153: 15.364016 | I153: 30.028874 | J153: 0.392762 | K153: 23.876377 | L153: 6.339129 | M153: 2.298726 | N153: 0.608457
B154: Kunice | D154: 100 | E154: 8.015216 | F154: 0.414453 | G154: 0.16538 | H154: 11.779401 | I154: 31.48882 | J154: 0.267388 | K154: 21.305741 | L154: 11.092515 | M154: 5.427342 | N154: 2.527141
B155: Legnickie Pole | D155: 100 | E155: 9.659844 | F155: 1.909798 | G155: 0.910971 | H155: 13.605182 | I155: 22.878603 | J155: 0.480812 | K155: 21.459105 | L155: 10.576113 | M155: 6.781301 | N155: 2.638921
B156: Miłkowice | D156: 100 | E156: 4.484095 | F156: 1.202284 | G156: 0.747271 | H156: 11.835553 | I156: 24.92481 | J156: 0.375364 | K156: 29.522441 | L156: 6.356723 | M156: 4.036805 | N156: 0.682191
B157: Ruja | D157: 100 | E157: 2.500362 | F157: 1.134425 | G157: 0.155106 | H157: 10.729119 | I157: 23.663868 | J157: 0.333722 | K157: 30.786011 | L157: 22.186113 | M157: 1.848975 | N157: 0.585032
B158: POWIAT LUBIŃSKI | D158: 100 | E158: 10.773725 | F158: 1.48371 | G158: 0.30624 | H158: 8.058079 | I158: 34.872211 | J158: 0.66654 | K158: 19.167717 | L158: 10.022197 | M158: 5.846225 | N158: 2.440506
B159: Gminy miejskie:
B160: Urban gminas:
B161: Lubin | D161: 100 | E161: 9.980422 | F161: 1.92324 | G161: 0.383925 | H161: 6.250064 | I161: 39.663201 | J161: 0.580064 | K161: 19.200163 | L161: 8.37674 | M161: 5.551633 | N161: 1.993424
B162: Gminy miejsko-wiejskie:
B163: Urban-rural gminas:
B164: Ścinawa | D164: 100 | E164: 6.726333 | F164: 0.924829 | G164: 0.242655 | H164: 14.939166 | I164: 25.003074 | J164: 0.505484 | K164: 26.562307 | L164: 6.536422 | M164: 8.117303 | N164: 5.105967
B165: Gminy wiejskie:
B166: Rural gminas:
B167: Lubin | D167: 100 | E167: 16.42776 | F167: 0.457708 | G167: 0.150495 | H167: 10.507759 | I167: 23.840137 | J167: 0.240952 | K167: 16.424042 | L167: 17.730523 | M167: 4.435684 | N167: 3.458358
B168: Rudna | D168: 100 | E168: 10.690299 | F168: 0.667156 | G168: 0.090335 | H168: 10.176455 | I168: 29.065145 | J168: 2.059735 | K168: 16.768647 | L168: 11.879472 | M168: 8.041559 | N168: 1.461188
B169: POWIAT POLKOWICKI | D169: 100 | E169: 7.912225 | F169: 3.988044 | G169: 0.67102 | H169: 11.072043 | I169: 28.207597 | J169: 2.390896 | K169: 16.74257 | L169: 6.173696 | M169: 3.962677 | N169: 3.511093
B170: Gminy miejsko-wiejskie:
B171: Urban-rural gminas:
B172: Chocianów | D172: 100 | E172: 2.749152 | F172: 5.083134 | G172: 0.151292 | H172: 8.321271 | I172: 43.953598 | J172: 0.555194 | K172: 26.459154 | L172: 3.938137 | M172: 2.80883 | N172: 1.926288
B173: Polkowice | D173: 100 | E173: 7.92556 | F173: 4.938979 | G173: 0.700324 | H173: 11.772165 | I173: 23.736013 | J173: 3.631399 | K173: 11.782172 | L173: 6.85296 | M173: 4.03962 | N173: 3.680566
B174: Przemków | D174: 100 | E174: 1.226242 | F174: 2.222448 | G174: 0.273514 | H174: 11.033647 | I174: 33.845125 | J174: 0.428965 | K174: 32.953721 | L174: 5.816686 | M174: 2.499118 | N174: 0.477055
B175: Gminy wiejskie:
B176: Rural gminas:
B177: Gaworzyce | D177: 100 | E177: 10.154495 | F177: 1.079521 | G177: 0.249255 | H177: 12.053669 | I177: 24.58588 | J177: 0.313257 | K177: 25.668171 | L177: 11.786512 | M177: 6.693587 | N177: 3.559332
B178: Grębocice | D178: 100 | E178: 15.680363 | F178: 1.467036 | G178: 0.48814 | H178: 9.403253 | I178: 30.988931 | J178: 0.750625 | K178: 15.529849 | L178: 3.264508 | M178: 5.187689 | N178: 8.396363
B179: Radwanice | D179: 100 | E179: 11.929346 | F179: 0.706712 | G179: 2.53294 | H179: 11.729419 | I179: 32.159154 | J179: 0.35424 | K179: 22.246479 | L179: 4.936539 | M179: 3.250732 | N179: 0.651703
B180: PODREGION WAŁBRZYSKI | D180: 100 | E180: 7.234656 | F180: 5.831474 | G180: 0.448772 | H180: 10.495917 | I180: 26.89305 | J180: 0.679487 | K180: 25.797524 | L180: 9.391194 | M180: 4.081872 | N180: 3.76268
B181: SUBREGION
B182: POWIAT DZIERŻONIOWSKI | D182: 100 | E182: 11.588749 | F182: 7.502608 | G182: 0.19536 | H182: 9.689558 | I182: 23.377547 | J182: 0.531716 | K182: 27.758181 | L182: 8.070759 | M182: 3.868978 | N182: 2.981395
B183: Gminy miejskie:
B184: Urban gminas:
B185: Bielawa | D185: 100 | E185: 14.483208 | F185: 11.232775 | G185: 0.258275 | H185: 6.787694 | I185: 20.742368 | J185: 0.436283 | K185: 23.751119 | L185: 10.973319 | M185: 2.414617 | N185: 4.550876
B186: Dzierżoniów | D186: 100 | E186: 12.87003 | F186: 7.947991 | G186: 0.088694 | H186: 9.393866 | I186: 23.256458 | J186: 0.721208 | K186: 28.249555 | L186: 5.640407 | M186: 4.646615 | N186: 2.987546
B187: Piława Górna | D187: 100 | E187: 4.229718 | F187: 6.583888 | G187: 0.062918 | H187: 12.630117 | I187: 23.540801 | J187: 0.542549 | K187: 32.358948 | L187: 11.793374 | M187: 2.153052 | N187: 3.36225
B188: Gminy miejsko-wiejskie:
B189: Urban-rural gminas:
B190: Niemcza | D190: 100 | E190: 11.077324 | F190: 5.291447 | G190: 0.379171 | H190: 14.170662 | I190: 24.196352 | J190: 0.502688 | K190: 31.804141 | L190: 3.78755 | M190: 3.204167 | N190: 0.684379
B191: Pieszyce | D191: 100 | E191: 8.153498 | F191: 3.370622 | G191: 0.385526 | H191: 12.632754 | I191: 20.432902 | J191: 0.35211 | K191: 35.144398 | L191: 8.44032 | M191: 5.771605 | N191: 1.77394
B192: Gminy wiejskie:
B193: Rural gminas:
B194: Dzierżoniów | D194: 100 | E194: 10.178226 | F194: 2.812428 | G194: 0.192952 | H194: 11.294595 | I194: 27.066056 | J194: 0.364427 | K194: 29.05627 | L194: 6.114085 | M194: 5.204812 | N194: 1.128249
B195: Łagiewniki | D195: 100 | E195: 4.302865 | F195: 1.172843 | G195: 0.153577 | H195: 13.567377 | I195: 34.148939 | J195: 0.534906 | K195: 27.395116 | L195: 7.845185 | M195: 4.986861 | N195: 0.727879
B196: POWIAT KŁODZKI | D196: 100 | E196: 4.901358 | F196: 5.826964 | G196: 0.424261 | H196: 10.752869 | I196: 27.454804 | J196: 0.785894 | K196: 25.934232 | L196: 9.684819 | M196: 4.522444 | N196: 4.323053
B197: Gminy miejskie:
B198: Urban gminas:
B199: Duszniki-Zdrój | D199: 100 | E199: 0.597675 | F199: 5.819318 | G199: 0.262127 | H199: 7.879007 | I199: 19.40337 | J199: 0.835787 | K199: 12.138802 | L199: 6.042211 | M199: 4.077141 | N199: 37.874599
B200: Kłodzko | D200: 100 | E200: 3.113105 | F200: 6.414212 | G200: 0.298641 | H200: 8.769395 | I200: 30.929562 | J200: 0.718867 | K200: 27.563602 | L200: 9.514608 | M200: 5.829045 | N200: 1.767808
B201: Kudowa-Zdrój | D201: 100 | E201: 6.840571 | F201: 7.972322 | G201: 0.657623 | H201: 11.225717 | I201: 29.151363 | J201: 1.042355 | K201: 20.913654 | L201: 12.847283 | M201: 3.67867 | N201: 0.92766
B202: Nowa Ruda | D202: 100 | E202: 3.889249 | F202: 10.862133 | G202: 0.787075 | H202: 8.430367 | I202: 23.95385 | J202: 0.798128 | K202: 28.500837 | L202: 10.010228 | M202: 3.432297 | N202: 5.001711
B203: Polanica-Zdrój | D203: 100 | E203: 3.168186 | F203: 3.751427 | G203: 0.576304 | H203: 12.311048 | I203: 28.140386 | J203: 1.211146 | K203: 20.729545 | L203: 19.462403 | M203: 6.485208 | N203: 1.097312
B204: Gminy miejsko-wiejskie:
B205: Urban-rural gminas:
... 144 more rows

Sheet Tabl. 16.
B4: Tabl. 16. Dochody i wydatki budżetów gmina na 1 mieszkańca
B5: Revenue and expenditure of gminas budgetsa per capita
B6: WYSZCZEGÓLNIENIE SPECIFICATION | D6: Dochody Revenue | F6: Wydatki Expenditure
D7: ogółem total | E7: w tym własne of which own | F7: ogółem total | G7: w tym of which
G8: bieżące current | H8: inwestycyjneb investmentb
D9: w zł in zl
B10: O G Ó Ł E M | C10: 2015 | D10: 3586.98769 | E10: 2128.52392 | F10: 3488.00016 | G10: 2894.80298 | H10: 568.63562
B11: T O T A L | C11: 2016 | D11: 3998.710462 | E11: 2193.067057 | F11: 3890.821712 | G11: 3401.859565 | H11: 463.273368
B13: Gminy miejskie | D13: 3795.229453 | E13: 2236.876718 | F13: 3710.274568 | G13: 3293.919911 | H13: 386.0861087
B14: Urban gminas
B15: Gminy miejsko-wiejskie | D15: 3978.814102 | E15: 2105.330218 | F15: 3897.68099 | G15: 3445.279139 | H15: 425.9765071
B16: Urban-rural gminas
B17: Gminy wiejskie | D17: 4265.878383 | E17: 2255.998829 | F17: 4095.790459 | G17: 3472.932024 | H17: 603.5608073
B18: Rural gminas
B19: PODREGION JELENIOGÓRSKI | D19: 3885.058883 | E19: 2062.424007 | F19: 3688.491087 | G19: 3361.327413 | H19: 306.4753802
B20: SUBREGION
B21: POWIAT BOLESŁAWIECKI | D21: 3948.142993 | E21: 2234.433009 | F21: 3609.363908 | G21: 3177.170306 | H21: 407.8574419
B22: Gminy miejskie:
B23: Urban gminas:
B24: Bolesławiec | D24: 3905.436097 | E24: 2457.470123 | F24: 3626.986954 | G24: 3334.783166 | H24: 289.1505865
B25: Gminy miejsko-wiejskie:
B26: Urban-rural gminas:
B27: Nowogrodziec | D27: 3839.131506 | E27: 1924.597159 | F27: 3370.453416 | G27: 2954.744805 | H27: 279.9546039
B28: Gminy wiejskie:
B29: Rural gminas:
B30: Bolesławiec | D30: 3564.285232 | E30: 2055.601484 | F30: 3280.520432 | G30: 2659.740885 | H30: 620.7795471
B31: Gromadka | D31: 4629.592787 | E31: 2422.072619 | F31: 4498.75137 | G31: 3497.424133 | H31: 1001.327237
B32: Osiecznica | D32: 4682.740075 | E32: 2285.526377 | F32: 4068.329463 | G32: 3469.596348 | H32: 598.7331146
B33: Warta Bolesławiecka | D33: 3900.47088 | E33: 1894.833636 | F33: 3534.535887 | G33: 3249.262889 | H33: 285.2729979
B34: POWIAT JAWORSKI | D34: 3588.020626 | E34: 1753.705747 | F34: 3431.244519 | G34: 3163.575484 | H34: 267.6690353
B35: Gminy miejskie:
B36: Urban gminas:
B37: Jawor | D37: 3428.552488 | E37: 2024.508688 | F37: 3204.625543 | G37: 3063.582254 | H37: 141.0432892
B38: Gminy miejsko-wiejskie:
B39: Urban-rural gminas:
B40: Bolków | D40: 3368.731398 | E40: 1130.412909 | F40: 3186.026394 | G40: 3016.626031 | H40: 169.4003624
B41: Gminy wiejskie:
B42: Rural gminas:
B43: Męcinka | D43: 3767.535345 | E43: 1775.34193 | F43: 3738.083371 | G43: 3504.087606 | H43: 233.9957651
B44: Mściwojów | D44: 4020.654545 | E44: 1769.121366 | F44: 3784.513815 | G44: 2956.037636 | H44: 828.4761797
B45: Paszowice | D45: 3810.070331 | E45: 1749.226435 | F45: 3668.999694 | G45: 3420.015682 | H45: 248.9840121
B46: Wądroże Wielkie | D46: 4221.026976 | E46: 1783.854766 | F46: 4435.622294 | G46: 3679.666467 | H46: 755.9558271
B47: POWIAT JELENIOGÓRSKI | D47: 4068.669969 | E47: 2365.276122 | F47: 3783.883253 | G47: 3474.127524 | H47: 306.4932741
B48: Gminy miejskie:
B49: Urban gminas:
B50: Karpacz | D50: 6927.356668 | E50: 5261.988203 | F50: 6324.320322 | G50: 5515.085005 | H50: 809.2353171
B51: Kowary | D51: 3542.90377 | E51: 1870.665214 | F51: 3210.616659 | G51: 3075.261556 | H51: 134.4471453
B52: Piechowice | D52: 3659.763798 | E52: 2329.221193 | F52: 3424.176952 | G52: 3114.111599 | H52: 310.0653533
B53: Szklarska Poręba | D53: 5371.718704 | E53: 3956.830354 | F53: 5015.533612 | G53: 4457.307928 | H53: 528.2001621
B54: Gminy wiejskie:
B55: Rural gminas:
B56: Janowice Wielkie | D56: 3448.42632 | E56: 1510.802764 | F56: 3275.798876 | G56: 2987.747747 | H56: 288.0511288
B57: Jeżów Sudecki | D57: 3730.659145 | E57: 1899.775136 | F57: 3299.495077 | G57: 2794.55096 | H57: 504.944117
B58: Mysłakowice | D58: 3743.630252 | E58: 1971.9441 | F58: 3565.985857 | G58: 3498.561476 | H58: 67.4243817
B59: Podgórzyn | D59: 3460.364872 | E59: 1861.897636 | F59: 3338.529938 | G59: 3067.586624 | H59: 270.9433144
B60: Stara Kamienica | D60: 3970.182405 | E60: 1680.311586 | F60: 3751.100618 | G60: 3557.098247 | H60: 194.002371
B61: POWIAT KAMIENNOGÓRSKI | D61: 3529.815248 | E61: 1493.097684 | F61: 3426.726166 | G61: 3152.583856 | H61: 274.1423092
B62: Gminy miejskie:
B63: Urban gminas:
B64: Kamienna Góra | D64: 3416.505385 | E64: 1667.64822 | F64: 3286.006546 | G64: 3225.173181 | H64: 60.83336552
B65: Gminy miejsko-wiejskie:
B66: Urban-rural gminas:
B67: Lubawka | D67: 3230.479482 | E67: 1157.708531 | F67: 3210.501694 | G67: 2753.939538 | H67: 456.5621559
B68: Gminy wiejskie:
B69: Rural gminas:
B70: Kamienna Góra | D70: 3994.862061 | E70: 1650.312697 | F70: 3854.7962 | G70: 3442.621305 | H70: 412.1748946
B71: Marciszów | D71: 3823.252875 | E71: 1251.169534 | F71: 3708.68971 | G71: 3237.352158 | H71: 471.3375523
B72: POWIAT LUBAŃSKI | D72: 3824.7475 | E72: 1881.550794 | F72: 3691.203331 | G72: 3364.172863 | H72: 317.7631794
B73: Gminy miejskie:
B74: Urban gminas:
B75: Lubań | D75: 3332.248978 | E75: 1914.050919 | F75: 3249.918019 | G75: 3055.741457 | H75: 175.3446085
B76: Świeradów-Zdrój | D76: 7517.163475 | E76: 4806.330922 | F76: 6664.834339 | G76: 5629.534473 | H76: 1035.299866
B77: Gminy miejsko-wiejskie:
B78: Urban-rural gminas:
B79: Leśna | D79: 3619.202536 | E79: 1207.193404 | F79: 3477.804917 | G79: 3188.09038 | H79: 289.7145377
B80: Olszyna | D80: 3624.948019 | E80: 1360.945168 | F80: 3667.172767 | G80: 3238.85252 | H80: 428.3202465
B81: Gminy wiejskie:
B82: Rural gminas:
B83: Lubań | D83: 3741.096506 | E83: 1524.874008 | F83: 3621.282792 | G83: 3258.472766 | H83: 362.8100257
B84: Platerówka | D84: 3951.615896 | E84: 1989.225915 | F84: 4012.789613 | G84: 3667.844179 | H84: 277.4875953
B85: Siekierczyn | D85: 3532.099329 | E85: 1754.323985 | F85: 3505.653494 | G85: 3332.333738 | H85: 173.3197566
B86: POWIAT LWÓWECKI | D86: 3431.62584 | E86: 1369.396085 | F86: 3252.646813 | G86: 3008.570486 | H86: 242.3446785
B87: Gminy miejsko-wiejskie:
B88: Urban-rural gminas:
B89: Gryfów Śląski | D89: 3199.685792 | E89: 1361.302403 | F89: 2892.536718 | G89: 2596.872127 | H89: 295.6645902
B90: Lubomierz | D90: 3996.519262 | E90: 1107.58842 | F90: 3911.261592 | G90: 3682.982693 | H90: 227.8634539
B91: Lwówek Śląski | D91: 3250.528251 | E91: 1547.492396 | F91: 3078.276475 | G91: 2883.459617 | H91: 194.816858
B92: Mirsk | D92: 3675.300631 | E92: 1222.138653 | F92: 3500.223578 | G92: 3266.453666 | H92: 225.1243958
B93: Wleń | D93: 3397.207529 | E93: 1337.521412 | F93: 3340.522645 | G93: 2972.633832 | H93: 367.3043525
B94: POWIAT ZGORZELECKI | D94: 4337.226575 | E94: 2702.560053 | F94: 4225.112314 | G94: 3845.163826 | H94: 302.4197969
B95: Gminy miejskie:
B96: Urban gminas:
B97: Zawidów | D97: 3639.306537 | E97: 1764.651143 | F97: 3450.858737 | G97: 2915.804013 | H97: 535.0547241
B98: Zgorzelec | D98: 3232.375473 | E98: 1883.382266 | F98: 3219.410827 | G98: 3008.754165 | H98: 138.7257158
B99: Gminy miejsko-wiejskie:
B100: Urban-rural gminas:
B101: Bogatynia | D101: 6415.077308 | E101: 4855.208498 | F101: 6253.176515 | G101: 5836.285262 | H101: 255.1741114
B102: Pieńsk | D102: 3341.358086 | E102: 1467.722762 | F102: 3200.348469 | G102: 2913.046933 | H102: 287.3015362
B103: Węgliniec | D103: 3856.437569 | E103: 1553.190639 | F103: 3754.505849 | G103: 3171.611926 | H103: 582.8939224
B104: Gminy wiejskie:
B105: Rural gminas:
B106: Sulików | D106: 3986.990041 | E106: 2272.61142 | F106: 3683.273555 | G106: 3324.831983 | H106: 194.8557713
B107: Zgorzelec | D107: 4751.781636 | E107: 2958.928716 | F107: 4611.191595 | G107: 3871.616523 | H107: 739.575072
B108: POWIAT ZŁOTORYJSKI | D108: 3805.984578 | E108: 1829.918558 | F108: 3615.892238 | G108: 3376.720133 | H108: 239.1721051
B109: Gminy miejskie:
B110: Urban gminas:
B111: Wojcieszów | D111: 4051.880465 | E111: 1802.614697 | F111: 3927.691165 | G111: 3515.958883 | H111: 411.7322828
B112: Złotoryja | D112: 3424.682799 | E112: 2042.061621 | F112: 3264.540795 | G112: 3142.641037 | H112: 121.8997585
B113: Gminy miejsko-wiejskie:
B114: Urban-rural gminas:
B115: Świerzawa | D115: 3706.387319 | E115: 1318.546226 | F115: 3435.634453 | G115: 3275.756457 | H115: 159.8779958
B116: Gminy wiejskie:
B117: Rural gminas:
B118: Pielgrzymka | D118: 4164.682902 | E118: 1484.058452 | F118: 4114.759367 | G118: 3802.298881 | H118: 312.4604868
B119: Zagrodno | D119: 3885.795089 | E119: 1942.916485 | F119: 3622.026572 | G119: 3280.557415 | H119: 341.4691574
B120: Złotoryja | D120: 4341.491945 | E120: 2061.051576 | F120: 4100.29211 | G120: 3729.780977 | H120: 370.5111322
B121: PODREGION LEGNICKO-GŁOGOWSKI | D121: 4643.891467 | E121: 2785.007122 | F121: 4611.700046 | G121: 4023.552531 | H121: 551.7333879
B122: SUBREGION
B123: POWIAT GŁOGOWSKI | D123: 4355.761411 | E123: 2777.894487 | F123: 4432.12881 | G123: 3724.938216 | H123: 657.890128
B124: Gminy miejskie:
B125: Urban gminas:
B126: Głogów | D126: 4086.600354 | E126: 2697.555433 | F126: 4187.07684 | G126: 3516.231516 | H126: 605.9652936
B127: Gminy wiejskie:
B128: Rural gminas:
B129: Głogów | D129: 4252.221829 | E129: 2578.605956 | F129: 3908.266684 | G129: 3542.621898 | H129: 365.6447864
B130: Jerzmanowa | D130: 8154.340264 | E130: 6038.311821 | F130: 8519.13918 | G130: 6509.508326 | H130: 2009.630853
B131: Kotla | D131: 4222.668089 | E131: 1841.443573 | F131: 4282.655733 | G131: 3845.437569 | H131: 437.2181631
B132: Pęcław | D132: 3945.735406 | E132: 1185.248627 | F132: 3848.261953 | G132: 3804.457214 | H132: 43.80473892
B133: Żukowice | D133: 5035.645097 | E133: 2479.65217 | F133: 5168.625194 | G133: 4120.575288 | H133: 1048.049906
B134: POWIAT GÓROWSKI | D134: 4053.10145 | E134: 1501.249764 | F134: 4082.855096 | G134: 3651.855206 | H134: 430.9998895
B135: Gminy miejsko-wiejskie:
B136: Urban-rural gminas:
B137: Góra | D137: 4032.910413 | E137: 1598.622767 | F137: 4184.865504 | G137: 3676.32314 | H137: 508.5423634
B138: Wąsosz | D138: 4096.006189 | E138: 1455.186084 | F138: 3958.717647 | G138: 3484.477747 | H138: 474.2399005
B139: Gminy wiejskie:
B140: Rural gminas:
B141: Jemielno | D141: 3986.050077 | E141: 1142.632747 | F141: 3970.335626 | G141: 3840.788585 | H141: 129.5470413
B142: Niechlów | D142: 4114.004242 | E142: 1396.660632 | F142: 3920.497099 | G142: 3679.793467 | H142: 240.7036322
B143: POWIAT LEGNICKI | D143: 4038.726608 | E143: 2139.604779 | F143: 3914.559405 | G143: 3448.24059 | H143: 457.2468747
B144: Gminy miejskie:
B145: Urban gminas:
B146: Chojnów | D146: 3855.017129 | E146: 1999.611889 | F146: 3431.237537 | G146: 3206.752823 | H146: 224.4847135
B147: Gminy miejsko-wiejskie:
B148: Urban-rural gminas:
B149: Prochowice | D149: 3855.596355 | E149: 2013.215751 | F149: 3937.18672 | G149: 3417.107915 | H149: 520.0788042
B150: Gminy wiejskie:
B151: Rural gminas:
B152: Chojnów | D152: 3876.6764 | E152: 1905.000181 | F152: 4036.724813 | G152: 3340.290103 | H152: 696.4347107
B153: Krotoszyce | D153: 4285.780595 | E153: 2337.836978 | F153: 4143.839724 | G153: 3906.069383 | H153: 237.7703406
B154: Kunice | D154: 4137.265286 | E154: 2501.857287 | F154: 4089.246024 | G154: 3515.628283 | H154: 573.6177405
B155: Legnickie Pole | D155: 4810.980268 | E155: 3093.613114 | F155: 4676.910697 | G155: 4021.738539 | H155: 558.8330443
B156: Miłkowice | D156: 3842.102919 | E156: 1805.039645 | F156: 3560.114835 | G156: 3206.159457 | H156: 353.9553783
B157: Ruja | D157: 4515.540778 | E157: 1884.768837 | F157: 4581.24455 | G157: 3920.652538 | H157: 660.5920112
B158: POWIAT LUBIŃSKI | D158: 4616.453387 | E158: 2852.458918 | F158: 4492.630321 | G158: 4022.540038 | H158: 421.1530069
B159: Gminy miejskie:
B160: Urban gminas:
B161: Lubin | D161: 4421.323277 | E161: 2641.139231 | F161: 4292.639547 | G161: 3977.168192 | H161: 247.1689713
B162: Gminy miejsko-wiejskie:
B163: Urban-rural gminas:
B164: Ścinawa | D164: 3842.795338 | E164: 1609.270124 | F164: 4083.72547 | G164: 3175.815735 | H164: 907.9097346
B165: Gminy wiejskie:
B166: Rural gminas:
B167: Lubin | D167: 4870.293854 | E167: 3570.714422 | F167: 4923.036544 | G167: 4101.64903 | H167: 808.1766022
B168: Rudna | D168: 6981.35286 | E168: 5079.376143 | F168: 6079.097614 | G168: 5409.241342 | H168: 669.856272
B169: POWIAT POLKOWICKI | D169: 5965.945115 | E169: 3974.951228 | F169: 5978.288705 | G169: 5165.470882 | H169: 771.3156271
B170: Gminy miejsko-wiejskie:
B171: Urban-rural gminas:
B172: Chocianów | D172: 3458.538573 | E172: 1647.090268 | F172: 3563.643462 | G172: 2920.220876 | H172: 620.8232796
B173: Polkowice | D173: 7922.42484 | E173: 6136.953396 | F173: 8265.335885 | G173: 7396.34232 | H173: 784.1952571
B174: Przemków | D174: 3666.119463 | E174: 1268.046029 | F174: 3186.108337 | G174: 3121.240178 | H174: 64.86815927
B175: Gminy wiejskie:
B176: Rural gminas:
B177: Gaworzyce | D177: 4126.161347 | E177: 1401.868434 | F177: 4282.567211 | G177: 3177.127211 | H177: 1105.44
B178: Grębocice | D178: 7440.775155 | E178: 5294.238058 | F178: 6898.504102 | G178: 5119.167413 | H178: 1779.336689
B179: Radwanice | D179: 5537.325244 | E179: 3395.761017 | F179: 4786.550399 | G179: 3825.762081 | H179: 960.7883182
B180: PODREGION WAŁBRZYSKI | D180: 3634.008239 | E180: 1855.50056 | F180: 3568.44491 | G180: 3123.728782 | H180: 425.6688841
B181: SUBREGION
B182: POWIAT DZIERŻONIOWSKI | D182: 3436.319247 | E182: 1659.637759 | F182: 3369.360319 | G182: 2994.588845 | H182: 358.9614977
B183: Gminy miejskie:
B184: Urban gminas:
B185: Bielawa | D185: 3835.84241 | E185: 1925.97289 | F185: 3728.615214 | G185: 3337.235911 | H185: 346.119432
B186: Dzierżoniów | D186: 3363.209898 | E186: 1823.999017 | F186: 3325.420913 | G186: 2849.388696 | H186: 471.896445
B187: Piława Górna | D187: 3229.404053 | E187: 1393.194226 | F187: 2965.292425 | G187: 2689.183035 | H187: 276.1093896
B188: Gminy miejsko-wiejskie:
B189: Urban-rural gminas:
B190: Niemcza | D190: 3052.727458 | E190: 1232.126263 | F190: 3039.919595 | G190: 2807.002848 | H190: 232.9167474
B191: Pieszyce | D191: 2986.243507 | E191: 1314.842781 | F191: 2940.405993 | G191: 2679.074047 | H191: 250.7521305
B192: Gminy wiejskie:
B193: Rural gminas:
B194: Dzierżoniów | D194: 3282.968524 | E194: 1319.36898 | F194: 3355.453325 | G194: 2959.826294 | H194: 394.9769772
B195: Łagiewniki | D195: 3380.645043 | E195: 1254.172941 | F195: 3279.739555 | G195: 3115.384473 | H195: 164.3550819
B196: POWIAT KŁODZKI | D196: 3741.53839 | E196: 1851.360614 | F196: 3550.093507 | G196: 3113.771119 | H196: 428.6117992
B197: Gminy miejskie:
B198: Urban gminas:
B199: Duszniki-Zdrój | D199: 6319.074169 | E199: 2587.591837 | F199: 7062.107082 | G199: 3998.66753 | H199: 3063.439552
B200: Kłodzko | D200: 3458.337341 | E200: 1909.575962 | F200: 3275.455572 | G200: 3013.176483 | H200: 223.9906373
B201: Kudowa-Zdrój | D201: 3789.828481 | E201: 2076.649533 | F201: 3698.435136 | G201: 3424.867227 | H201: 273.5679093
B202: Nowa Ruda | D202: 3209.419859 | E202: 1732.624181 | F202: 3184.270164 | G202: 3008.170389 | H202: 176.0997757
B203: Polanica-Zdrój | D203: 4187.874263 | E203: 2818.982173 | F203: 3814.659866 | G203: 3535.350429 | H203: 279.3094367
B204: Gminy miejsko-wiejskie:
... 145 more rows

Sheet Tabl. 17.
B4: Tabl. 17. Dochody, wydatki i wynik finansowy budżetów gmina
B5: Revenue, expenditure and financial results of gminas budgetsa
B6: WYSZCZEGÓLNIENIE SPECIFICATION | D6: Dochody Revenue | E6: Wydatki Expenditure | F6: Wynik finansowy deficyt (-) lub nadwyżka (+) Financial result deficit (-) or surplus (+)
D7: w tys. w zł in thous. zl
B8: O G Ó Ł E M | C8: 2015 | D8: 7075516.151 | E8: 6880258.213 | F8: 195257.9379
B9: T O T A L | C9: 2016 | D9: 7878055.419 | E9: 7665498.505 | F9: 212556.9137
B11: Gminy miejskie | D11: 2535907.802 | E11: 2479142.391 | F11: 56765.41013
B12: Urban gminas
B13: Gminy miejsko-wiejskie | D13: 2936746.773 | E13: 2876862.748 | F13: 59884.02572
B14: Urban-rural gminas
B15: Gminy wiejskie | D15: 2405400.844 | E15: 2309493.366 | F15: 95907.47781
B16: Rural gminas
B17: PODREGION JELENIOGÓRSKI | D17: 1896452.643 | E17: 1800500.039 | F17: 95952.60373
B18: SUBREGION
B19: POWIAT BOLESŁAWIECKI | D19: 356102.7573 | E19: 325546.5777 | F19: 30556.17955
B20: Gminy miejskie:
B21: Urban gminas:
B22: Bolesławiec | D22: 153495.3549 | E22: 142551.4683 | F22: 10943.88667
B23: Gminy miejsko-wiejskie:
B24: Urban-rural gminas:
B25: Nowogrodziec | D25: 58681.12507 | E25: 51517.38046 | F25: 7163.74461
B26: Gminy wiejskie:
B27: Rural gminas:
B28: Bolesławiec | D28: 50523.74317 | E28: 46501.37713 | F28: 4022.36604
B29: Gromadka | D29: 25115.54087 | E29: 24405.72618 | F29: 709.81469
B30: Osiecznica | D30: 35031.5785 | E30: 30435.17271 | F30: 4596.40579
B31: Warta Bolesławiecka | D31: 33255.41472 | E31: 30135.45297 | F31: 3119.96175
B32: POWIAT JAWORSKI | D32: 184151.5706 | E32: 176105.1937 | F32: 8046.37691
B33: Gminy miejskie:
B34: Urban gminas:
B35: Jawor | D35: 80793.83937 | E35: 75517.00093 | F35: 5276.83844
B36: Gminy miejsko-wiejskie:
B37: Urban-rural gminas:
B38: Bolków | D38: 35974.6826 | E38: 34023.57586 | F38: 1951.10674
B39: Gminy wiejskie:
B40: Rural gminas:
B41: Męcinka | D41: 18762.32602 | E41: 18615.65519 | F41: 146.67083
B42: Mściwojów | D42: 16597.26196 | E42: 15622.47303 | F42: 974.78893
B43: Paszowice | D43: 15080.25837 | E43: 14521.90079 | F43: 558.35758
B44: Wądroże Wielkie | D44: 16943.20228 | E44: 17804.58789 | F44: -861.38561
B45: POWIAT JELENIOGÓRSKI | D45: 262144.4061 | E45: 243795.598 | F45: 18348.80812
B46: Gminy miejskie:
B47: Urban gminas:
B48: Karpacz | D48: 33535.33363 | E48: 30616.03468 | F48: 2919.29895
B49: Kowary | D49: 39800.98095 | E49: 36068.06755 | F49: 3732.9134
B50: Piechowice | D50: 23462.74571 | E50: 21952.39844 | F50: 1510.34727
B51: Szklarska Poręba | D51: 35781.01829 | E51: 33408.46939 | F51: 2372.5489
B52: Gminy wiejskie:
B53: Rural gminas:
B54: Janowice Wielkie | D54: 14907.54698 | E54: 14161.27854 | F54: 746.26844
B55: Jeżów Sudecki | D55: 26659.29025 | E55: 23578.19182 | F55: 3081.09843
B56: Mysłakowice | D56: 38387.1846 | E56: 36565.61898 | F56: 1821.56562
B57: Podgórzyn | D57: 28679.50406 | E57: 27669.73613 | F57: 1009.76793
B58: Stara Kamienica | D58: 20930.80164 | E58: 19775.80246 | F58: 1154.99918
B59: POWIAT KAMIENNOGÓRSKI | D59: 156300.2192 | E59: 151735.4346 | F59: 4564.78457
B60: Gminy miejskie:
B61: Urban gminas:
B62: Kamienna Góra | D62: 66867.84339 | E62: 64313.72012 | F62: 2554.12327
B63: Gminy miejsko-wiejskie:
B64: Urban-rural gminas:
B65: Lubawka | D65: 35858.32225 | E65: 35636.5688 | F65: 221.75345
B66: Gminy wiejskie:
B67: Rural gminas:
B68: Kamienna Góra | D68: 36017.67634 | E68: 34754.84254 | F68: 1262.8338
B69: Marciszów | D69: 17556.3772 | E69: 17030.30315 | F69: 526.07405
B70: POWIAT LUBAŃSKI | D70: 211722.7226 | E70: 204330.2516 | F70: 7392.47101
B71: Gminy miejskie:
B72: Urban gminas:
B73: Lubań | D73: 71663.34653 | E73: 69892.73692 | F73: 1770.60961
B74: Świeradów-Zdrój | D74: 31947.94477 | E74: 28325.54594 | F74: 3622.39883
B75: Gminy miejsko-wiejskie:
B76: Urban-rural gminas:
B77: Leśna | D77: 37382.74299 | E77: 35922.24699 | F77: 1460.496
B78: Olszyna | D78: 23674.53551 | E78: 23950.30534 | F78: -275.76983
B79: Gminy wiejskie:
B80: Rural gminas:
B81: Lubań | D81: 24766.05887 | E81: 23972.89208 | F81: 793.16679
B82: Platerówka | D82: 6326.53705 | E82: 6424.47617 | F82: -97.93912
B83: Siekierczyn | D83: 15961.55687 | E83: 15842.04814 | F83: 119.50873
B84: POWIAT LWÓWECKI | D84: 159694.1401 | E84: 151365.1721 | F84: 8328.968
B85: Gminy miejsko-wiejskie:
B86: Urban-rural gminas:
B87: Gryfów Śląski | D87: 31465.71008 | E87: 28445.20608 | F87: 3020.504
B88: Lubomierz | D88: 24530.63523 | E88: 24007.32365 | F88: 523.31158
B89: Lwówek Śląski | D89: 56786.72854 | E89: 53777.49002 | F89: 3009.23852
B90: Mirsk | D90: 32089.04981 | E90: 30560.45206 | F90: 1528.59775
B91: Wleń | D91: 14822.01645 | E91: 14574.7003 | F91: 247.31615
B92: POWIAT ZGORZELECKI | D92: 397198.8726 | E92: 386931.5606 | F92: 10267.31196
B93: Gminy miejskie:
B94: Urban gminas:
B95: Zawidów | D95: 15499.80654 | E95: 14697.20736 | F95: 802.59918
B96: Zgorzelec | D96: 101108.7048 | E96: 100703.1707 | F96: 405.53413
B97: Gminy miejsko-wiejskie:
B98: Urban-rural gminas:
B99: Bogatynia | D99: 152723.7455 | E99: 148869.3733 | F99: 3854.37216
B100: Pieńsk | D100: 30864.12464 | E100: 29561.61881 | F100: 1302.50583
B101: Węgliniec | D101: 32710.30346 | E101: 31845.71861 | F101: 864.58485
B102: Gminy wiejskie:
B103: Rural gminas:
B104: Sulików | D104: 24372.47012 | E104: 22515.85124 | F104: 1856.61888
B105: Zgorzelec | D105: 39919.71752 | E105: 38738.62059 | F105: 1181.09693
B106: POWIAT ZŁOTORYJSKI | D106: 169137.9547 | E106: 160690.2511 | F106: 8447.70361
B107: Gminy miejskie:
B108: Urban gminas:
B109: Wojcieszów | D109: 15158.08482 | E109: 14693.49265 | F109: 464.59217
B110: Złotoryja | D110: 54462.73056 | E110: 51915.99227 | F110: 2546.73829
B111: Gminy miejsko-wiejskie:
B112: Urban-rural gminas:
B113: Świerzawa | D113: 28331.62467 | E113: 26261.98976 | F113: 2069.63491
B114: Gminy wiejskie:
B115: Rural gminas:
B116: Pielgrzymka | D116: 19419.91637 | E116: 19187.12293 | F116: 232.79344
B117: Zagrodno | D117: 20936.66394 | E117: 19515.47917 | F117: 1421.18477
B118: Złotoryja | D118: 30828.9343 | E118: 29116.17427 | F118: 1712.76003
B119: PODREGION LEGNICKO-GŁOGOWSKI | D119: 1627080.253 | E119: 1615801.345 | F119: 11278.90828
B120: SUBREGION
B121: POWIAT GŁOGOWSKI | D121: 392279.8727 | E121: 399157.5207 | F121: -6877.64799
B122: Gminy miejskie:
B123: Urban gminas:
B124: Głogów | D124: 279662.4086 | E124: 286538.4164 | F124: -6876.00785
B125: Gminy wiejskie:
B126: Rural gminas:
B127: Głogów | D127: 27966.86297 | E127: 25704.66998 | F127: 2262.19299
B128: Jerzmanowa | D128: 39173.45063 | E128: 40925.94462 | F128: -1752.49399
B129: Kotla | D129: 18849.99035 | E129: 19117.77519 | F129: -267.78484
B130: Pęcław | D130: 8992.33099 | E130: 8770.18899 | F130: 222.142
B131: Żukowice | D131: 17634.82913 | E131: 18100.52543 | F131: -465.6963
B132: POWIAT GÓROWSKI | D132: 145291.5277 | E132: 146358.1066 | F132: -1066.57893
B133: Gminy miejsko-wiejskie:
B134: Urban-rural gminas:
B135: Góra | D135: 82130.22057 | E135: 85224.78598 | F135: -3094.56541
B136: Wąsosz | D136: 30064.68543 | E136: 29056.98753 | F136: 1007.6979
B137: Gminy wiejskie:
B138: Rural gminas:
B139: Jemielno | D139: 12448.43439 | E139: 12399.35816 | F139: 49.07623
B140: Niechlów | D140: 20648.18729 | E140: 19676.97494 | F140: 971.21235
B141: POWIAT LEGNICKI | D141: 222594.417 | E141: 215750.9416 | F141: 6843.4754
B142: Gminy miejskie:
B143: Urban gminas:
B144: Chojnów | D144: 53087.44088 | E144: 47251.57212 | F144: 5835.86876
B145: Gminy miejsko-wiejskie:
B146: Urban-rural gminas:
B147: Prochowice | D147: 28889.98349 | E147: 29501.34009 | F147: -611.3566
B148: Gminy wiejskie:
B149: Rural gminas:
B150: Chojnów | D150: 37057.14971 | E150: 38587.05249 | F150: -1529.90278
B151: Krotoszyce | D151: 13967.35896 | E151: 13504.77366 | F151: 462.5853
B152: Kunice | D152: 27355.59807 | E152: 27038.09471 | F152: 317.50336
B153: Legnickie Pole | D153: 24968.98759 | E153: 24273.16652 | F153: 695.82107
B154: Miłkowice | D154: 25188.82674 | E154: 23340.11286 | F154: 1848.71388
B155: Ruja | D155: 12079.07158 | E155: 12254.82917 | F155: -175.75759
B156: POWIAT LUBIŃSKI | D156: 490576.6521 | E156: 477418.3463 | F156: 13158.30578
B157: Gminy miejskie:
B158: Urban gminas:
B159: Lubin | D159: 323685.0771 | E159: 314264.1412 | F159: 9420.93589
B160: Gminy miejsko-wiejskie:
B161: Urban-rural gminas:
B162: Ścinawa | D162: 39096.59977 | E162: 41547.82293 | F162: -2451.22316
B163: Gminy wiejskie:
B164: Rural gminas:
B165: Lubin | D165: 73731.37866 | E165: 74529.85024 | F165: -798.47158
B166: Rudna | D166: 54063.59655 | E166: 47076.53192 | F166: 6987.06463
B167: POWIAT POLKOWICKI | D167: 376337.7838 | E167: 377116.4298 | F167: -778.64598
B168: Gminy miejsko-wiejskie:
B169: Urban-rural gminas:
B170: Chocianów | D170: 44839.9526 | E170: 46202.63748 | F170: -1362.68488
B171: Polkowice | D171: 217217.0443 | E171: 226618.9793 | F171: -9401.93502
B172: Przemków | D172: 31488.30007 | E172: 27365.48451 | F172: 4122.81556
B173: Gminy wiejskie:
B174: Rural gminas:
B175: Gaworzyce | D175: 16393.23903 | E175: 17014.63953 | F175: -621.4005
B176: Grębocice | D176: 40157.86351 | E176: 37231.22664 | F176: 2926.63687
B177: Radwanice | D177: 26241.38433 | E177: 22683.46234 | F177: 3557.92199
B178: PODREGION WAŁBRZYSKI | D178: 1990339.045 | E178: 1954430.14 | F178: 35908.90434
B179: SUBREGION
B180: POWIAT DZIERŻONIOWSKI | D180: 353861.8471 | E180: 346966.6176 | F180: 6895.22948
B181: Gminy miejskie:
B182: Urban gminas:
B183: Bielawa | D183: 116962.5068 | E183: 113692.9351 | F183: 3269.57165
B184: Dzierżoniów | D184: 113848.0183 | E184: 112568.8233 | F184: 1279.19494
B185: Piława Górna | D185: 21320.52556 | E185: 19576.86059 | F185: 1743.66497
B186: Gminy miejsko-wiejskie:
B187: Urban-rural gminas:
B188: Niemcza | D188: 17260.12105 | E188: 17187.70539 | F188: 72.41566
B189: Pieszyce | D189: 28790.37365 | E189: 28348.45418 | F189: 441.91947
B190: Gminy wiejskie:
B191: Rural gminas:
B192: Dzierżoniów | D192: 30301.79948 | E192: 30970.83419 | F192: -669.03471
B193: Łagiewniki | D193: 25378.50234 | E193: 24621.00484 | F193: 757.4975
B194: POWIAT KŁODZKI | D194: 605590.4377 | E194: 574603.9346 | F194: 30986.50308
B195: Gminy miejskie:
B196: Urban gminas:
B197: Duszniki-Zdrój | D197: 30059.83582 | E197: 33594.44339 | F197: -3534.60757
B198: Kłodzko | D198: 95291.02709 | E198: 90251.90283 | F198: 5039.12426
B199: Kudowa-Zdrój | D199: 38375.8032 | E199: 37450.35419 | F199: 925.44901
B200: Nowa Ruda | D200: 72837.78369 | E200: 72267.01138 | F200: 570.77231
B201: Polanica-Zdrój | D201: 27212.80696 | E201: 24787.65981 | F201: 2425.14715
B202: Gminy miejsko-wiejskie:
B203: Urban-rural gminas:
B204: Bystrzyca Kłodzka | D204: 68108.06133 | E204: 64455.59582 | F204: 3652.46551
... 143 more rows

Sheet Tabl. 18.
B4: Tabl. 18. Dochody budżetów powiatów według rodzajów
B5: Revenue of powiats budgets by types
B6: WYSZCZEGÓLNIENIE SPECIFICATION | D6: Ogółem Total | E6: Dochody własne Own revenue | H6: Dotacje celowea Targeted grantsa | K6: Subwencja ogólna z budżetu państwa General subvention from the state budget
E7: razem total | F7: w tym udział w podatku dochodowym of which share in income tax | H7: razem total | I7: w tym of which | K7: razem total | L7: w tym na zadania oświatowe of which for educational tasks
F8: od osób prawnych corporate income tax | G8: od osób fizycznych personal income tax | I8: z budżetu państwa from the state budget | J8: z państwowych funduszy celowych from state appropriated funds
B9: w tys. zł in thous. zl
B10: O G Ó Ł E M | C10: 2015 | D10: 1896967.585 | E10: 685437.906 | F10: 25463.66015 | G10: 367660.557 | H10: 449698.3684 | I10: 331909.5666 | J10: 4515.16 | K10: 761831.311 | L10: 608364.347
B11: T O T A L | C11: 2016 | D11: 1903578.034 | E11: 709589.5695 | F11: 19510.412 | G11: 395580.709 | H11: 438690.9364 | I11: 329222.6235 | J11: 2773.09 | K11: 755297.528 | L11: 606212.094
B13: Powiaty:
B14: Powiats:
B15: bolesławiecki | D15: 78888.44517 | E15: 24163.19529 | F15: 890.54362 | G15: 16169.779 | H15: 18984.93088 | I15: 11189.91998 | J15: 49 | K15: 35740.319 | L15: 31218.076
B16: dzierżoniowski | D16: 90305.73532 | E16: 30127.88355 | F16: 599.45524 | G16: 16232.901 | H16: 16579.14677 | I16: 11785.45262 | J16: 205.9224 | K16: 43598.705 | L16: 32680.64
B17: głogowski | D17: 105316.2792 | E17: 43493.57045 | F17: 1302.7198 | G17: 24184.549 | H17: 14956.73572 | I17: 12510.31223 | J17: 491.84825 | K17: 46865.973 | L17: 46657.368
B18: górowski | D18: 35767.54955 | E18: 10593.53995 | F18: 162.97978 | G18: 4245.363 | H18: 8125.7436 | I18: 7120.52288 | J18: - | K18: 17048.266 | L18: 10080.516
B19: jaworski | D19: 53750.21662 | E19: 18271.82652 | F19: 97.1097 | G19: 7794.325 | H19: 15603.0741 | I19: 10931.49956 | J19: 79 | K19: 19875.316 | L19: 13466.061
B20: jeleniogórski | D20: 65874.84988 | E20: 26012.88494 | F20: 177.28579 | G20: 10955.563 | H20: 21734.85594 | I20: 14190.6037 | J20: 61.905 | K20: 18127.109 | L20: 12121.402
B21: kamiennogórski | D21: 43936.45328 | E21: 13998.83981 | F21: 143.86246 | G21: 6515.724 | H21: 13233.07147 | I21: 12250.06231 | J21: - | K21: 16704.542 | L21: 11728.346
B22: kłodzki | D22: 178405.7269 | E22: 56889.481 | F22: 583.89092 | G22: 24600.232 | H22: 35264.95689 | I22: 33519.40629 | J22: 72 | K22: 86251.289 | L22: 63671.072
B23: legnicki | D23: 63589.29935 | E23: 31519.41262 | F23: 289.66984 | G23: 9659.632 | H23: 22010.12273 | I23: 16219.17678 | J23: 462.94213 | K23: 10059.764 | L23: 4079.966
B24: lubański | D24: 54739.80509 | E24: 13946.16717 | F24: 127.35264 | G24: 8965.11 | H24: 14632.93392 | I24: 9655.8594 | J24: 45.51 | K24: 26160.704 | L24: 19736.162
B25: lubiński | D25: 87921.12587 | E25: 45695.1261 | F25: 2739.67601 | G25: 34262.899 | H25: 18948.29877 | I25: 8895.90092 | J25: 172.142 | K25: 23277.701 | L25: 21673.35
B26: lwówecki | D26: 54151.70375 | E26: 13668.47029 | F26: 129.37721 | G26: 5883.864 | H26: 14749.98346 | I26: 10951.05389 | J26: 242.61853 | K26: 25733.25 | L26: 17736.729
B27: milicki | D27: 47421.87763 | E27: 17380.88979 | F27: 77.42646 | G27: 5985.818 | H27: 10346.78284 | I27: 8917.9508 | J27: - | K27: 19694.205 | L27: 15152.367
B28: oleśnicki | D28: 96441.7734 | E28: 36221.59369 | F28: 599.43552 | G28: 19987.303 | H28: 20713.17771 | I28: 16796.51068 | J28: 49.99836 | K28: 39507.002 | L28: 33762.672
B29: oławski | D29: 71839.14084 | E29: 28745.87563 | F29: 732.58515 | G29: 16716.564 | H29: 19094.59521 | I29: 13418.63267 | J29: 300 | K29: 23998.67 | L29: 22231.798
B30: polkowicki | D30: 49867.75946 | E30: 26307.12041 | F30: 3336.31381 | G30: 16533.291 | H30: 13040.13805 | I30: 7468.85591 | J30: 70 | K30: 10520.501 | L30: 10127.107
B31: strzeliński | D31: 47695.16387 | E31: 11883.60775 | F31: 498.5228 | G31: 7001.156 | H31: 11737.00212 | I31: 7156.56099 | J31: 2 | K31: 24074.554 | L31: 18744.081
B32: średzki | D32: 42577.70122 | E32: 15710.26608 | F32: 899.04043 | G32: 10783.358 | H32: 14138.52514 | I32: 10900.86181 | J32: - | K32: 12728.91 | L32: 9100.613
B33: świdnicki | D33: 138172.2902 | E33: 48508.06645 | F33: 1317.17842 | G33: 31964.142 | H33: 20901.33374 | I33: 18984.63614 | J33: 113.57225 | K33: 68762.89 | L33: 63499.966
B34: trzebnicki | D34: 71101.82501 | E34: 29909.15231 | F34: 307.31128 | G34: 16821.076 | H34: 14374.0737 | I34: 10214.99094 | J34: 100 | K34: 26818.599 | L34: 22289.65
B35: wałbrzyski | D35: 48431.52556 | E35: 15260.74423 | F35: 106.59198 | G35: 10052.13 | H35: 15489.06333 | I35: 10050.42514 | J35: 14 | K35: 17681.718 | L35: 10428.931
B36: wołowski | D36: 59048.54012 | E36: 14306.20155 | F36: 400.56644 | G36: 8203.415 | H36: 14842.29157 | I36: 9357.17848 | J36: - | K36: 29900.047 | L36: 25138.905
B37: wrocławski | D37: 105864.1876 | E37: 60002.98242 | F37: 2598.07011 | G37: 44014.807 | H37: 18911.34413 | I37: 14687.95156 | J37: - | K37: 26949.861 | L37: 21663.072
B38: ząbkowicki | D38: 80447.72672 | E38: 26023.50299 | F38: 220.60226 | G38: 10027.304 | H38: 23153.56873 | I38: 18216.22254 | J38: 166.53826 | K38: 31270.655 | L38: 23261.003
B39: zgorzelecki | D39: 88756.29695 | E39: 39468.17768 | F39: 1073.73032 | G39: 21131.845 | H39: 16461.47527 | I39: 15869.07982 | J39: 18.99282 | K39: 32826.644 | L39: 31237.038
B40: złotoryjski | D40: 43265.0355 | E40: 11480.99086 | F40: 99.11401 | G40: 6888.559 | H40: 10663.71064 | I40: 7962.99544 | J40: 55.1 | K40: 21120.334 | L40: 14725.203
B42: w % in %
B43: O G Ó Ł E M | C43: 2015 | D43: 100 | E43: 36.13334837 | F43: 1.342335017 | G43: 19.38148864 | H43: 23.70617041 | I43: 17.49684967 | J43: 0.2380198816 | K43: 40.16048123 | L43: 32.0703607
B44: T O T A L | C44: 2016 | D44: 100 | E44: 37.27662102 | F44: 1.024933659 | G44: 20.78090322 | H44: 23.04559774 | I44: 17.29493709 | J44: 0.1456777684 | K44: 39.67778124 | L44: 31.8459282
B46: Powiaty:
B47: Powiats:
B48: bolesławiecki | D48: 100 | E48: 30.62957476 | F48: 1.128864459 | G48: 20.49701825 | H48: 24.0655407 | I48: 14.18448539 | J48: 0.06211302542 | K48: 45.30488454 | L48: 39.57243159
B49: dzierżoniowski | D49: 100 | E49: 33.36209316 | F49: 0.6638063882 | G49: 17.97549285 | H49: 18.35890789 | I49: 13.05061365 | J49: 0.2280280419 | K49: 48.27899894 | L49: 36.18888644
B50: głogowski | D50: 100 | E50: 41.29805078 | F50: 1.236959576 | G50: 22.96373285 | H50: 14.201732 | I50: 11.87880196 | J50: 0.4670201548 | K50: 44.50021722 | L50: 44.30214243
B51: górowski | D51: 100 | E51: 29.61774034 | F51: 0.4556638127 | G51: 11.86931465 | H51: 22.71820044 | I51: 19.90777386 | J51: - | K51: 47.66405922 | L51: 28.18341241
B52: jaworski | D52: 100 | E52: 33.99395885 | F52: 0.1806684812 | G52: 14.50101133 | H52: 29.02885808 | I52: 20.33759164 | J52: 0.1469761519 | K52: 36.97718307 | L52: 25.05303578
B53: jeleniogórski | D53: 100 | E53: 39.48834037 | F53: 0.2691251522 | G53: 16.63087357 | H53: 32.9941639 | I53: 21.54176249 | J53: 0.09397364869 | K53: 27.51749573 | L53: 18.40065218
B54: kamiennogórski | D54: 100 | E54: 31.86156088 | F54: 0.3274330294 | G54: 14.8298816 | H54: 30.11866112 | I54: 27.88131812 | J54: - | K54: 38.019778 | L54: 26.69388429
B55: kłodzki | D55: 100 | E55: 31.88769889 | F55: 0.3272826104 | G55: 13.78892507 | H55: 19.76671798 | I55: 18.78830174 | J55: 0.04035744886 | K55: 48.34558313 | L55: 35.68891712
B56: legnicki | D56: 100 | E56: 49.56716451 | F56: 0.4555323662 | G56: 15.19065644 | H56: 34.61293481 | I56: 25.50614167 | J56: 0.7280189194 | K56: 15.81990068 | L56: 6.416120388
B57: lubański | D57: 100 | E57: 25.47719552 | F57: 0.2326508832 | G57: 16.3776798 | H57: 26.73179763 | I57: 17.63955751 | J57: 0.08313876881 | K57: 47.79100685 | L57: 36.05449813
B58: lubiński | D58: 100 | E58: 51.97286278 | F58: 3.116061109 | G58: 38.97004123 | H58: 21.55147421 | I58: 10.11804709 | J58: 0.1957913963 | K58: 26.47566301 | L58: 24.65090135
B59: lwówecki | D59: 100 | E59: 25.24107155 | F59: 0.2389162317 | G59: 10.86551963 | H59: 27.23826295 | I59: 20.22291661 | J59: 0.4480348968 | K59: 47.5206655 | L59: 32.75377831
B60: milicki | D60: 100 | E60: 36.65162718 | F60: 0.1632716035 | G60: 12.62248207 | H60: 21.81858534 | I60: 18.80556242 | J60: - | K60: 41.52978748 | L60: 31.95227131
B61: oleśnicki | D61: 100 | E61: 37.55799216 | F61: 0.6215517393 | G61: 20.72473607 | H61: 21.47739198 | I61: 17.41621923 | J61: 0.05184305331 | K61: 40.96461586 | L61: 35.00834836
B62: oławski | D62: 100 | E62: 40.01422525 | F62: 1.019757672 | G62: 23.26943753 | H62: 26.57965419 | I62: 18.67872098 | J62: 0.417599649 | K62: 33.40612056 | L62: 30.94663681
B63: polkowicki | D63: 100 | E63: 52.75376455 | F63: 6.690322257 | G63: 33.15426877 | H63: 26.14943641 | I63: 14.97732401 | J63: 0.1403712554 | K63: 21.09679904 | L63: 20.30792462
B64: strzeliński | D64: 100 | E64: 24.91574991 | F64: 1.045227146 | G64: 14.67896414 | H64: 24.60836942 | I64: 15.0047938 | J64: 0.004193297261 | K64: 50.47588067 | L64: 39.29975175
B65: średzki | D65: 100 | E65: 36.8978729 | F65: 2.111528815 | G65: 25.32630389 | H65: 33.2064079 | I65: 25.60227889 | J65: - | K65: 29.8957192 | L65: 21.37412951
B66: świdnicki | D66: 100 | E66: 35.10694249 | F66: 0.9532869566 | G66: 23.13353999 | H66: 15.12700825 | I66: 13.73982881 | J66: 0.08219611171 | K66: 49.76604926 | L66: 45.95709162
B67: trzebnicki | D67: 100 | E67: 42.06523856 | F67: 0.4322129284 | G67: 23.65772749 | H67: 20.21618109 | I67: 14.3667071 | J67: 0.140643366 | K67: 37.71858035 | L67: 31.34891404
B68: wałbrzyski | D68: 100 | E68: 31.50993914 | F68: 0.2200880083 | G68: 20.75534455 | H68: 31.98136575 | I68: 20.7518244 | J68: 0.02890679126 | K68: 36.5086951 | L68: 21.53335225
B69: wołowski | D69: 100 | E69: 24.22786663 | F69: 0.6783680667 | G69: 13.89266353 | H69: 25.13574686 | I69: 15.84658733 | J69: - | K69: 50.6363865 | L69: 42.57328792
B70: wrocławski | D70: 100 | E70: 56.6792074 | F70: 2.454153921 | G70: 41.57667292 | H70: 17.86377865 | I70: 13.87433456 | J70: - | K70: 25.45701396 | L70: 20.46307869
B71: ząbkowicki | D71: 100 | E71: 32.34833854 | F71: 0.2742181401 | G71: 12.46437209 | H71: 28.78088626 | I71: 22.64355164 | J71: 0.2070142523 | K71: 38.87077519 | L71: 28.9144317
B72: zgorzelecki | D72: 100 | E72: 44.46803104 | F72: 1.209751147 | G72: 23.8088403 | H72: 18.54682522 | I72: 17.87938475 | J72: 0.02139884228 | K72: 36.98514373 | L72: 35.19416545
B73: złotoryjski | D73: 100 | E73: 26.53641844 | F73: 0.2290857013 | G73: 15.92176898 | H73: 24.64740989 | I73: 18.40515175 | J73: 0.1273545702 | K73: 48.81617166 | L73: 34.0348802
B76: a Łącznie z dotacjami z paragrafów 200 i 620 klasyfikacji dochodów i wydatków budżetowych oraz łącznie z dotacjami z paragrafów 205 i 625.
B77: a Including grants from paragraphs 200 and 620 of the classification of budget revenue and expenditure as well including grants from paragraphs 205 and 625.

Sheet Tabl. 19.
B4: Tabl. 19. Dochody budżetów powiatów według działów
B5: Revenue of powiats budgets by divisions
B6: WYSZCZEGÓLNIENIE SPECIFICATION | D6: Ogółem Total | E6: W tym Of which
E7: transport i łączność transport and communication | F7: gospodarka mieszkaniowa dwelling economy | G7: działalność usługowa service activity | H7: administracja publiczna public administration | I7: oświata i wychowanie education | J7: ochrona zdrowia health care | K7: pomoc społeczna social welfare | L7: gospodarka komunalna i ochrona środowiska municipal economy and environmental protection | M7: kultura i ochrona dziedzictwa narodowego culture and national heritage | N7: kultura fizyczna physical education
B9: w tys. zł in thous. zl
B10: O G Ó Ł E M | C10: 2015 | D10: 1896967.585 | E10: 101901.3355 | F10: 46959.07709 | G10: 33642.31119 | H10: 15365.97961 | I10: 45129.34968 | J10: 73567.73717 | K10: 194964.4848 | L10: 12505.15636 | M10: 844.52707 | N10: 2233.95084
B11: T O T A L | C11: 2016 | D11: 1903578.034 | E11: 97631.94907 | F11: 31616.32841 | G11: 34487.05298 | H11: 10627.91997 | I11: 38628.15298 | J11: 67318.64325 | K11: 215478.796 | L11: 10013.8778 | M11: 616.9519 | N11: 557.01536
B13: Powiaty:
B14: Powiats:
B15: bolesławiecki | D15: 78888.44517 | E15: 8676.78854 | F15: 1091.52314 | G15: 1399.4125 | H15: 40.62291 | I15: 1802.59284 | J15: 1945.99677 | K15: 1767.26434 | L15: 188.77792 | M15: - | N15: -
B16: dzierżoniowski | D16: 90305.73532 | E16: 4518.53188 | F16: 1226.8709 | G16: 1260.78089 | H16: 66.42833 | I16: 1246.11194 | J16: 1882.80303 | K16: 6868.75557 | L16: 83.87724 | M16: - | N16: 182
B17: głogowski | D17: 105316.2792 | E17: 483.02985 | F17: 3024.23197 | G17: 1419.45005 | H17: 376.71851 | I17: 2665.98326 | J17: 2400.1668 | K17: 9625.46388 | L17: 3164.01984 | M17: 20 | N17: -
B18: górowski | D18: 35767.54955 | E18: 170.78577 | F18: 373.43496 | G18: 807.477 | H18: 39.11057 | I18: 374.92171 | J18: 1365 | K18: 4065.81435 | L18: 223.16351 | M18: - | N18: -
B19: jaworski | D19: 53750.21662 | E19: 6755.16827 | F19: 634.55152 | G19: 957.29958 | H19: 579.10481 | I19: 512.13352 | J19: 1505.0016 | K19: 8390.25287 | L19: 64.93569 | M19: - | N19: 1.2
B20: jeleniogórski | D20: 65874.84988 | E20: 3506.37592 | F20: 2207.24695 | G20: 1372.48644 | H20: 496.68097 | I20: 4355.82419 | J20: 2707.7648 | K20: 14155.8312 | L20: 364.99971 | M20: - | N20: -
B21: kamiennogórski | D21: 43936.45328 | E21: 3676.77709 | F21: 814.34384 | G21: 834.47838 | H21: 321.96637 | I21: 695.90856 | J21: 982.6316 | K21: 7347.76591 | L21: 309.11996 | M21: - | N21: -
B22: kłodzki | D22: 178405.7269 | E22: 4648.01127 | F22: 1828.4838 | G22: 2039.12715 | H22: 257.03454 | I22: 2880.21323 | J22: 6762.583 | K22: 30309.14823 | L22: 226.99269 | M22: 10.16042 | N22: 0.08092
B23: legnicki | D23: 63589.29935 | E23: 1498.60132 | F23: 714.18257 | G23: 1323.62595 | H23: 4149.00718 | I23: 727.613 | J23: 3454.6656 | K23: 23964.62877 | L23: 60.63063 | M23: - | N23: -
B24: lubański | D24: 54739.80509 | E24: 5060.90362 | F24: 416.3057 | G24: 985.82934 | H24: 79.56322 | I24: 1259.31072 | J24: 1398.9884 | K24: 1632.41227 | L24: 165.5467 | M24: 45 | N24: 0.7
B25: lubiński | D25: 87921.12587 | E25: 8659.84222 | F25: 2903.59583 | G25: 1442.26567 | H25: 364.57823 | I25: 684.12106 | J25: 1987.1914 | K25: 2050.35206 | L25: 329.19697 | M25: - | N25: 0.77508
B26: lwówecki | D26: 54151.70375 | E26: 4520.80839 | F26: 874.77292 | G26: 1068.33609 | H26: 95.15068 | I26: 258.11868 | J26: 2110.39925 | K26: 7277.94988 | L26: 52.54038 | M26: - | N26: -
B27: milicki | D27: 47421.87763 | E27: 0.261 | F27: 833.18841 | G27: 778.79745 | H27: 156.04594 | I27: 341.40642 | J27: 913.3972 | K27: 11433.05419 | L27: 43.8409 | M27: - | N27: -
B28: oleśnicki | D28: 96441.7734 | E28: 3015.04485 | F28: 1032.58515 | G28: 1402.69469 | H28: 259.78061 | I28: 2199.11302 | J28: 2764.02362 | K28: 12968.36634 | L28: 138.4183 | M28: 1.30368 | N28: 1.48322
B29: oławski | D29: 71839.14084 | E29: 3817.36094 | F29: 1080.46635 | G29: 1230.7327 | H29: 135.87687 | I29: 6613.02893 | J29: 1748.6906 | K29: 6230.10117 | L29: 320.40949 | M29: - | N29: 0.00434
B30: polkowicki | D30: 49867.75946 | E30: 1633.53685 | F30: 1048.99296 | G30: 1422.27647 | H30: 137.95387 | I30: 1248.59375 | J30: 3598.98607 | K30: 2021.07458 | L30: 359.55871 | M30: - | N30: -
B31: strzeliński | D31: 47695.16387 | E31: 2064.7242 | F31: 594.78926 | G31: 862.05457 | H31: 341.43242 | I31: 924.98631 | J31: 2403.64625 | K31: 3032.15237 | L31: 91.70557 | M31: - | N31: -
B32: średzki | D32: 42577.70122 | E32: 6063.39005 | F32: 552.96198 | G32: 1158.35952 | H32: 312.3668 | I32: 155.81727 | J32: 933.34545 | K32: 2400.99712 | L32: 158.6537 | M32: 222 | N32: -
B33: świdnicki | D33: 138172.2902 | E33: 3167.88767 | F33: 3391.31062 | G33: 1850.70768 | H33: 147.72463 | I33: 1847.88326 | J33: 3777.73171 | K33: 6998.11421 | L33: 723.02323 | M33: - | N33: 113.57225
B34: trzebnicki | D34: 71101.82501 | E34: 3350.53585 | F34: 486.58571 | G34: 1472.13956 | H34: 63.98033 | I34: 1407.67891 | J34: 1518.54093 | K34: 11086.01572 | L34: 122.88799 | M34: - | N34: -
B35: wałbrzyski | D35: 48431.52556 | E35: 3486.94598 | F35: 735.28346 | G35: 1110.88516 | H35: 426.9214 | I35: 30.1385 | J35: 4307.71701 | K35: 4216.82226 | L35: 122.24834 | M35: 299.96118 | N35: -
B36: wołowski | D36: 59048.54012 | E36: 5604.33871 | F36: 757.66184 | G36: 907.86527 | H36: 131.26031 | I36: 1925.63636 | J36: 1598.03676 | K36: 3185.62402 | L36: 341.19909 | M36: 15 | N36: -
B37: wrocławski | D37: 105864.1876 | E37: 6183.25244 | F37: 2048.61519 | G37: 3886.83142 | H37: 568.99995 | I37: 902.14025 | J37: 8207.502 | K37: 2812.38949 | L37: 499.91345 | M37: 3.52662 | N37: 257.19955
B38: ząbkowicki | D38: 80447.72672 | E38: 5431.81765 | F38: 565.53783 | G38: 997.5081 | H38: 298.7746 | I38: 1426.39469 | J38: 2885.60654 | K38: 16790.39398 | L38: 99.9303 | M38: - | N38: -
B39: zgorzelecki | D39: 88756.29695 | E39: 0.986 | F39: 2158.56451 | G39: 1243.25578 | H39: 254.06915 | I39: 1246.63911 | J39: 2353.6628 | K39: 13508.31696 | L39: 1585.61576 | M39: - | N39: -
B40: złotoryjski | D40: 43265.0355 | E40: 1636.24274 | F40: 220.24104 | G40: 1252.37557 | H40: 526.76677 | I40: 895.84349 | J40: 1804.56406 | K40: 1339.7343 | L40: 172.67173 | M40: - | N40: -
B42: w % in %
B43: O G Ó Ł E M | C43: 2015 | D43: 100 | E43: 5.371801623 | F43: 2.47548126 | G43: 1.773478443 | H43: 0.8100285808 | I43: 2.379025874 | J43: 3.878175765 | K43: 10.27769195 | L43: 0.6592182416 | M43: 0.04451984718 | N43: 0.1177643128
B44: T O T A L | C44: 2016 | D44: 100 | E44: 5.128865081 | F44: 1.660889538 | G44: 1.811696309 | H44: 0.5583128078 | I44: 2.029239269 | J44: 3.536426774 | K44: 11.31967233 | L44: 0.5260555449 | M44: 0.03241011868 | N44: 0.02926149336
B46: Powiaty:
B47: Powiats:
B48: bolesławiecki | D48: 100 | E48: 10.9988079 | F48: 1.383628664 | G48: 1.773913147 | H48: 0.05149411921 | I48: 2.284989692 | J48: 2.466770344 | K48: 2.240206834 | L48: 0.2392973009 | M48: - | N48: -
B49: dzierżoniowski | D49: 100 | E49: 5.003593475 | F49: 1.35857473 | G49: 1.396124937 | H49: 0.07355937003 | I49: 1.379881284 | J49: 2.084920768 | K49: 7.606112221 | L49: 0.09288140969 | M49: - | N49: 0.2015375871
B50: głogowski | D50: 100 | E50: 0.4586469004 | F50: 2.871571227 | G50: 1.347797379 | H50: 0.3577020694 | I50: 2.531406617 | J50: 2.279008354 | K50: 9.139578378 | L50: 3.00430272 | M50: 0.01899041645 | N50: -
B51: górowski | D51: 100 | E51: 0.4774880364 | F51: 1.044060789 | G51: 2.257568691 | H51: 0.109346518 | I51: 1.04821749 | J51: 3.816308406 | K51: 11.36732709 | L51: 0.6239273107 | M51: - | N51: -
B52: jaworski | D52: 100 | E52: 12.56770427 | F52: 1.18055621 | G52: 1.781015297 | H52: 1.077399956 | I52: 0.9528027089 | J52: 2.799991692 | K52: 15.60970987 | L52: 0.1208100992 | M52: - | N52: 0.002232549142
B53: jeleniogórski | D53: 100 | E53: 5.322783925 | F53: 3.350667142 | G53: 2.083475625 | H53: 0.7539766252 | I53: 6.612271903 | J53: 4.110468267 | K53: 21.48897679 | L53: 0.5540805188 | M53: - | N53: -
B54: kamiennogórski | D54: 100 | E54: 8.368397573 | F54: 1.8534583 | G54: 1.899284803 | H54: 0.7328000919 | I54: 1.583897898 | J54: 2.236483664 | K54: 16.72362096 | L54: 0.7035614778 | M54: - | N54: -
B55: kłodzki | D55: 100 | E55: 2.605303849 | F55: 1.024901965 | G55: 1.142971801 | H55: 0.144073032 | I55: 1.614417474 | J55: 3.790563856 | K55: 16.9888875 | L55: 0.1272339705 | M55: 0.005695119869 | N55: 4.535728836e-05
B56: legnicki | D56: 100 | E56: 2.356687895 | F56: 1.123117533 | G56: 2.081523092 | H56: 6.52469397 | I56: 1.144238115 | J56: 5.432778212 | K56: 37.68657465 | L56: 0.09534722134 | M56: - | N56: -
B57: lubański | D57: 100 | E57: 9.245381148 | F57: 0.7605173225 | G57: 1.800936884 | H57: 0.1453480148 | I57: 2.300539284 | J57: 2.555705848 | K57: 2.98213022 | L57: 0.3024247158 | M57: 0.08220708847 | N57: 0.001278776932
